Workbook

Sheet 資料
A1: 近畿地域農業ナビ
C4: 府県 | O4: 市区町村 | AC4: =IF(COUNTIF(OFFSET(リスト!$A$79,1,MATCH(O5,リスト!$A$79:$OC$79,0)-1,COUNTA(OFFSET(リスト!$A$79,1,MATCH(O5,リスト!$A$79:$OC$79,0)-1,38))),AE5),"旧市区町村","旧市区町村を選択してください") -> 旧市区町村 | AW4: =IF(COUNTIF(OFFSET(リスト!$A$118,1,MATCH(AE5,リスト!$A$118:$OC$118,0)-1,COUNTA(OFFSET(リスト!$A$118,1,MATCH(AE5,リスト!$A$118:$OC$118,0)-1,128))),AY5),"農業集落","農業集落を選択してください") -> 農業集落 | DJ4: =VLOOKUP(DJ5,key!$A$1:$B$5000,2,FALSE) -> 2600000000
C5: ='２データ'!$H$6 -> 京都府 | DJ5: =IF(AND(O5=" ",AE5=" ",AY5=" "),C5,IF(AND(AE5=" ",AY5=" "),C5&O5,IF(AY5=" ",C5&O5&AE5,C5&O5&AE5&AY5))) -> 京都府
C7: 地域の概要 | AK7: 人、％ | AQ7: ％ | BG7: ha、％ | BY7: ha | CE7: ha
C8: 世帯数 | J8: 事業所数 | Q8: 総人口 | AL8: 高齢化率 | AR8: 総土地 面積 | BH8: 農業地域 類型区分 | BN8: 中山間集落協定 | BZ8: 0.3ha区画 以上の田 | CF8: 集落営 農活動 | DJ8: 府県との比較
Q9: 令和２年 | X9: 30年後予測 | AE9: 増減率 | AX9: 森林地域 | BD9: 割合 | BN9: 協定数 | BT9: 協定面積 | DJ9: 都府県との比較
C10: =IF(ISNA($DJ$4),"",IF(VLOOKUP($DJ$4,'２データ'!$A$4:$KH$4628,'２データ'!JR$2,FALSE)=0,"-",VLOOKUP($DJ$4,'２データ'!$A$4:$KH$4628,'２データ'!JR$2,FALSE))) -> 1,188,903 | J10: =IF(ISNA($DJ$4),"",IF(VLOOKUP($DJ$4,'２データ'!$A$4:$KH$4628,'２データ'!JS$2,FALSE)=0,"-",VLOOKUP($DJ$4,'２データ'!$A$4:$KH$4628,'２データ'!JS$2,FALSE))) -> 112,233 | Q10: =IF(ISNA($DJ$4),"",IF(VLOOKUP($DJ$4,'２データ'!$A$4:$KH$4628,'２データ'!JT$2,FALSE)=0,"-",VLOOKUP($DJ$4,'２データ'!$A$4:$KH$4628,'２データ'!JT$2,FALSE))) -> 2,578,087 | X10: =IF(ISNA($DJ$4),"",IF(VLOOKUP($DJ$4,'２データ'!$A$4:$KH$4628,'２データ'!JU$2,FALSE)=0,"-",VLOOKUP($DJ$4,'２データ'!$A$4:$KH$4628,'２データ'!JU$2,FALSE))) -> 2,075,975 | AE10: =IF(ISNA($DJ$4),"",IF(Q10="-","nc",IF(AND(VLOOKUP($DJ$4,'２データ'!$A$4:$KH$4628,'２データ'!JV$2,FALSE)<0.5,VLOOKUP($DJ$4,'２データ'!$A$4:$KH$4628,'２データ'!JV$2,FALSE)>-0.5),0,VLOOKUP($DJ$4,'２データ'!$A$4:$KH$4628,'２データ'!JV$2,FALSE)))) -> △ 19 | AL10: =IF(ISNA($DJ$4),"",IF(Q10="-","nc",IF(VLOOKUP($DJ$4,'２データ'!$A$4:$KH$4628,'２データ'!JW$2,FALSE)=0,"-",VLOOKUP($DJ$4,'２データ'!$A$4:$KH$4628,'２データ'!JW$2,FALSE)))) -> 28 | AR10: =IF(ISNA($DJ$4),"",IF(VLOOKUP($DJ$4,'２データ'!$A$4:$KH$4628,'２データ'!JX$2,FALSE)=0,"-",VLOOKUP($DJ$4,'２データ'!$A$4:$KH$4628,'２データ'!JX$2,FALSE))) -> 461,217 | AX10: =IF(ISNA($DJ$4),"",IF(VLOOKUP($DJ$4,'２データ'!$A$4:$KH$4628,'２データ'!JY$2,FALSE)=0,"-",VLOOKUP($DJ$4,'２データ'!$A$4:$KH$4628,'２データ'!JY$2,FALSE))) -> 352,090 | BD10: =IF(ISNA($DJ$4),"",IF(AR10="-","nc",IF(AX10="-","-",AX10/AR10*100))) -> 76 | BH10: =IF(ISNA($DJ$4),"",IF(VLOOKUP($DJ$4,'２データ'!$A$4:$KH$4628,'２データ'!JZ$2,FALSE)="1","都市的",IF(VLOOKUP($DJ$4,'２データ'!$A$4:$KH$4628,'２データ'!JZ$2,FALSE)="2","平地農業",IF(VLOOKUP($DJ$4,'２データ'!$A$4:$KH$4628,'２データ'!JZ$2,FALSE)="3","中間農業",IF(VLOOKUP($DJ$4,'２データ'!$A$4:$KH$4628,'２データ'!JZ$2,FALSE)="4","山間農業",VLOOKUP($DJ$4,'２データ'!$A$4:$KH$4628,'２データ'!JZ$2,FALSE)))))) -> … | BN10: =IF(ISNA($DJ$4),"",IF(VLOOKUP($DJ$4,'２データ'!$A$4:$KH$4628,'２データ'!KA$2,FALSE)=0,"-",VLOOKUP($DJ$4,'２データ'!$A$4:$KH$4628,'２データ'!KA$2,FALSE))) -> 503 | BT10: =IF(ISNA($DJ$4),"",IF(VLOOKUP($DJ$4,'２データ'!$A$4:$KH$4628,'２データ'!KB$2,FALSE)=0,"-",VLOOKUP($DJ$4,'２データ'!$A$4:$KH$4628,'２データ'!KB$2,FALSE))) -> 5,134 | BZ10: =IF(ISNA($DJ$4),"",IF(VLOOKUP($DJ$4,'２データ'!$A$4:$KH$4628,'２データ'!KC$2,FALSE)=0,"-",VLOOKUP($DJ$4,'２データ'!$A$4:$KH$4628,'２データ'!KC$2,FALSE))) -> 10,374 | CF10: =IF(ISNA($DJ$4),"",IF(VLOOKUP($DJ$4,'２データ'!$A$4:$KH$4628,'２データ'!KD$2,FALSE)>0,"有","無")) -> 有 | DJ10: 全国との比較
C11: 資料：農林水産省統計部「地域の農業を見て・知って・活かすＤＢ」 | DJ11: 前回との比較
BW12: 府県との比較
B14: １ 農業経営体数
C16: (1) 組織形態別経営体数 | BQ16: (2) 雇用した経営体数
C17: 区 分 | O17: 計 | U17: 法人化している | AS17: 地方 公共 団体等 | AY17: 法人化していない | BK17: 認定農業 者がいる 経営体 | BQ17: 常雇い | CB17: 臨時雇い
U18: 農事組合法人 | AA18: 会社 | AG18: 農協等 の団体 | AM18: その他 の法人 | AY18: 団体 経営体 | BE18: 個人 経営体 | BQ18: 経営体 | BW18: 人数 （人） | CB18: 経営体 | CG18: 人数 （人）
C20: 経営 体数 | H20: 平成27年 | O20: =IF(ISNA($DJ$4),"",VLOOKUP($DJ$4,'27データ'!$A$4:$KH$4628,'27データ'!M$2,FALSE)) -> 18,016 | U20: =IF(ISNA($DJ$4),"",VLOOKUP($DJ$4,'27データ'!$A$4:$KH$4628,'27データ'!N$2,FALSE)) -> 79 | AA20: =IF(ISNA($DJ$4),"",VLOOKUP($DJ$4,'27データ'!$A$4:$KH$4628,'27データ'!O$2,FALSE)) -> 153 | AG20: =IF(ISNA($DJ$4),"",VLOOKUP($DJ$4,'27データ'!$A$4:$KH$4628,'27データ'!P$2,FALSE)) -> 46 | AM20: =IF(ISNA($DJ$4),"",VLOOKUP($DJ$4,'27データ'!$A$4:$KH$4628,'27データ'!Q$2,FALSE)) -> 22 | AS20: =IF(ISNA($DJ$4),"",VLOOKUP($DJ$4,'27データ'!$A$4:$KH$4628,'27データ'!R$2,FALSE)) -> 2 | AY20: =IF(ISNA($DJ$4),"",VLOOKUP($DJ$4,'27データ'!$A$4:$KH$4628,'27データ'!S$2,FALSE)) -> 186 | BE20: =IF(ISNA($DJ$4),"",VLOOKUP($DJ$4,'27データ'!$A$4:$KH$4628,'27データ'!T$2,FALSE)) -> 17,528 | BK20: =IF(ISNA($DJ$4),"",VLOOKUP($DJ$4,'27データ'!$A$4:$KH$4628,'27データ'!U$2,FALSE)) -> 1,064 | BQ20: =IF(ISNA($DJ$4),"",VLOOKUP($DJ$4,'27データ'!$A$4:$KH$4628,'27データ'!V$2,FALSE)) -> 366 | BW20: =IF(ISNA($DJ$4),"",VLOOKUP($DJ$4,'27データ'!$A$4:$KH$4628,'27データ'!W$2,FALSE)) -> 1,384 | CB20: =IF(ISNA($DJ$4),"",VLOOKUP($DJ$4,'27データ'!$A$4:$KH$4628,'27データ'!X$2,FALSE)) -> 2,793 | CG20: =IF(ISNA($DJ$4),"",VLOOKUP($DJ$4,'27データ'!$A$4:$KH$4628,'27データ'!Y$2,FALSE)) -> 14,332
H21: 令和２年 | O21: =IF(ISNA($DJ$4),"",VLOOKUP($DJ$4,'２データ'!$A$4:$KH$4628,'２データ'!M$2,FALSE)) -> 14,181 | U21: =IF(ISNA($DJ$4),"",VLOOKUP($DJ$4,'２データ'!$A$4:$KH$4628,'２データ'!N$2,FALSE)) -> 68 | AA21: =IF(ISNA($DJ$4),"",VLOOKUP($DJ$4,'２データ'!$A$4:$KH$4628,'２データ'!O$2,FALSE)) -> 228 | AG21: =IF(ISNA($DJ$4),"",VLOOKUP($DJ$4,'２データ'!$A$4:$KH$4628,'２データ'!P$2,FALSE)) -> 27 | AM21: =IF(ISNA($DJ$4),"",VLOOKUP($DJ$4,'２データ'!$A$4:$KH$4628,'２データ'!Q$2,FALSE)) -> 10 | AS21: =IF(ISNA($DJ$4),"",VLOOKUP($DJ$4,'２データ'!$A$4:$KH$4628,'２データ'!R$2,FALSE)) -> 2 | AY21: =IF(ISNA($DJ$4),"",VLOOKUP($DJ$4,'２データ'!$A$4:$KH$4628,'２データ'!S$2,FALSE)) -> 187 | BE21: =IF(ISNA($DJ$4),"",VLOOKUP($DJ$4,'２データ'!$A$4:$KH$4628,'２データ'!T$2,FALSE)) -> 13,659 | BK21: =IF(ISNA($DJ$4),"",VLOOKUP($DJ$4,'２データ'!$A$4:$KH$4628,'２データ'!U$2,FALSE)) -> 1,177 | BQ21: =IF(ISNA($DJ$4),"",VLOOKUP($DJ$4,'２データ'!$A$4:$KH$4628,'２データ'!V$2,FALSE)) -> 343 | BW21: =IF(ISNA($DJ$4),"",VLOOKUP($DJ$4,'２データ'!$A$4:$KH$4628,'２データ'!W$2,FALSE)) -> 1,208 | CB21: =IF(ISNA($DJ$4),"",VLOOKUP($DJ$4,'２データ'!$A$4:$KH$4628,'２データ'!X$2,FALSE)) -> 1,325 | CG21: =IF(ISNA($DJ$4),"",VLOOKUP($DJ$4,'２データ'!$A$4:$KH$4628,'２データ'!Y$2,FALSE)) -> 10,011
C22: 資料：農林水産省統計部『農林業センサス』（以下、同じ。） | BQ22: 注：臨時雇いは、手伝いを含む。
B24: ２ 経営耕地面積
C26: (1) 経営耕地面積規模別の経営体数、経営耕地面積 | BQ26: (2) 田畑別経営体数等
C27: 区 分 | O27: 計 | U27: 0.5ha 未満 | AA27: 0.5～１ | AG27: １～３ | AM27: ３～５ | AS27: ５～10 | AY27: 10ha 以上 | BQ27: 田畑別 | CF27: 借入 耕地
BE28: 10～20 | BK28: 20ha以上 | BQ28: 田 | BV28: 畑 | CA28: 樹園地
C29: 経営 体数 | H29: 平成27年 | O29: =IF(ISNA($DJ$4),"",VLOOKUP($DJ$4,'27データ'!$A$4:$KH$4628,'27データ'!Z$2,FALSE)) -> 18,016 | U29: =IF(ISNA($DJ$4),"",VLOOKUP($DJ$4,'27データ'!$A$4:$KH$4628,'27データ'!AA$2,FALSE)) -> 5,386 | AA29: =IF(ISNA($DJ$4),"",VLOOKUP($DJ$4,'27データ'!$A$4:$KH$4628,'27データ'!AB$2,FALSE)) -> 7,558 | AG29: =IF(ISNA($DJ$4),"",VLOOKUP($DJ$4,'27データ'!$A$4:$KH$4628,'27データ'!AC$2,FALSE)) -> 4,175 | AM29: =IF(ISNA($DJ$4),"",VLOOKUP($DJ$4,'27データ'!$A$4:$KH$4628,'27データ'!AD$2,FALSE)) -> 488 | AS29: =IF(ISNA($DJ$4),"",VLOOKUP($DJ$4,'27データ'!$A$4:$KH$4628,'27データ'!AE$2,FALSE)) -> 272 | AY29: =IF(ISNA($DJ$4),"",VLOOKUP($DJ$4,'27データ'!$A$4:$KH$4628,'27データ'!AF$2,FALSE)) -> 137 | BE29: =IF(ISNA($DJ$4),"",VLOOKUP($DJ$4,'27データ'!$A$4:$KH$4628,'27データ'!AG$2,FALSE)) -> 107 | BK29: =IF(ISNA($DJ$4),"",VLOOKUP($DJ$4,'27データ'!$A$4:$KH$4628,'27データ'!AH$2,FALSE)) -> 30 | BQ29: =IF(ISNA($DJ$4),"",VLOOKUP($DJ$4,'27データ'!$A$4:$KH$4628,'27データ'!AR$2,FALSE)) -> 17,199 | BV29: =IF(ISNA($DJ$4),"",VLOOKUP($DJ$4,'27データ'!$A$4:$KH$4628,'27データ'!AT$2,FALSE)) -> 9,737 | CA29: =IF(ISNA($DJ$4),"",VLOOKUP($DJ$4,'27データ'!$A$4:$KH$4628,'27データ'!AV$2,FALSE)) -> 2,929 | CF29: =IF(ISNA($DJ$4),"",VLOOKUP($DJ$4,'27データ'!$A$4:$KH$4628,'27データ'!AX$2,FALSE)) -> 8,111
H30: 令和２年 | O30: =IF(ISNA($DJ$4),"",VLOOKUP($DJ$4,'２データ'!$A$4:$KH$4628,'２データ'!Z$2,FALSE)) -> 14,181 | U30: =IF(ISNA($DJ$4),"",VLOOKUP($DJ$4,'２データ'!$A$4:$KH$4628,'２データ'!AA$2,FALSE)) -> 4,206 | AA30: =IF(ISNA($DJ$4),"",VLOOKUP($DJ$4,'２データ'!$A$4:$KH$4628,'２データ'!AB$2,FALSE)) -> 5,661 | AG30: =IF(ISNA($DJ$4),"",VLOOKUP($DJ$4,'２データ'!$A$4:$KH$4628,'２データ'!AC$2,FALSE)) -> 3,323 | AM30: =IF(ISNA($DJ$4),"",VLOOKUP($DJ$4,'２データ'!$A$4:$KH$4628,'２データ'!AD$2,FALSE)) -> 497 | AS30: =IF(ISNA($DJ$4),"",VLOOKUP($DJ$4,'２データ'!$A$4:$KH$4628,'２データ'!AE$2,FALSE)) -> 285 | AY30: =IF(ISNA($DJ$4),"",VLOOKUP($DJ$4,'２データ'!$A$4:$KH$4628,'２データ'!AF$2,FALSE)) -> 209 | BE30: =IF(ISNA($DJ$4),"",VLOOKUP($DJ$4,'２データ'!$A$4:$KH$4628,'２データ'!AG$2,FALSE)) -> 149 | BK30: =IF(ISNA($DJ$4),"",VLOOKUP($DJ$4,'２データ'!$A$4:$KH$4628,'２データ'!AH$2,FALSE)) -> 60 | BQ30: =IF(ISNA($DJ$4),"",VLOOKUP($DJ$4,'２データ'!$A$4:$KH$4628,'２データ'!AR$2,FALSE)) -> 13,183 | BV30: =IF(ISNA($DJ$4),"",VLOOKUP($DJ$4,'２データ'!$A$4:$KH$4628,'２データ'!AT$2,FALSE)) -> 6,649 | CA30: =IF(ISNA($DJ$4),"",VLOOKUP($DJ$4,'２データ'!$A$4:$KH$4628,'２データ'!AV$2,FALSE)) -> 2,186 | CF30: =IF(ISNA($DJ$4),"",VLOOKUP($DJ$4,'２データ'!$A$4:$KH$4628,'２データ'!AX$2,FALSE)) -> 6,147
C31: 面積 (ha) | H31: 平成27年 | O31: =IF(ISNA($DJ$4),"",IF(VLOOKUP($DJ$4,'27データ'!$A$4:$KH$4628,'27データ'!AI$2,FALSE)="@","@",IF(VLOOKUP($DJ$4,'27データ'!$A$4:$KH$4628,'27データ'!AI$2,FALSE)="x","x",IF(VLOOKUP($DJ$4,'27データ'!$A$4:$KH$4628,'27データ'!AI$2,FALSE)="-","-",VLOOKUP($DJ$4,'27データ'!$A$4:$KH$4628,'27データ'!AI$2,FALSE)/100)))) -> 19,652 | U31: =IF(ISNA($DJ$4),"",IF(VLOOKUP($DJ$4,'27データ'!$A$4:$KH$4628,'27データ'!AJ$2,FALSE)="@","@",IF(VLOOKUP($DJ$4,'27データ'!$A$4:$KH$4628,'27データ'!AJ$2,FALSE)="x","x",IF(VLOOKUP($DJ$4,'27データ'!$A$4:$KH$4628,'27データ'!AJ$2,FALSE)="-","-",VLOOKUP($DJ$4,'27データ'!$A$4:$KH$4628,'27データ'!AJ$2,FALSE)/100)))) -> 2,000 | AA31: =IF(ISNA($DJ$4),"",IF(VLOOKUP($DJ$4,'27データ'!$A$4:$KH$4628,'27データ'!AK$2,FALSE)="@","@",IF(VLOOKUP($DJ$4,'27データ'!$A$4:$KH$4628,'27データ'!AK$2,FALSE)="x","x",IF(VLOOKUP($DJ$4,'27データ'!$A$4:$KH$4628,'27データ'!AK$2,FALSE)="-","-",VLOOKUP($DJ$4,'27データ'!$A$4:$KH$4628,'27データ'!AK$2,FALSE)/100)))) -> 5,241 | AG31: =IF(ISNA($DJ$4),"",IF(VLOOKUP($DJ$4,'27データ'!$A$4:$KH$4628,'27データ'!AL$2,FALSE)="@","@",IF(VLOOKUP($DJ$4,'27データ'!$A$4:$KH$4628,'27データ'!AL$2,FALSE)="x","x",IF(VLOOKUP($DJ$4,'27データ'!$A$4:$KH$4628,'27データ'!AL$2,FALSE)="-","-",VLOOKUP($DJ$4,'27データ'!$A$4:$KH$4628,'27データ'!AL$2,FALSE)/100)))) -> 6,308 | AM31: =IF(ISNA($DJ$4),"",IF(VLOOKUP($DJ$4,'27データ'!$A$4:$KH$4628,'27データ'!AM$2,FALSE)="@","@",IF(VLOOKUP($DJ$4,'27データ'!$A$4:$KH$4628,'27データ'!AM$2,FALSE)="x","x",IF(VLOOKUP($DJ$4,'27データ'!$A$4:$KH$4628,'27データ'!AM$2,FALSE)="-","-",VLOOKUP($DJ$4,'27データ'!$A$4:$KH$4628,'27データ'!AM$2,FALSE)/100)))) -> 1,839 | AS31: =IF(ISNA($DJ$4),"",IF(VLOOKUP($DJ$4,'27データ'!$A$4:$KH$4628,'27データ'!AN$2,FALSE)="@","@",IF(VLOOKUP($DJ$4,'27データ'!$A$4:$KH$4628,'27データ'!AN$2,FALSE)="x","x",IF(VLOOKUP($DJ$4,'27データ'!$A$4:$KH$4628,'27データ'!AN$2,FALSE)="-","-",VLOOKUP($DJ$4,'27データ'!$A$4:$KH$4628,'27データ'!AN$2,FALSE)/100)))) -> 1,850 | AY31: =IF(ISNA($DJ$4),"",IF(VLOOKUP($DJ$4,'27データ'!$A$4:$KH$4628,'27データ'!AO$2,FALSE)="@","@",IF(VLOOKUP($DJ$4,'27データ'!$A$4:$KH$4628,'27データ'!AO$2,FALSE)="x","x",IF(VLOOKUP($DJ$4,'27データ'!$A$4:$KH$4628,'27データ'!AO$2,FALSE)="-","-",VLOOKUP($DJ$4,'27データ'!$A$4:$KH$4628,'27データ'!AO$2,FALSE)/100)))) -> 2,413 | BE31: =IF(ISNA($DJ$4),"",IF(VLOOKUP($DJ$4,'27データ'!$A$4:$KH$4628,'27データ'!AP$2,FALSE)="@","@",IF(VLOOKUP($DJ$4,'27データ'!$A$4:$KH$4628,'27データ'!AP$2,FALSE)="x","x",IF(VLOOKUP($DJ$4,'27データ'!$A$4:$KH$4628,'27データ'!AP$2,FALSE)="-","-",VLOOKUP($DJ$4,'27データ'!$A$4:$KH$4628,'27データ'!AP$2,FALSE)/100)))) -> 1,462 | BK31: =IF(ISNA($DJ$4),"",IF(VLOOKUP($DJ$4,'27データ'!$A$4:$KH$4628,'27データ'!AQ$2,FALSE)="@","@",IF(VLOOKUP($DJ$4,'27データ'!$A$4:$KH$4628,'27データ'!AQ$2,FALSE)="x","x",IF(VLOOKUP($DJ$4,'27データ'!$A$4:$KH$4628,'27データ'!AQ$2,FALSE)="-","-",VLOOKUP($DJ$4,'27データ'!$A$4:$KH$4628,'27データ'!AQ$2,FALSE)/100)))) -> 951 | BQ31: =IF(ISNA($DJ$4),"",IF(VLOOKUP($DJ$4,'27データ'!$A$4:$KH$4628,'27データ'!AS$2,FALSE)="@","@",IF(VLOOKUP($DJ$4,'27データ'!$A$4:$KH$4628,'27データ'!AS$2,FALSE)="x","x",IF(VLOOKUP($DJ$4,'27データ'!$A$4:$KH$4628,'27データ'!AS$2,FALSE)="-","-",VLOOKUP($DJ$4,'27データ'!$A$4:$KH$4628,'27データ'!AS$2,FALSE)/100)))) -> 15,846 | BV31: =IF(ISNA($DJ$4),"",IF(VLOOKUP($DJ$4,'27データ'!$A$4:$KH$4628,'27データ'!AU$2,FALSE)="@","@",IF(VLOOKUP($DJ$4,'27データ'!$A$4:$KH$4628,'27データ'!AU$2,FALSE)="x","x",IF(VLOOKUP($DJ$4,'27データ'!$A$4:$KH$4628,'27データ'!AU$2,FALSE)="-","-",VLOOKUP($DJ$4,'27データ'!$A$4:$KH$4628,'27データ'!AU$2,FALSE)/100)))) -> 2,096 | CA31: =IF(ISNA($DJ$4),"",IF(VLOOKUP($DJ$4,'27データ'!$A$4:$KH$4628,'27データ'!AW$2,FALSE)="@","@",IF(VLOOKUP($DJ$4,'27データ'!$A$4:$KH$4628,'27データ'!AW$2,FALSE)="x","x",IF(VLOOKUP($DJ$4,'27データ'!$A$4:$KH$4628,'27データ'!AW$2,FALSE)="-","-",VLOOKUP($DJ$4,'27データ'!$A$4:$KH$4628,'27データ'!AW$2,FALSE)/100)))) -> 1,709 | CF31: =IF(ISNA($DJ$4),"",IF(VLOOKUP($DJ$4,'27データ'!$A$4:$KH$4628,'27データ'!AY$2,FALSE)="@","@",IF(VLOOKUP($DJ$4,'27データ'!$A$4:$KH$4628,'27データ'!AY$2,FALSE)="x","x",IF(VLOOKUP($DJ$4,'27データ'!$A$4:$KH$4628,'27データ'!AY$2,FALSE)="-","-",VLOOKUP($DJ$4,'27データ'!$A$4:$KH$4628,'27データ'!AY$2,FALSE)/100)))) -> 7,673
H32: 令和２年 | O32: =IF(ISNA($DJ$4),"",IF(VLOOKUP($DJ$4,'２データ'!$A$4:$KH$4628,'２データ'!AI$2,FALSE)="@","@",IF(VLOOKUP($DJ$4,'２データ'!$A$4:$KH$4628,'２データ'!AI$2,FALSE)="x","x",IF(VLOOKUP($DJ$4,'２データ'!$A$4:$KH$4628,'２データ'!AI$2,FALSE)="-","-",VLOOKUP($DJ$4,'２データ'!$A$4:$KH$4628,'２データ'!AI$2,FALSE)/100)))) -> 18,440 | U32: =IF(ISNA($DJ$4),"",IF(VLOOKUP($DJ$4,'２データ'!$A$4:$KH$4628,'２データ'!AJ$2,FALSE)="@","@",IF(VLOOKUP($DJ$4,'２データ'!$A$4:$KH$4628,'２データ'!AJ$2,FALSE)="x","x",IF(VLOOKUP($DJ$4,'２データ'!$A$4:$KH$4628,'２データ'!AJ$2,FALSE)="-","-",VLOOKUP($DJ$4,'２データ'!$A$4:$KH$4628,'２データ'!AJ$2,FALSE)/100)))) -> 1,544 | AA32: =IF(ISNA($DJ$4),"",IF(VLOOKUP($DJ$4,'２データ'!$A$4:$KH$4628,'２データ'!AK$2,FALSE)="@","@",IF(VLOOKUP($DJ$4,'２データ'!$A$4:$KH$4628,'２データ'!AK$2,FALSE)="x","x",IF(VLOOKUP($DJ$4,'２データ'!$A$4:$KH$4628,'２データ'!AK$2,FALSE)="-","-",VLOOKUP($DJ$4,'２データ'!$A$4:$KH$4628,'２データ'!AK$2,FALSE)/100)))) -> 3,907 | AG32: =IF(ISNA($DJ$4),"",IF(VLOOKUP($DJ$4,'２データ'!$A$4:$KH$4628,'２データ'!AL$2,FALSE)="@","@",IF(VLOOKUP($DJ$4,'２データ'!$A$4:$KH$4628,'２データ'!AL$2,FALSE)="x","x",IF(VLOOKUP($DJ$4,'２データ'!$A$4:$KH$4628,'２データ'!AL$2,FALSE)="-","-",VLOOKUP($DJ$4,'２データ'!$A$4:$KH$4628,'２データ'!AL$2,FALSE)/100)))) -> 5,055 | AM32: =IF(ISNA($DJ$4),"",IF(VLOOKUP($DJ$4,'２データ'!$A$4:$KH$4628,'２データ'!AM$2,FALSE)="@","@",IF(VLOOKUP($DJ$4,'２データ'!$A$4:$KH$4628,'２データ'!AM$2,FALSE)="x","x",IF(VLOOKUP($DJ$4,'２データ'!$A$4:$KH$4628,'２データ'!AM$2,FALSE)="-","-",VLOOKUP($DJ$4,'２データ'!$A$4:$KH$4628,'２データ'!AM$2,FALSE)/100)))) -> 1,877 | AS32: =IF(ISNA($DJ$4),"",IF(VLOOKUP($DJ$4,'２データ'!$A$4:$KH$4628,'２データ'!AN$2,FALSE)="@","@",IF(VLOOKUP($DJ$4,'２データ'!$A$4:$KH$4628,'２データ'!AN$2,FALSE)="x","x",IF(VLOOKUP($DJ$4,'２データ'!$A$4:$KH$4628,'２データ'!AN$2,FALSE)="-","-",VLOOKUP($DJ$4,'２データ'!$A$4:$KH$4628,'２データ'!AN$2,FALSE)/100)))) -> 1,912 | AY32: =IF(ISNA($DJ$4),"",IF(VLOOKUP($DJ$4,'２データ'!$A$4:$KH$4628,'２データ'!AO$2,FALSE)="@","@",IF(VLOOKUP($DJ$4,'２データ'!$A$4:$KH$4628,'２データ'!AO$2,FALSE)="x","x",IF(VLOOKUP($DJ$4,'２データ'!$A$4:$KH$4628,'２データ'!AO$2,FALSE)="-","-",VLOOKUP($DJ$4,'２データ'!$A$4:$KH$4628,'２データ'!AO$2,FALSE)/100)))) -> 4,146 | BE32: =IF(ISNA($DJ$4),"",IF(VLOOKUP($DJ$4,'２データ'!$A$4:$KH$4628,'２データ'!AP$2,FALSE)="@","@",IF(VLOOKUP($DJ$4,'２データ'!$A$4:$KH$4628,'２データ'!AP$2,FALSE)="x","x",IF(VLOOKUP($DJ$4,'２データ'!$A$4:$KH$4628,'２データ'!AP$2,FALSE)="-","-",VLOOKUP($DJ$4,'２データ'!$A$4:$KH$4628,'２データ'!AP$2,FALSE)/100)))) -> 2,017 | BK32: =IF(ISNA($DJ$4),"",IF(VLOOKUP($DJ$4,'２データ'!$A$4:$KH$4628,'２データ'!AQ$2,FALSE)="@","@",IF(VLOOKUP($DJ$4,'２データ'!$A$4:$KH$4628,'２データ'!AQ$2,FALSE)="x","x",IF(VLOOKUP($DJ$4,'２データ'!$A$4:$KH$4628,'２データ'!AQ$2,FALSE)="-","-",VLOOKUP($DJ$4,'２データ'!$A$4:$KH$4628,'２データ'!AQ$2,FALSE)/100)))) -> 2,128 | BQ32: =IF(ISNA($DJ$4),"",IF(VLOOKUP($DJ$4,'２データ'!$A$4:$KH$4628,'２データ'!AS$2,FALSE)="@","@",IF(VLOOKUP($DJ$4,'２データ'!$A$4:$KH$4628,'２データ'!AS$2,FALSE)="x","x",IF(VLOOKUP($DJ$4,'２データ'!$A$4:$KH$4628,'２データ'!AS$2,FALSE)="-","-",VLOOKUP($DJ$4,'２データ'!$A$4:$KH$4628,'２データ'!AS$2,FALSE)/100)))) -> 14,732 | BV32: =IF(ISNA($DJ$4),"",IF(VLOOKUP($DJ$4,'２データ'!$A$4:$KH$4628,'２データ'!AU$2,FALSE)="@","@",IF(VLOOKUP($DJ$4,'２データ'!$A$4:$KH$4628,'２データ'!AU$2,FALSE)="x","x",IF(VLOOKUP($DJ$4,'２データ'!$A$4:$KH$4628,'２データ'!AU$2,FALSE)="-","-",VLOOKUP($DJ$4,'２データ'!$A$4:$KH$4628,'２データ'!AU$2,FALSE)/100)))) -> 2,089 | CA32: =IF(ISNA($DJ$4),"",IF(VLOOKUP($DJ$4,'２データ'!$A$4:$KH$4628,'２データ'!AW$2,FALSE)="@","@",IF(VLOOKUP($DJ$4,'２データ'!$A$4:$KH$4628,'２データ'!AW$2,FALSE)="x","x",IF(VLOOKUP($DJ$4,'２データ'!$A$4:$KH$4628,'２データ'!AW$2,FALSE)="-","-",VLOOKUP($DJ$4,'２データ'!$A$4:$KH$4628,'２データ'!AW$2,FALSE)/100)))) -> 1,620 | CF32: =IF(ISNA($DJ$4),"",IF(VLOOKUP($DJ$4,'２データ'!$A$4:$KH$4628,'２データ'!AY$2,FALSE)="@","@",IF(VLOOKUP($DJ$4,'２データ'!$A$4:$KH$4628,'２データ'!AY$2,FALSE)="x","x",IF(VLOOKUP($DJ$4,'２データ'!$A$4:$KH$4628,'２データ'!AY$2,FALSE)="-","-",VLOOKUP($DJ$4,'２データ'!$A$4:$KH$4628,'２データ'!AY$2,FALSE)/100)))) -> 7,983 | DJ32: =IF($BW$12="全国との比較","1",IF($BW$12="都府県との比較","2",'２データ'!$A$6)) -> 2600000000
C33: 面積 構成比 (％) | H33: 平成27年 | O33: =IF(ISNA($DJ$4),"",IF(O31="@","nc",IF(O31="x","x",IF($O31="-","nc",O31/$O31*100)))) -> 100 | U33: =IF(ISNA($DJ$4),"",IF(U31="@","nc",IF(U31="x","x",IF($O31="-","nc",IF(U31="-","-",U31/$O31*100))))) -> 10 | AA33: =IF(ISNA($DJ$4),"",IF(AA31="@","nc",IF(AA31="x","x",IF($O31="-","nc",IF(AA31="-","-",AA31/$O31*100))))) -> 27 | AG33: =IF(ISNA($DJ$4),"",IF(AG31="@","nc",IF(AG31="x","x",IF($O31="-","nc",IF(AG31="-","-",AG31/$O31*100))))) -> 32 | AM33: =IF(ISNA($DJ$4),"",IF(AM31="@","nc",IF(AM31="x","x",IF($O31="-","nc",IF(AM31="-","-",AM31/$O31*100))))) -> 9 | AS33: =IF(ISNA($DJ$4),"",IF(AS31="@","nc",IF(AS31="x","x",IF($O31="-","nc",IF(AS31="-","-",AS31/$O31*100))))) -> 9 | AY33: =IF(ISNA($DJ$4),"",IF(AY31="@","nc",IF(AY31="x","x",IF($O31="-","nc",IF(AY31="-","-",AY31/$O31*100))))) -> 12 | BE33: =IF(ISNA($DJ$4),"",IF(BE31="@","nc",IF(BE31="x","x",IF($O31="-","nc",IF(BE31="-","-",BE31/$O31*100))))) -> 7 | BK33: =IF(ISNA($DJ$4),"",IF(BK31="@","nc",IF(BK31="x","x",IF($O31="-","nc",IF(BK31="-","-",BK31/$O31*100))))) -> 5 | BQ33: =IF(ISNA($DJ$4),"",IF(BQ31="@","nc",IF(BQ31="x","x",IF($O31="-","nc",IF(BQ31="-","-",BQ31/$O31*100))))) -> 81 | BV33: =IF(ISNA($DJ$4),"",IF(BV31="@","nc",IF(BV31="x","x",IF($O31="-","nc",IF(BV31="-","-",BV31/$O31*100))))) -> 11 | CA33: =IF(ISNA($DJ$4),"",IF(CA31="@","nc",IF(CA31="x","x",IF($O31="-","nc",IF(CA31="-","-",CA31/$O31*100))))) -> 9 | CF33: =IF(ISNA($DJ$4),"",IF(CF31="@","nc",IF(CF31="x","x",IF($O31="-","nc",IF(CF31="-","-",CF31/$O31*100))))) -> 39
H34: 令和２年 | O34: =IF(ISNA($DJ$4),"",IF(O32="x","x",IF($O32="-","nc",O32/$O32*100))) -> 100 | U34: =IF(ISNA($DJ$4),"",IF(U32="x","x",IF($O32="-","nc",IF(U32="-","-",U32/$O32*100)))) -> 8 | AA34: =IF(ISNA($DJ$4),"",IF(AA32="x","x",IF($O32="-","nc",IF(AA32="-","-",AA32/$O32*100)))) -> 21 | AG34: =IF(ISNA($DJ$4),"",IF(AG32="x","x",IF($O32="-","nc",IF(AG32="-","-",AG32/$O32*100)))) -> 27 | AM34: =IF(ISNA($DJ$4),"",IF(AM32="x","x",IF($O32="-","nc",IF(AM32="-","-",AM32/$O32*100)))) -> 10 | AS34: =IF(ISNA($DJ$4),"",IF(AS32="x","x",IF($O32="-","nc",IF(AS32="-","-",AS32/$O32*100)))) -> 10 | AY34: =IF(ISNA($DJ$4),"",IF(AY32="x","x",IF($O32="-","nc",IF(AY32="-","-",AY32/$O32*100)))) -> 22 | BE34: =IF(ISNA($DJ$4),"",IF(BE32="x","x",IF($O32="-","nc",IF(BE32="-","-",BE32/$O32*100)))) -> 11 | BK34: =IF(ISNA($DJ$4),"",IF(BK32="x","x",IF($O32="-","nc",IF(BK32="-","-",BK32/$O32*100)))) -> 12 | BQ34: =IF(ISNA($DJ$4),"",IF(BQ32="x","x",IF($O32="-","nc",IF(BQ32="-","-",BQ32/$O32*100)))) -> 80 | BV34: =IF(ISNA($DJ$4),"",IF(BV32="x","x",IF($O32="-","nc",IF(BV32="-","-",BV32/$O32*100)))) -> 11 | CA34: =IF(ISNA($DJ$4),"",IF(CA32="x","x",IF($O32="-","nc",IF(CA32="-","-",CA32/$O32*100)))) -> 9 | CF34: =IF(ISNA($DJ$4),"",IF(CF32="x","x",IF($O32="-","nc",IF(CF32="-","-",CF32/$O32*100)))) -> 43
H35: =IF($BW$12="都府県との比較","都府県平均",IF($BW$12="全国との比較","全国平均","府県平均")) -> 府県平均 | O35: =IF(ISNA($DJ$4),"",IF(VLOOKUP($DJ$32,'２データ'!$A$4:$KH$4628,'２データ'!AI$2,FALSE)="x","x",IF(VLOOKUP($DJ$32,'２データ'!$A$4:$KH$4628,'２データ'!AI$2,FALSE)="-","nc",VLOOKUP($DJ$32,'２データ'!$A$4:$KH$4628,'２データ'!AI$2,FALSE)/VLOOKUP($DJ$32,'２データ'!$A$4:$KH$4628,'２データ'!AI$2,FALSE)*100))) -> 100 | U35: =IF(ISNA($DJ$4),"",IF(VLOOKUP($DJ$32,'２データ'!$A$4:$KH$4628,'２データ'!AI$2,FALSE)="x","x",IF(VLOOKUP($DJ$32,'２データ'!$A$4:$KH$4628,'２データ'!AI$2,FALSE)="-","nc",IF(VLOOKUP($DJ$32,'２データ'!$A$4:$KH$4628,'２データ'!AJ$2,FALSE)="-","-",VLOOKUP($DJ$32,'２データ'!$A$4:$KH$4628,'２データ'!AJ$2,FALSE)/VLOOKUP($DJ$32,'２データ'!$A$4:$KH$4628,'２データ'!AI$2,FALSE)*100)))) -> 8 | AA35: =IF(ISNA($DJ$4),"",IF(VLOOKUP($DJ$32,'２データ'!$A$4:$KH$4628,'２データ'!AI$2,FALSE)="x","x",IF(VLOOKUP($DJ$32,'２データ'!$A$4:$KH$4628,'２データ'!AI$2,FALSE)="-","nc",IF(VLOOKUP($DJ$32,'２データ'!$A$4:$KH$4628,'２データ'!AK$2,FALSE)="-","-",VLOOKUP($DJ$32,'２データ'!$A$4:$KH$4628,'２データ'!AK$2,FALSE)/VLOOKUP($DJ$32,'２データ'!$A$4:$KH$4628,'２データ'!AI$2,FALSE)*100)))) -> 21 | AG35: =IF(ISNA($DJ$4),"",IF(VLOOKUP($DJ$32,'２データ'!$A$4:$KH$4628,'２データ'!AI$2,FALSE)="x","x",IF(VLOOKUP($DJ$32,'２データ'!$A$4:$KH$4628,'２データ'!AI$2,FALSE)="-","nc",IF(VLOOKUP($DJ$32,'２データ'!$A$4:$KH$4628,'２データ'!AL$2,FALSE)="-","-",VLOOKUP($DJ$32,'２データ'!$A$4:$KH$4628,'２データ'!AL$2,FALSE)/VLOOKUP($DJ$32,'２データ'!$A$4:$KH$4628,'２データ'!AI$2,FALSE)*100)))) -> 27 | AM35: =IF(ISNA($DJ$4),"",IF(VLOOKUP($DJ$32,'２データ'!$A$4:$KH$4628,'２データ'!AI$2,FALSE)="x","x",IF(VLOOKUP($DJ$32,'２データ'!$A$4:$KH$4628,'２データ'!AI$2,FALSE)="-","nc",IF(VLOOKUP($DJ$32,'２データ'!$A$4:$KH$4628,'２データ'!AM$2,FALSE)="-","-",VLOOKUP($DJ$32,'２データ'!$A$4:$KH$4628,'２データ'!AM$2,FALSE)/VLOOKUP($DJ$32,'２データ'!$A$4:$KH$4628,'２データ'!AI$2,FALSE)*100)))) -> 10 | AS35: =IF(ISNA($DJ$4),"",IF(VLOOKUP($DJ$32,'２データ'!$A$4:$KH$4628,'２データ'!AI$2,FALSE)="x","x",IF(VLOOKUP($DJ$32,'２データ'!$A$4:$KH$4628,'２データ'!AI$2,FALSE)="-","nc",IF(VLOOKUP($DJ$32,'２データ'!$A$4:$KH$4628,'２データ'!AN$2,FALSE)="-","-",VLOOKUP($DJ$32,'２データ'!$A$4:$KH$4628,'２データ'!AN$2,FALSE)/VLOOKUP($DJ$32,'２データ'!$A$4:$KH$4628,'２データ'!AI$2,FALSE)*100)))) -> 10 | AY35: =IF(ISNA($DJ$4),"",IF(VLOOKUP($DJ$32,'２データ'!$A$4:$KH$4628,'２データ'!AI$2,FALSE)="x","x",IF(VLOOKUP($DJ$32,'２データ'!$A$4:$KH$4628,'２データ'!AI$2,FALSE)="-","nc",IF(VLOOKUP($DJ$32,'２データ'!$A$4:$KH$4628,'２データ'!AO$2,FALSE)="-","-",VLOOKUP($DJ$32,'２データ'!$A$4:$KH$4628,'２データ'!AO$2,FALSE)/VLOOKUP($DJ$32,'２データ'!$A$4:$KH$4628,'２データ'!AI$2,FALSE)*100)))) -> 22 | BE35: =IF(ISNA($DJ$4),"",IF(VLOOKUP($DJ$32,'２データ'!$A$4:$KH$4628,'２データ'!AI$2,FALSE)="x","x",IF(VLOOKUP($DJ$32,'２データ'!$A$4:$KH$4628,'２データ'!AI$2,FALSE)="-","nc",IF(VLOOKUP($DJ$32,'２データ'!$A$4:$KH$4628,'２データ'!AP$2,FALSE)="-","-",VLOOKUP($DJ$32,'２データ'!$A$4:$KH$4628,'２データ'!AP$2,FALSE)/VLOOKUP($DJ$32,'２データ'!$A$4:$KH$4628,'２データ'!AI$2,FALSE)*100)))) -> 11 | BK35: =IF(ISNA($DJ$4),"",IF(VLOOKUP($DJ$32,'２データ'!$A$4:$KH$4628,'２データ'!AI$2,FALSE)="x","x",IF(VLOOKUP($DJ$32,'２データ'!$A$4:$KH$4628,'２データ'!AI$2,FALSE)="-","nc",IF(VLOOKUP($DJ$32,'２データ'!$A$4:$KH$4628,'２データ'!AQ$2,FALSE)="-","-",VLOOKUP($DJ$32,'２データ'!$A$4:$KH$4628,'２データ'!AQ$2,FALSE)/VLOOKUP($DJ$32,'２データ'!$A$4:$KH$4628,'２データ'!AI$2,FALSE)*100)))) -> 12 | BQ35: =IF(ISNA($DJ$4),"",IF(VLOOKUP($DJ$32,'２データ'!$A$4:$KH$4628,'２データ'!AI$2,FALSE)="x","x",IF(VLOOKUP($DJ$32,'２データ'!$A$4:$KH$4628,'２データ'!AI$2,FALSE)="-","nc",IF(VLOOKUP($DJ$32,'２データ'!$A$4:$KH$4628,'２データ'!AS$2,FALSE)="-","-",VLOOKUP($DJ$32,'２データ'!$A$4:$KH$4628,'２データ'!AS$2,FALSE)/VLOOKUP($DJ$32,'２データ'!$A$4:$KH$4628,'２データ'!AI$2,FALSE)*100)))) -> 80 | BV35: =IF(ISNA($DJ$4),"",IF(VLOOKUP($DJ$32,'２データ'!$A$4:$KH$4628,'２データ'!AI$2,FALSE)="x","x",IF(VLOOKUP($DJ$32,'２データ'!$A$4:$KH$4628,'２データ'!AI$2,FALSE)="-","nc",IF(VLOOKUP($DJ$32,'２データ'!$A$4:$KH$4628,'２データ'!AU$2,FALSE)="-","-",VLOOKUP($DJ$32,'２データ'!$A$4:$KH$4628,'２データ'!AU$2,FALSE)/VLOOKUP($DJ$32,'２データ'!$A$4:$KH$4628,'２データ'!AI$2,FALSE)*100)))) -> 11 | CA35: =IF(ISNA($DJ$4),"",IF(VLOOKUP($DJ$32,'２データ'!$A$4:$KH$4628,'２データ'!AI$2,FALSE)="x","x",IF(VLOOKUP($DJ$32,'２データ'!$A$4:$KH$4628,'２データ'!AI$2,FALSE)="-","nc",IF(VLOOKUP($DJ$32,'２データ'!$A$4:$KH$4628,'２データ'!AW$2,FALSE)="-","-",VLOOKUP($DJ$32,'２データ'!$A$4:$KH$4628,'２データ'!AW$2,FALSE)/VLOOKUP($DJ$32,'２データ'!$A$4:$KH$4628,'２データ'!AI$2,FALSE)*100)))) -> 9 | CF35: =IF(ISNA($DJ$4),"",IF(VLOOKUP($DJ$32,'２データ'!$A$4:$KH$4628,'２データ'!AI$2,FALSE)="x","x",IF(VLOOKUP($DJ$32,'２データ'!$A$4:$KH$4628,'２データ'!AI$2,FALSE)="-","nc",IF(VLOOKUP($DJ$32,'２データ'!$A$4:$KH$4628,'２データ'!AY$2,FALSE)="-","-",VLOOKUP($DJ$32,'２データ'!$A$4:$KH$4628,'２データ'!AY$2,FALSE)/VLOOKUP($DJ$32,'２データ'!$A$4:$KH$4628,'２データ'!AI$2,FALSE)*100)))) -> 43
C36: 注：表示単位未満を四捨五入しているため、合計値と内訳の計が一致しない場合がある（以下、同じ。）。
DJ37: 区分 | DK37: 0.5ha未満 | DL37: 0.5～１ | DM37: １～３ | DN37: ３～５ | DO37: ５～10 | DP37: 10ha以上
DJ38: =IF($BW$12="前回との比較","令和２年",$H$35) -> 府県平均 | DK38: =IF($BW$12="前回との比較",U34,U35) -> 8 | DL38: =IF($BW$12="前回との比較",AA34,AA35) -> 21 | DM38: =IF($BW$12="前回との比較",AG34,AG35) -> 27 | DN38: =IF($BW$12="前回との比較",AM34,AM35) -> 10 | DO38: =IF($BW$12="前回との比較",AS34,AS35) -> 10 | DP38: =IF($BW$12="前回との比較",AY34,AY35) -> 22 | DR38: =IF(ISNA($DJ$4),"",IF(SUM(DK38:DP38)=100,"","表示できません")) -> 
DJ39: =IF($BW$12="前回との比較","平成27年","選択地域") -> 選択地域 | DK39: =IF($BW$12="前回との比較",U33,U34) -> 8 | DL39: =IF($BW$12="前回との比較",AA33,AA34) -> 21 | DM39: =IF($BW$12="前回との比較",AG33,AG34) -> 27 | DN39: =IF($BW$12="前回との比較",AM33,AM34) -> 10 | DO39: =IF($BW$12="前回との比較",AS33,AS34) -> 10 | DP39: =IF($BW$12="前回との比較",AY33,AY34) -> 22 | DR39: =IF(ISNA($DJ$4),"",IF(SUM(DK39:DP39)=100,"","表示できません")) -> 
DJ41: 区分 | DK41: 所有耕地 | DL41: 借入耕地
DJ42: =$DJ$39 -> 選択地域 | DK42: =IF(ISNA($DJ$4),"",IF(DL42="@","nc",IF(DL42="x","x",IF(DL42="nc","nc",IF(DL42="-",100,100-DL42))))) -> 57 | DL42: =IF($BW$12="前回との比較",CF33,CF34) -> 43 | DM42: 100 | DO42: =IF(ISNA($DJ$4),"",IF(SUM(DK42:DL42)=100,"","表示できません")) -> 
DJ43: 区分 | DK43: 借入耕地 | DL43: 所有耕地
DJ44: =$DJ$38 -> 府県平均 | DK44: =IF($BW$12="前回との比較",CF34,CF35) -> 43 | DL44: =IF(ISNA($DJ$4),"",IF(DK44="x","x",IF(DK44="nc","nc",IF(DK44="-",100,100-DK44)))) -> 57 | DM44: 100 | DO44: =IF(ISNA($DJ$4),"",IF(SUM(DK44:DL44)=100,"","表示できません")) -> 
B50: ３ 販売目的の作付(栽培)面積、飼養頭(羽)数
C52: (1) 類別の作付(栽培)経営体数、面積 | BM52: (2) 家畜の飼養経営体数等
C53: 区 分 | O53: 水稲 | T53: 麦類 | Y53: 豆類 | AD53: 工芸 農作物 | AI53: 野菜類 | AS53: 花き類・花木 | BC53: 果樹類 | BM53: 乳用牛 | BR53: 肉用牛 | BW53: 豚 | CB53: 採卵鶏 | CG53: ブロイラー
AI54: 露地 | AN54: 施設 | AS54: 露地 | AX54: 施設 | BC54: 露地 | BH54: 施設
C55: 経営 体数 | H55: 平成27年 | O55: =IF(ISNA($DJ$4),"",VLOOKUP($DJ$4,'27データ'!$A$4:$KH$4628,'27データ'!AZ$2,FALSE)) -> 14,103 | T55: =IF(ISNA($DJ$4),"",VLOOKUP($DJ$4,'27データ'!$A$4:$KH$4628,'27データ'!BA$2,FALSE)) -> 150 | Y55: =IF(ISNA($DJ$4),"",VLOOKUP($DJ$4,'27データ'!$A$4:$KH$4628,'27データ'!BB$2,FALSE)) -> 2,800 | AD55: =IF(ISNA($DJ$4),"",VLOOKUP($DJ$4,'27データ'!$A$4:$KH$4628,'27データ'!BC$2,FALSE)) -> 739 | AI55: =IF(ISNA($DJ$4),"",VLOOKUP($DJ$4,'27データ'!$A$4:$KH$4628,'27データ'!BD$2,FALSE)) -> 5,384 | AN55: =IF(ISNA($DJ$4),"",VLOOKUP($DJ$4,'27データ'!$A$4:$KH$4628,'27データ'!BE$2,FALSE)) -> 1,371 | AS55: =IF(ISNA($DJ$4),"",VLOOKUP($DJ$4,'27データ'!$A$4:$KH$4628,'27データ'!BF$2,FALSE)) -> 471 | AX55: =IF(ISNA($DJ$4),"",VLOOKUP($DJ$4,'27データ'!$A$4:$KH$4628,'27データ'!BG$2,FALSE)) -> 160 | BC55: =IF(ISNA($DJ$4),"",VLOOKUP($DJ$4,'27データ'!$A$4:$KH$4628,'27データ'!BH$2,FALSE)) -> 1,361 | BH55: =IF(ISNA($DJ$4),"",VLOOKUP($DJ$4,'27データ'!$A$4:$KH$4628,'27データ'!BI$2,FALSE)) -> 65 | BM55: =IF(ISNA($DJ$4),"",VLOOKUP($DJ$4,'27データ'!$A$4:$KH$4628,'27データ'!BT$2,FALSE)) -> 66 | BR55: =IF(ISNA($DJ$4),"",VLOOKUP($DJ$4,'27データ'!$A$4:$KH$4628,'27データ'!BV$2,FALSE)) -> 95 | BW55: =IF(ISNA($DJ$4),"",VLOOKUP($DJ$4,'27データ'!$A$4:$KH$4628,'27データ'!BX$2,FALSE)) -> 10 | CB55: =IF(ISNA($DJ$4),"",VLOOKUP($DJ$4,'27データ'!$A$4:$KH$4628,'27データ'!BZ$2,FALSE)) -> 59 | CG55: =IF(ISNA($DJ$4),"",VLOOKUP($DJ$4,'27データ'!$A$4:$KH$4628,'27データ'!CB$2,FALSE)) -> 16
H56: 令和２年 | O56: =IF(ISNA($DJ$4),"",VLOOKUP($DJ$4,'２データ'!$A$4:$KH$4628,'２データ'!AZ$2,FALSE)) -> 10,934 | T56: =IF(ISNA($DJ$4),"",VLOOKUP($DJ$4,'２データ'!$A$4:$KH$4628,'２データ'!BA$2,FALSE)) -> 144 | Y56: =IF(ISNA($DJ$4),"",VLOOKUP($DJ$4,'２データ'!$A$4:$KH$4628,'２データ'!BB$2,FALSE)) -> 1,786 | AD56: =IF(ISNA($DJ$4),"",VLOOKUP($DJ$4,'２データ'!$A$4:$KH$4628,'２データ'!BC$2,FALSE)) -> 851 | AI56: =IF(ISNA($DJ$4),"",VLOOKUP($DJ$4,'２データ'!$A$4:$KH$4628,'２データ'!BD$2,FALSE)) -> 3,481 | AN56: =IF(ISNA($DJ$4),"",VLOOKUP($DJ$4,'２データ'!$A$4:$KH$4628,'２データ'!BE$2,FALSE)) -> 1,117 | AS56: =IF(ISNA($DJ$4),"",VLOOKUP($DJ$4,'２データ'!$A$4:$KH$4628,'２データ'!BF$2,FALSE)) -> 379 | AX56: =IF(ISNA($DJ$4),"",VLOOKUP($DJ$4,'２データ'!$A$4:$KH$4628,'２データ'!BG$2,FALSE)) -> 130 | BC56: =IF(ISNA($DJ$4),"",VLOOKUP($DJ$4,'２データ'!$A$4:$KH$4628,'２データ'!BH$2,FALSE)) -> 755 | BH56: =IF(ISNA($DJ$4),"",VLOOKUP($DJ$4,'２データ'!$A$4:$KH$4628,'２データ'!BI$2,FALSE)) -> 61 | BM56: =IF(ISNA($DJ$4),"",VLOOKUP($DJ$4,'２データ'!$A$4:$KH$4628,'２データ'!BT$2,FALSE)) -> 43 | BR56: =IF(ISNA($DJ$4),"",VLOOKUP($DJ$4,'２データ'!$A$4:$KH$4628,'２データ'!BV$2,FALSE)) -> 73 | BW56: =IF(ISNA($DJ$4),"",VLOOKUP($DJ$4,'２データ'!$A$4:$KH$4628,'２データ'!BX$2,FALSE)) -> 3 | CB56: =IF(ISNA($DJ$4),"",VLOOKUP($DJ$4,'２データ'!$A$4:$KH$4628,'２データ'!BZ$2,FALSE)) -> 45 | CG56: =IF(ISNA($DJ$4),"",VLOOKUP($DJ$4,'２データ'!$A$4:$KH$4628,'２データ'!CB$2,FALSE)) -> 13
C57: 面積 (ha) | H57: 平成27年 | O57: =IF(ISNA($DJ$4),"",IF(VLOOKUP($DJ$4,'27データ'!$A$4:$KH$4628,'27データ'!BJ$2,FALSE)="@","@",IF(VLOOKUP($DJ$4,'27データ'!$A$4:$KH$4628,'27データ'!BJ$2,FALSE)="x","x",IF(VLOOKUP($DJ$4,'27データ'!$A$4:$KH$4628,'27データ'!BJ$2,FALSE)="-","-",VLOOKUP($DJ$4,'27データ'!$A$4:$KH$4628,'27データ'!BJ$2,FALSE)/100)))) -> 10,637 | T57: =IF(ISNA($DJ$4),"",IF(VLOOKUP($DJ$4,'27データ'!$A$4:$KH$4628,'27データ'!BK$2,FALSE)="@","@",IF(VLOOKUP($DJ$4,'27データ'!$A$4:$KH$4628,'27データ'!BK$2,FALSE)="x","x",IF(VLOOKUP($DJ$4,'27データ'!$A$4:$KH$4628,'27データ'!BK$2,FALSE)="-","-",VLOOKUP($DJ$4,'27データ'!$A$4:$KH$4628,'27データ'!BK$2,FALSE)/100)))) -> 271 | Y57: =IF(ISNA($DJ$4),"",IF(VLOOKUP($DJ$4,'27データ'!$A$4:$KH$4628,'27データ'!BL$2,FALSE)="@","@",IF(VLOOKUP($DJ$4,'27データ'!$A$4:$KH$4628,'27データ'!BL$2,FALSE)="x","x",IF(VLOOKUP($DJ$4,'27データ'!$A$4:$KH$4628,'27データ'!BL$2,FALSE)="-","-",VLOOKUP($DJ$4,'27データ'!$A$4:$KH$4628,'27データ'!BL$2,FALSE)/100)))) -> 626 | AD57: =IF(ISNA($DJ$4),"",IF(VLOOKUP($DJ$4,'27データ'!$A$4:$KH$4628,'27データ'!BM$2,FALSE)="@","@",IF(VLOOKUP($DJ$4,'27データ'!$A$4:$KH$4628,'27データ'!BM$2,FALSE)="x","x",IF(VLOOKUP($DJ$4,'27データ'!$A$4:$KH$4628,'27データ'!BM$2,FALSE)="-","-",VLOOKUP($DJ$4,'27データ'!$A$4:$KH$4628,'27データ'!BM$2,FALSE)/100)))) -> 1,102 | AI57: =IF(ISNA($DJ$4),"",IF(VLOOKUP($DJ$4,'27データ'!$A$4:$KH$4628,'27データ'!BN$2,FALSE)="@","@",IF(VLOOKUP($DJ$4,'27データ'!$A$4:$KH$4628,'27データ'!BN$2,FALSE)="x","x",IF(VLOOKUP($DJ$4,'27データ'!$A$4:$KH$4628,'27データ'!BN$2,FALSE)="-","-",VLOOKUP($DJ$4,'27データ'!$A$4:$KH$4628,'27データ'!BN$2,FALSE)/100)))) -> 1,615 | AN57: =IF(ISNA($DJ$4),"",IF(VLOOKUP($DJ$4,'27データ'!$A$4:$KH$4628,'27データ'!BO$2,FALSE)="@","@",IF(VLOOKUP($DJ$4,'27データ'!$A$4:$KH$4628,'27データ'!BO$2,FALSE)="x","x",IF(VLOOKUP($DJ$4,'27データ'!$A$4:$KH$4628,'27データ'!BO$2,FALSE)="-","-",VLOOKUP($DJ$4,'27データ'!$A$4:$KH$4628,'27データ'!BO$2,FALSE)/100)))) -> 224 | AS57: =IF(ISNA($DJ$4),"",IF(VLOOKUP($DJ$4,'27データ'!$A$4:$KH$4628,'27データ'!BP$2,FALSE)="@","@",IF(VLOOKUP($DJ$4,'27データ'!$A$4:$KH$4628,'27データ'!BP$2,FALSE)="x","x",IF(VLOOKUP($DJ$4,'27データ'!$A$4:$KH$4628,'27データ'!BP$2,FALSE)="-","-",VLOOKUP($DJ$4,'27データ'!$A$4:$KH$4628,'27データ'!BP$2,FALSE)/100)))) -> 99 | AX57: =IF(ISNA($DJ$4),"",IF(VLOOKUP($DJ$4,'27データ'!$A$4:$KH$4628,'27データ'!BQ$2,FALSE)="@","@",IF(VLOOKUP($DJ$4,'27データ'!$A$4:$KH$4628,'27データ'!BQ$2,FALSE)="x","x",IF(VLOOKUP($DJ$4,'27データ'!$A$4:$KH$4628,'27データ'!BQ$2,FALSE)="-","-",VLOOKUP($DJ$4,'27データ'!$A$4:$KH$4628,'27データ'!BQ$2,FALSE)/100)))) -> 25 | BC57: =IF(ISNA($DJ$4),"",IF(VLOOKUP($DJ$4,'27データ'!$A$4:$KH$4628,'27データ'!BR$2,FALSE)="@","@",IF(VLOOKUP($DJ$4,'27データ'!$A$4:$KH$4628,'27データ'!BR$2,FALSE)="x","x",IF(VLOOKUP($DJ$4,'27データ'!$A$4:$KH$4628,'27データ'!BR$2,FALSE)="-","-",VLOOKUP($DJ$4,'27データ'!$A$4:$KH$4628,'27データ'!BR$2,FALSE)/100)))) -> 322 | BH57: =IF(ISNA($DJ$4),"",IF(VLOOKUP($DJ$4,'27データ'!$A$4:$KH$4628,'27データ'!BS$2,FALSE)="@","@",IF(VLOOKUP($DJ$4,'27データ'!$A$4:$KH$4628,'27データ'!BS$2,FALSE)="x","x",IF(VLOOKUP($DJ$4,'27データ'!$A$4:$KH$4628,'27データ'!BS$2,FALSE)="-","-",VLOOKUP($DJ$4,'27データ'!$A$4:$KH$4628,'27データ'!BS$2,FALSE)/100)))) -> 10 | BM57: =IF(ISNA($DJ$4),"",VLOOKUP($DJ$4,'27データ'!$A$4:$KH$4628,'27データ'!BU$2,FALSE)) -> 4,063 | BR57: =IF(ISNA($DJ$4),"",VLOOKUP($DJ$4,'27データ'!$A$4:$KH$4628,'27データ'!BW$2,FALSE)) -> 4,387 | BW57: =IF(ISNA($DJ$4),"",VLOOKUP($DJ$4,'27データ'!$A$4:$KH$4628,'27データ'!BY$2,FALSE)) -> 11,954 | CB57: =IF(ISNA($DJ$4),"",IF(VLOOKUP($DJ$4,'27データ'!$A$4:$KH$4628,'27データ'!CA$2,FALSE)="@","@",IF(VLOOKUP($DJ$4,'27データ'!$A$4:$KH$4628,'27データ'!CA$2,FALSE)="x","x",IF(VLOOKUP($DJ$4,'27データ'!$A$4:$KH$4628,'27データ'!CA$2,FALSE)="-","-",VLOOKUP($DJ$4,'27データ'!$A$4:$KH$4628,'27データ'!CA$2,FALSE)/1000)))) -> 1,471 | CG57: =IF(ISNA($DJ$4),"",IF(VLOOKUP($DJ$4,'27データ'!$A$4:$KH$4628,'27データ'!CC$2,FALSE)="@","@",IF(VLOOKUP($DJ$4,'27データ'!$A$4:$KH$4628,'27データ'!CC$2,FALSE)="x","x",IF(VLOOKUP($DJ$4,'27データ'!$A$4:$KH$4628,'27データ'!CC$2,FALSE)="-","-",VLOOKUP($DJ$4,'27データ'!$A$4:$KH$4628,'27データ'!CC$2,FALSE)/1000)))) -> 5,336
H58: 令和２年 | O58: =IF(ISNA($DJ$4),"",IF(VLOOKUP($DJ$4,'２データ'!$A$4:$KH$4628,'２データ'!BJ$2,FALSE)="@","@",IF(VLOOKUP($DJ$4,'２データ'!$A$4:$KH$4628,'２データ'!BJ$2,FALSE)="x","x",IF(VLOOKUP($DJ$4,'２データ'!$A$4:$KH$4628,'２データ'!BJ$2,FALSE)="-","-",VLOOKUP($DJ$4,'２データ'!$A$4:$KH$4628,'２データ'!BJ$2,FALSE)/100)))) -> 10,934 | T58: =IF(ISNA($DJ$4),"",IF(VLOOKUP($DJ$4,'２データ'!$A$4:$KH$4628,'２データ'!BK$2,FALSE)="@","@",IF(VLOOKUP($DJ$4,'２データ'!$A$4:$KH$4628,'２データ'!BK$2,FALSE)="x","x",IF(VLOOKUP($DJ$4,'２データ'!$A$4:$KH$4628,'２データ'!BK$2,FALSE)="-","-",VLOOKUP($DJ$4,'２データ'!$A$4:$KH$4628,'２データ'!BK$2,FALSE)/100)))) -> 241 | Y58: =IF(ISNA($DJ$4),"",IF(VLOOKUP($DJ$4,'２データ'!$A$4:$KH$4628,'２データ'!BL$2,FALSE)="@","@",IF(VLOOKUP($DJ$4,'２データ'!$A$4:$KH$4628,'２データ'!BL$2,FALSE)="x","x",IF(VLOOKUP($DJ$4,'２データ'!$A$4:$KH$4628,'２データ'!BL$2,FALSE)="-","-",VLOOKUP($DJ$4,'２データ'!$A$4:$KH$4628,'２データ'!BL$2,FALSE)/100)))) -> 621 | AD58: =IF(ISNA($DJ$4),"",IF(VLOOKUP($DJ$4,'２データ'!$A$4:$KH$4628,'２データ'!BM$2,FALSE)="@","@",IF(VLOOKUP($DJ$4,'２データ'!$A$4:$KH$4628,'２データ'!BM$2,FALSE)="x","x",IF(VLOOKUP($DJ$4,'２データ'!$A$4:$KH$4628,'２データ'!BM$2,FALSE)="-","-",VLOOKUP($DJ$4,'２データ'!$A$4:$KH$4628,'２データ'!BM$2,FALSE)/100)))) -> 1,166 | AI58: =IF(ISNA($DJ$4),"",IF(VLOOKUP($DJ$4,'２データ'!$A$4:$KH$4628,'２データ'!BN$2,FALSE)="@","@",IF(VLOOKUP($DJ$4,'２データ'!$A$4:$KH$4628,'２データ'!BN$2,FALSE)="x","x",IF(VLOOKUP($DJ$4,'２データ'!$A$4:$KH$4628,'２データ'!BN$2,FALSE)="-","-",VLOOKUP($DJ$4,'２データ'!$A$4:$KH$4628,'２データ'!BN$2,FALSE)/100)))) -> 2,874 | AN58: =IF(ISNA($DJ$4),"",IF(VLOOKUP($DJ$4,'２データ'!$A$4:$KH$4628,'２データ'!BO$2,FALSE)="@","@",IF(VLOOKUP($DJ$4,'２データ'!$A$4:$KH$4628,'２データ'!BO$2,FALSE)="x","x",IF(VLOOKUP($DJ$4,'２データ'!$A$4:$KH$4628,'２データ'!BO$2,FALSE)="-","-",VLOOKUP($DJ$4,'２データ'!$A$4:$KH$4628,'２データ'!BO$2,FALSE)/100)))) -> 216 | AS58: =IF(ISNA($DJ$4),"",IF(VLOOKUP($DJ$4,'２データ'!$A$4:$KH$4628,'２データ'!BP$2,FALSE)="@","@",IF(VLOOKUP($DJ$4,'２データ'!$A$4:$KH$4628,'２データ'!BP$2,FALSE)="x","x",IF(VLOOKUP($DJ$4,'２データ'!$A$4:$KH$4628,'２データ'!BP$2,FALSE)="-","-",VLOOKUP($DJ$4,'２データ'!$A$4:$KH$4628,'２データ'!BP$2,FALSE)/100)))) -> 87 | AX58: =IF(ISNA($DJ$4),"",IF(VLOOKUP($DJ$4,'２データ'!$A$4:$KH$4628,'２データ'!BQ$2,FALSE)="@","@",IF(VLOOKUP($DJ$4,'２データ'!$A$4:$KH$4628,'２データ'!BQ$2,FALSE)="x","x",IF(VLOOKUP($DJ$4,'２データ'!$A$4:$KH$4628,'２データ'!BQ$2,FALSE)="-","-",VLOOKUP($DJ$4,'２データ'!$A$4:$KH$4628,'２データ'!BQ$2,FALSE)/100)))) -> 19 | BC58: =IF(ISNA($DJ$4),"",IF(VLOOKUP($DJ$4,'２データ'!$A$4:$KH$4628,'２データ'!BR$2,FALSE)="@","@",IF(VLOOKUP($DJ$4,'２データ'!$A$4:$KH$4628,'２データ'!BR$2,FALSE)="x","x",IF(VLOOKUP($DJ$4,'２データ'!$A$4:$KH$4628,'２データ'!BR$2,FALSE)="-","-",VLOOKUP($DJ$4,'２データ'!$A$4:$KH$4628,'２データ'!BR$2,FALSE)/100)))) -> 263 | BH58: =IF(ISNA($DJ$4),"",IF(VLOOKUP($DJ$4,'２データ'!$A$4:$KH$4628,'２データ'!BS$2,FALSE)="@","@",IF(VLOOKUP($DJ$4,'２データ'!$A$4:$KH$4628,'２データ'!BS$2,FALSE)="x","x",IF(VLOOKUP($DJ$4,'２データ'!$A$4:$KH$4628,'２データ'!BS$2,FALSE)="-","-",VLOOKUP($DJ$4,'２データ'!$A$4:$KH$4628,'２データ'!BS$2,FALSE)/100)))) -> 12 | BM58: =IF(ISNA($DJ$4),"",VLOOKUP($DJ$4,'２データ'!$A$4:$KH$4628,'２データ'!BU$2,FALSE)) -> 3,898 | BR58: =IF(ISNA($DJ$4),"",VLOOKUP($DJ$4,'２データ'!$A$4:$KH$4628,'２データ'!BW$2,FALSE)) -> 3,311 | BW58: =IF(ISNA($DJ$4),"",VLOOKUP($DJ$4,'２データ'!$A$4:$KH$4628,'２データ'!BY$2,FALSE)) -> 6,702 | CB58: =IF(ISNA($DJ$4),"",IF(VLOOKUP($DJ$4,'２データ'!$A$4:$KH$4628,'２データ'!CA$2,FALSE)="@","@",IF(VLOOKUP($DJ$4,'２データ'!$A$4:$KH$4628,'２データ'!CA$2,FALSE)="x","x",IF(VLOOKUP($DJ$4,'２データ'!$A$4:$KH$4628,'２データ'!CA$2,FALSE)="-","-",VLOOKUP($DJ$4,'２データ'!$A$4:$KH$4628,'２データ'!CA$2,FALSE)/1000)))) -> 2,644 | CG58: =IF(ISNA($DJ$4),"",IF(VLOOKUP($DJ$4,'２データ'!$A$4:$KH$4628,'２データ'!CC$2,FALSE)="@","@",IF(VLOOKUP($DJ$4,'２データ'!$A$4:$KH$4628,'２データ'!CC$2,FALSE)="x","x",IF(VLOOKUP($DJ$4,'２データ'!$A$4:$KH$4628,'２データ'!CC$2,FALSE)="-","-",VLOOKUP($DJ$4,'２データ'!$A$4:$KH$4628,'２データ'!CC$2,FALSE)/1000)))) -> 2,616 | DJ58: 野菜
BM59: 注：単位は頭（採卵鶏、ブロイラーは千羽） | DJ59: 果樹
C60: 野菜
C61: 区 分 | O61: =IF($C$60="野菜",資料!DJ62,資料!DJ64) -> だいこん | T61: =IF($C$60="野菜",資料!DK62,資料!DK64) -> さといも | Y61: =IF($C$60="野菜",資料!DL62,資料!DL64) -> はくさい | AD61: =IF($C$60="野菜",資料!DM62,資料!DM64) -> キャベツ | AI61: =IF($C$60="野菜",資料!DN62,資料!DN64) -> ほうれんそう | AN61: =IF($C$60="野菜",資料!DO62,資料!DO64) -> レタス | AS61: =IF($C$60="野菜",資料!DP62,資料!DP64) -> ねぎ | AX61: =IF($C$60="野菜",資料!DQ62,資料!DQ64) -> たまねぎ | BC61: =IF($C$60="野菜",資料!DR62,資料!DR64) -> ブロッコリー | BH61: =IF($C$60="野菜",資料!DS62,資料!DS64) -> きゅうり | BM61: =IF($C$60="野菜",資料!DT62,資料!DT64) -> うち施設 | BR61: =IF($C$60="野菜",資料!DU62,資料!DU64) -> なす | BW61: =IF($C$60="野菜",資料!DV62,資料!DV64) -> トマト | CB61: =IF($C$60="野菜",資料!DW62,資料!DW64) -> うち施設 | CG61: =IF($C$60="野菜",資料!DX62,資料!DX64) -> いちご
DJ62: だいこん | DK62: さといも | DL62: はくさい | DM62: キャベツ | DN62: ほうれんそう | DO62: レタス | DP62: ねぎ | DQ62: たまねぎ | DR62: ブロッコリー | DS62: きゅうり | DT62: うち施設 | DU62: なす | DV62: トマト | DW62: うち施設 | DX62: いちご
C63: 経営 体数 | H63: 平成27年 | O63: =IF(ISNA($DJ$4),"",VLOOKUP($DJ$4,'27データ'!$A$4:$KH$4628,IF($C$60="野菜",'27データ'!CD$2,'27データ'!DH$2),FALSE)) -> 2,513 | T63: =IF(ISNA($DJ$4),"",VLOOKUP($DJ$4,'27データ'!$A$4:$KH$4628,IF($C$60="野菜",'27データ'!CF$2,'27データ'!DJ$2),FALSE)) -> 1,250 | Y63: =IF(ISNA($DJ$4),"",VLOOKUP($DJ$4,'27データ'!$A$4:$KH$4628,IF($C$60="野菜",'27データ'!CH$2,'27データ'!DL$2),FALSE)) -> 2,182 | AD63: =IF(ISNA($DJ$4),"",VLOOKUP($DJ$4,'27データ'!$A$4:$KH$4628,IF($C$60="野菜",'27データ'!CJ$2,'27データ'!DN$2),FALSE)) -> 1,516 | AI63: =IF(ISNA($DJ$4),"",VLOOKUP($DJ$4,'27データ'!$A$4:$KH$4628,IF($C$60="野菜",'27データ'!CL$2,'27データ'!DP$2),FALSE)) -> 1,569 | AN63: =IF(ISNA($DJ$4),"",VLOOKUP($DJ$4,'27データ'!$A$4:$KH$4628,IF($C$60="野菜",'27データ'!CN$2,'27データ'!DR$2),FALSE)) -> 422 | AS63: =IF(ISNA($DJ$4),"",VLOOKUP($DJ$4,'27データ'!$A$4:$KH$4628,IF($C$60="野菜",'27データ'!CP$2,'27データ'!DT$2),FALSE)) -> 1,913 | AX63: =IF(ISNA($DJ$4),"",VLOOKUP($DJ$4,'27データ'!$A$4:$KH$4628,IF($C$60="野菜",'27データ'!CR$2,'27データ'!DV$2),FALSE)) -> 1,780 | BC63: =IF(ISNA($DJ$4),"",VLOOKUP($DJ$4,'27データ'!$A$4:$KH$4628,IF($C$60="野菜",'27データ'!CT$2,'27データ'!DX$2),FALSE)) -> 670 | BH63: =IF(ISNA($DJ$4),"",VLOOKUP($DJ$4,'27データ'!$A$4:$KH$4628,IF($C$60="野菜",'27データ'!CV$2,'27データ'!DZ$2),FALSE)) -> 1,771 | BM63: =IF(ISNA($DJ$4),"",VLOOKUP($DJ$4,'27データ'!$A$4:$KH$4628,IF($C$60="野菜",'27データ'!CX$2,'27データ'!EB$2),FALSE)) -> 342 | BR63: =IF(ISNA($DJ$4),"",VLOOKUP($DJ$4,'27データ'!$A$4:$KH$4628,IF($C$60="野菜",'27データ'!CZ$2,'27データ'!ED$2),FALSE)) -> 1,940 | BW63: =IF(ISNA($DJ$4),"",VLOOKUP($DJ$4,'27データ'!$A$4:$KH$4628,IF($C$60="野菜",'27データ'!DB$2,'27データ'!EF$2),FALSE)) -> 1,642 | CB63: =IF(ISNA($DJ$4),"",VLOOKUP($DJ$4,'27データ'!$A$4:$KH$4628,IF($C$60="野菜",'27データ'!DD$2,'27データ'!EH$2),FALSE)) -> 472 | CG63: =IF(ISNA($DJ$4),"",VLOOKUP($DJ$4,'27データ'!$A$4:$KH$4628,IF($C$60="野菜",'27データ'!DF$2,'27データ'!EJ$2),FALSE)) -> 247
H64: 令和２年 | O64: =IF(ISNA($DJ$4),"",VLOOKUP($DJ$4,'２データ'!$A$4:$KH$4628,IF($C$60="野菜",'２データ'!CD$2,'２データ'!DH$2),FALSE)) -> 1,173 | T64: =IF(ISNA($DJ$4),"",VLOOKUP($DJ$4,'２データ'!$A$4:$KH$4628,IF($C$60="野菜",'２データ'!CF$2,'２データ'!DJ$2),FALSE)) -> 651 | Y64: =IF(ISNA($DJ$4),"",VLOOKUP($DJ$4,'２データ'!$A$4:$KH$4628,IF($C$60="野菜",'２データ'!CH$2,'２データ'!DL$2),FALSE)) -> 918 | AD64: =IF(ISNA($DJ$4),"",VLOOKUP($DJ$4,'２データ'!$A$4:$KH$4628,IF($C$60="野菜",'２データ'!CJ$2,'２データ'!DN$2),FALSE)) -> 707 | AI64: =IF(ISNA($DJ$4),"",VLOOKUP($DJ$4,'２データ'!$A$4:$KH$4628,IF($C$60="野菜",'２データ'!CL$2,'２データ'!DP$2),FALSE)) -> 870 | AN64: =IF(ISNA($DJ$4),"",VLOOKUP($DJ$4,'２データ'!$A$4:$KH$4628,IF($C$60="野菜",'２データ'!CN$2,'２データ'!DR$2),FALSE)) -> 206 | AS64: =IF(ISNA($DJ$4),"",VLOOKUP($DJ$4,'２データ'!$A$4:$KH$4628,IF($C$60="野菜",'２データ'!CP$2,'２データ'!DT$2),FALSE)) -> 909 | AX64: =IF(ISNA($DJ$4),"",VLOOKUP($DJ$4,'２データ'!$A$4:$KH$4628,IF($C$60="野菜",'２データ'!CR$2,'２データ'!DV$2),FALSE)) -> 861 | BC64: =IF(ISNA($DJ$4),"",VLOOKUP($DJ$4,'２データ'!$A$4:$KH$4628,IF($C$60="野菜",'２データ'!CT$2,'２データ'!DX$2),FALSE)) -> 429 | BH64: =IF(ISNA($DJ$4),"",VLOOKUP($DJ$4,'２データ'!$A$4:$KH$4628,IF($C$60="野菜",'２データ'!CV$2,'２データ'!DZ$2),FALSE)) -> 909 | BM64: =IF(ISNA($DJ$4),"",VLOOKUP($DJ$4,'２データ'!$A$4:$KH$4628,IF($C$60="野菜",'２データ'!CX$2,'２データ'!EB$2),FALSE)) -> 258 | BR64: =IF(ISNA($DJ$4),"",VLOOKUP($DJ$4,'２データ'!$A$4:$KH$4628,IF($C$60="野菜",'２データ'!CZ$2,'２データ'!ED$2),FALSE)) -> 1,009 | BW64: =IF(ISNA($DJ$4),"",VLOOKUP($DJ$4,'２データ'!$A$4:$KH$4628,IF($C$60="野菜",'２データ'!DB$2,'２データ'!EF$2),FALSE)) -> 846 | CB64: =IF(ISNA($DJ$4),"",VLOOKUP($DJ$4,'２データ'!$A$4:$KH$4628,IF($C$60="野菜",'２データ'!DD$2,'２データ'!EH$2),FALSE)) -> 351 | CG64: =IF(ISNA($DJ$4),"",VLOOKUP($DJ$4,'２データ'!$A$4:$KH$4628,IF($C$60="野菜",'２データ'!DF$2,'２データ'!EJ$2),FALSE)) -> 103 | DJ64: 温州みかん | DK64: その他のかんきつ | DL64: りんご | DM64: ぶどう | DN64: うち施設 | DO64: 日本なし | DP64: うち施設 | DQ64: もも | DR64: おうとう | DS64: びわ | DT64: かき | DU64: うち施設 | DV64: くり | DW64: うめ | DX64: キウイフルーツ
C65: 面積 (ha) | H65: 平成27年 | O65: =IF(ISNA($DJ$4),"",IF(VLOOKUP($DJ$4,'27データ'!$A$4:$KH$4628,'27データ'!DI$2,FALSE)="@","@",IF(VLOOKUP($DJ$4,'27データ'!$A$4:$KH$4628,IF($C$60="野菜",'27データ'!CE$2,'27データ'!DI$2),FALSE)="x","x",IF(VLOOKUP($DJ$4,'27データ'!$A$4:$KH$4628,IF($C$60="野菜",'27データ'!CE$2,'27データ'!DI$2),FALSE)="-","-",VLOOKUP($DJ$4,'27データ'!$A$4:$KH$4628,IF($C$60="野菜",'27データ'!CE$2,'27データ'!DI$2),FALSE)/100)))) -> 133 | T65: =IF(ISNA($DJ$4),"",IF(VLOOKUP($DJ$4,'27データ'!$A$4:$KH$4628,'27データ'!DK$2,FALSE)="@","@",IF(VLOOKUP($DJ$4,'27データ'!$A$4:$KH$4628,IF($C$60="野菜",'27データ'!CG$2,'27データ'!DK$2),FALSE)="x","x",IF(VLOOKUP($DJ$4,'27データ'!$A$4:$KH$4628,IF($C$60="野菜",'27データ'!CG$2,'27データ'!DK$2),FALSE)="-","-",VLOOKUP($DJ$4,'27データ'!$A$4:$KH$4628,IF($C$60="野菜",'27データ'!CG$2,'27データ'!DK$2),FALSE)/100)))) -> 39 | Y65: =IF(ISNA($DJ$4),"",IF(VLOOKUP($DJ$4,'27データ'!$A$4:$KH$4628,'27データ'!DM$2,FALSE)="@","@",IF(VLOOKUP($DJ$4,'27データ'!$A$4:$KH$4628,IF($C$60="野菜",'27データ'!CI$2,'27データ'!DM$2),FALSE)="x","x",IF(VLOOKUP($DJ$4,'27データ'!$A$4:$KH$4628,IF($C$60="野菜",'27データ'!CI$2,'27データ'!DM$2),FALSE)="-","-",VLOOKUP($DJ$4,'27データ'!$A$4:$KH$4628,IF($C$60="野菜",'27データ'!CI$2,'27データ'!DM$2),FALSE)/100)))) -> 68 | AD65: =IF(ISNA($DJ$4),"",IF(VLOOKUP($DJ$4,'27データ'!$A$4:$KH$4628,'27データ'!DO$2,FALSE)="@","@",IF(VLOOKUP($DJ$4,'27データ'!$A$4:$KH$4628,IF($C$60="野菜",'27データ'!CK$2,'27データ'!DO$2),FALSE)="x","x",IF(VLOOKUP($DJ$4,'27データ'!$A$4:$KH$4628,IF($C$60="野菜",'27データ'!CK$2,'27データ'!DO$2),FALSE)="-","-",VLOOKUP($DJ$4,'27データ'!$A$4:$KH$4628,IF($C$60="野菜",'27データ'!CK$2,'27データ'!DO$2),FALSE)/100)))) -> 96 | AI65: =IF(ISNA($DJ$4),"",IF(VLOOKUP($DJ$4,'27データ'!$A$4:$KH$4628,'27データ'!DQ$2,FALSE)="@","@",IF(VLOOKUP($DJ$4,'27データ'!$A$4:$KH$4628,IF($C$60="野菜",'27データ'!CM$2,'27データ'!DQ$2),FALSE)="x","x",IF(VLOOKUP($DJ$4,'27データ'!$A$4:$KH$4628,IF($C$60="野菜",'27データ'!CM$2,'27データ'!DQ$2),FALSE)="-","-",VLOOKUP($DJ$4,'27データ'!$A$4:$KH$4628,IF($C$60="野菜",'27データ'!CM$2,'27データ'!DQ$2),FALSE)/100)))) -> 171 | AN65: =IF(ISNA($DJ$4),"",IF(VLOOKUP($DJ$4,'27データ'!$A$4:$KH$4628,'27データ'!DS$2,FALSE)="@","@",IF(VLOOKUP($DJ$4,'27データ'!$A$4:$KH$4628,IF($C$60="野菜",'27データ'!CO$2,'27データ'!DS$2),FALSE)="x","x",IF(VLOOKUP($DJ$4,'27データ'!$A$4:$KH$4628,IF($C$60="野菜",'27データ'!CO$2,'27データ'!DS$2),FALSE)="-","-",VLOOKUP($DJ$4,'27データ'!$A$4:$KH$4628,IF($C$60="野菜",'27データ'!CO$2,'27データ'!DS$2),FALSE)/100)))) -> 19 | AS65: =IF(ISNA($DJ$4),"",IF(VLOOKUP($DJ$4,'27データ'!$A$4:$KH$4628,'27データ'!DU$2,FALSE)="@","@",IF(VLOOKUP($DJ$4,'27データ'!$A$4:$KH$4628,IF($C$60="野菜",'27データ'!CQ$2,'27データ'!DU$2),FALSE)="x","x",IF(VLOOKUP($DJ$4,'27データ'!$A$4:$KH$4628,IF($C$60="野菜",'27データ'!CQ$2,'27データ'!DU$2),FALSE)="-","-",VLOOKUP($DJ$4,'27データ'!$A$4:$KH$4628,IF($C$60="野菜",'27データ'!CQ$2,'27データ'!DU$2),FALSE)/100)))) -> 246 | AX65: =IF(ISNA($DJ$4),"",IF(VLOOKUP($DJ$4,'27データ'!$A$4:$KH$4628,'27データ'!DW$2,FALSE)="@","@",IF(VLOOKUP($DJ$4,'27データ'!$A$4:$KH$4628,IF($C$60="野菜",'27データ'!CS$2,'27データ'!DW$2),FALSE)="x","x",IF(VLOOKUP($DJ$4,'27データ'!$A$4:$KH$4628,IF($C$60="野菜",'27データ'!CS$2,'27データ'!DW$2),FALSE)="-","-",VLOOKUP($DJ$4,'27データ'!$A$4:$KH$4628,IF($C$60="野菜",'27データ'!CS$2,'27データ'!DW$2),FALSE)/100)))) -> 49 | BC65: =IF(ISNA($DJ$4),"",IF(VLOOKUP($DJ$4,'27データ'!$A$4:$KH$4628,'27データ'!DY$2,FALSE)="@","@",IF(VLOOKUP($DJ$4,'27データ'!$A$4:$KH$4628,IF($C$60="野菜",'27データ'!CU$2,'27データ'!DY$2),FALSE)="x","x",IF(VLOOKUP($DJ$4,'27データ'!$A$4:$KH$4628,IF($C$60="野菜",'27データ'!CU$2,'27データ'!DY$2),FALSE)="-","-",VLOOKUP($DJ$4,'27データ'!$A$4:$KH$4628,IF($C$60="野菜",'27データ'!CU$2,'27データ'!DY$2),FALSE)/100)))) -> 36 | BH65: =IF(ISNA($DJ$4),"",IF(VLOOKUP($DJ$4,'27データ'!$A$4:$KH$4628,'27データ'!EA$2,FALSE)="@","@",IF(VLOOKUP($DJ$4,'27データ'!$A$4:$KH$4628,IF($C$60="野菜",'27データ'!CW$2,'27データ'!EA$2),FALSE)="x","x",IF(VLOOKUP($DJ$4,'27データ'!$A$4:$KH$4628,IF($C$60="野菜",'27データ'!CW$2,'27データ'!EA$2),FALSE)="-","-",VLOOKUP($DJ$4,'27データ'!$A$4:$KH$4628,IF($C$60="野菜",'27データ'!CW$2,'27データ'!EA$2),FALSE)/100)))) -> 57 | BM65: =IF(ISNA($DJ$4),"",IF(VLOOKUP($DJ$4,'27データ'!$A$4:$KH$4628,'27データ'!EC$2,FALSE)="@","@",IF(VLOOKUP($DJ$4,'27データ'!$A$4:$KH$4628,IF($C$60="野菜",'27データ'!CY$2,'27データ'!EC$2),FALSE)="x","x",IF(VLOOKUP($DJ$4,'27データ'!$A$4:$KH$4628,IF($C$60="野菜",'27データ'!CY$2,'27データ'!EC$2),FALSE)="-","-",VLOOKUP($DJ$4,'27データ'!$A$4:$KH$4628,IF($C$60="野菜",'27データ'!CY$2,'27データ'!EC$2),FALSE)/100)))) -> 17 | BR65: =IF(ISNA($DJ$4),"",IF(VLOOKUP($DJ$4,'27データ'!$A$4:$KH$4628,'27データ'!EE$2,FALSE)="@","@",IF(VLOOKUP($DJ$4,'27データ'!$A$4:$KH$4628,IF($C$60="野菜",'27データ'!DA$2,'27データ'!EE$2),FALSE)="x","x",IF(VLOOKUP($DJ$4,'27データ'!$A$4:$KH$4628,IF($C$60="野菜",'27データ'!DA$2,'27データ'!EE$2),FALSE)="-","-",VLOOKUP($DJ$4,'27データ'!$A$4:$KH$4628,IF($C$60="野菜",'27データ'!DA$2,'27データ'!EE$2),FALSE)/100)))) -> 74 | BW65: =IF(ISNA($DJ$4),"",IF(VLOOKUP($DJ$4,'27データ'!$A$4:$KH$4628,'27データ'!EG$2,FALSE)="@","@",IF(VLOOKUP($DJ$4,'27データ'!$A$4:$KH$4628,IF($C$60="野菜",'27データ'!DC$2,'27データ'!EG$2),FALSE)="x","x",IF(VLOOKUP($DJ$4,'27データ'!$A$4:$KH$4628,IF($C$60="野菜",'27データ'!DC$2,'27データ'!EG$2),FALSE)="-","-",VLOOKUP($DJ$4,'27データ'!$A$4:$KH$4628,IF($C$60="野菜",'27データ'!DC$2,'27データ'!EG$2),FALSE)/100)))) -> 60 | CB65: =IF(ISNA($DJ$4),"",IF(VLOOKUP($DJ$4,'27データ'!$A$4:$KH$4628,'27データ'!EI$2,FALSE)="@","@",IF(VLOOKUP($DJ$4,'27データ'!$A$4:$KH$4628,IF($C$60="野菜",'27データ'!DE$2,'27データ'!EI$2),FALSE)="x","x",IF(VLOOKUP($DJ$4,'27データ'!$A$4:$KH$4628,IF($C$60="野菜",'27データ'!DE$2,'27データ'!EI$2),FALSE)="-","-",VLOOKUP($DJ$4,'27データ'!$A$4:$KH$4628,IF($C$60="野菜",'27データ'!DE$2,'27データ'!EI$2),FALSE)/100)))) -> 27 | CG65: =IF(ISNA($DJ$4),"",IF(VLOOKUP($DJ$4,'27データ'!$A$4:$KH$4628,'27データ'!EK$2,FALSE)="@","@",IF(VLOOKUP($DJ$4,'27データ'!$A$4:$KH$4628,IF($C$60="野菜",'27データ'!DG$2,'27データ'!EK$2),FALSE)="x","x",IF(VLOOKUP($DJ$4,'27データ'!$A$4:$KH$4628,IF($C$60="野菜",'27データ'!DG$2,'27データ'!EK$2),FALSE)="-","-",VLOOKUP($DJ$4,'27データ'!$A$4:$KH$4628,IF($C$60="野菜",'27データ'!DG$2,'27データ'!EK$2),FALSE)/100)))) -> 12
H66: 令和２年 | O66: =IF(ISNA($DJ$4),"",IF(VLOOKUP($DJ$4,'２データ'!$A$4:$KH$4628,IF($C$60="野菜",'２データ'!CE$2,'２データ'!DI$2),FALSE)="x","x",IF(VLOOKUP($DJ$4,'２データ'!$A$4:$KH$4628,IF($C$60="野菜",'２データ'!CE$2,'２データ'!DI$2),FALSE)="-","-",VLOOKUP($DJ$4,'２データ'!$A$4:$KH$4628,IF($C$60="野菜",'２データ'!CE$2,'２データ'!DI$2),FALSE)/100))) -> 88 | T66: =IF(ISNA($DJ$4),"",IF(VLOOKUP($DJ$4,'２データ'!$A$4:$KH$4628,IF($C$60="野菜",'２データ'!CG$2,'２データ'!DK$2),FALSE)="x","x",IF(VLOOKUP($DJ$4,'２データ'!$A$4:$KH$4628,IF($C$60="野菜",'２データ'!CG$2,'２データ'!DK$2),FALSE)="-","-",VLOOKUP($DJ$4,'２データ'!$A$4:$KH$4628,IF($C$60="野菜",'２データ'!CG$2,'２データ'!DK$2),FALSE)/100))) -> 28 | Y66: =IF(ISNA($DJ$4),"",IF(VLOOKUP($DJ$4,'２データ'!$A$4:$KH$4628,IF($C$60="野菜",'２データ'!CI$2,'２データ'!DM$2),FALSE)="x","x",IF(VLOOKUP($DJ$4,'２データ'!$A$4:$KH$4628,IF($C$60="野菜",'２データ'!CI$2,'２データ'!DM$2),FALSE)="-","-",VLOOKUP($DJ$4,'２データ'!$A$4:$KH$4628,IF($C$60="野菜",'２データ'!CI$2,'２データ'!DM$2),FALSE)/100))) -> 34 | AD66: =IF(ISNA($DJ$4),"",IF(VLOOKUP($DJ$4,'２データ'!$A$4:$KH$4628,IF($C$60="野菜",'２データ'!CK$2,'２データ'!DO$2),FALSE)="x","x",IF(VLOOKUP($DJ$4,'２データ'!$A$4:$KH$4628,IF($C$60="野菜",'２データ'!CK$2,'２データ'!DO$2),FALSE)="-","-",VLOOKUP($DJ$4,'２データ'!$A$4:$KH$4628,IF($C$60="野菜",'２データ'!CK$2,'２データ'!DO$2),FALSE)/100))) -> 81 | AI66: =IF(ISNA($DJ$4),"",IF(VLOOKUP($DJ$4,'２データ'!$A$4:$KH$4628,IF($C$60="野菜",'２データ'!CM$2,'２データ'!DQ$2),FALSE)="x","x",IF(VLOOKUP($DJ$4,'２データ'!$A$4:$KH$4628,IF($C$60="野菜",'２データ'!CM$2,'２データ'!DQ$2),FALSE)="-","-",VLOOKUP($DJ$4,'２データ'!$A$4:$KH$4628,IF($C$60="野菜",'２データ'!CM$2,'２データ'!DQ$2),FALSE)/100))) -> 1,152 | AN66: =IF(ISNA($DJ$4),"",IF(VLOOKUP($DJ$4,'２データ'!$A$4:$KH$4628,IF($C$60="野菜",'２データ'!CO$2,'２データ'!DS$2),FALSE)="x","x",IF(VLOOKUP($DJ$4,'２データ'!$A$4:$KH$4628,IF($C$60="野菜",'２データ'!CO$2,'２データ'!DS$2),FALSE)="-","-",VLOOKUP($DJ$4,'２データ'!$A$4:$KH$4628,IF($C$60="野菜",'２データ'!CO$2,'２データ'!DS$2),FALSE)/100))) -> 57 | AS66: =IF(ISNA($DJ$4),"",IF(VLOOKUP($DJ$4,'２データ'!$A$4:$KH$4628,IF($C$60="野菜",'２データ'!CQ$2,'２データ'!DU$2),FALSE)="x","x",IF(VLOOKUP($DJ$4,'２データ'!$A$4:$KH$4628,IF($C$60="野菜",'２データ'!CQ$2,'２データ'!DU$2),FALSE)="-","-",VLOOKUP($DJ$4,'２データ'!$A$4:$KH$4628,IF($C$60="野菜",'２データ'!CQ$2,'２データ'!DU$2),FALSE)/100))) -> 335 | AX66: =IF(ISNA($DJ$4),"",IF(VLOOKUP($DJ$4,'２データ'!$A$4:$KH$4628,IF($C$60="野菜",'２データ'!CS$2,'２データ'!DW$2),FALSE)="x","x",IF(VLOOKUP($DJ$4,'２データ'!$A$4:$KH$4628,IF($C$60="野菜",'２データ'!CS$2,'２データ'!DW$2),FALSE)="-","-",VLOOKUP($DJ$4,'２データ'!$A$4:$KH$4628,IF($C$60="野菜",'２データ'!CS$2,'２データ'!DW$2),FALSE)/100))) -> 34 | BC66: =IF(ISNA($DJ$4),"",IF(VLOOKUP($DJ$4,'２データ'!$A$4:$KH$4628,IF($C$60="野菜",'２データ'!CU$2,'２データ'!DY$2),FALSE)="x","x",IF(VLOOKUP($DJ$4,'２データ'!$A$4:$KH$4628,IF($C$60="野菜",'２データ'!CU$2,'２データ'!DY$2),FALSE)="-","-",VLOOKUP($DJ$4,'２データ'!$A$4:$KH$4628,IF($C$60="野菜",'２データ'!CU$2,'２データ'!DY$2),FALSE)/100))) -> 75 | BH66: =IF(ISNA($DJ$4),"",IF(VLOOKUP($DJ$4,'２データ'!$A$4:$KH$4628,IF($C$60="野菜",'２データ'!CW$2,'２データ'!EA$2),FALSE)="x","x",IF(VLOOKUP($DJ$4,'２データ'!$A$4:$KH$4628,IF($C$60="野菜",'２データ'!CW$2,'２データ'!EA$2),FALSE)="-","-",VLOOKUP($DJ$4,'２データ'!$A$4:$KH$4628,IF($C$60="野菜",'２データ'!CW$2,'２データ'!EA$2),FALSE)/100))) -> 46 | BM66: =IF(ISNA($DJ$4),"",IF(VLOOKUP($DJ$4,'２データ'!$A$4:$KH$4628,IF($C$60="野菜",'２データ'!CY$2,'２データ'!EC$2),FALSE)="x","x",IF(VLOOKUP($DJ$4,'２データ'!$A$4:$KH$4628,IF($C$60="野菜",'２データ'!CY$2,'２データ'!EC$2),FALSE)="-","-",VLOOKUP($DJ$4,'２データ'!$A$4:$KH$4628,IF($C$60="野菜",'２データ'!CY$2,'２データ'!EC$2),FALSE)/100))) -> 14 | BR66: =IF(ISNA($DJ$4),"",IF(VLOOKUP($DJ$4,'２データ'!$A$4:$KH$4628,IF($C$60="野菜",'２データ'!DA$2,'２データ'!EE$2),FALSE)="x","x",IF(VLOOKUP($DJ$4,'２データ'!$A$4:$KH$4628,IF($C$60="野菜",'２データ'!DA$2,'２データ'!EE$2),FALSE)="-","-",VLOOKUP($DJ$4,'２データ'!$A$4:$KH$4628,IF($C$60="野菜",'２データ'!DA$2,'２データ'!EE$2),FALSE)/100))) -> 146 | BW66: =IF(ISNA($DJ$4),"",IF(VLOOKUP($DJ$4,'２データ'!$A$4:$KH$4628,IF($C$60="野菜",'２データ'!DC$2,'２データ'!EG$2),FALSE)="x","x",IF(VLOOKUP($DJ$4,'２データ'!$A$4:$KH$4628,IF($C$60="野菜",'２データ'!DC$2,'２データ'!EG$2),FALSE)="-","-",VLOOKUP($DJ$4,'２データ'!$A$4:$KH$4628,IF($C$60="野菜",'２データ'!DC$2,'２データ'!EG$2),FALSE)/100))) -> 40 | CB66: =IF(ISNA($DJ$4),"",IF(VLOOKUP($DJ$4,'２データ'!$A$4:$KH$4628,IF($C$60="野菜",'２データ'!DE$2,'２データ'!EI$2),FALSE)="x","x",IF(VLOOKUP($DJ$4,'２データ'!$A$4:$KH$4628,IF($C$60="野菜",'２データ'!DE$2,'２データ'!EI$2),FALSE)="-","-",VLOOKUP($DJ$4,'２データ'!$A$4:$KH$4628,IF($C$60="野菜",'２データ'!DE$2,'２データ'!EI$2),FALSE)/100))) -> 22 | CG66: =IF(ISNA($DJ$4),"",IF(VLOOKUP($DJ$4,'２データ'!$A$4:$KH$4628,IF($C$60="野菜",'２データ'!DG$2,'２データ'!EK$2),FALSE)="x","x",IF(VLOOKUP($DJ$4,'２データ'!$A$4:$KH$4628,IF($C$60="野菜",'２データ'!DG$2,'２データ'!EK$2),FALSE)="-","-",VLOOKUP($DJ$4,'２データ'!$A$4:$KH$4628,IF($C$60="野菜",'２データ'!DG$2,'２データ'!EK$2),FALSE)/100))) -> 40
B70: ４ 経営部門 | AU70: ５ 農産物の出荷先
C72: 農産物販売金額１位の部門別経営体数 | AV72: 農産物の出荷先別経営体数
C73: 区 分 | O73: 計 | T73: 稲作 | Y73: 野菜類 | AD73: 果樹類 | AI73: その他 (耕種) | AN73: 畜産 | AV73: 区 分 | BH73: 延べ経 営体数 | BM73: 農協 | BR73: 卸売 市場 | BW73: 小売 業者 | CB73: 消費者に直接販売 | CG73: その他
C75: 経営 体数 | H75: 平成27年 | O75: =IF(ISNA($DJ$4),"",VLOOKUP($DJ$4,'27データ'!$A$4:$KH$4628,'27データ'!EL$2,FALSE)) -> 15,466 | T75: =IF(ISNA($DJ$4),"",VLOOKUP($DJ$4,'27データ'!$A$4:$KH$4628,'27データ'!EM$2,FALSE)) -> 11,023 | Y75: =IF(ISNA($DJ$4),"",VLOOKUP($DJ$4,'27データ'!$A$4:$KH$4628,'27データ'!EN$2,FALSE)) -> 2,668 | AD75: =IF(ISNA($DJ$4),"",VLOOKUP($DJ$4,'27データ'!$A$4:$KH$4628,'27データ'!EO$2,FALSE)) -> 415 | AI75: =IF(ISNA($DJ$4),"",VLOOKUP($DJ$4,'27データ'!$A$4:$KH$4628,'27データ'!EP$2,FALSE)) -> 1,212 | AN75: =IF(ISNA($DJ$4),"",VLOOKUP($DJ$4,'27データ'!$A$4:$KH$4628,'27データ'!EQ$2,FALSE)) -> 148 | AV75: 経営 体数 | BA75: 平成27年 | BH75: =IF(ISNA($DJ$4),"",VLOOKUP($DJ$4,'27データ'!$A$4:$KH$4628,'27データ'!ER$2,FALSE)) -> 22,689 | BM75: =IF(ISNA($DJ$4),"",VLOOKUP($DJ$4,'27データ'!$A$4:$KH$4628,'27データ'!ES$2,FALSE)) -> 9,814 | BR75: =IF(ISNA($DJ$4),"",VLOOKUP($DJ$4,'27データ'!$A$4:$KH$4628,'27データ'!ET$2,FALSE)) -> 1,789 | BW75: =IF(ISNA($DJ$4),"",VLOOKUP($DJ$4,'27データ'!$A$4:$KH$4628,'27データ'!EU$2,FALSE)) -> 1,709 | CB75: =IF(ISNA($DJ$4),"",VLOOKUP($DJ$4,'27データ'!$A$4:$KH$4628,'27データ'!EV$2,FALSE)) -> 5,175 | CG75: =IF(ISNA($DJ$4),"",VLOOKUP($DJ$4,'27データ'!$A$4:$KH$4628,'27データ'!EW$2,FALSE)) -> 4,202
H76: 令和２年 | O76: =IF(ISNA($DJ$4),"",VLOOKUP($DJ$4,'２データ'!$A$4:$KH$4628,'２データ'!EL$2,FALSE)) -> 11,913 | T76: =IF(ISNA($DJ$4),"",VLOOKUP($DJ$4,'２データ'!$A$4:$KH$4628,'２データ'!EM$2,FALSE)) -> 8,356 | Y76: =IF(ISNA($DJ$4),"",VLOOKUP($DJ$4,'２データ'!$A$4:$KH$4628,'２データ'!EN$2,FALSE)) -> 2,082 | AD76: =IF(ISNA($DJ$4),"",VLOOKUP($DJ$4,'２データ'!$A$4:$KH$4628,'２データ'!EO$2,FALSE)) -> 350 | AI76: =IF(ISNA($DJ$4),"",VLOOKUP($DJ$4,'２データ'!$A$4:$KH$4628,'２データ'!EP$2,FALSE)) -> 1,006 | AN76: =IF(ISNA($DJ$4),"",VLOOKUP($DJ$4,'２データ'!$A$4:$KH$4628,'２データ'!EQ$2,FALSE)) -> 119 | BA76: 令和２年 | BH76: =IF(ISNA($DJ$4),"",VLOOKUP($DJ$4,'２データ'!$A$4:$KH$4628,'２データ'!ER$2,FALSE)) -> 18,385 | BM76: =IF(ISNA($DJ$4),"",VLOOKUP($DJ$4,'２データ'!$A$4:$KH$4628,'２データ'!ES$2,FALSE)) -> 7,192 | BR76: =IF(ISNA($DJ$4),"",VLOOKUP($DJ$4,'２データ'!$A$4:$KH$4628,'２データ'!ET$2,FALSE)) -> 1,366 | BW76: =IF(ISNA($DJ$4),"",VLOOKUP($DJ$4,'２データ'!$A$4:$KH$4628,'２データ'!EU$2,FALSE)) -> 1,630 | CB76: =IF(ISNA($DJ$4),"",VLOOKUP($DJ$4,'２データ'!$A$4:$KH$4628,'２データ'!EV$2,FALSE)) -> 4,507 | CG76: =IF(ISNA($DJ$4),"",VLOOKUP($DJ$4,'２データ'!$A$4:$KH$4628,'２データ'!EW$2,FALSE)) -> 3,690
C77: 構成比 (％) | H77: 平成27年 | O77: =IF(ISNA($DJ$4),"",IF(O75="@","nc",IF(O75="x","x",IF($O75="-","nc",O75/$O75*100)))) -> 100 | T77: =IF(ISNA($DJ$4),"",IF(T75="@","nc",IF(T75="x","x",IF($O75="-","nc",IF(T75="-","-",T75/$O75*100))))) -> 71 | Y77: =IF(ISNA($DJ$4),"",IF(Y75="@","nc",IF(Y75="x","x",IF($O75="-","nc",IF(Y75="-","-",Y75/$O75*100))))) -> 17 | AD77: =IF(ISNA($DJ$4),"",IF(AD75="@","nc",IF(AD75="x","x",IF($O75="-","nc",IF(AD75="-","-",AD75/$O75*100))))) -> 3 | AI77: =IF(ISNA($DJ$4),"",IF(AI75="@","nc",IF(AI75="x","x",IF($O75="-","nc",IF(AI75="-","-",AI75/$O75*100))))) -> 8 | AN77: =IF(ISNA($DJ$4),"",IF(AN75="@","nc",IF(AN75="x","x",IF($O75="-","nc",IF(AN75="-","-",AN75/$O75*100))))) -> 1 | AV77: 構成比 (％) | BA77: 平成27年 | BH77: =IF(ISNA($DJ$4),"",IF(BH75="@","nc",IF(BH75="x","x",IF($BH75="-","nc",BH75/$BH75*100)))) -> 100 | BM77: =IF(ISNA($DJ$4),"",IF(BM75="@","nc",IF(BM75="x","x",IF($BH75="-","nc",IF(BM75="-","-",BM75/$BH75*100))))) -> 43 | BR77: =IF(ISNA($DJ$4),"",IF(BR75="@","nc",IF(BR75="x","x",IF($BH75="-","nc",IF(BR75="-","-",BR75/$BH75*100))))) -> 8 | BW77: =IF(ISNA($DJ$4),"",IF(BW75="@","nc",IF(BW75="x","x",IF($BH75="-","nc",IF(BW75="-","-",BW75/$BH75*100))))) -> 8 | CB77: =IF(ISNA($DJ$4),"",IF(CB75="@","nc",IF(CB75="x","x",IF($BH75="-","nc",IF(CB75="-","-",CB75/$BH75*100))))) -> 23 | CG77: =IF(ISNA($DJ$4),"",IF(CG75="@","nc",IF(CG75="x","x",IF($BH75="-","nc",IF(CG75="-","-",CG75/$BH75*100))))) -> 19
H78: 令和２年 | O78: =IF(ISNA($DJ$4),"",IF(O76="x","x",IF($O76="-","nc",O76/$O76*100))) -> 100 | T78: =IF(ISNA($DJ$4),"",IF(T76="x","x",IF($O76="-","nc",IF(T76="-","-",T76/$O76*100)))) -> 70 | Y78: =IF(ISNA($DJ$4),"",IF(Y76="x","x",IF($O76="-","nc",IF(Y76="-","-",Y76/$O76*100)))) -> 17 | AD78: =IF(ISNA($DJ$4),"",IF(AD76="x","x",IF($O76="-","nc",IF(AD76="-","-",AD76/$O76*100)))) -> 3 | AI78: =IF(ISNA($DJ$4),"",IF(AI76="x","x",IF($O76="-","nc",IF(AI76="-","-",AI76/$O76*100)))) -> 8 | AN78: =IF(ISNA($DJ$4),"",IF(AN76="x","x",IF($O76="-","nc",IF(AN76="-","-",AN76/$O76*100)))) -> 1 | BA78: 令和２年 | BH78: =IF(ISNA($DJ$4),"",IF(BH76="x","x",IF($BH76="-","nc",BH76/$BH76*100))) -> 100 | BM78: =IF(ISNA($DJ$4),"",IF(BM76="x","x",IF($BH76="-","nc",IF(BM76="-","-",BM76/$BH76*100)))) -> 39 | BR78: =IF(ISNA($DJ$4),"",IF(BR76="x","x",IF($BH76="-","nc",IF(BR76="-","-",BR76/$BH76*100)))) -> 7 | BW78: =IF(ISNA($DJ$4),"",IF(BW76="x","x",IF($BH76="-","nc",IF(BW76="-","-",BW76/$BH76*100)))) -> 9 | CB78: =IF(ISNA($DJ$4),"",IF(CB76="x","x",IF($BH76="-","nc",IF(CB76="-","-",CB76/$BH76*100)))) -> 25 | CG78: =IF(ISNA($DJ$4),"",IF(CG76="x","x",IF($BH76="-","nc",IF(CG76="-","-",CG76/$BH76*100)))) -> 20
H79: =IF($BW$12="都府県との比較","都府県平均",IF($BW$12="全国との比較","全国平均","府県平均")) -> 府県平均 | O79: =IF(ISNA($DJ$4),"",IF(VLOOKUP($DJ$32,'２データ'!$A$4:$KH$4628,'２データ'!EL$2,FALSE)="x","x",IF(VLOOKUP($DJ$32,'２データ'!$A$4:$KH$4628,'２データ'!EL$2,FALSE)="-","nc",VLOOKUP($DJ$32,'２データ'!$A$4:$KH$4628,'２データ'!EL$2,FALSE)/VLOOKUP($DJ$32,'２データ'!$A$4:$KH$4628,'２データ'!EL$2,FALSE)*100))) -> 100 | T79: =IF(ISNA($DJ$4),"",IF(VLOOKUP($DJ$32,'２データ'!$A$4:$KH$4628,'２データ'!EM$2,FALSE)="x","x",IF(VLOOKUP($DJ$32,'２データ'!$A$4:$KH$4628,'２データ'!EL$2,FALSE)="-","nc",IF(VLOOKUP($DJ$32,'２データ'!$A$4:$KH$4628,'２データ'!EM$2,FALSE)="-","-",VLOOKUP($DJ$32,'２データ'!$A$4:$KH$4628,'２データ'!EM$2,FALSE)/VLOOKUP($DJ$32,'２データ'!$A$4:$KH$4628,'２データ'!EL$2,FALSE)*100)))) -> 70 | Y79: =IF(ISNA($DJ$4),"",IF(VLOOKUP($DJ$32,'２データ'!$A$4:$KH$4628,'２データ'!EN$2,FALSE)="x","x",IF(VLOOKUP($DJ$32,'２データ'!$A$4:$KH$4628,'２データ'!EL$2,FALSE)="-","nc",IF(VLOOKUP($DJ$32,'２データ'!$A$4:$KH$4628,'２データ'!EN$2,FALSE)="-","-",VLOOKUP($DJ$32,'２データ'!$A$4:$KH$4628,'２データ'!EN$2,FALSE)/VLOOKUP($DJ$32,'２データ'!$A$4:$KH$4628,'２データ'!EL$2,FALSE)*100)))) -> 17 | AD79: =IF(ISNA($DJ$4),"",IF(VLOOKUP($DJ$32,'２データ'!$A$4:$KH$4628,'２データ'!EO$2,FALSE)="x","x",IF(VLOOKUP($DJ$32,'２データ'!$A$4:$KH$4628,'２データ'!EL$2,FALSE)="-","nc",IF(VLOOKUP($DJ$32,'２データ'!$A$4:$KH$4628,'２データ'!EO$2,FALSE)="-","-",VLOOKUP($DJ$32,'２データ'!$A$4:$KH$4628,'２データ'!EO$2,FALSE)/VLOOKUP($DJ$32,'２データ'!$A$4:$KH$4628,'２データ'!EL$2,FALSE)*100)))) -> 3 | AI79: =IF(ISNA($DJ$4),"",IF(VLOOKUP($DJ$32,'２データ'!$A$4:$KH$4628,'２データ'!EP$2,FALSE)="x","x",IF(VLOOKUP($DJ$32,'２データ'!$A$4:$KH$4628,'２データ'!EL$2,FALSE)="-","nc",IF(VLOOKUP($DJ$32,'２データ'!$A$4:$KH$4628,'２データ'!EP$2,FALSE)="-","-",VLOOKUP($DJ$32,'２データ'!$A$4:$KH$4628,'２データ'!EP$2,FALSE)/VLOOKUP($DJ$32,'２データ'!$A$4:$KH$4628,'２データ'!EL$2,FALSE)*100)))) -> 8 | AN79: =IF(ISNA($DJ$4),"",IF(VLOOKUP($DJ$32,'２データ'!$A$4:$KH$4628,'２データ'!EQ$2,FALSE)="x","x",IF(VLOOKUP($DJ$32,'２データ'!$A$4:$KH$4628,'２データ'!EL$2,FALSE)="-","nc",IF(VLOOKUP($DJ$32,'２データ'!$A$4:$KH$4628,'２データ'!EQ$2,FALSE)="-","-",VLOOKUP($DJ$32,'２データ'!$A$4:$KH$4628,'２データ'!EQ$2,FALSE)/VLOOKUP($DJ$32,'２データ'!$A$4:$KH$4628,'２データ'!EL$2,FALSE)*100)))) -> 1 | BA79: =IF($BW$12="都府県との比較","都府県平均",IF($BW$12="全国との比較","全国平均","府県平均")) -> 府県平均 | BH79: =IF(ISNA($DJ$4),"",IF(VLOOKUP($DJ$32,'２データ'!$A$4:$KH$4628,'２データ'!ER$2,FALSE)="x","x",IF(VLOOKUP($DJ$32,'２データ'!$A$4:$KH$4628,'２データ'!ER$2,FALSE)="-","nc",VLOOKUP($DJ$32,'２データ'!$A$4:$KH$4628,'２データ'!ER$2,FALSE)/VLOOKUP($DJ$32,'２データ'!$A$4:$KH$4628,'２データ'!ER$2,FALSE)*100))) -> 100 | BM79: =IF(ISNA($DJ$4),"",IF(VLOOKUP($DJ$32,'２データ'!$A$4:$KH$4628,'２データ'!ES$2,FALSE)="x","x",IF(VLOOKUP($DJ$32,'２データ'!$A$4:$KH$4628,'２データ'!ER$2,FALSE)="-","nc",IF(VLOOKUP($DJ$32,'２データ'!$A$4:$KH$4628,'２データ'!ES$2,FALSE)="-","-",VLOOKUP($DJ$32,'２データ'!$A$4:$KH$4628,'２データ'!ES$2,FALSE)/VLOOKUP($DJ$32,'２データ'!$A$4:$KH$4628,'２データ'!ER$2,FALSE)*100)))) -> 39 | BR79: =IF(ISNA($DJ$4),"",IF(VLOOKUP($DJ$32,'２データ'!$A$4:$KH$4628,'２データ'!ET$2,FALSE)="x","x",IF(VLOOKUP($DJ$32,'２データ'!$A$4:$KH$4628,'２データ'!ER$2,FALSE)="-","nc",IF(VLOOKUP($DJ$32,'２データ'!$A$4:$KH$4628,'２データ'!ET$2,FALSE)="-","-",VLOOKUP($DJ$32,'２データ'!$A$4:$KH$4628,'２データ'!ET$2,FALSE)/VLOOKUP($DJ$32,'２データ'!$A$4:$KH$4628,'２データ'!ER$2,FALSE)*100)))) -> 7 | BW79: =IF(ISNA($DJ$4),"",IF(VLOOKUP($DJ$32,'２データ'!$A$4:$KH$4628,'２データ'!EU$2,FALSE)="x","x",IF(VLOOKUP($DJ$32,'２データ'!$A$4:$KH$4628,'２データ'!ER$2,FALSE)="-","nc",IF(VLOOKUP($DJ$32,'２データ'!$A$4:$KH$4628,'２データ'!EU$2,FALSE)="-","-",VLOOKUP($DJ$32,'２データ'!$A$4:$KH$4628,'２データ'!EU$2,FALSE)/VLOOKUP($DJ$32,'２データ'!$A$4:$KH$4628,'２データ'!ER$2,FALSE)*100)))) -> 9 | CB79: =IF(ISNA($DJ$4),"",IF(VLOOKUP($DJ$32,'２データ'!$A$4:$KH$4628,'２データ'!EV$2,FALSE)="x","x",IF(VLOOKUP($DJ$32,'２データ'!$A$4:$KH$4628,'２データ'!ER$2,FALSE)="-","nc",IF(VLOOKUP($DJ$32,'２データ'!$A$4:$KH$4628,'２データ'!EV$2,FALSE)="-","-",VLOOKUP($DJ$32,'２データ'!$A$4:$KH$4628,'２データ'!EV$2,FALSE)/VLOOKUP($DJ$32,'２データ'!$A$4:$KH$4628,'２データ'!ER$2,FALSE)*100)))) -> 25 | CG79: =IF(ISNA($DJ$4),"",IF(VLOOKUP($DJ$32,'２データ'!$A$4:$KH$4628,'２データ'!EW$2,FALSE)="x","x",IF(VLOOKUP($DJ$32,'２データ'!$A$4:$KH$4628,'２データ'!ER$2,FALSE)="-","nc",IF(VLOOKUP($DJ$32,'２データ'!$A$4:$KH$4628,'２データ'!EW$2,FALSE)="-","-",VLOOKUP($DJ$32,'２データ'!$A$4:$KH$4628,'２データ'!EW$2,FALSE)/VLOOKUP($DJ$32,'２データ'!$A$4:$KH$4628,'２データ'!ER$2,FALSE)*100)))) -> 20
C80: 注：販売のある農業経営体。 | AV80: 注：複数回答。
DJ85: 区分 | DK85: 稲作 | DL85: 野菜類 | DM85: 果樹類 | DN85: その他（耕種） | DO85: 畜産 | DP85: 計
DJ86: =$DJ$38 -> 府県平均 | DK86: =IF($BW$12="前回との比較",T78,T79) -> 70 | DL86: =IF($BW$12="前回との比較",Y78,Y79) -> 17 | DM86: =IF($BW$12="前回との比較",AD78,AD79) -> 3 | DN86: =IF($BW$12="前回との比較",AI78,AI79) -> 8 | DO86: =IF($BW$12="前回との比較",AN78,AN79) -> 1 | DP86: =IF($BW$12="前回との比較",O78,O79) -> 100 | DR86: =IF(ISNA($DJ$4),"",IF(SUM(DK86:DO86)=100,"","表示できません")) -> 
DJ87: =$DJ$39 -> 選択地域 | DK87: =IF($BW$12="前回との比較",T77,T78) -> 70 | DL87: =IF($BW$12="前回との比較",Y77,Y78) -> 17 | DM87: =IF($BW$12="前回との比較",AD77,AD78) -> 3 | DN87: =IF($BW$12="前回との比較",AI77,AI78) -> 8 | DO87: =IF($BW$12="前回との比較",AN77,AN78) -> 1 | DP87: =IF($BW$12="前回との比較",O77,O78) -> 100 | DR87: =IF(ISNA($DJ$4),"",IF(SUM(DK87:DO87)=100,"","表示できません")) -> 
DJ90: 区分 | DK90: 農協 | DL90: 卸売市場 | DM90: 小売業者 | DN90: 消費者に直接販売 | DO90: その他 | DP90: 計
DJ91: =$DJ$38 -> 府県平均 | DK91: =IF($BW$12="前回との比較",BM78,BM79) -> 39 | DL91: =IF($BW$12="前回との比較",BR78,BR79) -> 7 | DM91: =IF($BW$12="前回との比較",BW78,BW79) -> 9 | DN91: =IF($BW$12="前回との比較",CB78,CB79) -> 25 | DO91: =IF($BW$12="前回との比較",CG78,CG79) -> 20 | DP91: =IF($BW$12="前回との比較",BH78,BH79) -> 100 | DR91: =IF(ISNA($DJ$4),"",IF(SUM(DK91:DO91)=100,"","表示できません")) -> 
DJ92: =$DJ$39 -> 選択地域 | DK92: =IF($BW$12="前回との比較",BM77,BM78) -> 39 | DL92: =IF($BW$12="前回との比較",BR77,BR78) -> 7 | DM92: =IF($BW$12="前回との比較",BW77,BW78) -> 9 | DN92: =IF($BW$12="前回との比較",CB77,CB78) -> 25 | DO92: =IF($BW$12="前回との比較",CG77,CG78) -> 20 | DP92: =IF($BW$12="前回との比較",BH77,BH78) -> 100 | DR92: =IF(ISNA($DJ$4),"",IF(SUM(DK92:DO92)=100,"","表示できません")) -> 
B93: ６ 農産物の販売金額
C95: 農産物販売金額規模別の経営体数、販売金額
C96: 区 分 | O96: 計 | U96: 100万円 未満 | AA96: 100 ～300 | AG96: 300 ～1,000 | AM96: 1,000 ～3,000 | AS96: 3,000 ～１億 | AY96: １億円 以上
C98: 経営 体数 | H98: 平成27年 | O98: =IF(ISNA($DJ$4),"",VLOOKUP($DJ$4,'27データ'!$A$4:$KH$4628,'27データ'!EX$2,FALSE)) -> 18,016 | U98: =IF(ISNA($DJ$4),"",VLOOKUP($DJ$4,'27データ'!$A$4:$KH$4628,'27データ'!EY$2,FALSE)) -> 13,834 | AA98: =IF(ISNA($DJ$4),"",VLOOKUP($DJ$4,'27データ'!$A$4:$KH$4628,'27データ'!EZ$2,FALSE)) -> 2,185 | AG98: =IF(ISNA($DJ$4),"",VLOOKUP($DJ$4,'27データ'!$A$4:$KH$4628,'27データ'!FA$2,FALSE)) -> 1,338 | AM98: =IF(ISNA($DJ$4),"",VLOOKUP($DJ$4,'27データ'!$A$4:$KH$4628,'27データ'!FB$2,FALSE)) -> 515 | AS98: =IF(ISNA($DJ$4),"",VLOOKUP($DJ$4,'27データ'!$A$4:$KH$4628,'27データ'!FC$2,FALSE)) -> 116 | AY98: =IF(ISNA($DJ$4),"",VLOOKUP($DJ$4,'27データ'!$A$4:$KH$4628,'27データ'!FD$2,FALSE)) -> 28
H99: 令和２年 | O99: =IF(ISNA($DJ$4),"",VLOOKUP($DJ$4,'２データ'!$A$4:$KH$4628,'２データ'!EX$2,FALSE)) -> 14,181 | U99: =IF(ISNA($DJ$4),"",VLOOKUP($DJ$4,'２データ'!$A$4:$KH$4628,'２データ'!EY$2,FALSE)) -> 10,478 | AA99: =IF(ISNA($DJ$4),"",VLOOKUP($DJ$4,'２データ'!$A$4:$KH$4628,'２データ'!EZ$2,FALSE)) -> 1,874 | AG99: =IF(ISNA($DJ$4),"",VLOOKUP($DJ$4,'２データ'!$A$4:$KH$4628,'２データ'!FA$2,FALSE)) -> 1,166 | AM99: =IF(ISNA($DJ$4),"",VLOOKUP($DJ$4,'２データ'!$A$4:$KH$4628,'２データ'!FB$2,FALSE)) -> 482 | AS99: =IF(ISNA($DJ$4),"",VLOOKUP($DJ$4,'２データ'!$A$4:$KH$4628,'２データ'!FC$2,FALSE)) -> 143 | AY99: =IF(ISNA($DJ$4),"",VLOOKUP($DJ$4,'２データ'!$A$4:$KH$4628,'２データ'!FD$2,FALSE)) -> 38
C100: 金額 (千万円) | H100: 平成27年 | O100: =IF(ISNA($DJ$4),"",IF(VLOOKUP($DJ$4,'27データ'!$A$4:$KH$4628,'27データ'!FE$2,FALSE)="@","@",IF(VLOOKUP($DJ$4,'27データ'!$A$4:$KH$4628,'27データ'!FE$2,FALSE)="x","x",IF(VLOOKUP($DJ$4,'27データ'!$A$4:$KH$4628,'27データ'!FE$2,FALSE)="-","-",VLOOKUP($DJ$4,'27データ'!$A$4:$KH$4628,'27データ'!FE$2,FALSE)/1000)))) -> 4,264 | U100: =IF(ISNA($DJ$4),"",IF(VLOOKUP($DJ$4,'27データ'!$A$4:$KH$4628,'27データ'!FF$2,FALSE)="@","@",IF(VLOOKUP($DJ$4,'27データ'!$A$4:$KH$4628,'27データ'!FF$2,FALSE)="x","x",IF(VLOOKUP($DJ$4,'27データ'!$A$4:$KH$4628,'27データ'!FF$2,FALSE)="-","-",VLOOKUP($DJ$4,'27データ'!$A$4:$KH$4628,'27データ'!FF$2,FALSE)/1000)))) -> 408 | AA100: =IF(ISNA($DJ$4),"",IF(VLOOKUP($DJ$4,'27データ'!$A$4:$KH$4628,'27データ'!FG$2,FALSE)="@","@",IF(VLOOKUP($DJ$4,'27データ'!$A$4:$KH$4628,'27データ'!FG$2,FALSE)="x","x",IF(VLOOKUP($DJ$4,'27データ'!$A$4:$KH$4628,'27データ'!FG$2,FALSE)="-","-",VLOOKUP($DJ$4,'27データ'!$A$4:$KH$4628,'27データ'!FG$2,FALSE)/1000)))) -> 402 | AG100: =IF(ISNA($DJ$4),"",IF(VLOOKUP($DJ$4,'27データ'!$A$4:$KH$4628,'27データ'!FH$2,FALSE)="@","@",IF(VLOOKUP($DJ$4,'27データ'!$A$4:$KH$4628,'27データ'!FH$2,FALSE)="x","x",IF(VLOOKUP($DJ$4,'27データ'!$A$4:$KH$4628,'27データ'!FH$2,FALSE)="-","-",VLOOKUP($DJ$4,'27データ'!$A$4:$KH$4628,'27データ'!FH$2,FALSE)/1000)))) -> 755 | AM100: =IF(ISNA($DJ$4),"",IF(VLOOKUP($DJ$4,'27データ'!$A$4:$KH$4628,'27データ'!FI$2,FALSE)="@","@",IF(VLOOKUP($DJ$4,'27データ'!$A$4:$KH$4628,'27データ'!FI$2,FALSE)="x","x",IF(VLOOKUP($DJ$4,'27データ'!$A$4:$KH$4628,'27データ'!FI$2,FALSE)="-","-",VLOOKUP($DJ$4,'27データ'!$A$4:$KH$4628,'27データ'!FI$2,FALSE)/1000)))) -> 855 | AS100: =IF(ISNA($DJ$4),"",IF(VLOOKUP($DJ$4,'27データ'!$A$4:$KH$4628,'27データ'!FJ$2,FALSE)="@","@",IF(VLOOKUP($DJ$4,'27データ'!$A$4:$KH$4628,'27データ'!FJ$2,FALSE)="x","x",IF(VLOOKUP($DJ$4,'27データ'!$A$4:$KH$4628,'27データ'!FJ$2,FALSE)="-","-",VLOOKUP($DJ$4,'27データ'!$A$4:$KH$4628,'27データ'!FJ$2,FALSE)/1000)))) -> 604 | AY100: =IF(ISNA($DJ$4),"",IF(VLOOKUP($DJ$4,'27データ'!$A$4:$KH$4628,'27データ'!FK$2,FALSE)="@","@",IF(VLOOKUP($DJ$4,'27データ'!$A$4:$KH$4628,'27データ'!FK$2,FALSE)="x","x",IF(VLOOKUP($DJ$4,'27データ'!$A$4:$KH$4628,'27データ'!FK$2,FALSE)="-","-",VLOOKUP($DJ$4,'27データ'!$A$4:$KH$4628,'27データ'!FK$2,FALSE)/1000)))) -> 1,240 | DJ100: 区分 | DK100: １億円以上 | DL100: 3,000～１億円 | DM100: 1,000～3,000 | DN100: 300～1,000 | DO100: 100～300 | DP100: 100万円未満
H101: 令和２年 | O101: =IF(ISNA($DJ$4),"",IF(VLOOKUP($DJ$4,'２データ'!$A$4:$KH$4628,'２データ'!FE$2,FALSE)="@","@",IF(VLOOKUP($DJ$4,'２データ'!$A$4:$KH$4628,'２データ'!FE$2,FALSE)="x","x",IF(VLOOKUP($DJ$4,'２データ'!$A$4:$KH$4628,'２データ'!FE$2,FALSE)="-","-",VLOOKUP($DJ$4,'２データ'!$A$4:$KH$4628,'２データ'!FE$2,FALSE)/1000)))) -> 4,976 | U101: =IF(ISNA($DJ$4),"",IF(VLOOKUP($DJ$4,'２データ'!$A$4:$KH$4628,'２データ'!FF$2,FALSE)="@","@",IF(VLOOKUP($DJ$4,'２データ'!$A$4:$KH$4628,'２データ'!FF$2,FALSE)="x","x",IF(VLOOKUP($DJ$4,'２データ'!$A$4:$KH$4628,'２データ'!FF$2,FALSE)="-","-",VLOOKUP($DJ$4,'２データ'!$A$4:$KH$4628,'２データ'!FF$2,FALSE)/1000)))) -> 322 | AA101: =IF(ISNA($DJ$4),"",IF(VLOOKUP($DJ$4,'２データ'!$A$4:$KH$4628,'２データ'!FG$2,FALSE)="@","@",IF(VLOOKUP($DJ$4,'２データ'!$A$4:$KH$4628,'２データ'!FG$2,FALSE)="x","x",IF(VLOOKUP($DJ$4,'２データ'!$A$4:$KH$4628,'２データ'!FG$2,FALSE)="-","-",VLOOKUP($DJ$4,'２データ'!$A$4:$KH$4628,'２データ'!FG$2,FALSE)/1000)))) -> 375 | AG101: =IF(ISNA($DJ$4),"",IF(VLOOKUP($DJ$4,'２データ'!$A$4:$KH$4628,'２データ'!FH$2,FALSE)="@","@",IF(VLOOKUP($DJ$4,'２データ'!$A$4:$KH$4628,'２データ'!FH$2,FALSE)="x","x",IF(VLOOKUP($DJ$4,'２データ'!$A$4:$KH$4628,'２データ'!FH$2,FALSE)="-","-",VLOOKUP($DJ$4,'２データ'!$A$4:$KH$4628,'２データ'!FH$2,FALSE)/1000)))) -> 679 | AM101: =IF(ISNA($DJ$4),"",IF(VLOOKUP($DJ$4,'２データ'!$A$4:$KH$4628,'２データ'!FI$2,FALSE)="@","@",IF(VLOOKUP($DJ$4,'２データ'!$A$4:$KH$4628,'２データ'!FI$2,FALSE)="x","x",IF(VLOOKUP($DJ$4,'２データ'!$A$4:$KH$4628,'２データ'!FI$2,FALSE)="-","-",VLOOKUP($DJ$4,'２データ'!$A$4:$KH$4628,'２データ'!FI$2,FALSE)/1000)))) -> 964 | AS101: =IF(ISNA($DJ$4),"",IF(VLOOKUP($DJ$4,'２データ'!$A$4:$KH$4628,'２データ'!FJ$2,FALSE)="@","@",IF(VLOOKUP($DJ$4,'２データ'!$A$4:$KH$4628,'２データ'!FJ$2,FALSE)="x","x",IF(VLOOKUP($DJ$4,'２データ'!$A$4:$KH$4628,'２データ'!FJ$2,FALSE)="-","-",VLOOKUP($DJ$4,'２データ'!$A$4:$KH$4628,'２データ'!FJ$2,FALSE)/1000)))) -> 761 | AY101: =IF(ISNA($DJ$4),"",IF(VLOOKUP($DJ$4,'２データ'!$A$4:$KH$4628,'２データ'!FK$2,FALSE)="@","@",IF(VLOOKUP($DJ$4,'２データ'!$A$4:$KH$4628,'２データ'!FK$2,FALSE)="x","x",IF(VLOOKUP($DJ$4,'２データ'!$A$4:$KH$4628,'２データ'!FK$2,FALSE)="-","-",VLOOKUP($DJ$4,'２データ'!$A$4:$KH$4628,'２データ'!FK$2,FALSE)/1000)))) -> 1,875 | DJ101: =$DJ$39 -> 選択地域 | DK101: =IF($BW$12="前回との比較",AY102,AY103) -> 38 | DL101: =IF($BW$12="前回との比較",AS102,AS103) -> 15 | DM101: =IF($BW$12="前回との比較",AM102,AM103) -> 19 | DN101: =IF($BW$12="前回との比較",AG102,AG103) -> 14 | DO101: =IF($BW$12="前回との比較",AA102,AA103) -> 8 | DP101: =IF($BW$12="前回との比較",U102,U103) -> 6 | DQ101: 100 | DS101: =IF(ISNA($DJ$4),"",IF(SUM(DK101:DP101)=100,"","表示できません")) -> 
C102: 金額 構成比 (％) | H102: 平成27年 | O102: =IF(ISNA($DJ$4),"",IF(O100="@","nc",IF(O100="x","x",IF($O100="-","nc",O100/$O100*100)))) -> 100 | U102: =IF(ISNA($DJ$4),"",IF(U100="@","nc",IF(U100="x","x",IF($O100="-","nc",IF(U100="-","-",U100/$O100*100))))) -> 10 | AA102: =IF(ISNA($DJ$4),"",IF(AA100="@","nc",IF(AA100="x","x",IF($O100="-","nc",IF(AA100="-","-",AA100/$O100*100))))) -> 9 | AG102: =IF(ISNA($DJ$4),"",IF(AG100="@","nc",IF(AG100="x","x",IF($O100="-","nc",IF(AG100="-","-",AG100/$O100*100))))) -> 18 | AM102: =IF(ISNA($DJ$4),"",IF(AM100="@","nc",IF(AM100="x","x",IF($O100="-","nc",IF(AM100="-","-",AM100/$O100*100))))) -> 20 | AS102: =IF(ISNA($DJ$4),"",IF(AS100="@","nc",IF(AS100="x","x",IF($O100="-","nc",IF(AS100="-","-",AS100/$O100*100))))) -> 14 | AY102: =IF(ISNA($DJ$4),"",IF(AY100="@","nc",IF(AY100="x","x",IF($O100="-","nc",IF(AY100="-","-",AY100/$O100*100))))) -> 29 | DJ102: 区分 | DK102: 100万円未満 | DL102: 100～300 | DM102: 300～1,000 | DN102: 1,000～3,000 | DO102: 3,000～１億円 | DP102: １億円以上
H103: 令和２年 | O103: =IF(ISNA($DJ$4),"",IF(O101="x","x",IF($O101="-","nc",O101/$O101*100))) -> 100 | U103: =IF(ISNA($DJ$4),"",IF(U101="x","x",IF($O101="-","nc",IF(U101="-","-",U101/$O101*100)))) -> 6 | AA103: =IF(ISNA($DJ$4),"",IF(AA101="x","x",IF($O101="-","nc",IF(AA101="-","-",AA101/$O101*100)))) -> 8 | AG103: =IF(ISNA($DJ$4),"",IF(AG101="x","x",IF($O101="-","nc",IF(AG101="-","-",AG101/$O101*100)))) -> 14 | AM103: =IF(ISNA($DJ$4),"",IF(AM101="x","x",IF($O101="-","nc",IF(AM101="-","-",AM101/$O101*100)))) -> 19 | AS103: =IF(ISNA($DJ$4),"",IF(AS101="x","x",IF($O101="-","nc",IF(AS101="-","-",AS101/$O101*100)))) -> 15 | AY103: =IF(ISNA($DJ$4),"",IF(AY101="x","x",IF($O101="-","nc",IF(AY101="-","-",AY101/$O101*100)))) -> 38 | DJ103: =$DJ$38 -> 府県平均 | DK103: =IF($BW$12="前回との比較",U103,U104) -> 6 | DL103: =IF($BW$12="前回との比較",AA103,AA104) -> 8 | DM103: =IF($BW$12="前回との比較",AG103,AG104) -> 14 | DN103: =IF($BW$12="前回との比較",AM103,AM104) -> 19 | DO103: =IF($BW$12="前回との比較",AS103,AS104) -> 15 | DP103: =IF($BW$12="前回との比較",AY103,AY104) -> 38 | DQ103: 100 | DS103: =IF(ISNA($DJ$4),"",IF(SUM(DK103:DP103)=100,"","表示できません")) -> 
H104: =IF($BW$12="都府県との比較","都府県平均",IF($BW$12="全国との比較","全国平均","府県平均")) -> 府県平均 | O104: =IF(ISNA($DJ$4),"",IF(VLOOKUP($DJ$32,'２データ'!$A$4:$KH$4628,'２データ'!FE$2,FALSE)="x","x",IF(VLOOKUP($DJ$32,'２データ'!$A$4:$KH$4628,'２データ'!FE$2,FALSE)="-","nc",VLOOKUP($DJ$32,'２データ'!$A$4:$KH$4628,'２データ'!FE$2,FALSE)/VLOOKUP($DJ$32,'２データ'!$A$4:$KH$4628,'２データ'!FE$2,FALSE)*100))) -> 100 | U104: =IF(ISNA($DJ$4),"",IF(VLOOKUP($DJ$32,'２データ'!$A$4:$KH$4628,'２データ'!FF$2,FALSE)="x","x",IF(VLOOKUP($DJ$32,'２データ'!$A$4:$KH$4628,'２データ'!FE$2,FALSE)="-","nc",IF(VLOOKUP($DJ$32,'２データ'!$A$4:$KH$4628,'２データ'!FF$2,FALSE)="-","-",VLOOKUP($DJ$32,'２データ'!$A$4:$KH$4628,'２データ'!FF$2,FALSE)/VLOOKUP($DJ$32,'２データ'!$A$4:$KH$4628,'２データ'!FE$2,FALSE)*100)))) -> 6 | AA104: =IF(ISNA($DJ$4),"",IF(VLOOKUP($DJ$32,'２データ'!$A$4:$KH$4628,162,FALSE)="x","x",IF(VLOOKUP($DJ$32,'２データ'!$A$4:$KH$4628,'２データ'!FE$2,FALSE)="-","nc",IF(VLOOKUP($DJ$32,'２データ'!$A$4:$KH$4628,'２データ'!FG$2,FALSE)="-","-",VLOOKUP($DJ$32,'２データ'!$A$4:$KH$4628,'２データ'!FG$2,FALSE)/VLOOKUP($DJ$32,'２データ'!$A$4:$KH$4628,'２データ'!FE$2,FALSE)*100)))) -> 8 | AG104: =IF(ISNA($DJ$4),"",IF(VLOOKUP($DJ$32,'２データ'!$A$4:$KH$4628,'２データ'!FH$2,FALSE)="x","x",IF(VLOOKUP($DJ$32,'２データ'!$A$4:$KH$4628,'２データ'!FE$2,FALSE)="-","nc",IF(VLOOKUP($DJ$32,'２データ'!$A$4:$KH$4628,'２データ'!FH$2,FALSE)="-","-",VLOOKUP($DJ$32,'２データ'!$A$4:$KH$4628,'２データ'!FH$2,FALSE)/VLOOKUP($DJ$32,'２データ'!$A$4:$KH$4628,'２データ'!FE$2,FALSE)*100)))) -> 14 | AM104: =IF(ISNA($DJ$4),"",IF(VLOOKUP($DJ$32,'２データ'!$A$4:$KH$4628,'２データ'!FI$2,FALSE)="x","x",IF(VLOOKUP($DJ$32,'２データ'!$A$4:$KH$4628,'２データ'!FE$2,FALSE)="-","nc",IF(VLOOKUP($DJ$32,'２データ'!$A$4:$KH$4628,'２データ'!FI$2,FALSE)="-","-",VLOOKUP($DJ$32,'２データ'!$A$4:$KH$4628,'２データ'!FI$2,FALSE)/VLOOKUP($DJ$32,'２データ'!$A$4:$KH$4628,'２データ'!FE$2,FALSE)*100)))) -> 19 | AS104: =IF(ISNA($DJ$4),"",IF(VLOOKUP($DJ$32,'２データ'!$A$4:$KH$4628,'２データ'!FJ$2,FALSE)="x","x",IF(VLOOKUP($DJ$32,'２データ'!$A$4:$KH$4628,'２データ'!FE$2,FALSE)="-","nc",IF(VLOOKUP($DJ$32,'２データ'!$A$4:$KH$4628,'２データ'!FJ$2,FALSE)="-","-",VLOOKUP($DJ$32,'２データ'!$A$4:$KH$4628,'２データ'!FJ$2,FALSE)/VLOOKUP($DJ$32,'２データ'!$A$4:$KH$4628,'２データ'!FE$2,FALSE)*100)))) -> 15 | AY104: =IF(ISNA($DJ$4),"",IF(VLOOKUP($DJ$32,'２データ'!$A$4:$KH$4628,'２データ'!FK$2,FALSE)="x","x",IF(VLOOKUP($DJ$32,'２データ'!$A$4:$KH$4628,'２データ'!FE$2,FALSE)="-","nc",IF(VLOOKUP($DJ$32,'２データ'!$A$4:$KH$4628,'２データ'!FK$2,FALSE)="-","-",VLOOKUP($DJ$32,'２データ'!$A$4:$KH$4628,'２データ'!FK$2,FALSE)/VLOOKUP($DJ$32,'２データ'!$A$4:$KH$4628,'２データ'!FE$2,FALSE)*100)))) -> 38
C105: 注：金額は、「金額階層区分の中位数×経営体数」で算出した推定値。
B108: ７ 農作業受託
C110: 農作業を受託した経営体の事業部門別経営体数
C111: 区 分 | O111: 経営 体数 | U111: 農作業を受託した経営体 | BE111: 料金収入 100万円 以上 | DJ111: 区分 | DK111: 受託した割合
U112: 実経営 体数 | DJ112: =$DJ$39 -> 選択地域 | DK112: =IF($BW$12="前回との比較",U116,U117) -> 11 | DM112: =IF(OR(DK112="x",DK112="nc"),"表示できません","") -> 
AA113: 水稲作 | AG113: 麦作 | AM113: 大豆作 | AS113: 野菜作 | AY113: 果樹作 | DJ113: =$DJ$38 -> 府県平均 | DK113: =IF($BW$12="前回との比較",U117,U118) -> 11 | DM113: =IF(OR(DK113="x",DK113="nc"),"表示できません","") -> 
C114: 経営 体数 | H114: 平成27年 | O114: =IF(ISNA($DJ$4),"",VLOOKUP($DJ$4,'27データ'!$A$4:$KH$4628,'27データ'!FL$2,FALSE)) -> 18,016 | U114: =IF(ISNA($DJ$4),"",VLOOKUP($DJ$4,'27データ'!$A$4:$KH$4628,'27データ'!FM$2,FALSE)) -> 1,838 | AA114: =IF(ISNA($DJ$4),"",VLOOKUP($DJ$4,'27データ'!$A$4:$KH$4628,'27データ'!FN$2,FALSE)) -> 1,773 | AG114: =IF(ISNA($DJ$4),"",VLOOKUP($DJ$4,'27データ'!$A$4:$KH$4628,'27データ'!FO$2,FALSE)) -> 17 | AM114: =IF(ISNA($DJ$4),"",VLOOKUP($DJ$4,'27データ'!$A$4:$KH$4628,'27データ'!FP$2,FALSE)) -> 18 | AS114: =IF(ISNA($DJ$4),"",VLOOKUP($DJ$4,'27データ'!$A$4:$KH$4628,'27データ'!FQ$2,FALSE)) -> 18 | AY114: =IF(ISNA($DJ$4),"",VLOOKUP($DJ$4,'27データ'!$A$4:$KH$4628,'27データ'!FR$2,FALSE)) -> 9 | BE114: =IF(ISNA($DJ$4),"",VLOOKUP($DJ$4,'27データ'!$A$4:$KH$4628,'27データ'!FS$2,FALSE)) -> 279 | DK114: 5
H115: 令和２年 | O115: =IF(ISNA($DJ$4),"",VLOOKUP($DJ$4,'２データ'!$A$4:$KH$4628,'２データ'!FL$2,FALSE)) -> 14,181 | U115: =IF(ISNA($DJ$4),"",VLOOKUP($DJ$4,'２データ'!$A$4:$KH$4628,'２データ'!FM$2,FALSE)) -> 1,494 | AA115: =IF(ISNA($DJ$4),"",VLOOKUP($DJ$4,'２データ'!$A$4:$KH$4628,'２データ'!FN$2,FALSE)) -> 1,411 | AG115: =IF(ISNA($DJ$4),"",VLOOKUP($DJ$4,'２データ'!$A$4:$KH$4628,'２データ'!FO$2,FALSE)) -> 19 | AM115: =IF(ISNA($DJ$4),"",VLOOKUP($DJ$4,'２データ'!$A$4:$KH$4628,'２データ'!FP$2,FALSE)) -> 23 | AS115: =IF(ISNA($DJ$4),"",VLOOKUP($DJ$4,'２データ'!$A$4:$KH$4628,'２データ'!FQ$2,FALSE)) -> 31 | AY115: =IF(ISNA($DJ$4),"",VLOOKUP($DJ$4,'２データ'!$A$4:$KH$4628,'２データ'!FR$2,FALSE)) -> 8 | BE115: =IF(ISNA($DJ$4),"",VLOOKUP($DJ$4,'２データ'!$A$4:$KH$4628,'２データ'!FS$2,FALSE)) -> 267
C116: 構成比 (％) | H116: 平成27年 | O116: =IF(ISNA($DJ$4),"",IF(O114="@","nc",IF(O114="x","x",IF($O114="-","nc",O114/$O114*100)))) -> 100 | U116: =IF(ISNA($DJ$4),"",IF(U114="@","nc",IF(U114="x","x",IF($O114="-","nc",IF(U114="-","-",U114/$O114*100))))) -> 10 | AA116: =IF(ISNA($DJ$4),"",IF(AA114="@","nc",IF(AA114="x","x",IF($O114="-","nc",IF(AA114="-","-",AA114/$O114*100))))) -> 10 | AG116: =IF(ISNA($DJ$4),"",IF(AG114="@","nc",IF(AG114="x","x",IF($O114="-","nc",IF(AG114="-","-",AG114/$O114*100))))) -> 0 | AM116: =IF(ISNA($DJ$4),"",IF(AM114="@","nc",IF(AM114="x","x",IF($O114="-","nc",IF(AM114="-","-",AM114/$O114*100))))) -> 0 | AS116: =IF(ISNA($DJ$4),"",IF(AS114="@","nc",IF(AS114="x","x",IF($O114="-","nc",IF(AS114="-","-",AS114/$O114*100))))) -> 0 | AY116: =IF(ISNA($DJ$4),"",IF(AY114="@","nc",IF(AY114="x","x",IF($O114="-","nc",IF(AY114="-","-",AY114/$O114*100))))) -> 0 | BE116: =IF(ISNA($DJ$4),"",IF(BE114="@","nc",IF(BE114="x","x",IF($U114="-","nc",IF(BE114="-","-",BE114/$U114*100))))) -> 15
H117: 令和２年 | O117: =IF(ISNA($DJ$4),"",IF(O115="x","x",IF($O115="-","nc",O115/$O115*100))) -> 100 | U117: =IF(ISNA($DJ$4),"",IF(U115="x","x",IF($O115="-","nc",IF(U115="-","-",U115/$O115*100)))) -> 11 | AA117: =IF(ISNA($DJ$4),"",IF(AA115="x","x",IF($O115="-","nc",IF(AA115="-","-",AA115/$O115*100)))) -> 10 | AG117: =IF(ISNA($DJ$4),"",IF(AG115="x","x",IF($O115="-","nc",IF(AG115="-","-",AG115/$O115*100)))) -> 0 | AM117: =IF(ISNA($DJ$4),"",IF(AM115="x","x",IF($O115="-","nc",IF(AM115="-","-",AM115/$O115*100)))) -> 0 | AS117: =IF(ISNA($DJ$4),"",IF(AS115="x","x",IF($O115="-","nc",IF(AS115="-","-",AS115/$O115*100)))) -> 0 | AY117: =IF(ISNA($DJ$4),"",IF(AY115="x","x",IF($O115="-","nc",IF(AY115="-","-",AY115/$O115*100)))) -> 0 | BE117: =IF(ISNA($DJ$4),"",IF(BE115="@","nc",IF(BE115="x","x",IF($U115="-","nc",IF(BE115="-","-",BE115/$U115*100))))) -> 18
H118: =IF($BW$12="都府県との比較","都府県平均",IF($BW$12="全国との比較","全国平均","府県平均")) -> 府県平均 | O118: =IF(ISNA($DJ$4),"",IF(VLOOKUP($DJ$32,'２データ'!$A$4:$KH$4628,'２データ'!FL$2,FALSE)="x","x",IF(VLOOKUP($DJ$32,'２データ'!$A$4:$KH$4628,'２データ'!FL$2,FALSE)="-","nc",VLOOKUP($DJ$32,'２データ'!$A$4:$KH$4628,'２データ'!FL$2,FALSE)/VLOOKUP($DJ$32,'２データ'!$A$4:$KH$4628,'２データ'!FL$2,FALSE)*100))) -> 100 | U118: =IF(ISNA($DJ$4),"",IF(VLOOKUP($DJ$32,'２データ'!$A$4:$KH$4628,'２データ'!FM$2,FALSE)="x","x",IF(VLOOKUP($DJ$32,'２データ'!$A$4:$KH$4628,'２データ'!FL$2,FALSE)="-","nc",IF(VLOOKUP($DJ$32,'２データ'!$A$4:$KH$4628,'２データ'!FM$2,FALSE)="-","-",VLOOKUP($DJ$32,'２データ'!$A$4:$KH$4628,'２データ'!FM$2,FALSE)/VLOOKUP($DJ$32,'２データ'!$A$4:$KH$4628,'２データ'!FL$2,FALSE)*100)))) -> 11 | AA118: =IF(ISNA($DJ$4),"",IF(VLOOKUP($DJ$32,'２データ'!$A$4:$KH$4628,'２データ'!FN$2,FALSE)="x","x",IF(VLOOKUP($DJ$32,'２データ'!$A$4:$KH$4628,'２データ'!FL$2,FALSE)="-","nc",IF(VLOOKUP($DJ$32,'２データ'!$A$4:$KH$4628,'２データ'!FN$2,FALSE)="-","-",VLOOKUP($DJ$32,'２データ'!$A$4:$KH$4628,'２データ'!FN$2,FALSE)/VLOOKUP($DJ$32,'２データ'!$A$4:$KH$4628,'２データ'!FL$2,FALSE)*100)))) -> 10 | AG118: =IF(ISNA($DJ$4),"",IF(VLOOKUP($DJ$32,'２データ'!$A$4:$KH$4628,'２データ'!FO$2,FALSE)="x","x",IF(VLOOKUP($DJ$32,'２データ'!$A$4:$KH$4628,'２データ'!FL$2,FALSE)="-","nc",IF(VLOOKUP($DJ$32,'２データ'!$A$4:$KH$4628,'２データ'!FO$2,FALSE)="-","-",VLOOKUP($DJ$32,'２データ'!$A$4:$KH$4628,'２データ'!FO$2,FALSE)/VLOOKUP($DJ$32,'２データ'!$A$4:$KH$4628,'２データ'!FL$2,FALSE)*100)))) -> 0 | AM118: =IF(ISNA($DJ$4),"",IF(VLOOKUP($DJ$32,'２データ'!$A$4:$KH$4628,'２データ'!FP$2,FALSE)="x","x",IF(VLOOKUP($DJ$32,'２データ'!$A$4:$KH$4628,'２データ'!FL$2,FALSE)="-","nc",IF(VLOOKUP($DJ$32,'２データ'!$A$4:$KH$4628,'２データ'!FP$2,FALSE)="-","-",VLOOKUP($DJ$32,'２データ'!$A$4:$KH$4628,'２データ'!FP$2,FALSE)/VLOOKUP($DJ$32,'２データ'!$A$4:$KH$4628,'２データ'!FL$2,FALSE)*100)))) -> 0 | AS118: =IF(ISNA($DJ$4),"",IF(VLOOKUP($DJ$32,'２データ'!$A$4:$KH$4628,'２データ'!FQ$2,FALSE)="x","x",IF(VLOOKUP($DJ$32,'２データ'!$A$4:$KH$4628,'２データ'!FL$2,FALSE)="-","nc",IF(VLOOKUP($DJ$32,'２データ'!$A$4:$KH$4628,'２データ'!FQ$2,FALSE)="-","-",VLOOKUP($DJ$32,'２データ'!$A$4:$KH$4628,'２データ'!FQ$2,FALSE)/VLOOKUP($DJ$32,'２データ'!$A$4:$KH$4628,'２データ'!FL$2,FALSE)*100)))) -> 0 | AY118: =IF(ISNA($DJ$4),"",IF(VLOOKUP($DJ$32,'２データ'!$A$4:$KH$4628,'２データ'!FR$2,FALSE)="x","x",IF(VLOOKUP($DJ$32,'２データ'!$A$4:$KH$4628,'２データ'!FL$2,FALSE)="-","nc",IF(VLOOKUP($DJ$32,'２データ'!$A$4:$KH$4628,'２データ'!FR$2,FALSE)="-","-",VLOOKUP($DJ$32,'２データ'!$A$4:$KH$4628,'２データ'!FR$2,FALSE)/VLOOKUP($DJ$32,'２データ'!$A$4:$KH$4628,'２データ'!FL$2,FALSE)*100)))) -> 0 | BE118: =IF(ISNA($DJ$4),"",IF(VLOOKUP($DJ$32,'２データ'!$A$4:$KH$4628,'２データ'!FS$2,FALSE)="x","x",IF(VLOOKUP($DJ$32,'２データ'!$A$4:$KH$4628,'２データ'!FM$2,FALSE)="-","nc",IF(VLOOKUP($DJ$32,'２データ'!$A$4:$KH$4628,'２データ'!FS$2,FALSE)="-","-",VLOOKUP($DJ$32,'２データ'!$A$4:$KH$4628,'２データ'!FS$2,FALSE)/VLOOKUP($DJ$32,'２データ'!$A$4:$KH$4628,'２データ'!FM$2,FALSE)*100)))) -> 18
C119: 注：受託収入100万円以上の構成比は、受託した経営体数に占める割合。
B123: ８ 農業生産関連事業
C125: 農業生産関連事業を行っている経営体の事業種類別経営体数
C126: 区 分 | O126: 経営 体数 | U126: 農業生産関連事業を行っている経営体 | BE126: 事業収入 100万円 以上
U127: 実経営 体数
AA128: 小売業 | AG128: 農産物 の加工 | AM128: 観光 農園 | AS128: 貸･体験農園等 | AY128: 再生可能エネルギー発電 | DJ128: 区分 | DK128: 事業を行っている割合
DJ129: =$DJ$39 -> 選択地域 | DK129: =IF($BW$12="前回との比較",U132,U133) -> 12 | DM129: =IF(OR(DK129="x",DK129="nc"),"表示できません","") -> 
C130: 経営 体数 | H130: 平成27年 | O130: =IF(ISNA($DJ$4),"",VLOOKUP($DJ$4,'27データ'!$A$4:$KH$4628,'27データ'!FT$2,FALSE)) -> 18,016 | U130: =IF(ISNA($DJ$4),"",VLOOKUP($DJ$4,'27データ'!$A$4:$KH$4628,'27データ'!FU$2,FALSE)) -> 546 | AA130: =IF(ISNA($DJ$4),"",VLOOKUP($DJ$4,'27データ'!$A$4:$KH$4628,'27データ'!FV$2,FALSE)) -> … | AG130: =IF(ISNA($DJ$4),"",VLOOKUP($DJ$4,'27データ'!$A$4:$KH$4628,'27データ'!FW$2,FALSE)) -> 337 | AM130: =IF(ISNA($DJ$4),"",VLOOKUP($DJ$4,'27データ'!$A$4:$KH$4628,'27データ'!FX$2,FALSE)) -> 87 | AS130: =IF(ISNA($DJ$4),"",VLOOKUP($DJ$4,'27データ'!$A$4:$KH$4628,'27データ'!FY$2,FALSE)) -> 104 | AY130: =IF(ISNA($DJ$4),"",VLOOKUP($DJ$4,'27データ'!$A$4:$KH$4628,'27データ'!FZ$2,FALSE)) -> … | BE130: =IF(ISNA($DJ$4),"",VLOOKUP($DJ$4,'27データ'!$A$4:$KH$4628,'27データ'!GB$2,FALSE)) -> 200 | DJ130: =$DJ$38 -> 府県平均 | DK130: =IF($BW$12="前回との比較",U133,U134) -> 12 | DM130: =IF(OR(DK130="x",DK130="nc"),"表示できません","") -> 
H131: 令和２年 | O131: =IF(ISNA($DJ$4),"",VLOOKUP($DJ$4,'２データ'!$A$4:$KH$4628,'２データ'!FT$2,FALSE)) -> 14,181 | U131: =IF(ISNA($DJ$4),"",VLOOKUP($DJ$4,'２データ'!$A$4:$KH$4628,'２データ'!FU$2,FALSE)) -> 1,714 | AA131: =IF(ISNA($DJ$4),"",VLOOKUP($DJ$4,'２データ'!$A$4:$KH$4628,'２データ'!FV$2,FALSE)) -> 1,134 | AG131: =IF(ISNA($DJ$4),"",VLOOKUP($DJ$4,'２データ'!$A$4:$KH$4628,'２データ'!FW$2,FALSE)) -> 563 | AM131: =IF(ISNA($DJ$4),"",VLOOKUP($DJ$4,'２データ'!$A$4:$KH$4628,'２データ'!FX$2,FALSE)) -> 69 | AS131: =IF(ISNA($DJ$4),"",VLOOKUP($DJ$4,'２データ'!$A$4:$KH$4628,'２データ'!FY$2,FALSE)) -> 39 | AY131: =IF(ISNA($DJ$4),"",VLOOKUP($DJ$4,'２データ'!$A$4:$KH$4628,'２データ'!FZ$2,FALSE)) -> 17 | BE131: =IF(ISNA($DJ$4),"",VLOOKUP($DJ$4,'２データ'!$A$4:$KH$4628,'２データ'!GB$2,FALSE)) -> 683 | DK131: 5
C132: 構成比 (％) | H132: 平成27年 | O132: =IF(ISNA($DJ$4),"",IF($O130="@","nc",IF($O130="x","x",IF($O130="-","nc",O130/$O130*100)))) -> 100 | U132: =IF(ISNA($DJ$4),"",IF(U130="@","nc",IF(U130="x","x",IF($O130="-","nc",IF(U130="-","-",U130/$O130*100))))) -> 3 | AA132: =IF(ISNA($DJ$4),"","nc") -> nc | AG132: =IF(ISNA($DJ$4),"",IF(AG130="@","nc",IF(AG130="x","x",IF($O130="-","nc",IF(AG130="-","-",AG130/$O130*100))))) -> 2 | AM132: =IF(ISNA($DJ$4),"",IF(AM130="@","nc",IF(AM130="x","x",IF($O130="-","nc",IF(AM130="-","-",AM130/$O130*100))))) -> 0 | AS132: =IF(ISNA($DJ$4),"",IF(AS130="@","nc",IF(AS130="x","x",IF($O130="-","nc",IF(AS130="-","-",AS130/$O130*100))))) -> 1 | AY132: =IF(ISNA($DJ$4),"","nc") -> nc | BE132: =IF(ISNA($DJ$4),"",IF(BE130="x","x",IF(VLOOKUP($DJ$4,'27データ'!$A$4:$KH$4628,'27データ'!GA$2,FALSE)="-","nc",IF(BE130="-","-",BE130/VLOOKUP($DJ$4,'27データ'!$A$4:$KH$4628,'27データ'!GA$2,FALSE)*100)))) -> 37
H133: 令和２年 | O133: =IF(ISNA($DJ$4),"",IF($O131="x","x",IF($O131="-","nc",O131/$O131*100))) -> 100 | U133: =IF(ISNA($DJ$4),"",IF(U131="x","x",IF($O131="-","nc",IF(U131="-","-",U131/$O131*100)))) -> 12 | AA133: =IF(ISNA($DJ$4),"",IF(AA131="x","x",IF($O131="-","nc",IF(AA131="-","-",AA131/$O131*100)))) -> 8 | AG133: =IF(ISNA($DJ$4),"",IF(AG131="x","x",IF($O131="-","nc",IF(AG131="-","-",AG131/$O131*100)))) -> 4 | AM133: =IF(ISNA($DJ$4),"",IF(AM131="x","x",IF($O131="-","nc",IF(AM131="-","-",AM131/$O131*100)))) -> 0 | AS133: =IF(ISNA($DJ$4),"",IF(AS131="x","x",IF($O131="-","nc",IF(AS131="-","-",AS131/$O131*100)))) -> 0 | AY133: =IF(ISNA($DJ$4),"",IF(AY131="x","x",IF($O131="-","nc",IF(AY131="-","-",AY131/$O131*100)))) -> 0 | BE133: =IF(ISNA($DJ$4),"",IF(BE131="x","x",IF(VLOOKUP($DJ$4,'２データ'!$A$4:$KH$4628,'２データ'!GA$2,FALSE)="-","nc",IF(BE131="-","-",BE131/VLOOKUP($DJ$4,'２データ'!$A$4:$KH$4628,'２データ'!GA$2,FALSE)*100)))) -> 40
H134: =IF($BW$12="都府県との比較","都府県平均",IF($BW$12="全国との比較","全国平均","府県平均")) -> 府県平均 | O134: =IF(ISNA($DJ$4),"",IF(VLOOKUP($DJ$32,'２データ'!$A$4:$KH$4628,'２データ'!FT$2,FALSE)="x","x",IF(VLOOKUP($DJ$32,'２データ'!$A$4:$KH$4628,'２データ'!FT$2,FALSE)="-","nc",VLOOKUP($DJ$32,'２データ'!$A$4:$KH$4628,'２データ'!FT$2,FALSE)/VLOOKUP($DJ$32,'２データ'!$A$4:$KH$4628,'２データ'!FT$2,FALSE)*100))) -> 100 | U134: =IF(ISNA($DJ$4),"",IF(VLOOKUP($DJ$32,'２データ'!$A$4:$KH$4628,'２データ'!FU$2,FALSE)="x","x",IF(VLOOKUP($DJ$32,'２データ'!$A$4:$KH$4628,'２データ'!FT$2,FALSE)="-","nc",IF(VLOOKUP($DJ$32,'２データ'!$A$4:$KH$4628,'２データ'!FU$2,FALSE)="-","-",VLOOKUP($DJ$32,'２データ'!$A$4:$KH$4628,'２データ'!FU$2,FALSE)/VLOOKUP($DJ$32,'２データ'!$A$4:$KH$4628,'２データ'!FT$2,FALSE)*100)))) -> 12 | AA134: =IF(ISNA($DJ$4),"",IF(VLOOKUP($DJ$32,'２データ'!$A$4:$KH$4628,'２データ'!FV$2,FALSE)="x","x",IF(VLOOKUP($DJ$32,'２データ'!$A$4:$KH$4628,'２データ'!FT$2,FALSE)="-","nc",IF(VLOOKUP($DJ$32,'２データ'!$A$4:$KH$4628,'２データ'!FV$2,FALSE)="-","-",VLOOKUP($DJ$32,'２データ'!$A$4:$KH$4628,'２データ'!FV$2,FALSE)/VLOOKUP($DJ$32,'２データ'!$A$4:$KH$4628,'２データ'!FT$2,FALSE)*100)))) -> 8 | AG134: =IF(ISNA($DJ$4),"",IF(VLOOKUP($DJ$32,'２データ'!$A$4:$KH$4628,'２データ'!FW$2,FALSE)="x","x",IF(VLOOKUP($DJ$32,'２データ'!$A$4:$KH$4628,'２データ'!FT$2,FALSE)="-","nc",IF(VLOOKUP($DJ$32,'２データ'!$A$4:$KH$4628,'２データ'!FW$2,FALSE)="-","-",VLOOKUP($DJ$32,'２データ'!$A$4:$KH$4628,'２データ'!FW$2,FALSE)/VLOOKUP($DJ$32,'２データ'!$A$4:$KH$4628,'２データ'!FT$2,FALSE)*100)))) -> 4 | AM134: =IF(ISNA($DJ$4),"",IF(VLOOKUP($DJ$32,'２データ'!$A$4:$KH$4628,'２データ'!FX$2,FALSE)="x","x",IF(VLOOKUP($DJ$32,'２データ'!$A$4:$KH$4628,'２データ'!FT$2,FALSE)="-","nc",IF(VLOOKUP($DJ$32,'２データ'!$A$4:$KH$4628,'２データ'!FX$2,FALSE)="-","-",VLOOKUP($DJ$32,'２データ'!$A$4:$KH$4628,'２データ'!FX$2,FALSE)/VLOOKUP($DJ$32,'２データ'!$A$4:$KH$4628,'２データ'!FT$2,FALSE)*100)))) -> 0 | AS134: =IF(ISNA($DJ$4),"",IF(VLOOKUP($DJ$32,'２データ'!$A$4:$KH$4628,'２データ'!FY$2,FALSE)="x","x",IF(VLOOKUP($DJ$32,'２データ'!$A$4:$KH$4628,'２データ'!FT$2,FALSE)="-","nc",IF(VLOOKUP($DJ$32,'２データ'!$A$4:$KH$4628,'２データ'!FY$2,FALSE)="-","-",VLOOKUP($DJ$32,'２データ'!$A$4:$KH$4628,'２データ'!FY$2,FALSE)/VLOOKUP($DJ$32,'２データ'!$A$4:$KH$4628,'２データ'!FT$2,FALSE)*100)))) -> 0 | AY134: =IF(ISNA($DJ$4),"",IF(VLOOKUP($DJ$32,'２データ'!$A$4:$KH$4628,'２データ'!FZ$2,FALSE)="x","x",IF(VLOOKUP($DJ$32,'２データ'!$A$4:$KH$4628,'２データ'!FT$2,FALSE)="-","nc",IF(VLOOKUP($DJ$32,'２データ'!$A$4:$KH$4628,'２データ'!FZ$2,FALSE)="-","-",VLOOKUP($DJ$32,'２データ'!$A$4:$KH$4628,'２データ'!FZ$2,FALSE)/VLOOKUP($DJ$32,'２データ'!$A$4:$KH$4628,'２データ'!FT$2,FALSE)*100)))) -> 0 | BE134: =IF(ISNA($DJ$4),"",IF(VLOOKUP($DJ$32,'２データ'!$A$4:$KH$4628,'２データ'!GB$2,FALSE)="x","x",IF(VLOOKUP($DJ$32,'２データ'!$A$4:$KH$4628,'２データ'!GA$2,FALSE)="-","nc",IF(VLOOKUP($DJ$32,'２データ'!$A$4:$KH$4628,'２データ'!GB$2,FALSE)="-","-",VLOOKUP($DJ$32,'２データ'!$A$4:$KH$4628,'２データ'!GB$2,FALSE)/VLOOKUP($DJ$32,'２データ'!$A$4:$KH$4628,'２データ'!GA$2,FALSE)*100)))) -> 40
B139: ９ 有機農業（令和２年） | AA139: 10 後継者（令和２年）
C141: 取り組んでいる経営体数等 | AB141: ５年以内の後継者確保状況別経営体数等
C142: 区 分 | O142: 計 | T142: 有機農業に取り組んでいる | AB142: 区 分 | AN142: 計 | AS142: ５年以内に引き継がない | AX142: 引き継ぐ後継者
AX143: いる | BC143: いない
C145: 経営体数 | O145: =IF(ISNA($DJ$4),"",VLOOKUP($DJ$4,'２データ'!$A$4:$KH$4628,'２データ'!GC$2,FALSE)) -> 12,434 | T145: =IF(ISNA($DJ$4),"",VLOOKUP($DJ$4,'２データ'!$A$4:$KH$4628,'２データ'!GD$2,FALSE)) -> 1,308 | AB145: 経営体数 | AN145: =IF(ISNA($DJ$4),"",VLOOKUP($DJ$4,'２データ'!$A$4:$KH$4628,'２データ'!GG$2,FALSE)) -> 14,181 | AS145: =IF(ISNA($DJ$4),"",VLOOKUP($DJ$4,'２データ'!$A$4:$KH$4628,'２データ'!GH$2,FALSE)) -> 650 | AX145: =IF(ISNA($DJ$4),"",VLOOKUP($DJ$4,'２データ'!$A$4:$KH$4628,'２データ'!GI$2,FALSE)) -> 3,615 | BC145: =IF(ISNA($DJ$4),"",VLOOKUP($DJ$4,'２データ'!$A$4:$KH$4628,'２データ'!GJ$2,FALSE)) -> 9,916
C146: 面積（ha） | O146: =IF(ISNA($DJ$4),"",IF(VLOOKUP($DJ$4,'２データ'!$A$4:$KH$4628,'２データ'!GE$2,FALSE)="@","@",IF(VLOOKUP($DJ$4,'２データ'!$A$4:$KH$4628,'２データ'!GE$2,FALSE)="x","x",IF(VLOOKUP($DJ$4,'２データ'!$A$4:$KH$4628,'２データ'!GE$2,FALSE)="-","-",VLOOKUP($DJ$4,'２データ'!$A$4:$KH$4628,'２データ'!GE$2,FALSE)/100)))) -> 17,177 | T146: =IF(ISNA($DJ$4),"",IF(VLOOKUP($DJ$4,'２データ'!$A$4:$KH$4628,'２データ'!GF$2,FALSE)="@","@",IF(VLOOKUP($DJ$4,'２データ'!$A$4:$KH$4628,'２データ'!GF$2,FALSE)="x","x",IF(VLOOKUP($DJ$4,'２データ'!$A$4:$KH$4628,'２データ'!GF$2,FALSE)="-","-",VLOOKUP($DJ$4,'２データ'!$A$4:$KH$4628,'２データ'!GF$2,FALSE)/100)))) -> 1,291 | AB146: 面積（ha） | AN146: =IF(ISNA($DJ$4),"",IF(VLOOKUP($DJ$4,'２データ'!$A$4:$KH$4628,'２データ'!GK$2,FALSE)="@","@",IF(VLOOKUP($DJ$4,'２データ'!$A$4:$KH$4628,'２データ'!GK$2,FALSE)="x","x",IF(VLOOKUP($DJ$4,'２データ'!$A$4:$KH$4628,'２データ'!GK$2,FALSE)="-","-",VLOOKUP($DJ$4,'２データ'!$A$4:$KH$4628,'２データ'!GK$2,FALSE)/100)))) -> 18,440 | AS146: =IF(ISNA($DJ$4),"",IF(VLOOKUP($DJ$4,'２データ'!$A$4:$KH$4628,'２データ'!GL$2,FALSE)="@","@",IF(VLOOKUP($DJ$4,'２データ'!$A$4:$KH$4628,'２データ'!GL$2,FALSE)="x","x",IF(VLOOKUP($DJ$4,'２データ'!$A$4:$KH$4628,'２データ'!GL$2,FALSE)="-","-",VLOOKUP($DJ$4,'２データ'!$A$4:$KH$4628,'２データ'!GL$2,FALSE)/100)))) -> 1,238 | AX146: =IF(ISNA($DJ$4),"",IF(VLOOKUP($DJ$4,'２データ'!$A$4:$KH$4628,'２データ'!GM$2,FALSE)="@","@",IF(VLOOKUP($DJ$4,'２データ'!$A$4:$KH$4628,'２データ'!GM$2,FALSE)="x","x",IF(VLOOKUP($DJ$4,'２データ'!$A$4:$KH$4628,'２データ'!GM$2,FALSE)="-","-",VLOOKUP($DJ$4,'２データ'!$A$4:$KH$4628,'２データ'!GM$2,FALSE)/100)))) -> 5,838 | BC146: =IF(ISNA($DJ$4),"",IF(VLOOKUP($DJ$4,'２データ'!$A$4:$KH$4628,'２データ'!GN$2,FALSE)="@","@",IF(VLOOKUP($DJ$4,'２データ'!$A$4:$KH$4628,'２データ'!GN$2,FALSE)="x","x",IF(VLOOKUP($DJ$4,'２データ'!$A$4:$KH$4628,'２データ'!GN$2,FALSE)="-","-",VLOOKUP($DJ$4,'２データ'!$A$4:$KH$4628,'２データ'!GN$2,FALSE)/100)))) -> 11,364 | DJ146: 区分 | DK146: 後継者がいない面積割合
C147: 面積 構成比 (％) | H147: 令和２年 | O147: =IF(ISNA($DJ$4),"",IF($O146="x","x",IF($O146="-","nc",O146/$O146*100))) -> 100 | T147: =IF(ISNA($DJ$4),"",IF(OR($O146="x",T146="x"),"x",IF($O146="-","nc",IF(T146="-","-",T146/$O146*100)))) -> 8 | AB147: 面積 構成比 (％) | AG147: 令和２年 | AN147: =IF(ISNA($DJ$4),"",IF(AN146="x","x",IF($AN146="-","nc",AN146/$AN146*100))) -> 100 | AS147: =IF(ISNA($DJ$4),"",IF(AS146="x","x",IF($AN146="-","nc",IF(AS146="-","-",AS146/$AN146*100)))) -> 7 | AX147: =IF(ISNA($DJ$4),"",IF(AX146="x","x",IF($AN146="-","nc",IF(AX146="-","-",AX146/$AN146*100)))) -> 32 | BC147: =IF(ISNA($DJ$4),"",IF(BC146="x","x",IF($AN146="-","nc",IF(BC146="-","-",BC146/$AN146*100)))) -> 62 | DJ147: =$DJ$39 -> 選択地域 | DK147: =IF($BW$12="前回との比較","…",BC147) -> 62 | DM147: =IF(DK147="…","調査がありません",IF(OR(DK147="x",DK147="nc"),"表示できません","")) -> 
H148: =IF($BW$12="都府県との比較","都府県平均",IF($BW$12="全国との比較","全国平均","府県平均")) -> 府県平均 | O148: =IF(ISNA($DJ$4),"",IF(VLOOKUP($DJ$32,'２データ'!$A$4:$KH$4628,'２データ'!GE$2,FALSE)="x","x",IF(VLOOKUP($DJ$32,'２データ'!$A$4:$KH$4628,'２データ'!GE$2,FALSE)="-","nc",VLOOKUP($DJ$32,'２データ'!$A$4:$KH$4628,'２データ'!GE$2,FALSE)/VLOOKUP($DJ$32,'２データ'!$A$4:$KH$4628,'２データ'!GE$2,FALSE)*100))) -> 100 | T148: =IF(ISNA($DJ$4),"",IF(VLOOKUP($DJ$32,'２データ'!$A$4:$KH$4628,'２データ'!GE$2,FALSE)="x","x",IF(VLOOKUP($DJ$32,'２データ'!$A$4:$KH$4628,'２データ'!GE$2,FALSE)="-","nc",IF(VLOOKUP($DJ$32,'２データ'!$A$4:$KH$4628,'２データ'!GF$2,FALSE)="-","-",VLOOKUP($DJ$32,'２データ'!$A$4:$KH$4628,'２データ'!GF$2,FALSE)/VLOOKUP($DJ$32,'２データ'!$A$4:$KH$4628,'２データ'!GE$2,FALSE)*100)))) -> 8 | AG148: =IF($BW$12="都府県との比較","都府県平均",IF($BW$12="全国との比較","全国平均","府県平均")) -> 府県平均 | AN148: =IF(ISNA($DJ$4),"",IF(VLOOKUP($DJ$32,'２データ'!$A$4:$KH$4628,'２データ'!GK$2,FALSE)="x","x",IF(VLOOKUP($DJ$32,'２データ'!$A$4:$KH$4628,'２データ'!GK$2,FALSE)="-","nc",VLOOKUP($DJ$32,'２データ'!$A$4:$KH$4628,'２データ'!GK$2,FALSE)/VLOOKUP($DJ$32,'２データ'!$A$4:$KH$4628,'２データ'!GK$2,FALSE)*100))) -> 100 | AS148: =IF(ISNA($DJ$4),"",IF(VLOOKUP($DJ$32,'２データ'!$A$4:$KH$4628,'２データ'!GK$2,FALSE)="x","x",IF(VLOOKUP($DJ$32,'２データ'!$A$4:$KH$4628,'２データ'!GK$2,FALSE)="-","nc",IF(VLOOKUP($DJ$32,'２データ'!$A$4:$KH$4628,'２データ'!GL$2,FALSE)="-","-",VLOOKUP($DJ$32,'２データ'!$A$4:$KH$4628,'２データ'!GL$2,FALSE)/VLOOKUP($DJ$32,'２データ'!$A$4:$KH$4628,'２データ'!GK$2,FALSE)*100)))) -> 7 | AX148: =IF(ISNA($DJ$4),"",IF(VLOOKUP($DJ$32,'２データ'!$A$4:$KH$4628,'２データ'!GK$2,FALSE)="x","x",IF(VLOOKUP($DJ$32,'２データ'!$A$4:$KH$4628,'２データ'!GK$2,FALSE)="-","nc",IF(VLOOKUP($DJ$32,'２データ'!$A$4:$KH$4628,'２データ'!GM$2,FALSE)="-","-",VLOOKUP($DJ$32,'２データ'!$A$4:$KH$4628,'２データ'!GM$2,FALSE)/VLOOKUP($DJ$32,'２データ'!$A$4:$KH$4628,'２データ'!GK$2,FALSE)*100)))) -> 32 | BC148: =IF(ISNA($DJ$4),"",IF(VLOOKUP($DJ$32,'２データ'!$A$4:$KH$4628,'２データ'!GK$2,FALSE)="x","x",IF(VLOOKUP($DJ$32,'２データ'!$A$4:$KH$4628,'２データ'!GK$2,FALSE)="-","nc",IF(VLOOKUP($DJ$32,'２データ'!$A$4:$KH$4628,'２データ'!GN$2,FALSE)="-","-",VLOOKUP($DJ$32,'２データ'!$A$4:$KH$4628,'２データ'!GN$2,FALSE)/VLOOKUP($DJ$32,'２データ'!$A$4:$KH$4628,'２データ'!GK$2,FALSE)*100)))) -> 62 | DJ148: =$DJ$38 -> 府県平均 | DK148: =IF($BW$12="前回との比較",BC147,BC148) -> 62 | DM148: =IF(OR(DK148="x",DK148="nc"),"表示できません","") -> 
C149: 注： 販売目的で作物を作付(栽 培)している経営体。 | AB149: 注：面積は、組替集計による。 | DK149: 5
DK151: 計 | DL151: 経営者が男 | DM151: 男女 | DN151: 女性 | DO151: 経営者が女
DJ152: =$H$54 -> 0.0 | DK152: =IF(ISNA($DJ$4),"",VLOOKUP($DJ$51,'２データ'!$A$4:$HI$4627,'２データ'!HY$2,FALSE)) ->  | DL152: =IF(ISNA($DJ$4),"",VLOOKUP($DJ$51,'２データ'!$A$4:$HI$4627,'２データ'!HZ$2,FALSE)) ->  | DM152: =IF(ISNA($DJ$4),"",VLOOKUP($DJ$51,'２データ'!$A$4:$HI$4627,'２データ'!IA$2,FALSE)) ->  | DN152: =IF(ISNA($DJ$4),"",VLOOKUP($DJ$51,'２データ'!$A$4:$HI$4627,'２データ'!IB$2,FALSE)) ->  | DO152: =IF(ISNA($DJ$4),"",VLOOKUP($DJ$51,'２データ'!$A$4:$HI$4627,'２データ'!IC$2,FALSE)) -> 
DJ153: 構成比 | DK153: =IF(ISNA($DJ$4),"",IF(DK152="x","x",IF($DK152="-","nc",DK152/$DK152*100))) ->  | DL153: =IF(ISNA($DJ$4),"",IF(DL152="x","x",IF($DK152="-","nc",IF(DL152="-","-",DL152/$DK152*100)))) ->  | DM153: =IF(ISNA($DJ$4),"",IF(DM152="x","x",IF($DK152="-","nc",IF(DM152="-","-",DM152/$DK152*100)))) ->  | DN153: =IF(ISNA($DJ$4),"",IF(DN152="x","x",IF($DK152="-","nc",IF(DN152="-","-",DN152/$DK152*100)))) ->  | DO153: =IF(ISNA($DJ$4),"",IF(DO152="x","x",IF($DK152="-","nc",IF(DO152="-","-",DO152/$DK152*100)))) -> 
B155: 11 個人経営体数
C157: 主副業別経営体数
C158: 区 分 | O158: 経営 体数 | T158: 主業 経営体 | AD158: 準主業 経営体 | AN158: 副業的 経営体
Y159: 65歳未満専従者がいる | AI159: 65歳未満専従者がいる
C163: 経営 体数 | H163: 平成27年 | O163: =IF(ISNA($DJ$4),"",VLOOKUP($DJ$4,'27データ'!$A$4:$KH$4628,'27データ'!GO$2,FALSE)) -> 17,528 | T163: =IF(ISNA($DJ$4),"",VLOOKUP($DJ$4,'27データ'!$A$4:$KH$4628,'27データ'!GP$2,FALSE)) -> 2,243 | Y163: =IF(ISNA($DJ$4),"",VLOOKUP($DJ$4,'27データ'!$A$4:$KH$4628,'27データ'!GQ$2,FALSE)) -> 1,854 | AD163: =IF(ISNA($DJ$4),"",VLOOKUP($DJ$4,'27データ'!$A$4:$KH$4628,'27データ'!GR$2,FALSE)) -> 3,014 | AI163: =IF(ISNA($DJ$4),"",VLOOKUP($DJ$4,'27データ'!$A$4:$KH$4628,'27データ'!GS$2,FALSE)) -> 1,106 | AN163: =IF(ISNA($DJ$4),"",VLOOKUP($DJ$4,'27データ'!$A$4:$KH$4628,'27データ'!GT$2,FALSE)) -> 12,271 | DJ163: 区分 | DK163: 副業的農家 | DL163: 準主業農家 | DM163: 主業農家
H164: 令和２年 | O164: =IF(ISNA($DJ$4),"",VLOOKUP($DJ$4,'２データ'!$A$4:$KH$4628,'２データ'!GO$2,FALSE)) -> 13,659 | T164: =IF(ISNA($DJ$4),"",VLOOKUP($DJ$4,'２データ'!$A$4:$KH$4628,'２データ'!GP$2,FALSE)) -> 1,577 | Y164: =IF(ISNA($DJ$4),"",VLOOKUP($DJ$4,'２データ'!$A$4:$KH$4628,'２データ'!GQ$2,FALSE)) -> 1,312 | AD164: =IF(ISNA($DJ$4),"",VLOOKUP($DJ$4,'２データ'!$A$4:$KH$4628,'２データ'!GR$2,FALSE)) -> 2,073 | AI164: =IF(ISNA($DJ$4),"",VLOOKUP($DJ$4,'２データ'!$A$4:$KH$4628,'２データ'!GS$2,FALSE)) -> 879 | AN164: =IF(ISNA($DJ$4),"",VLOOKUP($DJ$4,'２データ'!$A$4:$KH$4628,'２データ'!GT$2,FALSE)) -> 10,009 | DJ164: =$DJ$39 -> 選択地域 | DK164: =IF($BW$12="前回との比較",AN165,AN166) -> 73 | DL164: =IF($BW$12="前回との比較",AD165,AD166) -> 15 | DM164: =IF($BW$12="前回との比較",T165,T166) -> 12 | DN164: 100 | DP164: =IF(ISNA($DJ$4),"",IF(SUM(DK164:DM164)=100,"","表示できません")) -> 
C165: 構成比 (％) | H165: 平成27年 | O165: =IF(ISNA($DJ$4),"",IF(O163="@","nc",IF($O163="x","x",IF($O163="-","nc",O163/$O163*100)))) -> 100 | T165: =IF(ISNA($DJ$4),"",IF(T163="@","nc",IF(T163="x","x",IF($O163="-","nc",IF(T163="-","-",T163/$O163*100))))) -> 13 | Y165: =IF(ISNA($DJ$4),"",IF(Y163="@","nc",IF(Y163="x","x",IF($O163="-","nc",IF(Y163="-","-",Y163/$O163*100))))) -> 11 | AD165: =IF(ISNA($DJ$4),"",IF(AD163="@","nc",IF(AD163="x","x",IF($O163="-","nc",IF(AD163="-","-",AD163/$O163*100))))) -> 17 | AI165: =IF(ISNA($DJ$4),"",IF(AI163="@","nc",IF(AI163="x","x",IF($O163="-","nc",IF(AI163="-","-",AI163/$O163*100))))) -> 6 | AN165: =IF(ISNA($DJ$4),"",IF(AN163="@","nc",IF(AN163="x","x",IF($O163="-","nc",IF(AN163="-","-",AN163/$O163*100))))) -> 70 | DJ165: 区分 | DK165: 主業農家 | DL165: 準主業農家 | DM165: 副業的農家
H166: 令和２年 | O166: =IF(ISNA($DJ$4),"",IF($O164="x","x",IF($O164="-","nc",O164/$O164*100))) -> 100 | T166: =IF(ISNA($DJ$4),"",IF(T164="x","x",IF($O164="-","nc",IF(T164="-","-",T164/$O164*100)))) -> 12 | Y166: =IF(ISNA($DJ$4),"",IF(Y164="x","x",IF($O164="-","nc",IF(Y164="-","-",Y164/$O164*100)))) -> 10 | AD166: =IF(ISNA($DJ$4),"",IF(AD164="x","x",IF($O164="-","nc",IF(AD164="-","-",AD164/$O164*100)))) -> 15 | AI166: =IF(ISNA($DJ$4),"",IF(AI164="x","x",IF($O164="-","nc",IF(AI164="-","-",AI164/$O164*100)))) -> 6 | AN166: =IF(ISNA($DJ$4),"",IF(AN164="x","x",IF($O164="-","nc",IF(AN164="-","-",AN164/$O164*100)))) -> 73 | DJ166: =$DJ$38 -> 府県平均 | DK166: =IF($BW$12="前回との比較",T166,T167) -> 12 | DL166: =IF($BW$12="前回との比較",AD166,AD167) -> 15 | DM166: =IF($BW$12="前回との比較",AN166,AN167) -> 73 | DN166: 100 | DP166: =IF(ISNA($DJ$4),"",IF(SUM(DK166:DM166)=100,"","表示できません")) -> 
H167: =IF($BW$12="都府県との比較","都府県平均",IF($BW$12="全国との比較","全国平均","府県平均")) -> 府県平均 | O167: =IF(ISNA($DJ$4),"",IF(VLOOKUP($DJ$32,'２データ'!$A$4:$KH$4628,'２データ'!GO$2,FALSE)="x","x",IF(VLOOKUP($DJ$32,'２データ'!$A$4:$KH$4628,'２データ'!GO$2,FALSE)="-","nc",VLOOKUP($DJ$32,'２データ'!$A$4:$KH$4628,'２データ'!GO$2,FALSE)/VLOOKUP($DJ$32,'２データ'!$A$4:$KH$4628,'２データ'!GO$2,FALSE)*100))) -> 100 | T167: =IF(ISNA($DJ$4),"",IF(VLOOKUP($DJ$32,'２データ'!$A$4:$KH$4628,'２データ'!GP$2,FALSE)="x","x",IF(VLOOKUP($DJ$32,'２データ'!$A$4:$KH$4628,'２データ'!GO$2,FALSE)="-","nc",IF(VLOOKUP($DJ$32,'２データ'!$A$4:$KH$4628,'２データ'!GP$2,FALSE)="-","-",VLOOKUP($DJ$32,'２データ'!$A$4:$KH$4628,'２データ'!GP$2,FALSE)/VLOOKUP($DJ$32,'２データ'!$A$4:$KH$4628,'２データ'!GO$2,FALSE)*100)))) -> 12 | Y167: =IF(ISNA($DJ$4),"",IF(VLOOKUP($DJ$32,'２データ'!$A$4:$KH$4628,'２データ'!GQ$2,FALSE)="x","x",IF(VLOOKUP($DJ$32,'２データ'!$A$4:$KH$4628,'２データ'!GO$2,FALSE)="-","nc",IF(VLOOKUP($DJ$32,'２データ'!$A$4:$KH$4628,'２データ'!GQ$2,FALSE)="-","-",VLOOKUP($DJ$32,'２データ'!$A$4:$KH$4628,'２データ'!GQ$2,FALSE)/VLOOKUP($DJ$32,'２データ'!$A$4:$KH$4628,'２データ'!GO$2,FALSE)*100)))) -> 10 | AD167: =IF(ISNA($DJ$4),"",IF(VLOOKUP($DJ$32,'２データ'!$A$4:$KH$4628,'２データ'!GR$2,FALSE)="x","x",IF(VLOOKUP($DJ$32,'２データ'!$A$4:$KH$4628,'２データ'!GO$2,FALSE)="-","nc",IF(VLOOKUP($DJ$32,'２データ'!$A$4:$KH$4628,'２データ'!GR$2,FALSE)="-","-",VLOOKUP($DJ$32,'２データ'!$A$4:$KH$4628,'２データ'!GR$2,FALSE)/VLOOKUP($DJ$32,'２データ'!$A$4:$KH$4628,'２データ'!GO$2,FALSE)*100)))) -> 15 | AI167: =IF(ISNA($DJ$4),"",IF(VLOOKUP($DJ$32,'２データ'!$A$4:$KH$4628,'２データ'!GS$2,FALSE)="x","x",IF(VLOOKUP($DJ$32,'２データ'!$A$4:$KH$4628,'２データ'!GO$2,FALSE)="-","nc",IF(VLOOKUP($DJ$32,'２データ'!$A$4:$KH$4628,'２データ'!GS$2,FALSE)="-","-",VLOOKUP($DJ$32,'２データ'!$A$4:$KH$4628,'２データ'!GS$2,FALSE)/VLOOKUP($DJ$32,'２データ'!$A$4:$KH$4628,'２データ'!GO$2,FALSE)*100)))) -> 6 | AN167: =IF(ISNA($DJ$4),"",IF(VLOOKUP($DJ$32,'２データ'!$A$4:$KH$4628,'２データ'!GT$2,FALSE)="x","x",IF(VLOOKUP($DJ$32,'２データ'!$A$4:$KH$4628,'２データ'!GO$2,FALSE)="-","nc",IF(VLOOKUP($DJ$32,'２データ'!$A$4:$KH$4628,'２データ'!GT$2,FALSE)="-","-",VLOOKUP($DJ$32,'２データ'!$A$4:$KH$4628,'２データ'!GT$2,FALSE)/VLOOKUP($DJ$32,'２データ'!$A$4:$KH$4628,'２データ'!GO$2,FALSE)*100)))) -> 73
C168: 注：平成27年の数値は、組替集計による。
B171: 12 個人経営体の労働力
C173: 基幹的農業従事者数
C174: 区 分 | O174: 計 | T174: 年齢別 | CG174: 平均 年齢
T175: 15～ 29歳 | Y175: 30～ 34 | AD175: 35～ 39 | AI175: 40～ 44 | AN175: 45～ 49 | AS175: 50～ 54 | AX175: 55～ 59 | BC175: 60～ 64 | BH175: 65～ 69 | BM175: 70～ 74 | BR175: 75～ 79 | BW175: 80 ～84 | CB175: 85歳 以上
C177: =IF(C173="農業就業人口","就業"&CHAR(10)&"人口","従事"&CHAR(10)&"者数") -> 従事 者数 | H177: 平成27年 | O177: =IF(ISNA($DJ$4),"",VLOOKUP($DJ$4,'27データ'!$A$4:$KH$4628,'27データ'!GU$2,FALSE)) -> 17,463 | T177: =IF(ISNA($DJ$4),"",VLOOKUP($DJ$4,'27データ'!$A$4:$KH$4628,'27データ'!GV$2,FALSE)) -> 157 | Y177: =IF(ISNA($DJ$4),"",VLOOKUP($DJ$4,'27データ'!$A$4:$KH$4628,'27データ'!GW$2,FALSE)) -> 211 | AD177: =IF(ISNA($DJ$4),"",VLOOKUP($DJ$4,'27データ'!$A$4:$KH$4628,'27データ'!GX$2,FALSE)) -> 269 | AI177: =IF(ISNA($DJ$4),"",VLOOKUP($DJ$4,'27データ'!$A$4:$KH$4628,'27データ'!GY$2,FALSE)) -> 408 | AN177: =IF(ISNA($DJ$4),"",VLOOKUP($DJ$4,'27データ'!$A$4:$KH$4628,'27データ'!GZ$2,FALSE)) -> 424 | AS177: =IF(ISNA($DJ$4),"",VLOOKUP($DJ$4,'27データ'!$A$4:$KH$4628,'27データ'!HA$2,FALSE)) -> 535 | AX177: =IF(ISNA($DJ$4),"",VLOOKUP($DJ$4,'27データ'!$A$4:$KH$4628,'27データ'!HB$2,FALSE)) -> 875 | BC177: =IF(ISNA($DJ$4),"",VLOOKUP($DJ$4,'27データ'!$A$4:$KH$4628,'27データ'!HC$2,FALSE)) -> 1,959 | BH177: =IF(ISNA($DJ$4),"",VLOOKUP($DJ$4,'27データ'!$A$4:$KH$4628,'27データ'!HD$2,FALSE)) -> 3,079 | BM177: =IF(ISNA($DJ$4),"",VLOOKUP($DJ$4,'27データ'!$A$4:$KH$4628,'27データ'!HE$2,FALSE)) -> 3,133 | BR177: =IF(ISNA($DJ$4),"",VLOOKUP($DJ$4,'27データ'!$A$4:$KH$4628,'27データ'!HF$2,FALSE)) -> 2,950 | BW177: =IF(ISNA($DJ$4),"",VLOOKUP($DJ$4,'27データ'!$A$4:$KH$4628,'27データ'!HG$2,FALSE)) -> 2,285 | CB177: =IF(ISNA($DJ$4),"",VLOOKUP($DJ$4,'27データ'!$A$4:$KH$4628,'27データ'!HH$2,FALSE)) -> 1,178 | CG177: =IF(ISNA($DJ$4),"",VLOOKUP($DJ$4,'27データ'!$A$4:$KH$4628,'27データ'!HI$2,FALSE)) -> 69.07
H178: 令和２年 | O178: =IF(ISNA($DJ$4),"",VLOOKUP($DJ$4,'２データ'!$A$4:$KH$4628,'２データ'!GU$2,FALSE)) -> 15,130 | T178: =IF(ISNA($DJ$4),"",VLOOKUP($DJ$4,'２データ'!$A$4:$KH$4628,'２データ'!GV$2,FALSE)) -> 119 | Y178: =IF(ISNA($DJ$4),"",VLOOKUP($DJ$4,'２データ'!$A$4:$KH$4628,'２データ'!GW$2,FALSE)) -> 160 | AD178: =IF(ISNA($DJ$4),"",VLOOKUP($DJ$4,'２データ'!$A$4:$KH$4628,'２データ'!GX$2,FALSE)) -> 243 | AI178: =IF(ISNA($DJ$4),"",VLOOKUP($DJ$4,'２データ'!$A$4:$KH$4628,'２データ'!GY$2,FALSE)) -> 319 | AN178: =IF(ISNA($DJ$4),"",VLOOKUP($DJ$4,'２データ'!$A$4:$KH$4628,'２データ'!GZ$2,FALSE)) -> 434 | AS178: =IF(ISNA($DJ$4),"",VLOOKUP($DJ$4,'２データ'!$A$4:$KH$4628,'２データ'!HA$2,FALSE)) -> 442 | AX178: =IF(ISNA($DJ$4),"",VLOOKUP($DJ$4,'２データ'!$A$4:$KH$4628,'２データ'!HB$2,FALSE)) -> 597 | BC178: =IF(ISNA($DJ$4),"",VLOOKUP($DJ$4,'２データ'!$A$4:$KH$4628,'２データ'!HC$2,FALSE)) -> 1,149 | BH178: =IF(ISNA($DJ$4),"",VLOOKUP($DJ$4,'２データ'!$A$4:$KH$4628,'２データ'!HD$2,FALSE)) -> 2,546 | BM178: =IF(ISNA($DJ$4),"",VLOOKUP($DJ$4,'２データ'!$A$4:$KH$4628,'２データ'!HE$2,FALSE)) -> 3,173 | BR178: =IF(ISNA($DJ$4),"",VLOOKUP($DJ$4,'２データ'!$A$4:$KH$4628,'２データ'!HF$2,FALSE)) -> 2,586 | BW178: =IF(ISNA($DJ$4),"",VLOOKUP($DJ$4,'２データ'!$A$4:$KH$4628,'２データ'!HG$2,FALSE)) -> 1,842 | CB178: =IF(ISNA($DJ$4),"",VLOOKUP($DJ$4,'２データ'!$A$4:$KH$4628,'２データ'!HH$2,FALSE)) -> 1,520 | CG178: =IF(ISNA($DJ$4),"",VLOOKUP($DJ$4,'２データ'!$A$4:$KH$4628,'２データ'!HI$2,FALSE)) -> 70.21
H179: うち女性 | O179: =IF(ISNA($DJ$4),"",VLOOKUP($DJ$4,'２データ'!$A$4:$KH$4628,'２データ'!HJ$2,FALSE)) -> 5,270 | T179: =IF(ISNA($DJ$4),"",VLOOKUP($DJ$4,'２データ'!$A$4:$KH$4628,'２データ'!HK$2,FALSE)) -> 19 | Y179: =IF(ISNA($DJ$4),"",VLOOKUP($DJ$4,'２データ'!$A$4:$KH$4628,'２データ'!HL$2,FALSE)) -> 33 | AD179: =IF(ISNA($DJ$4),"",VLOOKUP($DJ$4,'２データ'!$A$4:$KH$4628,'２データ'!HM$2,FALSE)) -> 60 | AI179: =IF(ISNA($DJ$4),"",VLOOKUP($DJ$4,'２データ'!$A$4:$KH$4628,'２データ'!HN$2,FALSE)) -> 86 | AN179: =IF(ISNA($DJ$4),"",VLOOKUP($DJ$4,'２データ'!$A$4:$KH$4628,'２データ'!HO$2,FALSE)) -> 134 | AS179: =IF(ISNA($DJ$4),"",VLOOKUP($DJ$4,'２データ'!$A$4:$KH$4628,'２データ'!HP$2,FALSE)) -> 174 | AX179: =IF(ISNA($DJ$4),"",VLOOKUP($DJ$4,'２データ'!$A$4:$KH$4628,'２データ'!HQ$2,FALSE)) -> 247 | BC179: =IF(ISNA($DJ$4),"",VLOOKUP($DJ$4,'２データ'!$A$4:$KH$4628,'２データ'!HR$2,FALSE)) -> 429 | BH179: =IF(ISNA($DJ$4),"",VLOOKUP($DJ$4,'２データ'!$A$4:$KH$4628,'２データ'!HS$2,FALSE)) -> 900 | BM179: =IF(ISNA($DJ$4),"",VLOOKUP($DJ$4,'２データ'!$A$4:$KH$4628,'２データ'!HT$2,FALSE)) -> 1,075 | BR179: =IF(ISNA($DJ$4),"",VLOOKUP($DJ$4,'２データ'!$A$4:$KH$4628,'２データ'!HU$2,FALSE)) -> 920 | BW179: =IF(ISNA($DJ$4),"",VLOOKUP($DJ$4,'２データ'!$A$4:$KH$4628,'２データ'!HV$2,FALSE)) -> 646 | CB179: =IF(ISNA($DJ$4),"",VLOOKUP($DJ$4,'２データ'!$A$4:$KH$4628,'２データ'!HW$2,FALSE)) -> 547 | CG179: =IF(ISNA($DJ$4),"",VLOOKUP($DJ$4,'２データ'!$A$4:$KH$4628,'２データ'!HX$2,FALSE)) -> 70.82
C180: 構成比 (％) | H180: 平成27年 | O180: =IF(ISNA($DJ$4),"",IF(O177="@","nc",IF(O177="x","x",IF($O177="-","nc",O177/$O177*100)))) -> 100 | T180: =IF(ISNA($DJ$4),"",IF(T177="@","nc",IF(T177="x","x",IF($O177="-","nc",IF(T177="-","-",T177/$O177*100))))) -> 1 | Y180: =IF(ISNA($DJ$4),"",IF(Y177="@","nc",IF(Y177="x","x",IF($O177="-","nc",IF(Y177="-","-",Y177/$O177*100))))) -> 1 | AD180: =IF(ISNA($DJ$4),"",IF(AD177="@","nc",IF(AD177="x","x",IF($O177="-","nc",IF(AD177="-","-",AD177/$O177*100))))) -> 2 | AI180: =IF(ISNA($DJ$4),"",IF(AI177="@","nc",IF(AI177="x","x",IF($O177="-","nc",IF(AI177="-","-",AI177/$O177*100))))) -> 2 | AN180: =IF(ISNA($DJ$4),"",IF(AN177="@","nc",IF(AN177="x","x",IF($O177="-","nc",IF(AN177="-","-",AN177/$O177*100))))) -> 2 | AS180: =IF(ISNA($DJ$4),"",IF(AS177="@","nc",IF(AS177="x","x",IF($O177="-","nc",IF(AS177="-","-",AS177/$O177*100))))) -> 3 | AX180: =IF(ISNA($DJ$4),"",IF(AX177="@","nc",IF(AX177="x","x",IF($O177="-","nc",IF(AX177="-","-",AX177/$O177*100))))) -> 5 | BC180: =IF(ISNA($DJ$4),"",IF(BC177="@","nc",IF(BC177="x","x",IF($O177="-","nc",IF(BC177="-","-",BC177/$O177*100))))) -> 11 | BH180: =IF(ISNA($DJ$4),"",IF(BH177="@","nc",IF(BH177="x","x",IF($O177="-","nc",IF(BH177="-","-",BH177/$O177*100))))) -> 18 | BM180: =IF(ISNA($DJ$4),"",IF(BM177="@","nc",IF(BM177="x","x",IF($O177="-","nc",IF(BM177="-","-",BM177/$O177*100))))) -> 18 | BR180: =IF(ISNA($DJ$4),"",IF(BR177="@","nc",IF(BR177="x","x",IF($O177="-","nc",IF(BR177="-","-",BR177/$O177*100))))) -> 17 | BW180: =IF(ISNA($DJ$4),"",IF(BW177="@","nc",IF(BW177="x","x",IF($O177="-","nc",IF(BW177="-","-",BW177/$O177*100))))) -> 13 | CB180: =IF(ISNA($DJ$4),"",IF(CB177="@","nc",IF(CB177="x","x",IF($O177="-","nc",IF(CB177="-","-",CB177/$O177*100))))) -> 7 | CG180: =IF(ISNA($DJ$4),"","-") -> -
H181: 令和２年 | O181: =IF(ISNA($DJ$4),"",IF(O178="x","x",IF($O178="-","nc",O178/$O178*100))) -> 100 | T181: =IF(ISNA($DJ$4),"",IF(T178="x","x",IF($O178="-","nc",IF(T178="-","-",T178/$O178*100)))) -> 1 | Y181: =IF(ISNA($DJ$4),"",IF(Y178="x","x",IF($O178="-","nc",IF(Y178="-","-",Y178/$O178*100)))) -> 1 | AD181: =IF(ISNA($DJ$4),"",IF(AD178="x","x",IF($O178="-","nc",IF(AD178="-","-",AD178/$O178*100)))) -> 2 | AI181: =IF(ISNA($DJ$4),"",IF(AI178="x","x",IF($O178="-","nc",IF(AI178="-","-",AI178/$O178*100)))) -> 2 | AN181: =IF(ISNA($DJ$4),"",IF(AN178="x","x",IF($O178="-","nc",IF(AN178="-","-",AN178/$O178*100)))) -> 3 | AS181: =IF(ISNA($DJ$4),"",IF(AS178="x","x",IF($O178="-","nc",IF(AS178="-","-",AS178/$O178*100)))) -> 3 | AX181: =IF(ISNA($DJ$4),"",IF(AX178="x","x",IF($O178="-","nc",IF(AX178="-","-",AX178/$O178*100)))) -> 4 | BC181: =IF(ISNA($DJ$4),"",IF(BC178="x","x",IF($O178="-","nc",IF(BC178="-","-",BC178/$O178*100)))) -> 8 | BH181: =IF(ISNA($DJ$4),"",IF(BH178="x","x",IF($O178="-","nc",IF(BH178="-","-",BH178/$O178*100)))) -> 17 | BM181: =IF(ISNA($DJ$4),"",IF(BM178="x","x",IF($O178="-","nc",IF(BM178="-","-",BM178/$O178*100)))) -> 21 | BR181: =IF(ISNA($DJ$4),"",IF(BR178="x","x",IF($O178="-","nc",IF(BR178="-","-",BR178/$O178*100)))) -> 17 | BW181: =IF(ISNA($DJ$4),"",IF(BW178="x","x",IF($O178="-","nc",IF(BW178="-","-",BW178/$O178*100)))) -> 12 | CB181: =IF(ISNA($DJ$4),"",IF(CB178="x","x",IF($O178="-","nc",IF(CB178="-","-",CB178/$O178*100)))) -> 10 | CG181: =IF(ISNA($DJ$4),"","-") -> - | DJ181: 区分 | DK181: 15～ 29歳 | DL181: 30～ 34 | DM181: 35～ 39 | DN181: 40～ 44 | DO181: 45～ 49 | DP181: 50～ 54 | DQ181: 55～ 59 | DR181: 60～ 64 | DS181: 65～ 69 | DT181: 70～ 74 | DU181: 75～ 79 | DV181: 80～ 84 | DW181: 85歳 以上
H182: =IF($BW$12="都府県との比較","都府県平均",IF($BW$12="全国との比較","全国平均","府県平均")) -> 府県平均 | O182: =IF(ISNA($DJ$4),"",IF(VLOOKUP($DJ$32,'２データ'!$A$4:$KH$4628,'２データ'!GU$2,FALSE)="x","x",IF(VLOOKUP($DJ$32,'２データ'!$A$4:$KH$4628,'２データ'!GU$2,FALSE)="-","nc",VLOOKUP($DJ$32,'２データ'!$A$4:$KH$4628,'２データ'!GU$2,FALSE)/VLOOKUP($DJ$32,'２データ'!$A$4:$KH$4628,'２データ'!GU$2,FALSE)*100))) -> 100 | T182: =IF(ISNA($DJ$4),"",IF(VLOOKUP($DJ$32,'２データ'!$A$4:$KH$4628,'２データ'!GV$2,FALSE)="x","x",IF(VLOOKUP($DJ$32,'２データ'!$A$4:$KH$4628,'２データ'!GU$2,FALSE)="-","nc",IF(VLOOKUP($DJ$32,'２データ'!$A$4:$KH$4628,'２データ'!GV$2,FALSE)="-","-",VLOOKUP($DJ$32,'２データ'!$A$4:$KH$4628,'２データ'!GV$2,FALSE)/VLOOKUP($DJ$32,'２データ'!$A$4:$KH$4628,'２データ'!GU$2,FALSE)*100)))) -> 1 | Y182: =IF(ISNA($DJ$4),"",IF(VLOOKUP($DJ$32,'２データ'!$A$4:$KH$4628,'２データ'!GW$2,FALSE)="x","x",IF(VLOOKUP($DJ$32,'２データ'!$A$4:$KH$4628,'２データ'!GU$2,FALSE)="-","nc",IF(VLOOKUP($DJ$32,'２データ'!$A$4:$KH$4628,'２データ'!GW$2,FALSE)="-","-",VLOOKUP($DJ$32,'２データ'!$A$4:$KH$4628,'２データ'!GW$2,FALSE)/VLOOKUP($DJ$32,'２データ'!$A$4:$KH$4628,'２データ'!GU$2,FALSE)*100)))) -> 1 | AD182: =IF(ISNA($DJ$4),"",IF(VLOOKUP($DJ$32,'２データ'!$A$4:$KH$4628,'２データ'!GX$2,FALSE)="x","x",IF(VLOOKUP($DJ$32,'２データ'!$A$4:$KH$4628,'２データ'!GU$2,FALSE)="-","nc",IF(VLOOKUP($DJ$32,'２データ'!$A$4:$KH$4628,'２データ'!GX$2,FALSE)="-","-",VLOOKUP($DJ$32,'２データ'!$A$4:$KH$4628,'２データ'!GX$2,FALSE)/VLOOKUP($DJ$32,'２データ'!$A$4:$KH$4628,'２データ'!GU$2,FALSE)*100)))) -> 2 | AI182: =IF(ISNA($DJ$4),"",IF(VLOOKUP($DJ$32,'２データ'!$A$4:$KH$4628,'２データ'!GY$2,FALSE)="x","x",IF(VLOOKUP($DJ$32,'２データ'!$A$4:$KH$4628,'２データ'!GU$2,FALSE)="-","nc",IF(VLOOKUP($DJ$32,'２データ'!$A$4:$KH$4628,'２データ'!GY$2,FALSE)="-","-",VLOOKUP($DJ$32,'２データ'!$A$4:$KH$4628,'２データ'!GY$2,FALSE)/VLOOKUP($DJ$32,'２データ'!$A$4:$KH$4628,'２データ'!GU$2,FALSE)*100)))) -> 2 | AN182: =IF(ISNA($DJ$4),"",IF(VLOOKUP($DJ$32,'２データ'!$A$4:$KH$4628,'２データ'!GZ$2,FALSE)="x","x",IF(VLOOKUP($DJ$32,'２データ'!$A$4:$KH$4628,'２データ'!GU$2,FALSE)="-","nc",IF(VLOOKUP($DJ$32,'２データ'!$A$4:$KH$4628,'２データ'!GZ$2,FALSE)="-","-",VLOOKUP($DJ$32,'２データ'!$A$4:$KH$4628,'２データ'!GZ$2,FALSE)/VLOOKUP($DJ$32,'２データ'!$A$4:$KH$4628,'２データ'!GU$2,FALSE)*100)))) -> 3 | AS182: =IF(ISNA($DJ$4),"",IF(VLOOKUP($DJ$32,'２データ'!$A$4:$KH$4628,'２データ'!HA$2,FALSE)="x","x",IF(VLOOKUP($DJ$32,'２データ'!$A$4:$KH$4628,'２データ'!GU$2,FALSE)="-","nc",IF(VLOOKUP($DJ$32,'２データ'!$A$4:$KH$4628,'２データ'!HA$2,FALSE)="-","-",VLOOKUP($DJ$32,'２データ'!$A$4:$KH$4628,'２データ'!HA$2,FALSE)/VLOOKUP($DJ$32,'２データ'!$A$4:$KH$4628,'２データ'!GU$2,FALSE)*100)))) -> 3 | AX182: =IF(ISNA($DJ$4),"",IF(VLOOKUP($DJ$32,'２データ'!$A$4:$KH$4628,'２データ'!HB$2,FALSE)="x","x",IF(VLOOKUP($DJ$32,'２データ'!$A$4:$KH$4628,'２データ'!GU$2,FALSE)="-","nc",IF(VLOOKUP($DJ$32,'２データ'!$A$4:$KH$4628,'２データ'!HB$2,FALSE)="-","-",VLOOKUP($DJ$32,'２データ'!$A$4:$KH$4628,'２データ'!HB$2,FALSE)/VLOOKUP($DJ$32,'２データ'!$A$4:$KH$4628,'２データ'!GU$2,FALSE)*100)))) -> 4 | BC182: =IF(ISNA($DJ$4),"",IF(VLOOKUP($DJ$32,'２データ'!$A$4:$KH$4628,'２データ'!HC$2,FALSE)="x","x",IF(VLOOKUP($DJ$32,'２データ'!$A$4:$KH$4628,'２データ'!GU$2,FALSE)="-","nc",IF(VLOOKUP($DJ$32,'２データ'!$A$4:$KH$4628,'２データ'!HC$2,FALSE)="-","-",VLOOKUP($DJ$32,'２データ'!$A$4:$KH$4628,'２データ'!HC$2,FALSE)/VLOOKUP($DJ$32,'２データ'!$A$4:$KH$4628,'２データ'!GU$2,FALSE)*100)))) -> 8 | BH182: =IF(ISNA($DJ$4),"",IF(VLOOKUP($DJ$32,'２データ'!$A$4:$KH$4628,'２データ'!HD$2,FALSE)="x","x",IF(VLOOKUP($DJ$32,'２データ'!$A$4:$KH$4628,'２データ'!GU$2,FALSE)="-","nc",IF(VLOOKUP($DJ$32,'２データ'!$A$4:$KH$4628,'２データ'!HD$2,FALSE)="-","-",VLOOKUP($DJ$32,'２データ'!$A$4:$KH$4628,'２データ'!HD$2,FALSE)/VLOOKUP($DJ$32,'２データ'!$A$4:$KH$4628,'２データ'!GU$2,FALSE)*100)))) -> 17 | BM182: =IF(ISNA($DJ$4),"",IF(VLOOKUP($DJ$32,'２データ'!$A$4:$KH$4628,'２データ'!HE$2,FALSE)="x","x",IF(VLOOKUP($DJ$32,'２データ'!$A$4:$KH$4628,'２データ'!GU$2,FALSE)="-","nc",IF(VLOOKUP($DJ$32,'２データ'!$A$4:$KH$4628,'２データ'!HE$2,FALSE)="-","-",VLOOKUP($DJ$32,'２データ'!$A$4:$KH$4628,'２データ'!HE$2,FALSE)/VLOOKUP($DJ$32,'２データ'!$A$4:$KH$4628,'２データ'!GU$2,FALSE)*100)))) -> 21 | BR182: =IF(ISNA($DJ$4),"",IF(VLOOKUP($DJ$32,'２データ'!$A$4:$KH$4628,'２データ'!HF$2,FALSE)="x","x",IF(VLOOKUP($DJ$32,'２データ'!$A$4:$KH$4628,'２データ'!GU$2,FALSE)="-","nc",IF(VLOOKUP($DJ$32,'２データ'!$A$4:$KH$4628,'２データ'!HF$2,FALSE)="-","-",VLOOKUP($DJ$32,'２データ'!$A$4:$KH$4628,'２データ'!HF$2,FALSE)/VLOOKUP($DJ$32,'２データ'!$A$4:$KH$4628,'２データ'!GU$2,FALSE)*100)))) -> 17 | BW182: =IF(ISNA($DJ$4),"",IF(VLOOKUP($DJ$32,'２データ'!$A$4:$KH$4628,'２データ'!HG$2,FALSE)="x","x",IF(VLOOKUP($DJ$32,'２データ'!$A$4:$KH$4628,'２データ'!GU$2,FALSE)="-","nc",IF(VLOOKUP($DJ$32,'２データ'!$A$4:$KH$4628,'２データ'!HG$2,FALSE)="-","-",VLOOKUP($DJ$32,'２データ'!$A$4:$KH$4628,'２データ'!HG$2,FALSE)/VLOOKUP($DJ$32,'２データ'!$A$4:$KH$4628,'２データ'!GU$2,FALSE)*100)))) -> 12 | CB182: =IF(ISNA($DJ$4),"",IF(VLOOKUP($DJ$32,'２データ'!$A$4:$KH$4628,'２データ'!HH$2,FALSE)="x","x",IF(VLOOKUP($DJ$32,'２データ'!$A$4:$KH$4628,'２データ'!GU$2,FALSE)="-","nc",IF(VLOOKUP($DJ$32,'２データ'!$A$4:$KH$4628,'２データ'!HH$2,FALSE)="-","-",VLOOKUP($DJ$32,'２データ'!$A$4:$KH$4628,'２データ'!HH$2,FALSE)/VLOOKUP($DJ$32,'２データ'!$A$4:$KH$4628,'２データ'!GU$2,FALSE)*100)))) -> 10 | CG182: - | DJ182: =IF($BW$12="前回との比較","平成27年",$H$35) -> 府県平均 | DK182: =IF($BW$12="前回との比較",T180,T182) -> 1 | DL182: =IF($BW$12="前回との比較",Y180,Y182) -> 1 | DM182: =IF($BW$12="前回との比較",AD180,AD182) -> 2 | DN182: =IF($BW$12="前回との比較",AI180,AI182) -> 2 | DO182: =IF($BW$12="前回との比較",AN180,AN182) -> 3 | DP182: =IF($BW$12="前回との比較",AS180,AS182) -> 3 | DQ182: =IF($BW$12="前回との比較",AX180,AX182) -> 4 | DR182: =IF($BW$12="前回との比較",BC180,BC182) -> 8 | DS182: =IF($BW$12="前回との比較",BH180,BH182) -> 17 | DT182: =IF($BW$12="前回との比較",BM180,BM182) -> 21 | DU182: =IF($BW$12="前回との比較",BR180,BR182) -> 17 | DV182: =IF($BW$12="前回との比較",BW180,BW182) -> 12 | DW182: =IF($BW$12="前回との比較",CB180,CB182) -> 10 | DX182: 5 | DZ182: =IF(OR(ISNA($DJ$4),SUM(DK182:DW182)=100),DJ182,"") -> 府県平均 | EA182: =IF(ISNA($DJ$4),"",IF(SUM(DK182:DW182)=100,"",DJ182&"（表示できません）")) -> 
C183: 注：平成27年の数値は、組替集計による。 | DJ183: =IF($BW$12="前回との比較","令和２年","選択地域") -> 選択地域 | DK183: =T181 -> 1 | DL183: =Y181 -> 1 | DM183: =AD181 -> 2 | DN183: =AI181 -> 2 | DO183: =AN181 -> 3 | DP183: =AS181 -> 3 | DQ183: =AX181 -> 4 | DR183: =BC181 -> 8 | DS183: =BH181 -> 17 | DT183: =BM181 -> 21 | DU183: =BR181 -> 17 | DV183: =BW181 -> 12 | DW183: =CB181 -> 10 | DX183: 5 | DZ183: =IF(OR(ISNA($DJ$4),SUM(DK183:DW183)=100),DJ183,"") -> 選択地域 | EA183: =IF(ISNA($DJ$4),"",IF(SUM(DK183:DW183)=100,"",DJ183&"（表示できません）")) -> 
DJ186: 区分 | DK186: 49歳以下
DJ187: =$DJ$39 -> 選択地域 | DK187: =IF(ISNA($DJ$4),"",IF($BW$12="前回との比較",IF(DK182="x","x",IF(DK182="nc","nc",IF(SUM(DK182:DO182)=0,"-",SUM(DK182:DO182)))),IF(DK183="x","x",IF(DK183="nc","nc",IF(SUM(DK183:DO183)=0,"-",SUM(DK183:DO183)))))) -> 8 | DM187: =IF(OR(DK187="x",DK187="nc"),"表示できません","") -> 
DJ188: =$DJ$38 -> 府県平均 | DK188: =IF(ISNA($DJ$4),"",IF($BW$12="前回との比較",IF(DK183="x","x",IF(DK183="nc","nc",IF(SUM(DK183:DO183)=0,"-",SUM(DK183:DO183)))),IF(DK182="x","x",IF(DK182="nc","nc",IF(SUM(DK182:DO182)=0,"-",SUM(DK182:DO182)))))) -> 8 | DM188: =IF(OR(DK188="x",DK188="nc"),"表示できません","") -> 
DK189: 5
DJ194: ="年齢別の"&C173&"割合" -> 年齢別の基幹的農業従事者数割合
B208: 13 個人経営体における経営方針の決定
C210: 経営方針の決定に関わっている状態別経営体数
C211: 区 分 | O211: 経営 体数 | T211: 男の 経営主 | AI211: 女の 経営主 ③ | AX211: 女の経営主又は女の経営参画者がいる ①+②+③
Y212: 男女の経営参画者がいる ① | AD212: 女の経営参画者だけ ② | AN212: 男女の経営参画者がいる | AS212: 女の経営参画者だけ
DJ215: 区分 | DK215: 女性が経営主又は女性の経営参画者がいる経営体数割合
C216: 経営 体数 | H216: 平成27年 | O216: =IF(ISNA($DJ$4),"",VLOOKUP($DJ$4,'27データ'!$A$4:$KH$4628,'27データ'!HY$2,FALSE)) -> 17,528 | T216: =IF(ISNA($DJ$4),"",VLOOKUP($DJ$4,'27データ'!$A$4:$KH$4628,'27データ'!HZ$2,FALSE)) -> 16,525 | Y216: =IF(ISNA($DJ$4),"",VLOOKUP($DJ$4,'27データ'!$A$4:$KH$4628,'27データ'!IA$2,FALSE)) -> 933 | AD216: =IF(ISNA($DJ$4),"",VLOOKUP($DJ$4,'27データ'!$A$4:$KH$4628,'27データ'!IB$2,FALSE)) -> 4,756 | AI216: =IF(ISNA($DJ$4),"",VLOOKUP($DJ$4,'27データ'!$A$4:$KH$4628,'27データ'!IC$2,FALSE)) -> 1,003 | AN216: =IF(ISNA($DJ$4),"",VLOOKUP($DJ$4,'27データ'!$A$4:$KH$4628,'27データ'!ID$2,FALSE)) -> 55 | AS216: =IF(ISNA($DJ$4),"",VLOOKUP($DJ$4,'27データ'!$A$4:$KH$4628,'27データ'!IE$2,FALSE)) -> 36 | AX216: =IF(ISNA($DJ$4),"",VLOOKUP($DJ$4,'27データ'!$A$4:$KH$4628,'27データ'!IF$2,FALSE)) -> 6,692 | DJ216: =$DJ$39 -> 選択地域 | DK216: =IF($BW$12="前回との比較",AX218,AX219) -> 31 | DM216: =IF(OR(DK216="x",DK216="nc"),"表示できません","") -> 
H217: 令和２年 | O217: =IF(ISNA($DJ$4),"",VLOOKUP($DJ$4,'２データ'!$A$4:$KH$4628,'２データ'!HY$2,FALSE)) -> 13,659 | T217: =IF(ISNA($DJ$4),"",VLOOKUP($DJ$4,'２データ'!$A$4:$KH$4628,'２データ'!HZ$2,FALSE)) -> 12,981 | Y217: =IF(ISNA($DJ$4),"",VLOOKUP($DJ$4,'２データ'!$A$4:$KH$4628,'２データ'!IA$2,FALSE)) -> 806 | AD217: =IF(ISNA($DJ$4),"",VLOOKUP($DJ$4,'２データ'!$A$4:$KH$4628,'２データ'!IB$2,FALSE)) -> 2,723 | AI217: =IF(ISNA($DJ$4),"",VLOOKUP($DJ$4,'２データ'!$A$4:$KH$4628,'２データ'!IC$2,FALSE)) -> 678 | AN217: =IF(ISNA($DJ$4),"",VLOOKUP($DJ$4,'２データ'!$A$4:$KH$4628,'２データ'!ID$2,FALSE)) -> 51 | AS217: =IF(ISNA($DJ$4),"",VLOOKUP($DJ$4,'２データ'!$A$4:$KH$4628,'２データ'!IE$2,FALSE)) -> 21 | AX217: =IF(ISNA($DJ$4),"",VLOOKUP($DJ$4,'２データ'!$A$4:$KH$4628,'２データ'!IF$2,FALSE)) -> 4,207 | DJ217: =$DJ$38 -> 府県平均 | DK217: =IF($BW$12="前回との比較",AX219,AX220) -> 31 | DM217: =IF(OR(DK217="x",DK217="nc"),"表示できません","") -> 
C218: 構成比 (％) | H218: 平成27年 | O218: =IF(ISNA($DJ$4),"",IF(O216="@","nc",IF($O216="x","x",IF($O216="-","nc",O216/$O216*100)))) -> 100 | T218: =IF(ISNA($DJ$4),"",IF(T216="@","nc",IF(T216="x","x",IF($O216="-","nc",IF(T216="-","-",T216/$O216*100))))) -> 94 | Y218: =IF(ISNA($DJ$4),"",IF(Y216="@","nc",IF(Y216="x","x",IF($O216="-","nc",IF(Y216="-","-",Y216/$O216*100))))) -> 5 | AD218: =IF(ISNA($DJ$4),"",IF(AD216="@","nc",IF(AD216="x","x",IF($O216="-","nc",IF(AD216="-","-",AD216/$O216*100))))) -> 27 | AI218: =IF(ISNA($DJ$4),"",IF(AI216="@","nc",IF(AI216="x","x",IF($O216="-","nc",IF(AI216="-","-",AI216/$O216*100))))) -> 6 | AN218: =IF(ISNA($DJ$4),"",IF(AN216="@","nc",IF(AN216="x","x",IF($O216="-","nc",IF(AN216="-","-",AN216/$O216*100))))) -> 0 | AS218: =IF(ISNA($DJ$4),"",IF(AS216="@","nc",IF(AS216="x","x",IF($O216="-","nc",IF(AS216="-","-",AS216/$O216*100))))) -> 0 | AX218: =IF(ISNA($DJ$4),"",IF(AX216="@","nc",IF(AX216="x","x",IF($O216="-","nc",IF(AX216="-","-",AX216/$O216*100))))) -> 38 | DK218: 5
H219: 令和２年 | O219: =IF(ISNA($DJ$4),"",IF($O217="x","x",IF($O217="-","nc",O217/$O217*100))) -> 100 | T219: =IF(ISNA($DJ$4),"",IF(T217="x","x",IF($O217="-","nc",IF(T217="-","-",T217/$O217*100)))) -> 95 | Y219: =IF(ISNA($DJ$4),"",IF(Y217="x","x",IF($O217="-","nc",IF(Y217="-","-",Y217/$O217*100)))) -> 6 | AD219: =IF(ISNA($DJ$4),"",IF(AD217="x","x",IF($O217="-","nc",IF(AD217="-","-",AD217/$O217*100)))) -> 20 | AI219: =IF(ISNA($DJ$4),"",IF(AI217="x","x",IF($O217="-","nc",IF(AI217="-","-",AI217/$O217*100)))) -> 5 | AN219: =IF(ISNA($DJ$4),"",IF(AN217="x","x",IF($O217="-","nc",IF(AN217="-","-",AN217/$O217*100)))) -> 0 | AS219: =IF(ISNA($DJ$4),"",IF(AS217="x","x",IF($O217="-","nc",IF(AS217="-","-",AS217/$O217*100)))) -> 0 | AX219: =IF(ISNA($DJ$4),"",IF(AX217="@","nc",IF(AX217="x","x",IF($O217="-","nc",IF(AX217="-","-",AX217/$O217*100))))) -> 31
H220: =IF($BW$12="都府県との比較","都府県平均",IF($BW$12="全国との比較","全国平均","府県平均")) -> 府県平均 | O220: =IF(ISNA($DJ$4),"",IF(VLOOKUP($DJ$32,'２データ'!$A$4:$KH$4628,'２データ'!HY$2,FALSE)="x","x",IF(VLOOKUP($DJ$32,'２データ'!$A$4:$KH$4628,'２データ'!HY$2,FALSE)="-","nc",VLOOKUP($DJ$32,'２データ'!$A$4:$KH$4628,'２データ'!HY$2,FALSE)/VLOOKUP($DJ$32,'２データ'!$A$4:$KH$4628,'２データ'!HY$2,FALSE)*100))) -> 100 | T220: =IF(ISNA($DJ$4),"",IF(VLOOKUP($DJ$32,'２データ'!$A$4:$KH$4628,'２データ'!HZ$2,FALSE)="x","x",IF(VLOOKUP($DJ$32,'２データ'!$A$4:$KH$4628,'２データ'!HY$2,FALSE)="-","nc",IF(VLOOKUP($DJ$32,'２データ'!$A$4:$KH$4628,'２データ'!HZ$2,FALSE)="-","-",VLOOKUP($DJ$32,'２データ'!$A$4:$KH$4628,'２データ'!HZ$2,FALSE)/VLOOKUP($DJ$32,'２データ'!$A$4:$KH$4628,'２データ'!HY$2,FALSE)*100)))) -> 95 | Y220: =IF(ISNA($DJ$4),"",IF(VLOOKUP($DJ$32,'２データ'!$A$4:$KH$4628,'２データ'!IA$2,FALSE)="x","x",IF(VLOOKUP($DJ$32,'２データ'!$A$4:$KH$4628,'２データ'!HY$2,FALSE)="-","nc",IF(VLOOKUP($DJ$32,'２データ'!$A$4:$KH$4628,'２データ'!IA$2,FALSE)="-","-",VLOOKUP($DJ$32,'２データ'!$A$4:$KH$4628,'２データ'!IA$2,FALSE)/VLOOKUP($DJ$32,'２データ'!$A$4:$KH$4628,'２データ'!HY$2,FALSE)*100)))) -> 6 | AD220: =IF(ISNA($DJ$4),"",IF(VLOOKUP($DJ$32,'２データ'!$A$4:$KH$4628,'２データ'!IB$2,FALSE)="x","x",IF(VLOOKUP($DJ$32,'２データ'!$A$4:$KH$4628,'２データ'!HY$2,FALSE)="-","nc",IF(VLOOKUP($DJ$32,'２データ'!$A$4:$KH$4628,'２データ'!IB$2,FALSE)="-","-",VLOOKUP($DJ$32,'２データ'!$A$4:$KH$4628,'２データ'!IB$2,FALSE)/VLOOKUP($DJ$32,'２データ'!$A$4:$KH$4628,'２データ'!HY$2,FALSE)*100)))) -> 20 | AI220: =IF(ISNA($DJ$4),"",IF(VLOOKUP($DJ$32,'２データ'!$A$4:$KH$4628,'２データ'!IC$2,FALSE)="x","x",IF(VLOOKUP($DJ$32,'２データ'!$A$4:$KH$4628,'２データ'!HY$2,FALSE)="-","nc",IF(VLOOKUP($DJ$32,'２データ'!$A$4:$KH$4628,'２データ'!IC$2,FALSE)="-","-",VLOOKUP($DJ$32,'２データ'!$A$4:$KH$4628,'２データ'!IC$2,FALSE)/VLOOKUP($DJ$32,'２データ'!$A$4:$KH$4628,'２データ'!HY$2,FALSE)*100)))) -> 5 | AN220: =IF(ISNA($DJ$4),"",IF(VLOOKUP($DJ$32,'２データ'!$A$4:$KH$4628,'２データ'!ID$2,FALSE)="x","x",IF(VLOOKUP($DJ$32,'２データ'!$A$4:$KH$4628,'２データ'!HY$2,FALSE)="-","nc",IF(VLOOKUP($DJ$32,'２データ'!$A$4:$KH$4628,'２データ'!ID$2,FALSE)="-","-",VLOOKUP($DJ$32,'２データ'!$A$4:$KH$4628,'２データ'!ID$2,FALSE)/VLOOKUP($DJ$32,'２データ'!$A$4:$KH$4628,'２データ'!HY$2,FALSE)*100)))) -> 0 | AS220: =IF(ISNA($DJ$4),"",IF(VLOOKUP($DJ$32,'２データ'!$A$4:$KH$4628,'２データ'!IE$2,FALSE)="x","x",IF(VLOOKUP($DJ$32,'２データ'!$A$4:$KH$4628,'２データ'!HY$2,FALSE)="-","nc",IF(VLOOKUP($DJ$32,'２データ'!$A$4:$KH$4628,'２データ'!IE$2,FALSE)="-","-",VLOOKUP($DJ$32,'２データ'!$A$4:$KH$4628,'２データ'!IE$2,FALSE)/VLOOKUP($DJ$32,'２データ'!$A$4:$KH$4628,'２データ'!HY$2,FALSE)*100)))) -> 0 | AX220: =IF(ISNA($DJ$4),"",IF(VLOOKUP($DJ$32,'２データ'!$A$4:$KH$4628,'２データ'!IF$2,FALSE)="x","x",IF(VLOOKUP($DJ$32,'２データ'!$A$4:$KH$4628,'２データ'!HY$2,FALSE)="-","nc",IF(VLOOKUP($DJ$32,'２データ'!$A$4:$KH$4628,'２データ'!IF$2,FALSE)="-","-",VLOOKUP($DJ$32,'２データ'!$A$4:$KH$4628,'２データ'!IF$2,FALSE)/VLOOKUP($DJ$32,'２データ'!$A$4:$KH$4628,'２データ'!HY$2,FALSE)*100)))) -> 31 | DK220: 計 | DL220: 経営者が男 | DM220: 男女 | DN220: 女性 | DO220: 経営者が女
C221: 注：平成27年の数値は、組替集計による。 | DJ221: =$H$54 -> 0.0 | DK221: =IF(ISNA($DJ$4),"",VLOOKUP($DJ$51,'２データ'!$A$4:$HI$4627,'２データ'!HY$2,FALSE)) ->  | DL221: =IF(ISNA($DJ$4),"",VLOOKUP($DJ$51,'２データ'!$A$4:$HI$4627,'２データ'!HZ$2,FALSE)) ->  | DM221: =IF(ISNA($DJ$4),"",VLOOKUP($DJ$51,'２データ'!$A$4:$HI$4627,'２データ'!IA$2,FALSE)) ->  | DN221: =IF(ISNA($DJ$4),"",VLOOKUP($DJ$51,'２データ'!$A$4:$HI$4627,'２データ'!IB$2,FALSE)) ->  | DO221: =IF(ISNA($DJ$4),"",VLOOKUP($DJ$51,'２データ'!$A$4:$HI$4627,'２データ'!IC$2,FALSE)) -> 
DJ222: 構成比 | DK222: =IF(ISNA($DJ$4),"",IF(DK221="x","x",IF($DK221="-","nc",DK221/$DK221*100))) ->  | DL222: =IF(ISNA($DJ$4),"",IF(DL221="x","x",IF($DK221="-","nc",IF(DL221="-","-",DL221/$DK221*100)))) ->  | DM222: =IF(ISNA($DJ$4),"",IF(DM221="x","x",IF($DK221="-","nc",IF(DM221="-","-",DM221/$DK221*100)))) ->  | DN222: =IF(ISNA($DJ$4),"",IF(DN221="x","x",IF($DK221="-","nc",IF(DN221="-","-",DN221/$DK221*100)))) ->  | DO222: =IF(ISNA($DJ$4),"",IF(DO221="x","x",IF($DK221="-","nc",IF(DO221="-","-",DO221/$DK221*100)))) -> 
B224: 14 農業集落内での活動状況
C226: (1) 実行組合の有無 | AH226: (2) 寄り合いの回数別農業集落数
C227: 区 分 | O227: 農業 集落数 | T227: 実行組合の有無 | AH227: 区 分 | AT227: 農業 集落数 | AY227: 寄り合いがある | CC227: 寄り合いが ない
T228: ある | Y228: ない | AY228: 計 | BD228: １ ～２回 | BI228: ３ ～５ | BN228: ６ ～11 | BS228: 12 ～23 | BX228: 24回 以上
C233: 農業 集落数 | H233: 平成27年 | O233: =IF(ISNA($DJ$4),"",IF(VLOOKUP($DJ$4,'27データ'!$A$4:$KH$4628,'27データ'!IG$2,FALSE)=0,"-",VLOOKUP($DJ$4,'27データ'!$A$4:$KH$4628,'27データ'!IG$2,FALSE))) -> 1,684 | T233: =IF(ISNA($DJ$4),"",IF(VLOOKUP($DJ$4,'27データ'!$A$4:$KH$4628,'27データ'!IH$2,FALSE)=0,"-",VLOOKUP($DJ$4,'27データ'!$A$4:$KH$4628,'27データ'!IH$2,FALSE))) -> 1,373 | Y233: =IF(ISNA($DJ$4),"",IF(VLOOKUP($DJ$4,'27データ'!$A$4:$KH$4628,'27データ'!II$2,FALSE)=0,"-",VLOOKUP($DJ$4,'27データ'!$A$4:$KH$4628,'27データ'!II$2,FALSE))) -> 311 | AH233: 農業 集落数 | AM233: 平成27年 | AT233: =IF(ISNA($DJ$4),"",IF(VLOOKUP($DJ$4,'27データ'!$A$4:$KH$4628,'27データ'!IG$2,FALSE)=0,"-",VLOOKUP($DJ$4,'27データ'!$A$4:$KH$4628,'27データ'!IG$2,FALSE))) -> 1,684 | AY233: =IF(ISNA($DJ$4),"",IF(VLOOKUP($DJ$4,'27データ'!$A$4:$KH$4628,'27データ'!IJ$2,FALSE)=0,"-",VLOOKUP($DJ$4,'27データ'!$A$4:$KH$4628,'27データ'!IJ$2,FALSE))) -> 1,573 | BD233: =IF(ISNA($DJ$4),"",IF(VLOOKUP($DJ$4,'27データ'!$A$4:$KH$4628,'27データ'!IK$2,FALSE)=0,"-",VLOOKUP($DJ$4,'27データ'!$A$4:$KH$4628,'27データ'!IK$2,FALSE))) -> 113 | BI233: =IF(ISNA($DJ$4),"",IF(VLOOKUP($DJ$4,'27データ'!$A$4:$KH$4628,'27データ'!IL$2,FALSE)=0,"-",VLOOKUP($DJ$4,'27データ'!$A$4:$KH$4628,'27データ'!IL$2,FALSE))) -> 281 | BN233: =IF(ISNA($DJ$4),"",IF(VLOOKUP($DJ$4,'27データ'!$A$4:$KH$4628,'27データ'!IM$2,FALSE)=0,"-",VLOOKUP($DJ$4,'27データ'!$A$4:$KH$4628,'27データ'!IM$2,FALSE))) -> 365 | BS233: =IF(ISNA($DJ$4),"",IF(VLOOKUP($DJ$4,'27データ'!$A$4:$KH$4628,'27データ'!IN$2,FALSE)=0,"-",VLOOKUP($DJ$4,'27データ'!$A$4:$KH$4628,'27データ'!IN$2,FALSE))) -> 567 | BX233: =IF(ISNA($DJ$4),"",IF(VLOOKUP($DJ$4,'27データ'!$A$4:$KH$4628,'27データ'!IO$2,FALSE)=0,"-",VLOOKUP($DJ$4,'27データ'!$A$4:$KH$4628,'27データ'!IO$2,FALSE))) -> 247 | CC233: =IF(ISNA($DJ$4),"",IF(VLOOKUP($DJ$4,'27データ'!$A$4:$KH$4628,'27データ'!IP$2,FALSE)=0,"-",VLOOKUP($DJ$4,'27データ'!$A$4:$KH$4628,'27データ'!IP$2,FALSE))) -> 111
H234: 令和２年 | O234: =IF(ISNA($DJ$4),"",IF(VLOOKUP($DJ$4,'２データ'!$A$4:$KH$4628,'２データ'!IG$2,FALSE)=0,"-",VLOOKUP($DJ$4,'２データ'!$A$4:$KH$4628,'２データ'!IG$2,FALSE))) -> 1,684 | T234: =IF(ISNA($DJ$4),"",IF(VLOOKUP($DJ$4,'２データ'!$A$4:$KH$4628,'２データ'!IH$2,FALSE)=0,"-",VLOOKUP($DJ$4,'２データ'!$A$4:$KH$4628,'２データ'!IH$2,FALSE))) -> 1,352 | Y234: =IF(ISNA($DJ$4),"",IF(VLOOKUP($DJ$4,'２データ'!$A$4:$KH$4628,'２データ'!II$2,FALSE)=0,"-",VLOOKUP($DJ$4,'２データ'!$A$4:$KH$4628,'２データ'!II$2,FALSE))) -> 332 | AM234: 令和２年 | AT234: =IF(ISNA($DJ$4),"",IF(VLOOKUP($DJ$4,'２データ'!$A$4:$KH$4628,'２データ'!IG$2,FALSE)=0,"-",VLOOKUP($DJ$4,'２データ'!$A$4:$KH$4628,'２データ'!IG$2,FALSE))) -> 1,684 | AY234: =IF(ISNA($DJ$4),"",IF(VLOOKUP($DJ$4,'２データ'!$A$4:$KH$4628,'２データ'!IJ$2,FALSE)=0,"-",VLOOKUP($DJ$4,'２データ'!$A$4:$KH$4628,'２データ'!IJ$2,FALSE))) -> 1,571 | BD234: =IF(ISNA($DJ$4),"",IF(VLOOKUP($DJ$4,'２データ'!$A$4:$KH$4628,'２データ'!IK$2,FALSE)=0,"-",VLOOKUP($DJ$4,'２データ'!$A$4:$KH$4628,'２データ'!IK$2,FALSE))) -> 185 | BI234: =IF(ISNA($DJ$4),"",IF(VLOOKUP($DJ$4,'２データ'!$A$4:$KH$4628,'２データ'!IL$2,FALSE)=0,"-",VLOOKUP($DJ$4,'２データ'!$A$4:$KH$4628,'２データ'!IL$2,FALSE))) -> 323 | BN234: =IF(ISNA($DJ$4),"",IF(VLOOKUP($DJ$4,'２データ'!$A$4:$KH$4628,'２データ'!IM$2,FALSE)=0,"-",VLOOKUP($DJ$4,'２データ'!$A$4:$KH$4628,'２データ'!IM$2,FALSE))) -> 361 | BS234: =IF(ISNA($DJ$4),"",IF(VLOOKUP($DJ$4,'２データ'!$A$4:$KH$4628,'２データ'!IN$2,FALSE)=0,"-",VLOOKUP($DJ$4,'２データ'!$A$4:$KH$4628,'２データ'!IN$2,FALSE))) -> 539 | BX234: =IF(ISNA($DJ$4),"",IF(VLOOKUP($DJ$4,'２データ'!$A$4:$KH$4628,'２データ'!IO$2,FALSE)=0,"-",VLOOKUP($DJ$4,'２データ'!$A$4:$KH$4628,'２データ'!IO$2,FALSE))) -> 163 | CC234: =IF(ISNA($DJ$4),"",IF(VLOOKUP($DJ$4,'２データ'!$A$4:$KH$4628,'２データ'!IP$2,FALSE)=0,"-",VLOOKUP($DJ$4,'２データ'!$A$4:$KH$4628,'２データ'!IP$2,FALSE))) -> 113
C235: 構成比 (％) | H235: 平成27年 | O235: =IF(ISNA($DJ$4),"",IF(OR($O233="@",$O233="…",$O233="-"),"nc",O233/$O233*100)) -> 100 | T235: =IF(ISNA($DJ$4),"",IF(T233="…","nc",IF(OR($O233="@",$O233="…",$O233="-"),"nc",IF(T233="-","-",T233/$O233*100)))) -> 82 | Y235: =IF(ISNA($DJ$4),"",IF(Y233="…","nc",IF(OR($O233="@",$O233="…",$O233="-"),"nc",IF(Y233="-","-",Y233/$O233*100)))) -> 18 | AH235: 構成比 (％) | AM235: 平成27年 | AT235: =IF(ISNA($DJ$4),"",IF(OR($AT233="@",$AT233="…",$AT233="-"),"nc",AT233/$AT233*100)) -> 100 | AY235: =IF(ISNA($DJ$4),"",IF(AY233="…","nc",IF(OR($AT233="@",$AT233="…",$AT233="-"),"nc",IF(AY233="-","-",AY233/$AT233*100)))) -> 93 | BD235: =IF(ISNA($DJ$4),"",IF(BD233="…","nc",IF(OR($AT233="@",$AT233="…",$AT233="-"),"nc",IF(BD233="-","-",BD233/$AT233*100)))) -> 7 | BI235: =IF(ISNA($DJ$4),"",IF(BI233="…","nc",IF(OR($AT233="@",$AT233="…",$AT233="-"),"nc",IF(BI233="-","-",BI233/$AT233*100)))) -> 17 | BN235: =IF(ISNA($DJ$4),"",IF(BN233="…","nc",IF(OR($AT233="@",$AT233="…",$AT233="-"),"nc",IF(BN233="-","-",BN233/$AT233*100)))) -> 22 | BS235: =IF(ISNA($DJ$4),"",IF(BS233="…","nc",IF(OR($AT233="@",$AT233="…",$AT233="-"),"nc",IF(BS233="-","-",BS233/$AT233*100)))) -> 34 | BX235: =IF(ISNA($DJ$4),"",IF(BX233="…","nc",IF(OR($AT233="@",$AT233="…",$AT233="-"),"nc",IF(BX233="-","-",BX233/$AT233*100)))) -> 15 | CC235: =IF(ISNA($DJ$4),"",IF(CC233="…","nc",IF(OR($AT233="@",$AT233="…",$AT233="-"),"nc",IF(CC233="-","-",CC233/$AT233*100)))) -> 7
H236: 令和２年 | O236: =IF(ISNA($DJ$4),"",IF(OR($O234="@",$O234="…",$O234="-"),"nc",O234/$O234*100)) -> 100 | T236: =IF(ISNA($DJ$4),"",IF(T234="…","nc",IF(OR($O234="@",$O234="…",$O234="-"),"nc",IF(T234="-","-",T234/$O234*100)))) -> 80 | Y236: =IF(ISNA($DJ$4),"",IF(Y234="…","nc",IF(OR($O234="@",$O234="…",$O234="-"),"nc",IF(Y234="-","-",Y234/$O234*100)))) -> 20 | AM236: 令和２年 | AT236: =IF(ISNA($DJ$4),"",IF(OR($AT234="@",$AT234="…",$AT234="-"),"nc",AT234/$AT234*100)) -> 100 | AY236: =IF(ISNA($DJ$4),"",IF(AY234="…","nc",IF(OR($AT234="@",$AT234="…",$AT234="-"),"nc",IF(AY234="-","-",AY234/$AT234*100)))) -> 93 | BD236: =IF(ISNA($DJ$4),"",IF(BD234="…","nc",IF(OR($AT234="@",$AT234="…",$AT234="-"),"nc",IF(BD234="-","-",BD234/$AT234*100)))) -> 11 | BI236: =IF(ISNA($DJ$4),"",IF(BI234="…","nc",IF(OR($AT234="@",$AT234="…",$AT234="-"),"nc",IF(BI234="-","-",BI234/$AT234*100)))) -> 19 | BN236: =IF(ISNA($DJ$4),"",IF(BN234="…","nc",IF(OR($AT234="@",$AT234="…",$AT234="-"),"nc",IF(BN234="-","-",BN234/$AT234*100)))) -> 21 | BS236: =IF(ISNA($DJ$4),"",IF(BS234="…","nc",IF(OR($AT234="@",$AT234="…",$AT234="-"),"nc",IF(BS234="-","-",BS234/$AT234*100)))) -> 32 | BX236: =IF(ISNA($DJ$4),"",IF(BX234="…","nc",IF(OR($AT234="@",$AT234="…",$AT234="-"),"nc",IF(BX234="-","-",BX234/$AT234*100)))) -> 10 | CC236: =IF(ISNA($DJ$4),"",IF(CC234="…","nc",IF(OR($AT234="@",$AT234="…",$AT234="-"),"nc",IF(CC234="-","-",CC234/$AT234*100)))) -> 7
H237: =IF($BW$12="都府県との比較","都府県平均",IF($BW$12="全国との比較","全国平均","府県平均")) -> 府県平均 | O237: =IF(ISNA($DJ$4),"",IF(OR(VLOOKUP($DJ$32,'２データ'!$A$4:$KH$4628,'２データ'!IG$2,FALSE)="…",VLOOKUP($DJ$32,'２データ'!$A$4:$KH$4628,'２データ'!IG$2,FALSE)="-"),"nc",VLOOKUP($DJ$32,'２データ'!$A$4:$KH$4628,'２データ'!IG$2,FALSE)/VLOOKUP($DJ$32,'２データ'!$A$4:$KH$4628,'２データ'!IG$2,FALSE)*100)) -> 100 | T237: =IF(ISNA($DJ$4),"",IF(VLOOKUP($DJ$32,'２データ'!$A$4:$KH$4628,'２データ'!IH$2,FALSE)="…","nc",IF(OR(VLOOKUP($DJ$32,'２データ'!$A$4:$KH$4628,'２データ'!IG$2,FALSE)="…",VLOOKUP($DJ$32,'２データ'!$A$4:$KH$4628,'２データ'!IG$2,FALSE)="-"),"nc",IF(VLOOKUP($DJ$32,'２データ'!$A$4:$KH$4628,'２データ'!IH$2,FALSE)="-","-",VLOOKUP($DJ$32,'２データ'!$A$4:$KH$4628,'２データ'!IH$2,FALSE)/VLOOKUP($DJ$32,'２データ'!$A$4:$KH$4628,'２データ'!IG$2,FALSE)*100)))) -> 80 | Y237: =IF(ISNA($DJ$4),"",IF(VLOOKUP($DJ$32,'２データ'!$A$4:$KH$4628,'２データ'!II$2,FALSE)="…","nc",IF(OR(VLOOKUP($DJ$32,'２データ'!$A$4:$KH$4628,'２データ'!IG$2,FALSE)="…",VLOOKUP($DJ$32,'２データ'!$A$4:$KH$4628,'２データ'!IG$2,FALSE)="-"),"nc",IF(VLOOKUP($DJ$32,'２データ'!$A$4:$KH$4628,'２データ'!II$2,FALSE)="-","-",VLOOKUP($DJ$32,'２データ'!$A$4:$KH$4628,'２データ'!II$2,FALSE)/VLOOKUP($DJ$32,'２データ'!$A$4:$KH$4628,'２データ'!IG$2,FALSE)*100)))) -> 20 | AM237: =IF($BW$12="都府県との比較","都府県平均",IF($BW$12="全国との比較","全国平均","府県平均")) -> 府県平均 | AT237: =IF(ISNA($DJ$4),"",IF(OR(VLOOKUP($DJ$32,'２データ'!$A$4:$KH$4628,'２データ'!IG$2,FALSE)="…",VLOOKUP($DJ$32,'２データ'!$A$4:$KH$4628,'２データ'!IG$2,FALSE)="-"),"nc",VLOOKUP($DJ$32,'２データ'!$A$4:$KH$4628,'２データ'!IG$2,FALSE)/VLOOKUP($DJ$32,'２データ'!$A$4:$KH$4628,'２データ'!IG$2,FALSE)*100)) -> 100 | AY237: =IF(ISNA($DJ$4),"",IF(VLOOKUP($DJ$32,'２データ'!$A$4:$KH$4628,'２データ'!IJ$2,FALSE)="…","nc",IF(OR(VLOOKUP($DJ$32,'２データ'!$A$4:$KH$4628,'２データ'!IG$2,FALSE)="…",VLOOKUP($DJ$32,'２データ'!$A$4:$KH$4628,'２データ'!IG$2,FALSE)="-"),"nc",IF(VLOOKUP($DJ$32,'２データ'!$A$4:$KH$4628,'２データ'!IJ$2,FALSE)="-","-",VLOOKUP($DJ$32,'２データ'!$A$4:$KH$4628,'２データ'!IJ$2,FALSE)/VLOOKUP($DJ$32,'２データ'!$A$4:$KH$4628,'２データ'!IG$2,FALSE)*100)))) -> 93 | BD237: =IF(ISNA($DJ$4),"",IF(VLOOKUP($DJ$32,'２データ'!$A$4:$KH$4628,'２データ'!IK$2,FALSE)="…","nc",IF(OR(VLOOKUP($DJ$32,'２データ'!$A$4:$KH$4628,'２データ'!IG$2,FALSE)="…",VLOOKUP($DJ$32,'２データ'!$A$4:$KH$4628,'２データ'!IG$2,FALSE)="-"),"nc",IF(VLOOKUP($DJ$32,'２データ'!$A$4:$KH$4628,'２データ'!IK$2,FALSE)="-","-",VLOOKUP($DJ$32,'２データ'!$A$4:$KH$4628,'２データ'!IK$2,FALSE)/VLOOKUP($DJ$32,'２データ'!$A$4:$KH$4628,'２データ'!IG$2,FALSE)*100)))) -> 11 | BI237: =IF(ISNA($DJ$4),"",IF(VLOOKUP($DJ$32,'２データ'!$A$4:$KH$4628,'２データ'!IL$2,FALSE)="…","nc",IF(OR(VLOOKUP($DJ$32,'２データ'!$A$4:$KH$4628,'２データ'!IG$2,FALSE)="…",VLOOKUP($DJ$32,'２データ'!$A$4:$KH$4628,'２データ'!IG$2,FALSE)="-"),"nc",IF(VLOOKUP($DJ$32,'２データ'!$A$4:$KH$4628,'２データ'!IL$2,FALSE)="-","-",VLOOKUP($DJ$32,'２データ'!$A$4:$KH$4628,'２データ'!IL$2,FALSE)/VLOOKUP($DJ$32,'２データ'!$A$4:$KH$4628,'２データ'!IG$2,FALSE)*100)))) -> 19 | BN237: =IF(ISNA($DJ$4),"",IF(VLOOKUP($DJ$32,'２データ'!$A$4:$KH$4628,'２データ'!IM$2,FALSE)="…","nc",IF(OR(VLOOKUP($DJ$32,'２データ'!$A$4:$KH$4628,'２データ'!IG$2,FALSE)="…",VLOOKUP($DJ$32,'２データ'!$A$4:$KH$4628,'２データ'!IG$2,FALSE)="-"),"nc",IF(VLOOKUP($DJ$32,'２データ'!$A$4:$KH$4628,'２データ'!IM$2,FALSE)="-","-",VLOOKUP($DJ$32,'２データ'!$A$4:$KH$4628,'２データ'!IM$2,FALSE)/VLOOKUP($DJ$32,'２データ'!$A$4:$KH$4628,'２データ'!IG$2,FALSE)*100)))) -> 21 | BS237: =IF(ISNA($DJ$4),"",IF(VLOOKUP($DJ$32,'２データ'!$A$4:$KH$4628,'２データ'!IN$2,FALSE)="…","nc",IF(OR(VLOOKUP($DJ$32,'２データ'!$A$4:$KH$4628,'２データ'!IG$2,FALSE)="…",VLOOKUP($DJ$32,'２データ'!$A$4:$KH$4628,'２データ'!IG$2,FALSE)="-"),"nc",IF(VLOOKUP($DJ$32,'２データ'!$A$4:$KH$4628,'２データ'!IN$2,FALSE)="-","-",VLOOKUP($DJ$32,'２データ'!$A$4:$KH$4628,'２データ'!IN$2,FALSE)/VLOOKUP($DJ$32,'２データ'!$A$4:$KH$4628,'２データ'!IG$2,FALSE)*100)))) -> 32 | BX237: =IF(ISNA($DJ$4),"",IF(VLOOKUP($DJ$32,'２データ'!$A$4:$KH$4628,'２データ'!IO$2,FALSE)="…","nc",IF(OR(VLOOKUP($DJ$32,'２データ'!$A$4:$KH$4628,'２データ'!IG$2,FALSE)="…",VLOOKUP($DJ$32,'２データ'!$A$4:$KH$4628,'２データ'!IG$2,FALSE)="-"),"nc",IF(VLOOKUP($DJ$32,'２データ'!$A$4:$KH$4628,'２データ'!IO$2,FALSE)="-","-",VLOOKUP($DJ$32,'２データ'!$A$4:$KH$4628,'２データ'!IO$2,FALSE)/VLOOKUP($DJ$32,'２データ'!$A$4:$KH$4628,'２データ'!IG$2,FALSE)*100)))) -> 10 | CC237: =IF(ISNA($DJ$4),"",IF(VLOOKUP($DJ$32,'２データ'!$A$4:$KH$4628,'２データ'!IP$2,FALSE)="…","nc",IF(OR(VLOOKUP($DJ$32,'２データ'!$A$4:$KH$4628,'２データ'!IG$2,FALSE)="…",VLOOKUP($DJ$32,'２データ'!$A$4:$KH$4628,'２データ'!IG$2,FALSE)="-"),"nc",IF(VLOOKUP($DJ$32,'２データ'!$A$4:$KH$4628,'２データ'!IP$2,FALSE)="-","-",VLOOKUP($DJ$32,'２データ'!$A$4:$KH$4628,'２データ'!IP$2,FALSE)/VLOOKUP($DJ$32,'２データ'!$A$4:$KH$4628,'２データ'!IG$2,FALSE)*100)))) -> 7
AH238: 注：平成27年の寄り合いの回数別農業集落数は、組替集計による。
C239: (3) 寄り合いの議題別農業集落数
C240: 区 分 | O240: 農業 集落数 | T240: 寄り合いの議題（複数回答）
T241: 農業生産にかかる事項 | AA241: 農道･農業用用排水路･ため池の管理 | AH241: 集落共有財産･共用施設の管理 | AO241: 環境美化･自然環境の保全 | AV241: 農業集落行事(祭り･イベントなど)の実施 | BC241: 農業集落内の福祉･厚生 | BJ241: 定住を推進する取組 | BQ241: グリーン・ツーリズムの取組 | BX241: ６次産業化への取組 | CE241: 再生可能エネルギーへの取組
C246: 農業 集落数 | H246: 平成27年 | O246: =IF(ISNA($DJ$4),"",IF(VLOOKUP($DJ$4,'27データ'!$A$4:$KH$4628,'27データ'!IG$2,FALSE)=0,"-",VLOOKUP($DJ$4,'27データ'!$A$4:$KH$4628,'27データ'!IG$2,FALSE))) -> 1,684 | T246: =IF(ISNA($DJ$4),"",IF(VLOOKUP($DJ$4,'27データ'!$A$4:$KH$4628,'27データ'!IQ$2,FALSE)=0,"-",VLOOKUP($DJ$4,'27データ'!$A$4:$KH$4628,'27データ'!IQ$2,FALSE))) -> 1,334 | AA246: =IF(ISNA($DJ$4),"",IF(VLOOKUP($DJ$4,'27データ'!$A$4:$KH$4628,'27データ'!IR$2,FALSE)=0,"-",VLOOKUP($DJ$4,'27データ'!$A$4:$KH$4628,'27データ'!IR$2,FALSE))) -> 1,451 | AH246: =IF(ISNA($DJ$4),"",IF(VLOOKUP($DJ$4,'27データ'!$A$4:$KH$4628,'27データ'!IS$2,FALSE)=0,"-",VLOOKUP($DJ$4,'27データ'!$A$4:$KH$4628,'27データ'!IS$2,FALSE))) -> 1,250 | AO246: =IF(ISNA($DJ$4),"",IF(VLOOKUP($DJ$4,'27データ'!$A$4:$KH$4628,'27データ'!IT$2,FALSE)=0,"-",VLOOKUP($DJ$4,'27データ'!$A$4:$KH$4628,'27データ'!IT$2,FALSE))) -> 1,438 | AV246: =IF(ISNA($DJ$4),"",IF(VLOOKUP($DJ$4,'27データ'!$A$4:$KH$4628,'27データ'!IU$2,FALSE)=0,"-",VLOOKUP($DJ$4,'27データ'!$A$4:$KH$4628,'27データ'!IU$2,FALSE))) -> 1,437 | BC246: =IF(ISNA($DJ$4),"",IF(VLOOKUP($DJ$4,'27データ'!$A$4:$KH$4628,'27データ'!IV$2,FALSE)=0,"-",VLOOKUP($DJ$4,'27データ'!$A$4:$KH$4628,'27データ'!IV$2,FALSE))) -> 985 | BJ246: =IF(ISNA($DJ$4),"","…") -> … | BQ246: =IF(ISNA($DJ$4),"","…") -> … | BX246: =IF(ISNA($DJ$4),"","…") -> … | CE246: =IF(ISNA($DJ$4),"",IF(VLOOKUP($DJ$4,'27データ'!$A$4:$KH$4628,'27データ'!IZ$2,FALSE)=0,"-",VLOOKUP($DJ$4,'27データ'!$A$4:$KH$4628,'27データ'!IZ$2,FALSE))) -> 54
H247: 令和２年 | O247: =IF(ISNA($DJ$4),"",IF(VLOOKUP($DJ$4,'２データ'!$A$4:$KH$4628,'２データ'!IG$2,FALSE)=0,"-",VLOOKUP($DJ$4,'２データ'!$A$4:$KH$4628,'２データ'!IG$2,FALSE))) -> 1,684 | T247: =IF(ISNA($DJ$4),"",IF(VLOOKUP($DJ$4,'２データ'!$A$4:$KH$4628,'２データ'!IQ$2,FALSE)=0,"-",VLOOKUP($DJ$4,'２データ'!$A$4:$KH$4628,'２データ'!IQ$2,FALSE))) -> 1,290 | AA247: =IF(ISNA($DJ$4),"",IF(VLOOKUP($DJ$4,'２データ'!$A$4:$KH$4628,'２データ'!IR$2,FALSE)=0,"-",VLOOKUP($DJ$4,'２データ'!$A$4:$KH$4628,'２データ'!IR$2,FALSE))) -> 1,382 | AH247: =IF(ISNA($DJ$4),"",IF(VLOOKUP($DJ$4,'２データ'!$A$4:$KH$4628,'２データ'!IS$2,FALSE)=0,"-",VLOOKUP($DJ$4,'２データ'!$A$4:$KH$4628,'２データ'!IS$2,FALSE))) -> 1,252 | AO247: =IF(ISNA($DJ$4),"",IF(VLOOKUP($DJ$4,'２データ'!$A$4:$KH$4628,'２データ'!IT$2,FALSE)=0,"-",VLOOKUP($DJ$4,'２データ'!$A$4:$KH$4628,'２データ'!IT$2,FALSE))) -> 1,379 | AV247: =IF(ISNA($DJ$4),"",IF(VLOOKUP($DJ$4,'２データ'!$A$4:$KH$4628,'２データ'!IU$2,FALSE)=0,"-",VLOOKUP($DJ$4,'２データ'!$A$4:$KH$4628,'２データ'!IU$2,FALSE))) -> 1,380 | BC247: =IF(ISNA($DJ$4),"",IF(VLOOKUP($DJ$4,'２データ'!$A$4:$KH$4628,'２データ'!IV$2,FALSE)=0,"-",VLOOKUP($DJ$4,'２データ'!$A$4:$KH$4628,'２データ'!IV$2,FALSE))) -> 878 | BJ247: =IF(ISNA($DJ$4),"",IF(VLOOKUP($DJ$4,'２データ'!$A$4:$KH$4628,'２データ'!IW$2,FALSE)=0,"-",VLOOKUP($DJ$4,'２データ'!$A$4:$KH$4628,'２データ'!IW$2,FALSE))) -> 98 | BQ247: =IF(ISNA($DJ$4),"",IF(VLOOKUP($DJ$4,'２データ'!$A$4:$KH$4628,'２データ'!IX$2,FALSE)=0,"-",VLOOKUP($DJ$4,'２データ'!$A$4:$KH$4628,'２データ'!IX$2,FALSE))) -> 39 | BX247: =IF(ISNA($DJ$4),"",IF(VLOOKUP($DJ$4,'２データ'!$A$4:$KH$4628,'２データ'!IY$2,FALSE)=0,"-",VLOOKUP($DJ$4,'２データ'!$A$4:$KH$4628,'２データ'!IY$2,FALSE))) -> 40 | CE247: =IF(ISNA($DJ$4),"",IF(VLOOKUP($DJ$4,'２データ'!$A$4:$KH$4628,'２データ'!IZ$2,FALSE)=0,"-",VLOOKUP($DJ$4,'２データ'!$A$4:$KH$4628,'２データ'!IZ$2,FALSE))) -> 43
C248: 構成比 (％) | H248: 平成27年 | O248: =IF(ISNA($DJ$4),"",IF(OR($O246="@",$O246="…",$O246="-"),"nc",O246/$O246*100)) -> 100 | T248: =IF(ISNA($DJ$4),"",IF(OR($O246="@",$O246="…",$O246="-"),"nc",IF(T246="-","-",IF(T246="…","nc",T246/$O246*100)))) -> 79 | Y248: =IF(ISNA($DJ$4),"",IF(OR($O246="@",$O246="…",$O246="-"),"nc",IF(Y246="-","-",IF(Y246="…","nc",Y246/$O246*100)))) -> 0 | AA248: 86 | AF248: 0 | AH248: 74 | AM248: 0 | AO248: 85 | AT248: 0 | AV248: 85 | BA248: 0 | BC248: 58 | BH248: 0 | BJ248: nc | BO248: 0 | BQ248: nc | BV248: 0 | BX248: nc | CC248: 0 | CE248: 3 | CJ248: 0
H249: 令和２年 | O249: =IF(ISNA($DJ$4),"",IF(OR($O247="@",$O247="…",$O247="-"),"nc",O247/$O247*100)) -> 100 | T249: 77 | Y249: 0 | AA249: 82 | AF249: 0 | AH249: 74 | AM249: 0 | AO249: 82 | AT249: 0 | AV249: 82 | BA249: 0 | BC249: 52 | BH249: 0 | BJ249: 6 | BO249: 0 | BQ249: 2 | BV249: 0 | BX249: 2 | CC249: 0 | CE249: 3 | CJ249: 0
H250: =IF($BW$12="都府県との比較","都府県平均",IF($BW$12="全国との比較","全国平均","府県平均")) -> 府県平均 | O250: =IF(ISNA($DJ$4),"",IF(OR(VLOOKUP($DJ$32,'２データ'!$A$4:$KH$4628,'２データ'!IG$2,FALSE)="…",VLOOKUP($DJ$32,'２データ'!$A$4:$KH$4628,'２データ'!IG$2,FALSE)="-"),"nc",VLOOKUP($DJ$32,'２データ'!$A$4:$KH$4628,'２データ'!IG$2,FALSE)/VLOOKUP($DJ$32,'２データ'!$A$4:$KH$4628,'２データ'!IG$2,FALSE)*100)) -> 100 | T250: =IF(ISNA($DJ$4),"",IF(VLOOKUP($DJ$32,'２データ'!$A$4:$KH$4628,'２データ'!IQ$2,FALSE)="…","nc",IF(OR(VLOOKUP($DJ$32,'２データ'!$A$4:$KH$4628,'２データ'!IG$2,FALSE)="…",VLOOKUP($DJ$32,'２データ'!$A$4:$KH$4628,'２データ'!IG$2,FALSE)="-"),"nc",IF(VLOOKUP($DJ$32,'２データ'!$A$4:$KH$4628,'２データ'!IQ$2,FALSE)="-","-",VLOOKUP($DJ$32,'２データ'!$A$4:$KH$4628,'２データ'!IQ$2,FALSE)/VLOOKUP($DJ$32,'２データ'!$A$4:$KH$4628,'２データ'!IG$2,FALSE)*100)))) -> 77 | AA250: =IF(ISNA($DJ$4),"",IF(VLOOKUP($DJ$32,'２データ'!$A$4:$KH$4628,'２データ'!IR$2,FALSE)="…","nc",IF(OR(VLOOKUP($DJ$32,'２データ'!$A$4:$KH$4628,'２データ'!IG$2,FALSE)="…",VLOOKUP($DJ$32,'２データ'!$A$4:$KH$4628,'２データ'!IG$2,FALSE)="-"),"nc",IF(VLOOKUP($DJ$32,'２データ'!$A$4:$KH$4628,'２データ'!IR$2,FALSE)="-","-",VLOOKUP($DJ$32,'２データ'!$A$4:$KH$4628,'２データ'!IR$2,FALSE)/VLOOKUP($DJ$32,'２データ'!$A$4:$KH$4628,'２データ'!IG$2,FALSE)*100)))) -> 82 | AH250: =IF(ISNA($DJ$4),"",IF(VLOOKUP($DJ$32,'２データ'!$A$4:$KH$4628,'２データ'!IS$2,FALSE)="…","nc",IF(OR(VLOOKUP($DJ$32,'２データ'!$A$4:$KH$4628,'２データ'!IG$2,FALSE)="…",VLOOKUP($DJ$32,'２データ'!$A$4:$KH$4628,'２データ'!IG$2,FALSE)="-"),"nc",IF(VLOOKUP($DJ$32,'２データ'!$A$4:$KH$4628,'２データ'!IS$2,FALSE)="-","-",VLOOKUP($DJ$32,'２データ'!$A$4:$KH$4628,'２データ'!IS$2,FALSE)/VLOOKUP($DJ$32,'２データ'!$A$4:$KH$4628,'２データ'!IG$2,FALSE)*100)))) -> 74 | AO250: =IF(ISNA($DJ$4),"",IF(VLOOKUP($DJ$32,'２データ'!$A$4:$KH$4628,'２データ'!IT$2,FALSE)="…","nc",IF(OR(VLOOKUP($DJ$32,'２データ'!$A$4:$KH$4628,'２データ'!IG$2,FALSE)="…",VLOOKUP($DJ$32,'２データ'!$A$4:$KH$4628,'２データ'!IG$2,FALSE)="-"),"nc",IF(VLOOKUP($DJ$32,'２データ'!$A$4:$KH$4628,'２データ'!IT$2,FALSE)="-","-",VLOOKUP($DJ$32,'２データ'!$A$4:$KH$4628,'２データ'!IT$2,FALSE)/VLOOKUP($DJ$32,'２データ'!$A$4:$KH$4628,'２データ'!IG$2,FALSE)*100)))) -> 82 | AV250: =IF(ISNA($DJ$4),"",IF(VLOOKUP($DJ$32,'２データ'!$A$4:$KH$4628,'２データ'!IU$2,FALSE)="…","nc",IF(OR(VLOOKUP($DJ$32,'２データ'!$A$4:$KH$4628,'２データ'!IG$2,FALSE)="…",VLOOKUP($DJ$32,'２データ'!$A$4:$KH$4628,'２データ'!IG$2,FALSE)="-"),"nc",IF(VLOOKUP($DJ$32,'２データ'!$A$4:$KH$4628,'２データ'!IU$2,FALSE)="-","-",VLOOKUP($DJ$32,'２データ'!$A$4:$KH$4628,'２データ'!IU$2,FALSE)/VLOOKUP($DJ$32,'２データ'!$A$4:$KH$4628,'２データ'!IG$2,FALSE)*100)))) -> 82 | BC250: =IF(ISNA($DJ$4),"",IF(VLOOKUP($DJ$32,'２データ'!$A$4:$KH$4628,'２データ'!IV$2,FALSE)="…","nc",IF(OR(VLOOKUP($DJ$32,'２データ'!$A$4:$KH$4628,'２データ'!IG$2,FALSE)="…",VLOOKUP($DJ$32,'２データ'!$A$4:$KH$4628,'２データ'!IG$2,FALSE)="-"),"nc",IF(VLOOKUP($DJ$32,'２データ'!$A$4:$KH$4628,'２データ'!IV$2,FALSE)="-","-",VLOOKUP($DJ$32,'２データ'!$A$4:$KH$4628,'２データ'!IV$2,FALSE)/VLOOKUP($DJ$32,'２データ'!$A$4:$KH$4628,'２データ'!IG$2,FALSE)*100)))) -> 52 | BJ250: =IF(ISNA($DJ$4),"",IF(VLOOKUP($DJ$32,'２データ'!$A$4:$KH$4628,'２データ'!IW$2,FALSE)="…","nc",IF(OR(VLOOKUP($DJ$32,'２データ'!$A$4:$KH$4628,'２データ'!IG$2,FALSE)="…",VLOOKUP($DJ$32,'２データ'!$A$4:$KH$4628,'２データ'!IG$2,FALSE)="-"),"nc",IF(VLOOKUP($DJ$32,'２データ'!$A$4:$KH$4628,'２データ'!IW$2,FALSE)="-","-",VLOOKUP($DJ$32,'２データ'!$A$4:$KH$4628,'２データ'!IW$2,FALSE)/VLOOKUP($DJ$32,'２データ'!$A$4:$KH$4628,'２データ'!IG$2,FALSE)*100)))) -> 6 | BQ250: =IF(ISNA($DJ$4),"",IF(VLOOKUP($DJ$32,'２データ'!$A$4:$KH$4628,'２データ'!IX$2,FALSE)="…","nc",IF(OR(VLOOKUP($DJ$32,'２データ'!$A$4:$KH$4628,'２データ'!IG$2,FALSE)="…",VLOOKUP($DJ$32,'２データ'!$A$4:$KH$4628,'２データ'!IG$2,FALSE)="-"),"nc",IF(VLOOKUP($DJ$32,'２データ'!$A$4:$KH$4628,'２データ'!IX$2,FALSE)="-","-",VLOOKUP($DJ$32,'２データ'!$A$4:$KH$4628,'２データ'!IX$2,FALSE)/VLOOKUP($DJ$32,'２データ'!$A$4:$KH$4628,'２データ'!IG$2,FALSE)*100)))) -> 2 | BX250: =IF(ISNA($DJ$4),"",IF(VLOOKUP($DJ$32,'２データ'!$A$4:$KH$4628,'２データ'!IY$2,FALSE)="…","nc",IF(OR(VLOOKUP($DJ$32,'２データ'!$A$4:$KH$4628,'２データ'!IG$2,FALSE)="…",VLOOKUP($DJ$32,'２データ'!$A$4:$KH$4628,'２データ'!IG$2,FALSE)="-"),"nc",IF(VLOOKUP($DJ$32,'２データ'!$A$4:$KH$4628,'２データ'!IY$2,FALSE)="-","-",VLOOKUP($DJ$32,'２データ'!$A$4:$KH$4628,'２データ'!IY$2,FALSE)/VLOOKUP($DJ$32,'２データ'!$A$4:$KH$4628,'２データ'!IG$2,FALSE)*100)))) -> 2 | CE250: =IF(ISNA($DJ$4),"",IF(VLOOKUP($DJ$32,'２データ'!$A$4:$KH$4628,'２データ'!IZ$2,FALSE)="…","nc",IF(OR(VLOOKUP($DJ$32,'２データ'!$A$4:$KH$4628,'２データ'!IG$2,FALSE)="…",VLOOKUP($DJ$32,'２データ'!$A$4:$KH$4628,'２データ'!IG$2,FALSE)="-"),"nc",IF(VLOOKUP($DJ$32,'２データ'!$A$4:$KH$4628,'２データ'!IZ$2,FALSE)="-","-",VLOOKUP($DJ$32,'２データ'!$A$4:$KH$4628,'２データ'!IZ$2,FALSE)/VLOOKUP($DJ$32,'２データ'!$A$4:$KH$4628,'２データ'!IG$2,FALSE)*100)))) -> 3
C252: (4) 寄り合いの議題となった取組の活動状況（令和２年）
C253: 区 分 | O253: 農業 集落数 | T253: 活動を行っている農業集落数
T254: 環境美化･自然環境の保全 | AA254: 農業集落行事(祭り･イベントなど)の実施 | AH254: 農業集落内の福祉･厚生 | AO254: 定住を推進する取組 | AV254: グリーン・ツーリズムの取組 | BC254: ６次産業化への取組 | BJ254: 再生可能エネルギーへの取組
C259: 農業集落数 | O259: =IF(ISNA($DJ$4),"",IF(VLOOKUP($DJ$4,'２データ'!$A$4:$KH$4628,'２データ'!IG$2,FALSE)=0,"-",VLOOKUP($DJ$4,'２データ'!$A$4:$KH$4628,'２データ'!IG$2,FALSE))) -> 1,684 | T259: =IF(ISNA($DJ$4),"",IF(VLOOKUP($DJ$4,'２データ'!$A$4:$KH$4628,'２データ'!JA$2,FALSE)=0,"-",VLOOKUP($DJ$4,'２データ'!$A$4:$KH$4628,'２データ'!JA$2,FALSE))) -> 1,327 | AA259: =IF(ISNA($DJ$4),"",IF(VLOOKUP($DJ$4,'２データ'!$A$4:$KH$4628,'２データ'!JB$2,FALSE)=0,"-",VLOOKUP($DJ$4,'２データ'!$A$4:$KH$4628,'２データ'!JB$2,FALSE))) -> 1,324 | AH259: =IF(ISNA($DJ$4),"",IF(VLOOKUP($DJ$4,'２データ'!$A$4:$KH$4628,'２データ'!JC$2,FALSE)=0,"-",VLOOKUP($DJ$4,'２データ'!$A$4:$KH$4628,'２データ'!JC$2,FALSE))) -> 803 | AO259: =IF(ISNA($DJ$4),"",IF(VLOOKUP($DJ$4,'２データ'!$A$4:$KH$4628,'２データ'!JD$2,FALSE)=0,"-",VLOOKUP($DJ$4,'２データ'!$A$4:$KH$4628,'２データ'!JD$2,FALSE))) -> 84 | AV259: =IF(ISNA($DJ$4),"",IF(VLOOKUP($DJ$4,'２データ'!$A$4:$KH$4628,'２データ'!JE$2,FALSE)=0,"-",VLOOKUP($DJ$4,'２データ'!$A$4:$KH$4628,'２データ'!JE$2,FALSE))) -> 36 | BC259: =IF(ISNA($DJ$4),"",IF(VLOOKUP($DJ$4,'２データ'!$A$4:$KH$4628,'２データ'!JF$2,FALSE)=0,"-",VLOOKUP($DJ$4,'２データ'!$A$4:$KH$4628,'２データ'!JF$2,FALSE))) -> 28 | BJ259: =IF(ISNA($DJ$4),"",IF(VLOOKUP($DJ$4,'２データ'!$A$4:$KH$4628,'２データ'!JG$2,FALSE)=0,"-",VLOOKUP($DJ$4,'２データ'!$A$4:$KH$4628,'２データ'!JG$2,FALSE))) -> 31
C260: 構成比 (％) | H260: 令和２年 | O260: =IF(ISNA($DJ$4),"",IF(OR(O$446="@",$O259="…",$O259="-"),"nc",O259/$O259*100)) -> 100 | T260: =IF(ISNA($DJ$4),"",IF(T259="…","nc",IF(OR($O259="@",$O259="…",$O259="-"),"nc",IF(T259="-","-",T259/$O259*100)))) -> 79 | AA260: =IF(ISNA($DJ$4),"",IF(AA259="…","nc",IF(OR($O259="@",$O259="…",$O259="-"),"nc",IF(AA259="-","-",AA259/$O259*100)))) -> 79 | AH260: =IF(ISNA($DJ$4),"",IF(AH259="…","nc",IF(OR($O259="@",$O259="…",$O259="-"),"nc",IF(AH259="-","-",AH259/$O259*100)))) -> 48 | AO260: =IF(ISNA($DJ$4),"",IF(AO259="…","nc",IF(OR($O259="@",$O259="…",$O259="-"),"nc",IF(AO259="-","-",AO259/$O259*100)))) -> 5 | AV260: =IF(ISNA($DJ$4),"",IF(AV259="…","nc",IF(OR($O259="@",$O259="…",$O259="-"),"nc",IF(AV259="-","-",AV259/$O259*100)))) -> 2 | BC260: =IF(ISNA($DJ$4),"",IF(BC259="…","nc",IF(OR($O259="@",$O259="…",$O259="-"),"nc",IF(BC259="-","-",BC259/$O259*100)))) -> 2 | BJ260: =IF(ISNA($DJ$4),"",IF(BJ259="…","nc",IF(OR($O259="@",$O259="…",$O259="-"),"nc",IF(BJ259="-","-",BJ259/$O259*100)))) -> 2
H261: =IF($BW$12="都府県との比較","都府県平均",IF($BW$12="全国との比較","全国平均","府県平均")) -> 府県平均 | O261: =IF(ISNA($DJ$4),"",IF(OR(VLOOKUP($DJ$32,'２データ'!$A$4:$KH$4628,'２データ'!IG$2,FALSE)="…",VLOOKUP($DJ$32,'２データ'!$A$4:$KH$4628,'２データ'!IG$2,FALSE)=0),"nc",VLOOKUP($DJ$32,'２データ'!$A$4:$KH$4628,'２データ'!IG$2,FALSE)/VLOOKUP($DJ$32,'２データ'!$A$4:$KH$4628,'２データ'!IG$2,FALSE)*100)) -> 100 | T261: =IF(ISNA($DJ$4),"",IF(VLOOKUP($DJ$32,'２データ'!$A$4:$KH$4628,'２データ'!JA$2,FALSE)="…","nc",IF(OR(VLOOKUP($DJ$32,'２データ'!$A$4:$KH$4628,'２データ'!IG$2,FALSE)="…",VLOOKUP($DJ$32,'２データ'!$A$4:$KH$4628,'２データ'!IG$2,FALSE)=0),"nc",IF(VLOOKUP($DJ$32,'２データ'!$A$4:$KH$4628,'２データ'!JA$2,FALSE)=0,"-",VLOOKUP($DJ$32,'２データ'!$A$4:$KH$4628,'２データ'!JA$2,FALSE)/VLOOKUP($DJ$32,'２データ'!$A$4:$KH$4628,'２データ'!IG$2,FALSE)*100)))) -> 79 | AA261: =IF(ISNA($DJ$4),"",IF(VLOOKUP($DJ$32,'２データ'!$A$4:$KH$4628,'２データ'!JB$2,FALSE)="…","nc",IF(OR(VLOOKUP($DJ$32,'２データ'!$A$4:$KH$4628,'２データ'!IG$2,FALSE)="…",VLOOKUP($DJ$32,'２データ'!$A$4:$KH$4628,'２データ'!IG$2,FALSE)=0),"nc",IF(VLOOKUP($DJ$32,'２データ'!$A$4:$KH$4628,'２データ'!JB$2,FALSE)=0,"-",VLOOKUP($DJ$32,'２データ'!$A$4:$KH$4628,'２データ'!JB$2,FALSE)/VLOOKUP($DJ$32,'２データ'!$A$4:$KH$4628,'２データ'!IG$2,FALSE)*100)))) -> 79 | AH261: =IF(ISNA($DJ$4),"",IF(VLOOKUP($DJ$32,'２データ'!$A$4:$KH$4628,'２データ'!JC$2,FALSE)="…","nc",IF(OR(VLOOKUP($DJ$32,'２データ'!$A$4:$KH$4628,'２データ'!IG$2,FALSE)="…",VLOOKUP($DJ$32,'２データ'!$A$4:$KH$4628,'２データ'!IG$2,FALSE)=0),"nc",IF(VLOOKUP($DJ$32,'２データ'!$A$4:$KH$4628,'２データ'!JC$2,FALSE)=0,"-",VLOOKUP($DJ$32,'２データ'!$A$4:$KH$4628,'２データ'!JC$2,FALSE)/VLOOKUP($DJ$32,'２データ'!$A$4:$KH$4628,'２データ'!IG$2,FALSE)*100)))) -> 48 | AO261: =IF(ISNA($DJ$4),"",IF(VLOOKUP($DJ$32,'２データ'!$A$4:$KH$4628,'２データ'!JD$2,FALSE)="…","nc",IF(OR(VLOOKUP($DJ$32,'２データ'!$A$4:$KH$4628,'２データ'!IG$2,FALSE)="…",VLOOKUP($DJ$32,'２データ'!$A$4:$KH$4628,'２データ'!IG$2,FALSE)=0),"nc",IF(VLOOKUP($DJ$32,'２データ'!$A$4:$KH$4628,'２データ'!JD$2,FALSE)=0,"-",VLOOKUP($DJ$32,'２データ'!$A$4:$KH$4628,'２データ'!JD$2,FALSE)/VLOOKUP($DJ$32,'２データ'!$A$4:$KH$4628,'２データ'!IG$2,FALSE)*100)))) -> 5 | AV261: =IF(ISNA($DJ$4),"",IF(VLOOKUP($DJ$32,'２データ'!$A$4:$KH$4628,'２データ'!JE$2,FALSE)="…","nc",IF(OR(VLOOKUP($DJ$32,'２データ'!$A$4:$KH$4628,'２データ'!IG$2,FALSE)="…",VLOOKUP($DJ$32,'２データ'!$A$4:$KH$4628,'２データ'!IG$2,FALSE)=0),"nc",IF(VLOOKUP($DJ$32,'２データ'!$A$4:$KH$4628,'２データ'!JE$2,FALSE)=0,"-",VLOOKUP($DJ$32,'２データ'!$A$4:$KH$4628,'２データ'!JE$2,FALSE)/VLOOKUP($DJ$32,'２データ'!$A$4:$KH$4628,'２データ'!IG$2,FALSE)*100)))) -> 2 | BC261: =IF(ISNA($DJ$4),"",IF(VLOOKUP($DJ$32,'２データ'!$A$4:$KH$4628,'２データ'!JF$2,FALSE)="…","nc",IF(OR(VLOOKUP($DJ$32,'２データ'!$A$4:$KH$4628,'２データ'!IG$2,FALSE)="…",VLOOKUP($DJ$32,'２データ'!$A$4:$KH$4628,'２データ'!IG$2,FALSE)=0),"nc",IF(VLOOKUP($DJ$32,'２データ'!$A$4:$KH$4628,'２データ'!JF$2,FALSE)=0,"-",VLOOKUP($DJ$32,'２データ'!$A$4:$KH$4628,'２データ'!JF$2,FALSE)/VLOOKUP($DJ$32,'２データ'!$A$4:$KH$4628,'２データ'!IG$2,FALSE)*100)))) -> 2 | BJ261: =IF(ISNA($DJ$4),"",IF(VLOOKUP($DJ$32,'２データ'!$A$4:$KH$4628,'２データ'!JG$2,FALSE)="…","nc",IF(OR(VLOOKUP($DJ$32,'２データ'!$A$4:$KH$4628,'２データ'!IG$2,FALSE)="…",VLOOKUP($DJ$32,'２データ'!$A$4:$KH$4628,'２データ'!IG$2,FALSE)=0),"nc",IF(VLOOKUP($DJ$32,'２データ'!$A$4:$KH$4628,'２データ'!JG$2,FALSE)=0,"-",VLOOKUP($DJ$32,'２データ'!$A$4:$KH$4628,'２データ'!JG$2,FALSE)/VLOOKUP($DJ$32,'２データ'!$A$4:$KH$4628,'２データ'!IG$2,FALSE)*100)))) -> 2
C263: (5) 地域資源の保全
C264: 区 分 | O264: 農業 集落数 | T264: 地域資源のある農業集落数
T265: 農地 | AD265: 農業用用排水路 | AN265: 河川･水路 | AX265: 森林 | BH265: ため池･湖沼
Y266: 保全している | AI266: 保全している | AS266: 保全している | BC266: 保全している | BM266: 保全している
C268: 農業 集落数 | H268: 平成27年 | O268: =IF(ISNA($DJ$4),"",IF(VLOOKUP($DJ$4,'27データ'!$A$4:$KH$4628,'27データ'!IG$2,FALSE)=0,"-",VLOOKUP($DJ$4,'27データ'!$A$4:$KH$4628,'27データ'!IG$2,FALSE))) -> 1,684 | T268: =IF(ISNA($DJ$4),"",IF(VLOOKUP($DJ$4,'27データ'!$A$4:$KH$4628,'27データ'!JH$2,FALSE)=0,"-",VLOOKUP($DJ$4,'27データ'!$A$4:$KH$4628,'27データ'!JH$2,FALSE))) -> 1,650 | Y268: =IF(ISNA($DJ$4),"",IF(VLOOKUP($DJ$4,'27データ'!$A$4:$KH$4628,'27データ'!JI$2,FALSE)=0,"-",VLOOKUP($DJ$4,'27データ'!$A$4:$KH$4628,'27データ'!JI$2,FALSE))) -> 975 | AD268: =IF(ISNA($DJ$4),"",IF(VLOOKUP($DJ$4,'27データ'!$A$4:$KH$4628,'27データ'!JJ$2,FALSE)=0,"-",VLOOKUP($DJ$4,'27データ'!$A$4:$KH$4628,'27データ'!JJ$2,FALSE))) -> 1,615 | AI268: =IF(ISNA($DJ$4),"",IF(VLOOKUP($DJ$4,'27データ'!$A$4:$KH$4628,'27データ'!JK$2,FALSE)=0,"-",VLOOKUP($DJ$4,'27データ'!$A$4:$KH$4628,'27データ'!JK$2,FALSE))) -> 1,299 | AN268: =IF(ISNA($DJ$4),"",IF(VLOOKUP($DJ$4,'27データ'!$A$4:$KH$4628,'27データ'!JL$2,FALSE)=0,"-",VLOOKUP($DJ$4,'27データ'!$A$4:$KH$4628,'27データ'!JL$2,FALSE))) -> 1,544 | AS268: =IF(ISNA($DJ$4),"",IF(VLOOKUP($DJ$4,'27データ'!$A$4:$KH$4628,'27データ'!JM$2,FALSE)=0,"-",VLOOKUP($DJ$4,'27データ'!$A$4:$KH$4628,'27データ'!JM$2,FALSE))) -> 1,066 | AX268: =IF(ISNA($DJ$4),"",IF(VLOOKUP($DJ$4,'27データ'!$A$4:$KH$4628,'27データ'!JN$2,FALSE)=0,"-",VLOOKUP($DJ$4,'27データ'!$A$4:$KH$4628,'27データ'!JN$2,FALSE))) -> 1,535 | BC268: =IF(ISNA($DJ$4),"",IF(VLOOKUP($DJ$4,'27データ'!$A$4:$KH$4628,'27データ'!JO$2,FALSE)=0,"-",VLOOKUP($DJ$4,'27データ'!$A$4:$KH$4628,'27データ'!JO$2,FALSE))) -> 703 | BH268: =IF(ISNA($DJ$4),"",IF(VLOOKUP($DJ$4,'27データ'!$A$4:$KH$4628,'27データ'!JP$2,FALSE)=0,"-",VLOOKUP($DJ$4,'27データ'!$A$4:$KH$4628,'27データ'!JP$2,FALSE))) -> 606 | BM268: =IF(ISNA($DJ$4),"",IF(VLOOKUP($DJ$4,'27データ'!$A$4:$KH$4628,'27データ'!JQ$2,FALSE)=0,"-",VLOOKUP($DJ$4,'27データ'!$A$4:$KH$4628,'27データ'!JQ$2,FALSE))) -> 439
H269: 令和２年 | O269: =IF(ISNA($DJ$4),"",IF(VLOOKUP($DJ$4,'２データ'!$A$4:$KH$4628,'２データ'!IG$2,FALSE)=0,"-",VLOOKUP($DJ$4,'２データ'!$A$4:$KH$4628,'２データ'!IG$2,FALSE))) -> 1,684 | T269: =IF(ISNA($DJ$4),"",IF(VLOOKUP($DJ$4,'２データ'!$A$4:$KH$4628,'２データ'!JH$2,FALSE)=0,"-",VLOOKUP($DJ$4,'２データ'!$A$4:$KH$4628,'２データ'!JH$2,FALSE))) -> 1,673 | Y269: =IF(ISNA($DJ$4),"",IF(VLOOKUP($DJ$4,'２データ'!$A$4:$KH$4628,'２データ'!JI$2,FALSE)=0,"-",VLOOKUP($DJ$4,'２データ'!$A$4:$KH$4628,'２データ'!JI$2,FALSE))) -> 1,122 | AD269: =IF(ISNA($DJ$4),"",IF(VLOOKUP($DJ$4,'２データ'!$A$4:$KH$4628,'２データ'!JJ$2,FALSE)=0,"-",VLOOKUP($DJ$4,'２データ'!$A$4:$KH$4628,'２データ'!JJ$2,FALSE))) -> 1,632 | AI269: =IF(ISNA($DJ$4),"",IF(VLOOKUP($DJ$4,'２データ'!$A$4:$KH$4628,'２データ'!JK$2,FALSE)=0,"-",VLOOKUP($DJ$4,'２データ'!$A$4:$KH$4628,'２データ'!JK$2,FALSE))) -> 1,381 | AN269: =IF(ISNA($DJ$4),"",IF(VLOOKUP($DJ$4,'２データ'!$A$4:$KH$4628,'２データ'!JL$2,FALSE)=0,"-",VLOOKUP($DJ$4,'２データ'!$A$4:$KH$4628,'２データ'!JL$2,FALSE))) -> 1,556 | AS269: =IF(ISNA($DJ$4),"",IF(VLOOKUP($DJ$4,'２データ'!$A$4:$KH$4628,'２データ'!JM$2,FALSE)=0,"-",VLOOKUP($DJ$4,'２データ'!$A$4:$KH$4628,'２データ'!JM$2,FALSE))) -> 1,182 | AX269: =IF(ISNA($DJ$4),"",IF(VLOOKUP($DJ$4,'２データ'!$A$4:$KH$4628,'２データ'!JN$2,FALSE)=0,"-",VLOOKUP($DJ$4,'２データ'!$A$4:$KH$4628,'２データ'!JN$2,FALSE))) -> 1,512 | BC269: =IF(ISNA($DJ$4),"",IF(VLOOKUP($DJ$4,'２データ'!$A$4:$KH$4628,'２データ'!JO$2,FALSE)=0,"-",VLOOKUP($DJ$4,'２データ'!$A$4:$KH$4628,'２データ'!JO$2,FALSE))) -> 745 | BH269: =IF(ISNA($DJ$4),"",IF(VLOOKUP($DJ$4,'２データ'!$A$4:$KH$4628,'２データ'!JP$2,FALSE)=0,"-",VLOOKUP($DJ$4,'２データ'!$A$4:$KH$4628,'２データ'!JP$2,FALSE))) -> 645 | BM269: =IF(ISNA($DJ$4),"",IF(VLOOKUP($DJ$4,'２データ'!$A$4:$KH$4628,'２データ'!JQ$2,FALSE)=0,"-",VLOOKUP($DJ$4,'２データ'!$A$4:$KH$4628,'２データ'!JQ$2,FALSE))) -> 516
C270: 構成比 (％) | H270: 平成27年 | O270: =IF(ISNA($DJ$4),"",IF(OR($O268="@",$O268="…",$O268="-"),"nc",O268/$O268*100)) -> 100 | T270: =IF(ISNA($DJ$4),"",IF(T268="…","nc",IF(OR($O268="@",$O268="…",$O268="-"),"nc",IF(T268="-","-",T268/$O268*100)))) -> 98 | Y270: =IF(ISNA($DJ$4),"",IF(Y268="…","nc",IF(OR($O268="@",$O268="…",$O268="-"),"nc",IF(Y268="-","-",Y268/$O268*100)))) -> 58 | AD270: =IF(ISNA($DJ$4),"",IF(AD268="…","nc",IF(OR($O268="@",$O268="…",$O268="-"),"nc",IF(AD268="-","-",AD268/$O268*100)))) -> 96 | AI270: =IF(ISNA($DJ$4),"",IF(AI268="…","nc",IF(OR($O268="@",$O268="…",$O268="-"),"nc",IF(AI268="-","-",AI268/$O268*100)))) -> 77 | AN270: =IF(ISNA($DJ$4),"",IF(AN268="…","nc",IF(OR($O268="@",$O268="…",$O268="-"),"nc",IF(AN268="-","-",AN268/$O268*100)))) -> 92 | AS270: =IF(ISNA($DJ$4),"",IF(AS268="…","nc",IF(OR($O268="@",$O268="…",$O268="-"),"nc",IF(AS268="-","-",AS268/$O268*100)))) -> 63 | AX270: =IF(ISNA($DJ$4),"",IF(AX268="…","nc",IF(OR($O268="@",$O268="…",$O268="-"),"nc",IF(AX268="-","-",AX268/$O268*100)))) -> 91 | BC270: =IF(ISNA($DJ$4),"",IF(BC268="…","nc",IF(OR($O268="@",$O268="…",$O268="-"),"nc",IF(BC268="-","-",BC268/$O268*100)))) -> 42 | BH270: =IF(ISNA($DJ$4),"",IF(BH268="…","nc",IF(OR($O268="@",$O268="…",$O268="-"),"nc",IF(BH268="-","-",BH268/$O268*100)))) -> 36 | BM270: =IF(ISNA($DJ$4),"",IF(BM268="…","nc",IF(OR($O268="@",$O268="…",$O268="-"),"nc",IF(BM268="-","-",BM268/$O268*100)))) -> 26
H271: 令和２年 | O271: =IF(ISNA($DJ$4),"",IF(OR($O269="@",$O269="…",$O269="-"),"nc",O269/$O269*100)) -> 100 | T271: =IF(ISNA($DJ$4),"",IF(T269="…","nc",IF(OR($O269="@",$O269="…",$O269="-"),"nc",IF(T269="-","-",T269/$O269*100)))) -> 99 | Y271: =IF(ISNA($DJ$4),"",IF(Y269="…","nc",IF(OR($O269="@",$O269="…",$O269="-"),"nc",IF(Y269="-","-",Y269/$O269*100)))) -> 67 | AD271: =IF(ISNA($DJ$4),"",IF(AD269="…","nc",IF(OR($O269="@",$O269="…",$O269="-"),"nc",IF(AD269="-","-",AD269/$O269*100)))) -> 97 | AI271: =IF(ISNA($DJ$4),"",IF(AI269="…","nc",IF(OR($O269="@",$O269="…",$O269="-"),"nc",IF(AI269="-","-",AI269/$O269*100)))) -> 82 | AN271: =IF(ISNA($DJ$4),"",IF(AN269="…","nc",IF(OR($O269="@",$O269="…",$O269="-"),"nc",IF(AN269="-","-",AN269/$O269*100)))) -> 92 | AS271: =IF(ISNA($DJ$4),"",IF(AS269="…","nc",IF(OR($O269="@",$O269="…",$O269="-"),"nc",IF(AS269="-","-",AS269/$O269*100)))) -> 70 | AX271: =IF(ISNA($DJ$4),"",IF(AX269="…","nc",IF(OR($O269="@",$O269="…",$O269="-"),"nc",IF(AX269="-","-",AX269/$O269*100)))) -> 90 | BC271: =IF(ISNA($DJ$4),"",IF(BC269="…","nc",IF(OR($O269="@",$O269="…",$O269="-"),"nc",IF(BC269="-","-",BC269/$O269*100)))) -> 44 | BH271: =IF(ISNA($DJ$4),"",IF(BH269="…","nc",IF(OR($O269="@",$O269="…",$O269="-"),"nc",IF(BH269="-","-",BH269/$O269*100)))) -> 38 | BM271: =IF(ISNA($DJ$4),"",IF(BM269="…","nc",IF(OR($O269="@",$O269="…",$O269="-"),"nc",IF(BM269="-","-",BM269/$O269*100)))) -> 31
H272: =IF($BW$12="都府県との比較","都府県平均",IF($BW$12="全国との比較","全国平均","府県平均")) -> 府県平均 | O272: =IF(ISNA($DJ$4),"",IF(OR(VLOOKUP($DJ$32,'２データ'!$A$4:$KH$4628,'２データ'!IG$2,FALSE)="…",VLOOKUP($DJ$32,'２データ'!$A$4:$KH$4628,'２データ'!IG$2,FALSE)="-"),"nc",VLOOKUP($DJ$32,'２データ'!$A$4:$KH$4628,'２データ'!IG$2,FALSE)/VLOOKUP($DJ$32,'２データ'!$A$4:$KH$4628,'２データ'!IG$2,FALSE)*100)) -> 100 | T272: =IF(ISNA($DJ$4),"",IF(VLOOKUP($DJ$32,'２データ'!$A$4:$KH$4628,'２データ'!JH$2,FALSE)="…","nc",IF(OR(VLOOKUP($DJ$32,'２データ'!$A$4:$KH$4628,'２データ'!IG$2,FALSE)="…",VLOOKUP($DJ$32,'２データ'!$A$4:$KH$4628,'２データ'!IG$2,FALSE)="-"),"nc",IF(VLOOKUP($DJ$32,'２データ'!$A$4:$KH$4628,'２データ'!JH$2,FALSE)="-","-",VLOOKUP($DJ$32,'２データ'!$A$4:$KH$4628,'２データ'!JH$2,FALSE)/VLOOKUP($DJ$32,'２データ'!$A$4:$KH$4628,'２データ'!IG$2,FALSE)*100)))) -> 99 | Y272: =IF(ISNA($DJ$4),"",IF(VLOOKUP($DJ$32,'２データ'!$A$4:$KH$4628,'２データ'!JI$2,FALSE)="…","nc",IF(OR(VLOOKUP($DJ$32,'２データ'!$A$4:$KH$4628,'２データ'!IG$2,FALSE)="…",VLOOKUP($DJ$32,'２データ'!$A$4:$KH$4628,'２データ'!IG$2,FALSE)="-"),"nc",IF(VLOOKUP($DJ$32,'２データ'!$A$4:$KH$4628,'２データ'!JI$2,FALSE)="-","-",VLOOKUP($DJ$32,'２データ'!$A$4:$KH$4628,'２データ'!JI$2,FALSE)/VLOOKUP($DJ$32,'２データ'!$A$4:$KH$4628,'２データ'!IG$2,FALSE)*100)))) -> 67 | AD272: =IF(ISNA($DJ$4),"",IF(VLOOKUP($DJ$32,'２データ'!$A$4:$KH$4628,'２データ'!JJ$2,FALSE)="…","nc",IF(OR(VLOOKUP($DJ$32,'２データ'!$A$4:$KH$4628,'２データ'!IG$2,FALSE)="…",VLOOKUP($DJ$32,'２データ'!$A$4:$KH$4628,'２データ'!IG$2,FALSE)="-"),"nc",IF(VLOOKUP($DJ$32,'２データ'!$A$4:$KH$4628,'２データ'!JJ$2,FALSE)="-","-",VLOOKUP($DJ$32,'２データ'!$A$4:$KH$4628,'２データ'!JJ$2,FALSE)/VLOOKUP($DJ$32,'２データ'!$A$4:$KH$4628,'２データ'!IG$2,FALSE)*100)))) -> 97 | AI272: =IF(ISNA($DJ$4),"",IF(VLOOKUP($DJ$32,'２データ'!$A$4:$KH$4628,'２データ'!JK$2,FALSE)="…","nc",IF(OR(VLOOKUP($DJ$32,'２データ'!$A$4:$KH$4628,'２データ'!IG$2,FALSE)="…",VLOOKUP($DJ$32,'２データ'!$A$4:$KH$4628,'２データ'!IG$2,FALSE)="-"),"nc",IF(VLOOKUP($DJ$32,'２データ'!$A$4:$KH$4628,'２データ'!JK$2,FALSE)="-","-",VLOOKUP($DJ$32,'２データ'!$A$4:$KH$4628,'２データ'!JK$2,FALSE)/VLOOKUP($DJ$32,'２データ'!$A$4:$KH$4628,'２データ'!IG$2,FALSE)*100)))) -> 82 | AN272: =IF(ISNA($DJ$4),"",IF(VLOOKUP($DJ$32,'２データ'!$A$4:$KH$4628,'２データ'!JL$2,FALSE)="…","nc",IF(OR(VLOOKUP($DJ$32,'２データ'!$A$4:$KH$4628,'２データ'!IG$2,FALSE)="…",VLOOKUP($DJ$32,'２データ'!$A$4:$KH$4628,'２データ'!IG$2,FALSE)="-"),"nc",IF(VLOOKUP($DJ$32,'２データ'!$A$4:$KH$4628,'２データ'!JL$2,FALSE)="-","-",VLOOKUP($DJ$32,'２データ'!$A$4:$KH$4628,'２データ'!JL$2,FALSE)/VLOOKUP($DJ$32,'２データ'!$A$4:$KH$4628,'２データ'!IG$2,FALSE)*100)))) -> 92 | AS272: =IF(ISNA($DJ$4),"",IF(VLOOKUP($DJ$32,'２データ'!$A$4:$KH$4628,'２データ'!JM$2,FALSE)="…","nc",IF(OR(VLOOKUP($DJ$32,'２データ'!$A$4:$KH$4628,'２データ'!IG$2,FALSE)="…",VLOOKUP($DJ$32,'２データ'!$A$4:$KH$4628,'２データ'!IG$2,FALSE)="-"),"nc",IF(VLOOKUP($DJ$32,'２データ'!$A$4:$KH$4628,'２データ'!JM$2,FALSE)="-","-",VLOOKUP($DJ$32,'２データ'!$A$4:$KH$4628,'２データ'!JM$2,FALSE)/VLOOKUP($DJ$32,'２データ'!$A$4:$KH$4628,'２データ'!IG$2,FALSE)*100)))) -> 70 | AX272: =IF(ISNA($DJ$4),"",IF(VLOOKUP($DJ$32,'２データ'!$A$4:$KH$4628,'２データ'!JN$2,FALSE)="…","nc",IF(OR(VLOOKUP($DJ$32,'２データ'!$A$4:$KH$4628,'２データ'!IG$2,FALSE)="…",VLOOKUP($DJ$32,'２データ'!$A$4:$KH$4628,'２データ'!IG$2,FALSE)="-"),"nc",IF(VLOOKUP($DJ$32,'２データ'!$A$4:$KH$4628,'２データ'!JN$2,FALSE)="-","-",VLOOKUP($DJ$32,'２データ'!$A$4:$KH$4628,'２データ'!JN$2,FALSE)/VLOOKUP($DJ$32,'２データ'!$A$4:$KH$4628,'２データ'!IG$2,FALSE)*100)))) -> 90 | BC272: =IF(ISNA($DJ$4),"",IF(VLOOKUP($DJ$32,'２データ'!$A$4:$KH$4628,'２データ'!JO$2,FALSE)="…","nc",IF(OR(VLOOKUP($DJ$32,'２データ'!$A$4:$KH$4628,'２データ'!IG$2,FALSE)="…",VLOOKUP($DJ$32,'２データ'!$A$4:$KH$4628,'２データ'!IG$2,FALSE)="-"),"nc",IF(VLOOKUP($DJ$32,'２データ'!$A$4:$KH$4628,'２データ'!JO$2,FALSE)="-","-",VLOOKUP($DJ$32,'２データ'!$A$4:$KH$4628,'２データ'!JO$2,FALSE)/VLOOKUP($DJ$32,'２データ'!$A$4:$KH$4628,'２データ'!IG$2,FALSE)*100)))) -> 44 | BH272: =IF(ISNA($DJ$4),"",IF(VLOOKUP($DJ$32,'２データ'!$A$4:$KH$4628,'２データ'!JP$2,FALSE)="…","nc",IF(OR(VLOOKUP($DJ$32,'２データ'!$A$4:$KH$4628,'２データ'!IG$2,FALSE)="…",VLOOKUP($DJ$32,'２データ'!$A$4:$KH$4628,'２データ'!IG$2,FALSE)="-"),"nc",IF(VLOOKUP($DJ$32,'２データ'!$A$4:$KH$4628,'２データ'!JP$2,FALSE)="-","-",VLOOKUP($DJ$32,'２データ'!$A$4:$KH$4628,'２データ'!JP$2,FALSE)/VLOOKUP($DJ$32,'２データ'!$A$4:$KH$4628,'２データ'!IG$2,FALSE)*100)))) -> 38 | BM272: =IF(ISNA($DJ$4),"",IF(VLOOKUP($DJ$32,'２データ'!$A$4:$KH$4628,'２データ'!JQ$2,FALSE)="…","nc",IF(OR(VLOOKUP($DJ$32,'２データ'!$A$4:$KH$4628,'２データ'!IG$2,FALSE)="…",VLOOKUP($DJ$32,'２データ'!$A$4:$KH$4628,'２データ'!IG$2,FALSE)="-"),"nc",IF(VLOOKUP($DJ$32,'２データ'!$A$4:$KH$4628,'２データ'!JQ$2,FALSE)="-","-",VLOOKUP($DJ$32,'２データ'!$A$4:$KH$4628,'２データ'!JQ$2,FALSE)/VLOOKUP($DJ$32,'２データ'!$A$4:$KH$4628,'２データ'!IG$2,FALSE)*100)))) -> 31

Sheet ２データ (hidden)
M1: １ 農業経営体数 | Z1: ２ 経営耕地面積（経営体数） | AI1: ２ 経営耕地面積（経営耕地面積） | AZ1: ３ 販売目的の作付(栽培)面積、飼養頭(羽)数（経営体数） | BJ1: ３ 販売目的の作付(栽培)面積、飼養頭（羽）数 | EL1: ４ 経営部門（農産物販売金額１位部門別経営体数） | ER1: ５ 農産物の出荷先 | EX1: ６ 農産物の販売金額（規模別経営体数） | FE1: ６ 農産物の販売金額（規模別金額） | FL1: ７ 農作業受託 | FT1: ８ 農業生産関連事業 | GC1: ９ 有機農業（令和２年） | GG1: 10 ５年以内の後継者確保状況別経営体数等（令和２年） | GK1: 10 ５年以内の後継者確保状況別経営体数等（経営耕地面積） | GO1: 11 個人経営体数 | GU1: 12 個人経営体の労働力 | HY1: 13 個人経営体における経営方針の決定 | IG1: 14 農業集落内での活動状況 | IH1: (1) 実行組合の有無 | IJ1: (2) 寄り合いの回数別農業集落数 | IQ1: (3) 寄り合いの議題別農業集落数 | JA1: (4) 寄り合いの議題となった取組の活動状況（令和２年） | JR1: 地域の概要（2020年基準）
A2: 1 | B2: 2 | C2: 3 | D2: 4 | E2: 5 | F2: 6 | G2: 7 | H2: 8 | I2: 9 | J2: 10 | K2: 11 | L2: 12 | M2: 13 | N2: 14 | O2: 15 | P2: 16 | Q2: 17 | R2: 18 | S2: 19 | T2: 20 | U2: 21 | V2: 22 | W2: 23 | X2: 24 | Y2: 25 | Z2: 26 | AA2: 27 | AB2: 28 | AC2: 29 | AD2: 30 | AE2: 31 | AF2: 32 | AG2: 33 | AH2: 34 | AI2: 35 | AJ2: 36 | AK2: 37 | AL2: 38 | AM2: 39 | AN2: 40 | AO2: 41 | AP2: 42 | AQ2: 43 | AR2: 44 | AS2: 45 | AT2: 46 | AU2: 47 | AV2: 48 | AW2: 49 | AX2: 50 | AY2: 51 | AZ2: 52 | BA2: 53 | BB2: 54 | BC2: 55 | BD2: 56 | BE2: 57 | BF2: 58 | BG2: 59 | BH2: 60 | BI2: 61 | BJ2: 62 | BK2: 63 | BL2: 64 | BM2: 65 | BN2: 66 | BO2: 67 | BP2: 68 | BQ2: 69 | BR2: 70 | BS2: 71 | BT2: 72 | BU2: 73 | BV2: 74 | BW2: 75 | BX2: 76 | BY2: 77 | BZ2: 78 | CA2: 79 | CB2: 80 | CC2: 81 | CD2: 82 | CE2: 83 | CF2: 84 | CG2: 85 | CH2: 86 | CI2: 87 | CJ2: 88 | CK2: 89 | CL2: 90 | CM2: 91 | CN2: 92 | CO2: 93 | CP2: 94 | CQ2: 95 | CR2: 96 | CS2: 97 | CT2: 98 | CU2: 99 | CV2: 100 | CW2: 101 | CX2: 102 | CY2: 103 | CZ2: 104 | DA2: 105 | DB2: 106 | DC2: 107 | DD2: 108 | DE2: 109 | DF2: 110 | DG2: 111 | DH2: 112 | DI2: 113 | DJ2: 114 | DK2: 115 | DL2: 116 | DM2: 117 | DN2: 118 | DO2: 119 | DP2: 120 | DQ2: 121 | DR2: 122 | DS2: 123 | DT2: 124 | DU2: 125 | DV2: 126 | DW2: 127 | DX2: 128 | DY2: 129 | DZ2: 130 | EA2: 131 | EB2: 132 | EC2: 133 | ED2: 134 | EE2: 135 | EF2: 136 | EG2: 137 | EH2: 138 | EI2: 139 | EJ2: 140 | EK2: 141 | EL2: 142 | EM2: 143 | EN2: 144 | EO2: 145 | EP2: 146 | EQ2: 147 | ER2: 148 | ES2: 149 | ET2: 150 | EU2: 151 | EV2: 152 | EW2: 153 | EX2: 154 | EY2: 155 | EZ2: 156 | FA2: 157 | FB2: 158 | FC2: 159 | FD2: 160 | FE2: 161 | FF2: 162 | FG2: 163 | FH2: 164 | FI2: 165 | FJ2: 166 | FK2: 167 | FL2: 168 | FM2: 169 | FN2: 170 | FO2: 171 | FP2: 172 | FQ2: 173 | FR2: 174 | FS2: 175 | FT2: 176 | FU2: 177 | FV2: 178 | FW2: 179 | FX2: 180 | FY2: 181 | FZ2: 182 | GA2: 183 | GB2: 184 | GC2: 185 | GD2: 186 | GE2: 187 | GF2: 188 | GG2: 189 | GH2: 190 | GI2: 191 | GJ2: 192 | GK2: 193 | GL2: 194 | GM2: 195 | GN2: 196 | GO2: 197 | GP2: 198 | GQ2: 199 | GR2: 200 | GS2: 201 | GT2: 202 | GU2: 203 | GV2: 204 | GW2: 205 | GX2: 206 | GY2: 207 | GZ2: 208 | HA2: 209 | HB2: 210 | HC2: 211 | HD2: 212 | HE2: 213 | HF2: 214 | HG2: 215 | HH2: 216 | HI2: 217 | HJ2: 218 | HK2: 219 | HL2: 220 | HM2: 221 | HN2: 222 | HO2: 223 | HP2: 224 | HQ2: 225 | HR2: 226 | HS2: 227 | HT2: 228 | HU2: 229 | HV2: 230 | HW2: 231 | HX2: 232 | HY2: 233 | HZ2: 234 | IA2: 235 | IB2: 236 | IC2: 237 | ID2: 238 | IE2: 239 | IF2: 240 | IG2: 241 | IH2: 242 | II2: 243 | IJ2: 244 | IK2: 245 | IL2: 246 | IM2: 247 | IN2: 248 | IO2: 249 | IP2: 250 | IQ2: 251 | IR2: 252 | IS2: 253 | IT2: 254 | IU2: 255 | IV2: 256 | IW2: 257 | IX2: 258 | IY2: 259 | IZ2: 260 | JA2: 261 | JB2: 262 | JC2: 263 | JD2: 264 | JE2: 265 | JF2: 266 | JG2: 267 | JH2: 268 | JI2: 269 | JJ2: 270 | JK2: 271 | JL2: 272 | JM2: 273 | JN2: 274 | JO2: 275 | JP2: 276 | JQ2: 277 | JR2: 278 | JS2: 279 | JT2: 280 | JU2: 281 | JV2: 282 | JW2: 283 | JX2: 284 | JY2: 285 | JZ2: 286 | KA2: 287 | KB2: 288 | KC2: 289 | KD2: 290
M3: 経営体数 | N3: 農事組合法人 | O3: 会社 | P3: 農協等の団体 | Q3: その他の法人 | R3: 地方公共団体等 | S3: 非法人_団体 | T3: 非法人_個人 | U3: 認定農業者がいる | V3: 常雇い_経営体数 | W3: 常雇い_人数 | X3: 臨時雇い_経営体数 | Y3: 臨時雇い_人数 | Z3: 経営体数計 | AA3: 0.5ha未満 | AB3: 0.5～１ | AC3: １～３ | AD3: ３～５ | AE3: ５～10 | AF3: 10ha以上 | AG3: 10～20 | AH3: 20ha以上 | AI3: 経営耕地面積計 | AJ3: 0.5ha未満 | AK3: 0.5～１ | AL3: １～３ | AM3: ３～５ | AN3: ５～10 | AO3: 10ha以上 | AP3: 10～20 | AQ3: 20ha以上 | AR3: 田のある経営体数 | AS3: 田_面積 | AT3: 畑のある経営体数 | AU3: 畑_面積 | AV3: 樹園地のある経営体数 | AW3: 樹園地_面積 | AX3: 借入耕地のある経営体数 | AY3: 借入_面積 | AZ3: 水稲_経営体数 | BA3: 麦類_経営体数 | BB3: 豆類_経営体数 | BC3: 工芸農作物_経営体数 | BD3: 露地野菜_経営体数 | BE3: 施設野菜_経営体数 | BF3: 露地花き・花木_経営体数 | BG3: 施設花き・花木_経営体数 | BH3: 露地果樹_経営体数 | BI3: 施設果樹_経営体数 | BJ3: 水稲_面積 | BK3: 麦類_面積 | BL3: 豆類_面積 | BM3: 工芸農作物_面積 | BN3: 露地野菜_面積 | BO3: 施設野菜_面積 | BP3: 露地花き・花木_面積 | BQ3: 施設花き・花木_面積 | BR3: 露地果樹_面積 | BS3: 施設果樹_面積 | BT3: 乳用牛_経営体数 | BU3: 乳用牛_頭数 | BV3: 肉用牛_経営体数 | BW3: 肉用牛_頭数 | BX3: 豚_経営体数 | BY3: 豚_頭数 | BZ3: 採卵鶏_経営体数 | CA3: 採卵鶏_羽数 | CB3: ブロイラー_経営体数 | CC3: ブロイラー_羽数 | CD3: だいこん_経営体 | CE3: だいこん_面積 | CF3: さといも_経営体 | CG3: さといも_面積 | CH3: はくさい_経営体 | CI3: はくさい_面積 | CJ3: キャベツ_経営体 | CK3: キャベツ_面積 | CL3: ほうれんそう_経営体 | CM3: ほうれんそう_面積 | CN3: レタス_経営体 | CO3: レタス_面積 | CP3: ねぎ_経営体 | CQ3: ねぎ_面積 | CR3: たまねぎ_経営体 | CS3: たまねぎ_面積 | CT3: ブロッコリー_経営体 | CU3: ブロッコリー_面積 | CV3: きゅうり_経営体 | CW3: きゅうり_面積 | CX3: 施設_きゅうり_経営体 | CY3: 施設_きゅうり_面積 | CZ3: なす_経営体 | DA3: なす_面積 | DB3: 施設_なす_経営体 | DC3: 施設_なす_面積 | DD3: トマト_経営体 | DE3: トマト_面積 | DF3: 施設_トマト_経営体 | DG3: 施設_トマト_面積 | DH3: 温州みかん_経営体 | DI3: 温州みかん_面積 | DJ3: 施設_温州みかん_経営体 | DK3: 施設_温州みかん_面積 | DL3: その他のかんきつ_経営体 | DM3: その他のかんきつ_面積 | DN3: 施設_その他のかんきつ_経営体 | DO3: 施設_その他のかんきつ_面積 | DP3: ぶどう_経営体 | DQ3: ぶどう_面積 | DR3: 施設_ぶどう_経営体 | DS3: 施設_ぶどう_面積 | DT3: 日本なし_経営体 | DU3: 日本なし_面積 | DV3: 西洋なし_経営体 | DW3: 西洋なし_面積 | DX3: もも_経営体 | DY3: もも_面積 | DZ3: びわ_経営体 | EA3: びわ_面積 | EB3: かき_経営体 | EC3: かき_面積 | ED3: くり_経営体 | EE3: くり_面積 | EF3: うめ_経営体 | EG3: うめ_面積 | EH3: すもも_経営体 | EI3: すもも_面積 | EJ3: キウイフルーツ_経営体 | EK3: キウイフルーツ_面積 | EL3: 販売のある経営体数 | EM3: 稲作 | EN3: 野菜類 | EO3: 果樹類 | EP3: その他（耕種） | EQ3: 畜産 | ER3: 延べ経営体数 | ES3: 農協 | ET3: 卸売市場 | EU3: 小売業者 | EV3: 消費者に直接販売 | EW3: その他 | EX3: 経営体数計 | EY3: 100万円未満 | EZ3: 100～300 | FA3: 300～1,000 | FB3: 1,000～3,000 | FC3: 3,000～１億円 | FD3: １億円以上 | FE3: 販売金額計 | FF3: 100万円未満 | FG3: 100～300 | FH3: 300～1,000 | FI3: 1,000～3,000 | FJ3: 3,000～１億円 | FK3: １億円以上 | FL3: 経営体数計 | FM3: 受託あり実経営体数 | FN3: 水稲作 | FO3: 麦作 | FP3: 大豆作 | FQ3: 野菜作 | FR3: 果樹作 | FS3: 受託収入100万円以上 | FT3: 経営体数計 | FU3: 農業生産関連事業を行っている実経営体数（直販除く） | FV3: 小売業 | FW3: 農産物の加工 | FX3: 観光農園 | FY3: 貸・体験農園 | FZ3: 再生可能エネルギー発電 | GA3: 農業生産関連事業を行っている実経営体数（直販除く） | GB3: 売上100万円以上 | GC3: 作付（栽培）実経営体数 | GD3: 有機に取り組んでいる経営体数 | GE3: 作付（栽培）面積（延べ） | GF3: 有機に取り組んでいる面積 | GG3: 経営体数計 | GH3: ５年以内に引き継がない | GI3: ５年以内の後継者がいる | GJ3: ５年以内の後継者がいない | GK3: 経営耕地面積計 | GL3: ５年以内に引き継がない_面積 | GM3: ５年以内の後継者がいる_面積 | GN3: ５年以内の後継者がいない_面積 | GO3: 個人経営体数計 | GP3: 主業 | GQ3: 主業_65歳未満の専従者がいる | GR3: 準主業 | GS3: 準主業_65歳未満の専従者がいる | GT3: 副業的 | GU3: 基幹的農業従事者数計 | GV3: 15～29歳_基幹的農業従事者 | GW3: 30～34_基幹的農業従事者 | GX3: 35～39_基幹的農業従事者 | GY3: 40～44_基幹的農業従事者 | GZ3: 45～49_基幹的農業従事者 | HA3: 50～54_基幹的農業従事者 | HB3: 55～59_基幹的農業従事者 | HC3: 60～64_基幹的農業従事者 | HD3: 65～69_基幹的農業従事者 | HE3: 70～74_基幹的農業従事者 | HF3: 75～79_基幹的農業従事者 | HG3: 80～84_基幹的農業従事者 | HH3: 85歳以上_基幹的農業従事者 | HI3: 平均年齢_基幹的農業従事者 | HJ3: 基幹的農業従事者数計_女 | HK3: 15～29歳_基幹的農業従事者_女 | HL3: 30～34_基幹的農業従事者_女 | HM3: 35～39_基幹的農業従事者_女 | HN3: 40～44_基幹的農業従事者_女 | HO3: 45～49_基幹的農業従事者_女 | HP3: 50～54_基幹的農業従事者_女 | HQ3: 55～59_基幹的農業従事者_女 | HR3: 60～64_基幹的農業従事者_女 | HS3: 65～69_基幹的農業従事者_女 | HT3: 70～74_基幹的農業従事者_女 | HU3: 75～79_基幹的農業従事者_女 | HV3: 80～84_基幹的農業従事者_女 | HW3: 85歳以上_基幹的農業従事者_女 | HX3: 平均年齢_基幹的農業従事者_女 | HY3: 個人経営体数計 | HZ3: 男の経営主 | IA3: 男の経営主_男女の経営参画者がいる ① | IB3: 男の経営主_女の経営参画者だけ ② | IC3: 女の経営主 ③ | ID3: 女の経営主_男女の経営参画者がいる | IE3: 女の経営主_女の経営参画者だけ | IF3: 女の経営主又は女の経営参画者がいる ①＋②＋③ | IG3: 農業集落数 | IH3: 実行組合がある | II3: 実行組合がない | IJ3: 寄り合いがある（実数） | IK3: １～２回 | IL3: ３～５ | IM3: ６～11 | IN3: 12～23 | IO3: 24回以上 | IP3: 寄り合いがない | IQ3: 寄り合いの議題_農業生産にかかる事項 | IR3: 寄り合いの議題_農道・農業用用排水路・ため池の管理 | IS3: 寄り合いの議題_集落共有財産・共用施設の管理 | IT3: 寄り合いの議題_環境美化・自然環境の保全 | IU3: 寄り合いの議題_農業集落行事（祭り・イベントなど）の実施 | IV3: 寄り合いの議題_農業集落内の福祉・厚生 | IW3: 寄り合いの議題_定住を推進する取組 | IX3: 寄り合いの議題_グリーン・ツーリズムの取組 | IY3: 寄り合いの議題_６次産業化への取組 | IZ3: 寄り合いの議題_再生可能エネルギーへの取組 | JA3: 環境美化･自然環境の保全 | JB3: 農業集落行事(祭り･イベントなど)の実施 | JC3: 農業集落内の福祉･厚生 | JD3: 定住を推進する取組 | JE3: グリーン・ツーリズムの取組 | JF3: ６次産業化への取組 | JG3: 再生可能エネルギーへの取組 | JH3: 農地がある | JI3: 農地_保全している | JJ3: 農業用用排水路がある | JK3: 農業用用排水路_保全している | JL3: 河川・水路がある | JM3: 河川・水路_保全している | JN3: 森林がある | JO3: 森林_保全している | JP3: ため池・湖沼がある | JQ3: ため池・湖沼_保全している | JR3: 国勢調査_世帯数（令和２年） | JS3: 経済センサス_事業所数（令和３年） | JT3: 国勢調査_男女・年齢別人口_総数 （令和２年） | JU3: 将来推計人口_30年後 予測（2050年） | JV3: 増減率 | JW3: 高齢化率（令和２年） | JX3: 国土数値情報_法制上の地域指定等_総土地面積 | JY3: 国土数値情報_法制上の地域指定等_森林地域 | JZ3: 農業地域 類型区分_1（令和５年改訂） | KA3: 中山間地域等直接支払交付金_中山間集落協定_協定数 | KB3: 中山間地域等直接支払交付金_中山間集落協定_協定面積 | KC3: 農業基盤情報_0.3ha区画以上の田（令和２年度） | KD3: 集落営農 活動の有無（令和3年）
A4: 1 | H4: 全国 | Z4: 1075705 | AA4: 246317 | AB4: 319190 | AC4: 337989 | AD4: 68593 | AE4: 48454 | AF4: 55162 | AG4: 25777 | AH4: 29385 | AI4: 323288183 | AJ4: 8069645 | AK4: 22218998 | AL4: 55580752 | AM4: 25686510 | AN4: 32937135 | AO4: 178795143 | AP4: 35428166 | AQ4: 143366977 | AR4: 840381 | AS4: 178489951 | AT4: 560784 | AU4: 128882878 | AV4: 200229 | AW4: 15915354 | AX4: 379009 | AY4: 125712600 | EL4: 978210 | EM4: 542860 | EN4: 165154 | EO4: 128652 | EP4: 93033 | EQ4: 48511 | ER4: 1380762 | ES4: 704393 | ET4: 111845 | EU4: 96161 | EV4: 207600 | EW4: 260763 | EX4: 1075705 | EY4: 560449 | EZ4: 212830 | FA4: 175177 | FB4: 86145 | FC4: 33242 | FD4: 7862 | FE4: 783632650 | FF4: 20365450 | FG4: 42566000 | FH4: 102188200 | FI4: 172290000 | FJ4: 178888000 | FK4: 267335000 | FL4: 1075705 | FM4: 90686 | FN4: 80838 | FO4: 3367 | FP4: 3467 | FQ4: 1993 | FR4: 1986 | FS4: 21246 | FT4: 1075705 | FU4: 88700 | FV4: 56220 | FW4: 29950 | FX4: 5275 | FY4: 1533 | FZ4: 1588 | GA4: 88700 | GB4: 40077 | GC4: 967187 | GD4: 69309 | GE4: 256243440 | GF4: 11526868 | GG4: 1075705 | GH4: 49060 | GI4: 262278 | GJ4: 764367 | GK4: 323288183 | GL4: 28128952 | GM4: 108266880 | GN4: 186892351 | GO4: 1037342 | GP4: 230855 | GQ4: 201514 | GR4: 142538 | GS4: 56007 | GT4: 663949 | GU4: 1363038 | GV4: 16064 | GW4: 20252 | GX4: 30219 | GY4: 37702 | GZ4: 43231 | HA4: 50169 | HB4: 76733 | HC4: 140047 | HD4: 252668 | HE4: 264193 | HF4: 196217 | HG4: 144412 | HH4: 91131 | HI4: 67.76 | HJ4: 540894 | HK4: 3352 | HL4: 4942 | HM4: 8615 | HN4: 11887 | HO4: 15769 | HP4: 20645 | HQ4: 34230 | HR4: 62823 | HS4: 103564 | HT4: 101544 | HU4: 81131 | HV4: 57208 | HW4: 35184 | HX4: 68.41 | HY4: 1037342 | HZ4: 976059 | IA4: 73721 | IB4: 237185 | IC4: 61283 | ID4: 3305 | IE4: 2218 | IF4: 372189 | IG4: 138243 | IH4: 94519 | II4: 43724 | IJ4: 129340 | IK4: 19683 | IL4: 32668 | IM4: 35089 | IN4: 34001 | IO4: 7899 | IP4: 8903 | IQ4: 77811 | IR4: 98276 | IS4: 87105 | IT4: 114843 | IU4: 112704 | IV4: 74774 | IW4: 3932 | IX4: 2865 | IY4: 1608 | IZ4: 4639 | JA4: 110391 | JB4: 107256 | JC4: 68369 | JD4: 3200 | JE4: 2513 | JF4: 1394 | JG4: 3081 | JH4: 135999 | JI4: 71472 | JJ4: 125891 | JK4: 102188 | JL4: 123666 | JM4: 74694 | JN4: 104372 | JO4: 28564 | JP4: 46927 | JQ4: 30459
A5: 2 | H5: 都府県 | Z5: 1040792 | AA5: 244299 | AB5: 318067 | AC5: 335111 | AD5: 66479 | AE5: 44374 | AF5: 32462 | AG5: 19497 | AH5: 12965 | AI5: 220446063 | AJ5: 8035807 | AK5: 22141934 | AL5: 55053162 | AM5: 24864624 | AN5: 29971249 | AO5: 80379287 | AP5: 26271052 | AQ5: 54108235 | AR5: 825854 | AS5: 160428380 | AT5: 531270 | AU5: 44340683 | AV5: 199120 | AW5: 15677000 | AX5: 363058 | AY5: 99997130 | EL5: 944669 | EM5: 534372 | EN5: 157991 | EO5: 128021 | EP5: 83598 | EQ5: 40687 | ER5: 1330649 | ES5: 675359 | ET5: 108733 | EU5: 92855 | EV5: 203053 | EW5: 250649 | EX5: 1040792 | EY5: 556752 | EZ5: 210528 | FA5: 168886 | FB5: 75369 | FC5: 23270 | FD5: 5987 | FE5: 643520225 | FF5: 20254725 | FG5: 42105600 | FH5: 98175900 | FI5: 150738000 | FJ5: 124146000 | FK5: 208100000 | FL5: 1040792 | FM5: 87105 | FN5: 79767 | FO5: 2342 | FP5: 2762 | FQ5: 1772 | FR5: 1967 | FS5: 19679 | FT5: 1040792 | FU5: 85960 | FV5: 54874 | FW5: 28785 | FX5: 5068 | FY5: 1430 | FZ5: 1434 | GA5: 85960 | GB5: 38142 | GC5: 940075 | GD5: 66578 | GE5: 202990231 | GF5: 9710712 | GG5: 1040792 | GH5: 45583 | GI5: 254921 | GJ5: 740288 | GK5: 220446063 | GL5: 14322034 | GM5: 76906247 | GN5: 129217782 | GO5: 1006776 | GP5: 208945 | GQ5: 180172 | GR5: 141690 | GS5: 55467 | GT5: 656141 | GU5: 1292395 | GV5: 13470 | GW5: 17093 | GX5: 25875 | GY5: 32663 | GZ5: 38028 | HA5: 44710 | HB5: 69303 | HC5: 131262 | HD5: 242325 | HE5: 256146 | HF5: 191107 | HG5: 141146 | HH5: 89267 | HI5: 68.26 | HJ5: 510674 | HK5: 2822 | HL5: 4023 | HM5: 7142 | HN5: 9916 | HO5: 13440 | HP5: 18092 | HQ5: 30770 | HR5: 58641 | HS5: 98759 | HT5: 97940 | HU5: 78780 | HV5: 55859 | HW5: 34490 | HX5: 68.91 | HY5: 1006776 | HZ5: 946845 | IA5: 68472 | IB5: 228469 | IC5: 59931 | ID5: 3194 | IE5: 2172 | IF5: 356872 | IG5: 131177 | IH5: 89507 | II5: 41670 | IJ5: 123187 | IK5: 18792 | IL5: 30622 | IM5: 33139 | IN5: 32899 | IO5: 7735 | IP5: 7990 | IQ5: 73251 | IR5: 94411 | IS5: 83386 | IT5: 109582 | IU5: 107323 | IV5: 71225 | IW5: 3778 | IX5: 2747 | IY5: 1547 | IZ5: 4358 | JA5: 105404 | JB5: 102221 | JC5: 65189 | JD5: 3078 | JE5: 2412 | JF5: 1338 | JG5: 2847 | JH5: 129240 | JI5: 67702 | JJ5: 120551 | JK5: 98461 | JL5: 116990 | JM5: 72030 | JN5: 98795 | JO5: 27643 | JP5: 45203 | JQ5: 29860
A6: 2600000000 | B6: 26 | D6: 000 | E6: 00 | F6: 000 | H6: 京都府 | M6: 14181 | N6: 68 | O6: 228 | P6: 27 | Q6: 10 | R6: 2 | S6: 187 | T6: 13659 | U6: 1177 | V6: 343 | W6: 1208 | X6: 1325 | Y6: 10011 | Z6: 14181 | AA6: 4206 | AB6: 5661 | AC6: 3323 | AD6: 497 | AE6: 285 | AF6: 209 | AG6: 149 | AH6: 60 | AI6: 1844021 | AJ6: 154370 | AK6: 390740 | AL6: 505508 | AM6: 187672 | AN6: 191172 | AO6: 414559 | AP6: 201726 | AQ6: 212833 | AR6: 13183 | AS6: 1473209 | AT6: 6649 | AU6: 208850 | AV6: 2186 | AW6: 161962 | AX6: 6147 | AY6: 798321 | AZ6: 10934 | BA6: 144 | BB6: 1786 | BC6: 851 | BD6: 3481 | BE6: 1117 | BF6: 379 | BG6: 130 | BH6: 755 | BI6: 61 | BJ6: 1093375 | BK6: 24100 | BL6: 62085 | BM6: 116594 | BN6: 287357 | BO6: 21611.01 | BP6: 8658 | BQ6: 1886.89 | BR6: 26285 | BS6: 1172.84 | BT6: 43 | BU6: 3898 | BV6: 73 | BW6: 3311 | BX6: 3 | BY6: 6702 | BZ6: 45 | CA6: 2643862 | CB6: 13 | CC6: 2616243 | CD6: 1173 | CE6: 8785.44 | CF6: 651 | CG6: 2756.26 | CH6: 918 | CI6: 3363.95 | CJ6: 707 | CK6: 8117.12 | CL6: 870 | CM6: 115232.65 | CN6: 206 | CO6: 5739.04 | CP6: 909 | CQ6: 33506.33 | CR6: 861 | CS6: 3367.49 | CT6: 429 | CU6: 7464.06 | CV6: 909 | CW6: 4566.66 | CX6: 258 | CY6: 1419.66 | CZ6: 1009 | DA6: 14615.15 | DB6: 846 | DC6: 4039.1 | DD6: 351 | DE6: 2201.1 | DF6: 103 | DG6: 3966.42 | DH6: 62 | DI6: 912.22 | DJ6: 52 | DK6: 523.75 | DL6: 3 | DM6: 81 | DN6: 128 | DO6: 4074.92 | DP6: 34 | DQ6: 683.92 | DR6: 74 | DS6: 4259 | DT6: 3 | DU6: 92 | DV6: 61 | DW6: 1344 | DX6: 1 | DY6: 82 | DZ6: 5 | EA6: 25 | EB6: 160 | EC6: 5952.14 | ED6: 6 | EE6: 167.14 | EF6: 200 | EG6: 4454.56 | EH6: 58 | EI6: 1267 | EJ6: 26 | EK6: 108 | EL6: 11913 | EM6: 8356 | EN6: 2082 | EO6: 350 | EP6: 1006 | EQ6: 119 | ER6: 18385 | ES6: 7192 | ET6: 1366 | EU6: 1630 | EV6: 4507 | EW6: 3690 | EX6: 14181 | EY6: 10478 | EZ6: 1874 | FA6: 1166 | FB6: 482 | FC6: 143 | FD6: 38 | FE6: 4976050 | FF6: 322050 | FG6: 374800 | FH6: 679200 | FI6: 964000 | FJ6: 761000 | FK6: 1875000 | FL6: 14181 | FM6: 1494 | FN6: 1411 | FO6: 19 | FP6: 23 | FQ6: 31 | FR6: 8 | FS6: 267 | FT6: 14181 | FU6: 1714 | FV6: 1134 | FW6: 563 | FX6: 69 | FY6: 39 | FZ6: 17 | GA6: 1714 | GB6: 683 | GC6: 12434 | GD6: 1308 | GE6: 1717722 | GF6: 129069 | GG6: 14181 | GH6: 650 | GI6: 3615 | GJ6: 9916 | GK6: 1844021 | GL6: 123825 | GM6: 583829 | GN6: 1136367 | GO6: 13659 | GP6: 1577 | GQ6: 1312 | GR6: 2073 | GS6: 879 | GT6: 10009 | GU6: 15130 | GV6: 119 | GW6: 160 | GX6: 243 | GY6: 319 | GZ6: 434 | HA6: 442 | HB6: 597 | HC6: 1149 | HD6: 2546 | HE6: 3173 | HF6: 2586 | HG6: 1842 | HH6: 1520 | HI6: 70.21 | HJ6: 5270 | HK6: 19 | HL6: 33 | HM6: 60 | HN6: 86 | HO6: 134 | HP6: 174 | HQ6: 247 | HR6: 429 | HS6: 900 | HT6: 1075 | HU6: 920 | HV6: 646 | HW6: 547 | HX6: 70.82 | HY6: 13659 | HZ6: 12981 | IA6: 806 | IB6: 2723 | IC6: 678 | ID6: 51 | IE6: 21 | IF6: 4207 | IG6: 1684 | IH6: 1352 | II6: 332 | IJ6: 1571 | IK6: 185 | IL6: 323 | IM6: 361 | IN6: 539 | IO6: 163 | IP6: 113 | IQ6: 1290 | IR6: 1382 | IS6: 1252 | IT6: 1379 | IU6: 1380 | IV6: 878 | IW6: 98 | IX6: 39 | IY6: 40 | IZ6: 43 | JA6: 1327 | JB6: 1324 | JC6: 803 | JD6: 84 | JE6: 36 | JF6: 28 | JG6: 31 | JH6: 1673 | JI6: 1122 | JJ6: 1632 | JK6: 1381 | JL6: 1556 | JM6: 1182 | JN6: 1512 | JO6: 745 | JP6: 645 | JQ6: 516 | JR6: 1188903 | JS6: 112233 | JT6: 2578087 | JU6: 2075975 | JV6: -19.47614646 | JW6: 28.48984538 | JX6: 461216.96 | JY6: 352089.88 | JZ6: … | KA6: 503 | KB6: 5134.09 | KC6: 10374.29 | KD6: 342
A7: 2610000000 | B7: 26 | D7: 100 | E7: 00 | F7: 000 | H7: 京都府 | I7: 京都市 | M7: 1498 | N7: 4 | O7: 24 | P7: - | Q7: 1 | R7: - | S7: 6 | T7: 1463 | U7: 121 | V7: 47 | W7: 168 | X7: 131 | Y7: 1059 | Z7: 1498 | AA7: 548 | AB7: 570 | AC7: 332 | AD7: 24 | AE7: 11 | AF7: 13 | AG7: 4 | AH7: 9 | AI7: 156804 | AJ7: 19495 | AK7: 38822 | AL7: 48774 | AM7: 9138 | AN7: 7086 | AO7: 33489 | AP7: 6055 | AQ7: 27434 | AR7: 1241 | AS7: 107593 | AT7: 950 | AU7: 37150 | AV7: 170 | AW7: 12061 | AX7: 402 | AY7: 41093 | AZ7: 948 | BA7: 4 | BB7: 85 | BC7: x | BD7: 715 | BE7: 147 | BF7: 45 | BG7: 15 | BH7: 101 | BI7: 12 | BJ7: 80865 | BK7: 167 | BL7: 4244 | BM7: x | BN7: x | BO7: 1622.98 | BP7: 1744 | BQ7: x | BR7: x | BS7: 330.63 | BT7: - | BU7: - | BV7: - | BW7: - | BX7: x | BY7: x | BZ7: 7 | CA7: 9755 | CB7: 2 | CC7: x | CD7: 270 | CE7: 1637.59 | CF7: 125 | CG7: 507.62 | CH7: 208 | CI7: 790.57 | CJ7: 227 | CK7: 3408.74 | CL7: 313 | CM7: 103790.71 | CN7: 63 | CO7: 813.43 | CP7: 326 | CQ7: 11252.85 | CR7: 178 | CS7: 613.95 | CT7: 117 | CU7: 1195.09 | CV7: 244 | CW7: 1040.62 | CX7: 70 | CY7: 278.62 | CZ7: 291 | DA7: 10484.43 | DB7: 242 | DC7: 960.98 | DD7: 97 | DE7: 503.98 | DF7: 19 | DG7: 79.22 | DH7: 5 | DI7: 16 | DJ7: x | DK7: x | DL7: - | DM7: - | DN7: 19 | DO7: 1016.5 | DP7: 6 | DQ7: 143.5 | DR7: - | DS7: - | DT7: - | DU7: - | DV7: 1 | DW7: x | DX7: x | DY7: x | DZ7: - | EA7: - | EB7: 40 | EC7: x | ED7: 5 | EE7: x | EF7: 9 | EG7: 99 | EH7: 3 | EI7: 9 | EJ7: x | EK7: x | EL7: 1224 | EM7: 534 | EN7: 561 | EO7: 56 | EP7: 66 | EQ7: 7 | ER7: 1937 | ES7: 437 | ET7: 362 | EU7: 230 | EV7: 590 | EW7: 318 | EX7: 1498 | EY7: 936 | EZ7: 286 | FA7: 219 | FB7: 48 | FC7: 7 | FD7: 2 | FE7: 536650 | FF7: 27600 | FG7: 57200 | FH7: 127850 | FI7: 96000 | FJ7: 28000 | FK7: 200000 | FL7: 1498 | FM7: 126 | FN7: 120 | FO7: - | FP7: - | FQ7: 7 | FR7: - | FS7: 23 | FT7: 1498 | FU7: 277 | FV7: 211 | FW7: 65 | FX7: 9 | FY7: 18 | FZ7: 3 | GA7: 277 | GB7: 138 | GC7: 1292 | GD7: 159 | GE7: 248466 | GF7: 9627 | GG7: 1498 | GH7: 45 | GI7: 312 | GJ7: 1141 | GK7: 156804 | GL7: 9882 | GM7: 36679 | GN7: 110243 | GO7: 1463 | GP7: 187 | GQ7: 173 | GR7: 370 | GS7: 257 | GT7: 906 | GU7: 2025 | GV7: 25 | GW7: 31 | GX7: 62 | GY7: 75 | GZ7: 102 | HA7: 99 | HB7: 126 | HC7: 189 | HD7: 318 | HE7: 359 | HF7: 286 | HG7: 196 | HH7: 157 | HI7: 66.7 | HJ7: 738 | HK7: 3 | HL7: 7 | HM7: 11 | HN7: 23 | HO7: 32 | HP7: 37 | HQ7: 59 | HR7: 74 | HS7: 128 | HT7: 132 | HU7: 112 | HV7: 58 | HW7: 62 | HX7: 67.74 | HY7: 1463 | HZ7: 1367 | IA7: 136 | IB7: 317 | IC7: 96 | ID7: 10 | IE7: 4 | IF7: 549 | IG7: 237 | IH7: 169 | II7: 68 | IJ7: 201 | IK7: 49 | IL7: 70 | IM7: 50 | IN7: 29 | IO7: 3 | IP7: 36 | IQ7: 128 | IR7: 143 | IS7: 103 | IT7: 153 | IU7: 166 | IV7: 77 | IW7: 21 | IX7: 9 | IY7: 6 | IZ7: 4 | JA7: 144 | JB7: 157 | JC7: 70 | JD7: 19 | JE7: 9 | JF7: 5 | JG7: 3 | JH7: 236 | JI7: 93 | JJ7: 224 | JK7: 150 | JL7: 219 | JM7: 99 | JN7: 178 | JO7: 92 | JP7: 61 | JQ7: 39 | JR7: 728744 | JS7: 64638 | JT7: 1463723 | JU7: 1240645 | JV7: -15.24045192 | JW7: 26.94539882 | JX7: 82782.59 | JY7: 61917.01 | JZ7: 1 | KA7: 33 | KB7: 214.1 | KC7: 673.23 | KD7: 19
A8: 2610100000 | B8: 26 | D8: 101 | E8: 00 | F8: 000 | H8: 京都府 | I8: 北区 | M8: 106 | N8: - | O8: - | P8: - | Q8: - | R8: - | S8: 1 | T8: 105 | U8: 12 | V8: 4 | W8: 11 | X8: 13 | Y8: 243 | Z8: 106 | AA8: 46 | AB8: 39 | AC8: 19 | AD8: 1 | AE8: 1 | AF8: - | AG8: - | AH8: - | AI8: 7887 | AJ8: 1589 | AK8: 2693 | AL8: 2515 | AM8: 380 | AN8: 710 | AO8: - | AP8: - | AQ8: - | AR8: 74 | AS8: 3447 | AT8: 86 | AU8: 4123 | AV8: 5 | AW8: 317 | AX8: 19 | AY8: 437 | AZ8: 41 | BA8: - | BB8: 7 | BC8: x | BD8: 73 | BE8: 45 | BF8: 4 | BG8: - | BH8: 1 | BI8: - | BJ8: 1414 | BK8: - | BL8: x | BM8: x | BN8: x | BO8: 542.62 | BP8: x | BQ8: - | BR8: x | BS8: - | BT8: - | BU8: - | BV8: - | BW8: - | BX8: x | BY8: x | BZ8: - | CA8: - | CB8: - | CC8: - | CD8: 46 | CE8: 229.03 | CF8: 10 | CG8: 26 | CH8: 31 | CI8: x | CJ8: 23 | CK8: 45 | CL8: 32 | CM8: 79.83 | CN8: 9 | CO8: x | CP8: 47 | CQ8: x | CR8: 35 | CS8: x | CT8: 12 | CU8: 18.1 | CV8: 60 | CW8: 171.63 | CX8: 37 | CY8: 75.63 | CZ8: 60 | DA8: 416.37 | DB8: 63 | DC8: 274.2 | DD8: 40 | DE8: 148.2 | DF8: 7 | DG8: x | DH8: - | DI8: - | DJ8: x | DK8: x | DL8: - | DM8: - | DN8: - | DO8: - | DP8: - | DQ8: - | DR8: - | DS8: - | DT8: - | DU8: - | DV8: - | DW8: - | DX8: x | DY8: x | DZ8: - | EA8: - | EB8: - | EC8: - | ED8: - | EE8: - | EF8: - | EG8: - | EH8: - | EI8: - | EJ8: x | EK8: x | EL8: 93 | EM8: 14 | EN8: 72 | EO8: - | EP8: 6 | EQ8: 1 | ER8: 156 | ES8: 11 | ET8: 24 | EU8: 32 | EV8: 52 | EW8: 37 | EX8: 106 | EY8: 46 | EZ8: 23 | FA8: 29 | FB8: 6 | FC8: 2 | FD8: - | FE8: 43225 | FF8: 1425 | FG8: 4600 | FH8: 17200 | FI8: 12000 | FJ8: 8000 | FK8: - | FL8: 106 | FM8: 6 | FN8: 5 | FO8: - | FP8: - | FQ8: 1 | FR8: - | FS8: - | FT8: 106 | FU8: 32 | FV8: 24 | FW8: 17 | FX8: - | FY8: - | FZ8: - | GA8: 32 | GB8: 26 | GC8: 94 | GD8: 14 | GE8: 5180 | GF8: 631 | GG8: 106 | GH8: - | GI8: 13 | GJ8: 93 | GK8: 7887 | GL8: - | GM8: 900 | GN8: 6987 | GO8: 105 | GP8: 22 | GQ8: 20 | GR8: 37 | GS8: 31 | GT8: 46 | GU8: 191 | GV8: 8 | GW8: 8 | GX8: 6 | GY8: 15 | GZ8: 11 | HA8: 7 | HB8: 17 | HC8: 23 | HD8: 26 | HE8: 30 | HF8: 14 | HG8: 11 | HH8: 15 | HI8: 61.83 | HJ8: 83 | HK8: 2 | HL8: 2 | HM8: 2 | HN8: 6 | HO8: 3 | HP8: 5 | HQ8: 9 | HR8: 12 | HS8: 13 | HT8: 15 | HU8: 2 | HV8: 7 | HW8: 5 | HX8: 62.83 | HY8: 105 | HZ8: 94 | IA8: 10 | IB8: 23 | IC8: 11 | ID8: 1 | IE8: - | IF8: 44 | IG8: 21 | IH8: 16 | II8: 5 | IJ8: 20 | IK8: 5 | IL8: 5 | IM8: 4 | IN8: 5 | IO8: 1 | IP8: 1 | IQ8: 8 | IR8: 10 | IS8: 11 | IT8: 11 | IU8: 15 | IV8: 5 | IW8: 2 | IX8: - | IY8: - | IZ8: 1 | JA8: 9 | JB8: 14 | JC8: 4 | JD8: 2 | JE8: - | JF8: - | JG8: - | JH8: 21 | JI8: 4 | JJ8: 19 | JK8: 10 | JL8: 20 | JM8: 7 | JN8: 19 | JO8: 6 | JP8: 8 | JQ8: 5 | JR8: 57119 | JS8: 4421 | JT8: 117165 | JU8: 94363 | JV8: -19.46144326 | JW8: 27.90509111 | JX8: 9488.36 | JY8: 7948.67 | JZ8: 1 | KA8: 0 | KB8: 0 | KC8: 0 | KD8: 0
A9: 2610100001 | B9: 26 | D9: 101 | E9: 00 | F9: 001 | H9: 京都府 | I9: 北区 | J9: 北区 | K9: 深泥池 | M9: 6 | N9: - | O9: - | P9: - | Q9: - | R9: - | S9: - | T9: 6 | U9: 1 | V9: - | W9: - | X9: - | Y9: - | Z9: 6 | AA9: 2 | AB9: 3 | AC9: 1 | AD9: - | AE9: - | AF9: - | AG9: - | AH9: - | AI9: 435 | AJ9: 60 | AK9: 205 | AL9: 170 | AM9: - | AN9: - | AO9: - | AP9: - | AQ9: - | AR9: 5 | AS9: 265 | AT9: 6 | AU9: 170 | AV9: - | AW9: - | AX9: 1 | AY9: 75 | AZ9: 1 | BA9: - | BB9: - | BC9: x | BD9: 5 | BE9: 3 | BF9: - | BG9: - | BH9: - | BI9: - | BJ9: x | BK9: - | BL9: - | BM9: x | BN9: 212 | BO9: 21.9 | BP9: - | BQ9: - | BR9: - | BS9: - | BT9: - | BU9: - | BV9: - | BW9: - | BX9: x | BY9: x | BZ9: - | CA9: - | CB9: - | CC9: - | CD9: 1 | CE9: x | CF9: - | CG9: - | CH9: 1 | CI9: x | CJ9: 1 | CK9: x | CL9: 1 | CM9: x | CN9: - | CO9: - | CP9: 1 | CQ9: x | CR9: - | CS9: - | CT9: - | CU9: - | CV9: 4 | CW9: x | CX9: 2 | CY9: x | CZ9: 4 | DA9: x | DB9: 4 | DC9: x | DD9: 2 | DE9: x | DF9: 1 | DG9: x | DH9: - | DI9: - | DJ9: x | DK9: x | DL9: - | DM9: - | DN9: - | DO9: - | DP9: - | DQ9: - | DR9: - | DS9: - | DT9: - | DU9: - | DV9: - | DW9: - | DX9: x | DY9: x | DZ9: - | EA9: - | EB9: - | EC9: - | ED9: - | EE9: - | EF9: - | EG9: - | EH9: - | EI9: - | EJ9: x | EK9: x | EL9: 6 | EM9: 1 | EN9: 4 | EO9: - | EP9: 1 | EQ9: - | ER9: 10 | ES9: 1 | ET9: - | EU9: 2 | EV9: 4 | EW9: 3 | EX9: 6 | EY9: 2 | EZ9: 1 | FA9: 2 | FB9: 1 | FC9: - | FD9: - | FE9: 3450 | FF9: 100 | FG9: 200 | FH9: 1150 | FI9: 2000 | FJ9: - | FK9: - | FL9: 6 | FM9: - | FN9: - | FO9: - | FP9: - | FQ9: - | FR9: - | FS9: - | FT9: 6 | FU9: 3 | FV9: 2 | FW9: 3 | FX9: - | FY9: - | FZ9: - | GA9: 3 | GB9: 2 | GC9: 6 | GD9: 1 | GE9: 274 | GF9: 10 | GG9: 6 | GH9: - | GI9: - | GJ9: 6 | GK9: 435 | GL9: - | GM9: - | GN9: 435 | GO9: 6 | GP9: 1 | GQ9: - | GR9: 3 | GS9: 3 | GT9: 2 | GU9: 13 | GV9: - | GW9: - | GX9: 1 | GY9: 2 | GZ9: - | HA9: 1 | HB9: 1 | HC9: - | HD9: 2 | HE9: 6 | HF9: - | HG9: - | HH9: - | HI9: 61.69 | HJ9: 7 | HK9: - | HL9: - | HM9: 1 | HN9: - | HO9: - | HP9: 1 | HQ9: - | HR9: - | HS9: 2 | HT9: 3 | HU9: - | HV9: - | HW9: - | HX9: 63.57 | HY9: 6 | HZ9: 5 | IA9: 1 | IB9: 1 | IC9: 1 | ID9: - | IE9: - | IF9: 3 | IG9: 1 | IH9: 1 | II9: 0 | IJ9: 1 | IK9: - | IL9: - | IM9: 1 | IN9: - | IO9: - | IP9: - | IQ9: 1 | IR9: 1 | IS9: 1 | IT9: 1 | IU9: 1 | IV9: - | IW9: - | IX9: - | IY9: - | IZ9: - | JA9: 1 | JB9: 1 | JC9: - | JD9: - | JE9: - | JF9: - | JG9: - | JH9: 1 | JI9: 0 | JJ9: 1 | JK9: 1 | JL9: 1 | JM9: 0 | JN9: 0 | JO9: 0 | JP9: 1 | JQ9: 1 | JR9: 1949 | JS9: 150 | JT9: 4690 | JU9: 4459 | JV9: -4.925373134 | JW9: 27.46268657 | JX9: 129.68 | JY9: 59.01 | JZ9: 1 | KA9: 0 | KB9: 0 | KC9: 0 | KD9: 0
A10: 2610100002 | B10: 26 | D10: 101 | E10: 00 | F10: 002 | H10: 京都府 | I10: 北区 | J10: 北区 | K10: 東区 | M10: 4 | N10: - | O10: - | P10: - | Q10: - | R10: - | S10: - | T10: 4 | U10: - | V10: 1 | W10: 1 | X10: 1 | Y10: 11 | Z10: 4 | AA10: 1 | AB10: 2 | AC10: 1 | AD10: - | AE10: - | AF10: - | AG10: - | AH10: - | AI10: 289 | AJ10: 45 | AK10: 144 | AL10: 100 | AM10: - | AN10: - | AO10: - | AP10: - | AQ10: - | AR10: 1 | AS10: 20 | AT10: 4 | AU10: 269 | AV10: - | AW10: - | AX10: - | AY10: - | AZ10: - | BA10: - | BB10: - | BC10: x | BD10: 4 | BE10: 4 | BF10: - | BG10: - | BH10: - | BI10: - | BJ10: - | BK10: - | BL10: - | BM10: x | BN10: 168 | BO10: 23.92 | BP10: - | BQ10: - | BR10: - | BS10: - | BT10: - | BU10: - | BV10: - | BW10: - | BX10: x | BY10: x | BZ10: - | CA10: - | CB10: - | CC10: - | CD10: 1 | CE10: x | CF10: - | CG10: - | CH10: 1 | CI10: x | CJ10: 1 | CK10: x | CL10: 1 | CM10: x | CN10: 1 | CO10: x | CP10: 1 | CQ10: x | CR10: 3 | CS10: 6 | CT10: - | CU10: - | CV10: 4 | CW10: x | CX10: 4 | CY10: 3.31 | CZ10: 4 | DA10: x | DB10: 4 | DC10: 7.33 | DD10: 4 | DE10: 7.33 | DF10: - | DG10: - | DH10: - | DI10: - | DJ10: x | DK10: x | DL10: - | DM10: - | DN10: - | DO10: - | DP10: - | DQ10: - | DR10: - | DS10: - | DT10: - | DU10: - | DV10: - | DW10: - | DX10: x | DY10: x | DZ10: - | EA10: - | EB10: - | EC10: - | ED10: - | EE10: - | EF10: - | EG10: - | EH10: - | EI10: - | EJ10: x | EK10: x | EL10: 4 | EM10: - | EN10: 3 | EO10: - | EP10: 1 | EQ10: - | ER10: 10 | ES10: - | ET10: 4 | EU10: 3 | EV10: 2 | EW10: 1 | EX10: 4 | EY10: - | EZ10: - | FA10: 3 | FB10: 1 | FC10: - | FD10: - | FE10: 4250 | FF10: - | FG10: - | FH10: 2250 | FI10: 2000 | FJ10: - | FK10: - | FL10: 4 | FM10: - | FN10: - | FO10: - | FP10: - | FQ10: - | FR10: - | FS10: - | FT10: 4 | FU10: 2 | FV10: 1 | FW10: 2 | FX10: - | FY10: - | FZ10: - | GA10: 2 | GB10: 2 | GC10: 4 | GD10: - | GE10: x | GF10: - | GG10: 4 | GH10: - | GI10: 1 | GJ10: 3 | GK10: 289 | GL10: - | GM10: 62 | GN10: 227 | GO10: 4 | GP10: 2 | GQ10: 1 | GR10: 1 | GS10: 1 | GT10: 1 | GU10: 10 | GV10: 1 | GW10: - | GX10: - | GY10: - | GZ10: 2 | HA10: 1 | HB10: - | HC10: 2 | HD10: 1 | HE10: 2 | HF10: 1 | HG10: - | HH10: - | HI10: 58.4 | HJ10: 4 | HK10: - | HL10: - | HM10: - | HN10: - | HO10: 1 | HP10: 1 | HQ10: - | HR10: 1 | HS10: - | HT10: 1 | HU10: - | HV10: - | HW10: - | HX10: 58.5 | HY10: 4 | HZ10: 4 | IA10: 1 | IB10: 2 | IC10: - | ID10: - | IE10: - | IF10: 3 | IG10: 1 | IH10: 1 | II10: 0 | IJ10: 1 | IK10: - | IL10: - | IM10: 1 | IN10: - | IO10: - | IP10: - | IQ10: 1 | IR10: 1 | IS10: - | IT10: 1 | IU10: 1 | IV10: - | IW10: - | IX10: - | IY10: - | IZ10: - | JA10: 1 | JB10: 1 | JC10: - | JD10: - | JE10: - | JF10: - | JG10: - | JH10: 1 | JI10: 0 | JJ10: 1 | JK10: 1 | JL10: 1 | JM10: 1 | JN10: 1 | JO10: 0 | JP10: 1 | JQ10: 1 | JR10: 1478 | JS10: 114 | JT10: 3219 | JU10: 2499 | JV10: -22.36719478 | JW10: 21.40416278 | JX10: 64.87 | JY10: 10.99 | JZ10: 1 | KA10: 0 | KB10: 0 | KC10: 0 | KD10: 0
A11: 2610100003 | B11: 26 | D11: 101 | E11: 00 | F11: 003 | H11: 京都府 | I11: 北区 | J11: 北区 | K11: 竹ヶ鼻 | M11: 2 | N11: x | O11: x | P11: x | Q11: x | R11: x | S11: x | T11: x | U11: x | V11: x | W11: x | X11: x | Y11: x | Z11: 2 | AA11: x | AB11: x | AC11: x | AD11: x | AE11: x | AF11: x | AG11: x | AH11: x | AI11: x | AJ11: x | AK11: x | AL11: x | AM11: x | AN11: x | AO11: x | AP11: x | AQ11: x | AR11: x | AS11: x | AT11: x | AU11: x | AV11: x | AW11: x | AX11: x | AY11: x | AZ11: x | BA11: x | BB11: x | BC11: x | BD11: x | BE11: x | BF11: x | BG11: x | BH11: x | BI11: x | BJ11: x | BK11: x | BL11: x | BM11: x | BN11: x | BO11: x | BP11: x | BQ11: x | BR11: x | BS11: x | BT11: x | BU11: x | BV11: x | BW11: x | BX11: x | BY11: x | BZ11: x | CA11: x | CB11: x | CC11: x | CD11: x | CE11: x | CF11: x | CG11: x | CH11: x | CI11: x | CJ11: x | CK11: x | CL11: x | CM11: x | CN11: x | CO11: x | CP11: x | CQ11: x | CR11: x | CS11: x | CT11: x | CU11: x | CV11: x | CW11: x | CX11: x | CY11: x | CZ11: x | DA11: x | DB11: x | DC11: x | DD11: x | DE11: x | DF11: x | DG11: x | DH11: x | DI11: x | DJ11: x | DK11: x | DL11: x | DM11: x | DN11: x | DO11: x | DP11: x | DQ11: x | DR11: x | DS11: x | DT11: x | DU11: x | DV11: x | DW11: x | DX11: x | DY11: x | DZ11: x | EA11: x | EB11: x | EC11: x | ED11: x | EE11: x | EF11: x | EG11: x | EH11: x | EI11: x | EJ11: x | EK11: x | EL11: x | EM11: x | EN11: x | EO11: x | EP11: x | EQ11: x | ER11: x | ES11: x | ET11: x | EU11: x | EV11: x | EW11: x | EX11: 2 | EY11: x | EZ11: x | FA11: x | FB11: x | FC11: x | FD11: x | FE11: x | FF11: x | FG11: x | FH11: x | FI11: x | FJ11: x | FK11: x | FL11: 2 | FM11: x | FN11: x | FO11: x | FP11: x | FQ11: x | FR11: x | FS11: x | FT11: 2 | FU11: x | FV11: x | FW11: x | FX11: x | FY11: x | FZ11: x | GA11: x | GB11: x | GC11: x | GD11: x | GE11: x | GF11: x | GG11: 2 | GH11: x | GI11: x | GJ11: x | GK11: x | GL11: x | GM11: x | GN11: x | GO11: 2 | GP11: x | GQ11: x | GR11: x | GS11: x | GT11: x | GU11: x | GV11: x | GW11: x | GX11: x | GY11: x | GZ11: x | HA11: x | HB11: x | HC11: x | HD11: x | HE11: x | HF11: x | HG11: x | HH11: x | HI11: x | HJ11: x | HK11: x | HL11: x | HM11: x | HN11: x | HO11: x | HP11: x | HQ11: x | HR11: x | HS11: x | HT11: x | HU11: x | HV11: x | HW11: x | HX11: x | HY11: 2 | HZ11: x | IA11: x | IB11: x | IC11: x | ID11: x | IE11: x | IF11: x | IG11: … | IH11: … | II11: … | IJ11: … | IK11: … | IL11: … | IM11: … | IN11: … | IO11: … | IP11: … | IQ11: … | IR11: … | IS11: … | IT11: … | IU11: … | IV11: … | IW11: … | IX11: … | IY11: … | IZ11: … | JA11: … | JB11: … | JC11: … | JD11: … | JE11: … | JF11: … | JG11: … | JH11: … | JI11: … | JJ11: … | JK11: … | JL11: … | JM11: … | JN11: … | JO11: … | JP11: … | JQ11: … | JR11: 282 | JS11: 17 | JT11: 659 | JU11: 666 | JV11: 1.062215478 | JW11: 24.12746586 | JX11: 5.93 | JY11: 0 | JZ11: 1 | KA11: 0 | KB11: 0 | KC11: 0 | KD11: 0
A12: 2610100004 | B12: 26 | D12: 101 | E12: 00 | F12: 004 | H12: 京都府 | I12: 北区 | J12: 北区 | K12: 山本 | M12: - | N12: - | O12: - | P12: - | Q12: - | R12: - | S12: - | T12: - | U12: - | V12: - | W12: - | X12: - | Y12: - | Z12: - | AA12: - | AB12: - | AC12: - | AD12: - | AE12: - | AF12: - | AG12: - | AH12: - | AI12: - | AJ12: - | AK12: - | AL12: - | AM12: - | AN12: - | AO12: - | AP12: - | AQ12: - | AR12: - | AS12: - | AT12: - | AU12: - | AV12: - | AW12: - | AX12: - | AY12: - | AZ12: - | BA12: - | BB12: - | BC12: x | BD12: - | BE12: - | BF12: - | BG12: - | BH12: - | BI12: - | BJ12: - | BK12: - | BL12: - | BM12: x | BN12: - | BO12: - | BP12: - | BQ12: - | BR12: - | BS12: - | BT12: - | BU12: - | BV12: - | BW12: - | BX12: x | BY12: x | BZ12: - | CA12: - | CB12: - | CC12: - | CD12: - | CE12: - | CF12: - | CG12: - | CH12: - | CI12: - | CJ12: - | CK12: - | CL12: - | CM12: - | CN12: - | CO12: - | CP12: - | CQ12: - | CR12: - | CS12: - | CT12: - | CU12: - | CV12: - | CW12: - | CX12: - | CY12: - | CZ12: - | DA12: - | DB12: - | DC12: - | DD12: - | DE12: - | DF12: - | DG12: - | DH12: - | DI12: - | DJ12: x | DK12: x | DL12: - | DM12: - | DN12: - | DO12: - | DP12: - | DQ12: - | DR12: - | DS12: - | DT12: - | DU12: - | DV12: - | DW12: - | DX12: x | DY12: x | DZ12: - | EA12: - | EB12: - | EC12: - | ED12: - | EE12: - | EF12: - | EG12: - | EH12: - | EI12: - | EJ12: x | EK12: x | EL12: - | EM12: - | EN12: - | EO12: - | EP12: - | EQ12: - | ER12: - | ES12: - | ET12: - | EU12: - | EV12: - | EW12: - | EX12: - | EY12: - | EZ12: - | FA12: - | FB12: - | FC12: - | FD12: - | FE12: - | FF12: - | FG12: - | FH12: - | FI12: - | FJ12: - | FK12: - | FL12: - | FM12: - | FN12: - | FO12: - | FP12: - | FQ12: - | FR12: - | FS12: - | FT12: - | FU12: - | FV12: - | FW12: - | FX12: - | FY12: - | FZ12: - | GA12: - | GB12: - | GC12: - | GD12: - | GE12: - | GF12: - | GG12: - | GH12: - | GI12: - | GJ12: - | GK12: - | GL12: - | GM12: - | GN12: - | GO12: - | GP12: - | GQ12: - | GR12: - | GS12: - | GT12: - | GU12: - | GV12: - | GW12: - | GX12: - | GY12: - | GZ12: - | HA12: - | HB12: - | HC12: - | HD12: - | HE12: - | HF12: - | HG12: - | HH12: - | HI12: - | HJ12: - | HK12: - | HL12: - | HM12: - | HN12: - | HO12: - | HP12: - | HQ12: - | HR12: - | HS12: - | HT12: - | HU12: - | HV12: - | HW12: - | HX12: - | HY12: - | HZ12: - | IA12: - | IB12: - | IC12: - | ID12: - | IE12: - | IF12: - | IG12: 1 | IH12: 1 | II12: 0 | IJ12: 1 | IK12: - | IL12: 1 | IM12: - | IN12: - | IO12: - | IP12: - | IQ12: 1 | IR12: 1 | IS12: - | IT12: 1 | IU12: 1 | IV12: 1 | IW12: - | IX12: - | IY12: - | IZ12: - | JA12: - | JB12: 1 | JC12: 1 | JD12: - | JE12: - | JF12: - | JG12: - | JH12: 1 | JI12: 0 | JJ12: 1 | JK12: 1 | JL12: 1 | JM12: 1 | JN12: 1 | JO12: 1 | JP12: 0 | JQ12: 0 | JR12: 277 | JS12: 33 | JT12: 650 | JU12: 814 | JV12: 25.23076923 | JW12: 30 | JX12: 44.7 | JY12: 16.92 | JZ12: 1 | KA12: 0 | KB12: 0 | KC12: 0 | KD12: 0
A13: 2610100005 | B13: 26 | D13: 101 | E13: 00 | F13: 005 | H13: 京都府 | I13: 北区 | J13: 北区 | K13: 南大路 | M13: 9 | N13: - | O13: - | P13: - | Q13: - | R13: - | S13: - | T13: 9 | U13: 1 | V13: - | W13: - | X13: - | Y13: - | Z13: 9 | AA13: 3 | AB13: 4 | AC13: 1 | AD13: 1 | AE13: - | AF13: - | AG13: - | AH13: - | AI13: 955 | AJ13: 107 | AK13: 348 | AL13: 120 | AM13: 380 | AN13: - | AO13: - | AP13: - | AQ13: - | AR13: 4 | AS13: 130 | AT13: 9 | AU13: 525 | AV13: 1 | AW13: 300 | AX13: 4 | AY13: 110 | AZ13: 4 | BA13: - | BB13: - | BC13: x | BD13: 9 | BE13: 6 | BF13: - | BG13: - | BH13: - | BI13: - | BJ13: 96 | BK13: - | BL13: - | BM13: x | BN13: 205 | BO13: 177.09 | BP13: - | BQ13: - | BR13: - | BS13: - | BT13: - | BU13: - | BV13: - | BW13: - | BX13: x | BY13: x | BZ13: - | CA13: - | CB13: - | CC13: - | CD13: 5 | CE13: x | CF13: - | CG13: - | CH13: 3 | CI13: 7 | CJ13: 1 | CK13: x | CL13: 3 | CM13: x | CN13: - | CO13: - | CP13: 3 | CQ13: x | CR13: 3 | CS13: 5 | CT13: - | CU13: - | CV13: 8 | CW13: 22.52 | CX13: 5 | CY13: 15.52 | CZ13: 8 | DA13: 38.02 | DB13: 9 | DC13: 63.04 | DD13: 6 | DE13: 42.04 | DF13: 1 | DG13: x | DH13: - | DI13: - | DJ13: x | DK13: x | DL13: - | DM13: - | DN13: - | DO13: - | DP13: - | DQ13: - | DR13: - | DS13: - | DT13: - | DU13: - | DV13: - | DW13: - | DX13: x | DY13: x | DZ13: - | EA13: - | EB13: - | EC13: - | ED13: - | EE13: - | EF13: - | EG13: - | EH13: - | EI13: - | EJ13: x | EK13: x | EL13: 9 | EM13: - | EN13: 8 | EO13: - | EP13: - | EQ13: 1 | ER13: 16 | ES13: 1 | ET13: 2 | EU13: 5 | EV13: 6 | EW13: 2 | EX13: 9 | EY13: 1 | EZ13: 2 | FA13: 6 | FB13: - | FC13: - | FD13: - | FE13: 3875 | FF13: 25 | FG13: 400 | FH13: 3450 | FI13: - | FJ13: - | FK13: - | FL13: 9 | FM13: - | FN13: - | FO13: - | FP13: - | FQ13: - | FR13: - | FS13: - | FT13: 9 | FU13: 6 | FV13: 6 | FW13: 2 | FX13: - | FY13: - | FZ13: - | GA13: 6 | GB13: 6 | GC13: 9 | GD13: - | GE13: 500 | GF13: - | GG13: 9 | GH13: - | GI13: 2 | GJ13: 7 | GK13: 955 | GL13: - | GM13: 165 | GN13: 790 | GO13: 9 | GP13: 3 | GQ13: 3 | GR13: 3 | GS13: 3 | GT13: 3 | GU13: 22 | GV13: 2 | GW13: 1 | GX13: - | GY13: 3 | GZ13: 2 | HA13: - | HB13: 2 | HC13: 3 | HD13: 3 | HE13: 3 | HF13: - | HG13: 3 | HH13: - | HI13: 56.91 | HJ13: 11 | HK13: 1 | HL13: 1 | HM13: - | HN13: 1 | HO13: - | HP13: - | HQ13: 1 | HR13: 2 | HS13: 2 | HT13: 2 | HU13: - | HV13: 1 | HW13: - | HX13: 57.18 | HY13: 9 | HZ13: 9 | IA13: 1 | IB13: 3 | IC13: - | ID13: - | IE13: - | IF13: 4 | IG13: … | IH13: … | II13: … | IJ13: … | IK13: … | IL13: … | IM13: … | IN13: … | IO13: … | IP13: … | IQ13: … | IR13: … | IS13: … | IT13: … | IU13: … | IV13: … | IW13: … | IX13: … | IY13: … | IZ13: … | JA13: … | JB13: … | JC13: … | JD13: … | JE13: … | JF13: … | JG13: … | JH13: … | JI13: … | JJ13: … | JK13: … | JL13: … | JM13: … | JN13: … | JO13: … | JP13: … | JQ13: … | JR13: 982 | JS13: 111 | JT13: 2110 | JU13: 2068 | JV13: -1.990521327 | JW13: 21.7535545 | JX13: 23.15 | JY13: 0 | JZ13: 1 | KA13: 0 | KB13: 0 | KC13: 0 | KD13: 0
A14: 2610100006 | B14: 26 | D14: 101 | E14: 00 | F14: 006 | H14: 京都府 | I14: 北区 | J14: 北区 | K14: 中大路 | M14: 4 | N14: - | O14: - | P14: - | Q14: - | R14: - | S14: - | T14: 4 | U14: - | V14: - | W14: - | X14: - | Y14: - | Z14: 4 | AA14: 3 | AB14: 1 | AC14: - | AD14: - | AE14: - | AF14: - | AG14: - | AH14: - | AI14: 177 | AJ14: 109 | AK14: 68 | AL14: - | AM14: - | AN14: - | AO14: - | AP14: - | AQ14: - | AR14: 4 | AS14: 110 | AT14: 3 | AU14: 67 | AV14: - | AW14: - | AX14: 1 | AY14: 15 | AZ14: 3 | BA14: - | BB14: - | BC14: x | BD14: 2 | BE14: 2 | BF14: - | BG14: - | BH14: - | BI14: - | BJ14: 45 | BK14: - | BL14: - | BM14: x | BN14: x | BO14: x | BP14: - | BQ14: - | BR14: - | BS14: - | BT14: - | BU14: - | BV14: - | BW14: - | BX14: x | BY14: x | BZ14: - | CA14: - | CB14: - | CC14: - | CD14: 1 | CE14: x | CF14: - | CG14: - | CH14: 1 | CI14: x | CJ14: - | CK14: - | CL14: 1 | CM14: x | CN14: 1 | CO14: x | CP14: 1 | CQ14: x | CR14: 1 | CS14: x | CT14: 1 | CU14: x | CV14: 3 | CW14: x | CX14: 2 | CY14: x | CZ14: 3 | DA14: x | DB14: 3 | DC14: x | DD14: 2 | DE14: x | DF14: - | DG14: - | DH14: - | DI14: - | DJ14: x | DK14: x | DL14: - | DM14: - | DN14: - | DO14: - | DP14: - | DQ14: - | DR14: - | DS14: - | DT14: - | DU14: - | DV14: - | DW14: - | DX14: x | DY14: x | DZ14: - | EA14: - | EB14: - | EC14: - | ED14: - | EE14: - | EF14: - | EG14: - | EH14: - | EI14: - | EJ14: x | EK14: x | EL14: 3 | EM14: - | EN14: 3 | EO14: - | EP14: - | EQ14: - | ER14: 4 | ES14: - | ET14: - | EU14: - | EV14: 3 | EW14: 1 | EX14: 4 | EY14: 4 | EZ14: - | FA14: - | FB14: - | FC14: - | FD14: - | FE14: 175 | FF14: 175 | FG14: - | FH14: - | FI14: - | FJ14: - | FK14: - | FL14: 4 | FM14: - | FN14: - | FO14: - | FP14: - | FQ14: - | FR14: - | FS14: - | FT14: 4 | FU14: 1 | FV14: 1 | FW14: 1 | FX14: - | FY14: - | FZ14: - | GA14: 1 | GB14: - | GC14: 4 | GD14: - | GE14: x | GF14: - | GG14: 4 | GH14: - | GI14: 2 | GJ14: 2 | GK14: 177 | GL14: - | GM14: 79 | GN14: 98 | GO14: 4 | GP14: - | GQ14: - | GR14: 2 | GS14: 2 | GT14: 2 | GU14: 8 | GV14: 1 | GW14: - | GX14: 1 | GY14: - | GZ14: - | HA14: - | HB14: 1 | HC14: 1 | HD14: 2 | HE14: - | HF14: - | HG14: - | HH14: 2 | HI14: 62.13 | HJ14: 4 | HK14: - | HL14: - | HM14: - | HN14: - | HO14: - | HP14: - | HQ14: 1 | HR14: 1 | HS14: 1 | HT14: - | HU14: - | HV14: - | HW14: 1 | HX14: 68 | HY14: 4 | HZ14: 2 | IA14: 1 | IB14: - | IC14: 2 | ID14: - | IE14: - | IF14: 3 | IG14: … | IH14: … | II14: … | IJ14: … | IK14: … | IL14: … | IM14: … | IN14: … | IO14: … | IP14: … | IQ14: … | IR14: … | IS14: … | IT14: … | IU14: … | IV14: … | IW14: … | IX14: … | IY14: … | IZ14: … | JA14: … | JB14: … | JC14: … | JD14: … | JE14: … | JF14: … | JG14: … | JH14: … | JI14: … | JJ14: … | JK14: … | JL14: … | JM14: … | JN14: … | JO14: … | JP14: … | JQ14: … | JR14: 138 | JS14: 21 | JT14: 330 | JU14: 205 | JV14: -37.87878788 | JW14: 29.09090909 | JX14: 4.47 | JY14: 0 | JZ14: 1 | KA14: 0 | KB14: 0 | KC14: 0 | KD14: 0
A15: 2610100007 | B15: 26 | D15: 101 | E15: 00 | F15: 007 | H15: 京都府 | I15: 北区 | J15: 北区 | K15: 池殿 | M15: 6 | N15: - | O15: - | P15: - | Q15: - | R15: - | S15: - | T15: 6 | U15: 1 | V15: - | W15: - | X15: 2 | Y15: 9 | Z15: 6 | AA15: 1 | AB15: 3 | AC15: 2 | AD15: - | AE15: - | AF15: - | AG15: - | AH15: - | AI15: 505 | AJ15: 40 | AK15: 225 | AL15: 240 | AM15: - | AN15: - | AO15: - | AP15: - | AQ15: - | AR15: 3 | AS15: 190 | AT15: 5 | AU15: 315 | AV15: - | AW15: - | AX15: - | AY15: - | AZ15: - | BA15: - | BB15: - | BC15: x | BD15: 4 | BE15: 2 | BF15: - | BG15: - | BH15: - | BI15: - | BJ15: - | BK15: - | BL15: - | BM15: x | BN15: 168 | BO15: x | BP15: - | BQ15: - | BR15: - | BS15: - | BT15: - | BU15: - | BV15: - | BW15: - | BX15: x | BY15: x | BZ15: - | CA15: - | CB15: - | CC15: - | CD15: 3 | CE15: 73 | CF15: - | CG15: - | CH15: - | CI15: - | CJ15: - | CK15: - | CL15: 1 | CM15: x | CN15: 1 | CO15: x | CP15: 2 | CQ15: x | CR15: 2 | CS15: x | CT15: - | CU15: - | CV15: 3 | CW15: x | CX15: 2 | CY15: x | CZ15: 3 | DA15: x | DB15: 3 | DC15: x | DD15: 2 | DE15: x | DF15: 2 | DG15: x | DH15: - | DI15: - | DJ15: x | DK15: x | DL15: - | DM15: - | DN15: - | DO15: - | DP15: - | DQ15: - | DR15: - | DS15: - | DT15: - | DU15: - | DV15: - | DW15: - | DX15: x | DY15: x | DZ15: - | EA15: - | EB15: - | EC15: - | ED15: - | EE15: - | EF15: - | EG15: - | EH15: - | EI15: - | EJ15: x | EK15: x | EL15: 5 | EM15: - | EN15: 5 | EO15: - | EP15: - | EQ15: - | ER15: 10 | ES15: - | ET15: 2 | EU15: 4 | EV15: 2 | EW15: 2 | EX15: 6 | EY15: 2 | EZ15: 1 | FA15: 3 | FB15: - | FC15: - | FD15: - | FE15: 2175 | FF15: 75 | FG15: 200 | FH15: 1900 | FI15: - | FJ15: - | FK15: - | FL15: 6 | FM15: - | FN15: - | FO15: - | FP15: - | FQ15: - | FR15: - | FS15: - | FT15: 6 | FU15: 4 | FV15: 2 | FW15: 4 | FX15: - | FY15: - | FZ15: - | GA15: 4 | GB15: 4 | GC15: 4 | GD15: 2 | GE15: 217 | GF15: 90 | GG15: 6 | GH15: - | GI15: 2 | GJ15: 4 | GK15: 505 | GL15: - | GM15: 170 | GN15: 335 | GO15: 6 | GP15: 2 | GQ15: 2 | GR15: 2 | GS15: 2 | GT15: 2 | GU15: 14 | GV15: 1 | GW15: - | GX15: - | GY15: 1 | GZ15: - | HA15: 3 | HB15: 2 | HC15: - | HD15: 2 | HE15: - | HF15: - | HG15: 2 | HH15: 3 | HI15: 63.86 | HJ15: 7 | HK15: - | HL15: - | HM15: - | HN15: - | HO15: - | HP15: 2 | HQ15: 1 | HR15: - | HS15: 1 | HT15: - | HU15: - | HV15: 2 | HW15: 1 | HX15: 67.86 | HY15: 6 | HZ15: 5 | IA15: 1 | IB15: 1 | IC15: 1 | ID15: - | IE15: - | IF15: 3 | IG15: … | IH15: … | II15: … | IJ15: … | IK15: … | IL15: … | IM15: … | IN15: … | IO15: … | IP15: … | IQ15: … | IR15: … | IS15: … | IT15: … | IU15: … | IV15: … | IW15: … | IX15: … | IY15: … | IZ15: … | JA15: … | JB15: … | JC15: … | JD15: … | JE15: … | JF15: … | JG15: … | JH15: … | JI15: … | JJ15: … | JK15: … | JL15: … | JM15: … | JN15: … | JO15: … | JP15: … | JQ15: … | JR15: 139 | JS15: 23 | JT15: 315 | JU15: 283 | JV15: -10.15873016 | JW15: 33.33333333 | JX15: 4.5 | JY15: 0 | JZ15: 1 | KA15: 0 | KB15: 0 | KC15: 0 | KD15: 0
A16: 2610100008 | B16: 26 | D16: 101 | E16: 00 | F16: 008 | H16: 京都府 | I16: 北区 | J16: 北区 | K16: 御薗口 | M16: 5 | N16: - | O16: - | P16: - | Q16: - | R16: - | S16: - | T16: 5 | U16: - | V16: - | W16: - | X16: 1 | Y16: 2 | Z16: 5 | AA16: - | AB16: 2 | AC16: 3 | AD16: - | AE16: - | AF16: - | AG16: - | AH16: - | AI16: 468 | AJ16: - | AK16: 110 | AL16: 358 | AM16: - | AN16: - | AO16: - | AP16: - | AQ16: - | AR16: 3 | AS16: 280 | AT16: 5 | AU16: 188 | AV16: - | AW16: - | AX16: 1 | AY16: 20 | AZ16: - | BA16: - | BB16: - | BC16: x | BD16: 4 | BE16: 2 | BF16: - | BG16: - | BH16: - | BI16: - | BJ16: - | BK16: - | BL16: - | BM16: x | BN16: 197 | BO16: x | BP16: - | BQ16: - | BR16: - | BS16: - | BT16: - | BU16: - | BV16: - | BW16: - | BX16: x | BY16: x | BZ16: - | CA16: - | CB16: - | CC16: - | CD16: - | CE16: - | CF16: - | CG16: - | CH16: - | CI16: - | CJ16: - | CK16: - | CL16: 1 | CM16: x | CN16: - | CO16: - | CP16: 1 | CQ16: x | CR16: 2 | CS16: x | CT16: - | CU16: - | CV16: 5 | CW16: x | CX16: 1 | CY16: x | CZ16: 5 | DA16: x | DB16: 5 | DC16: x | DD16: 1 | DE16: x | DF16: 1 | DG16: x | DH16: - | DI16: - | DJ16: x | DK16: x | DL16: - | DM16: - | DN16: - | DO16: - | DP16: - | DQ16: - | DR16: - | DS16: - | DT16: - | DU16: - | DV16: - | DW16: - | DX16: x | DY16: x | DZ16: - | EA16: - | EB16: - | EC16: - | ED16: - | EE16: - | EF16: - | EG16: - | EH16: - | EI16: - | EJ16: x | EK16: x | EL16: 5 | EM16: - | EN16: 5 | EO16: - | EP16: - | EQ16: - | ER16: 8 | ES16: 1 | ET16: - | EU16: 3 | EV16: 3 | EW16: 1 | EX16: 5 | EY16: - | EZ16: 2 | FA16: 3 | FB16: - | FC16: - | FD16: - | FE16: 2300 | FF16: - | FG16: 400 | FH16: 1900 | FI16: - | FJ16: - | FK16: - | FL16: 5 | FM16: - | FN16: - | FO16: - | FP16: - | FQ16: - | FR16: - | FS16: - | FT16: 5 | FU16: 2 | FV16: 2 | FW16: 1 | FX16: - | FY16: - | FZ16: - | GA16: 2 | GB16: 2 | GC16: 5 | GD16: 2 | GE16: x | GF16: 6 | GG16: 5 | GH16: - | GI16: 1 | GJ16: 4 | GK16: 468 | GL16: - | GM16: 100 | GN16: 368 | GO16: 5 | GP16: 2 | GQ16: 2 | GR16: 1 | GS16: 1 | GT16: 2 | GU16: 15 | GV16: - | GW16: 1 | GX16: 1 | GY16: 1 | GZ16: 2 | HA16: - | HB16: - | HC16: 2 | HD16: 4 | HE16: 2 | HF16: 1 | HG16: 1 | HH16: - | HI16: 59.53 | HJ16: 6 | HK16: - | HL16: - | HM16: - | HN16: 1 | HO16: 1 | HP16: - | HQ16: - | HR16: 1 | HS16: 2 | HT16: 1 | HU16: - | HV16: - | HW16: - | HX16: 58 | HY16: 5 | HZ16: 5 | IA16: 1 | IB16: - | IC16: - | ID16: - | IE16: - | IF16: 1 | IG16: … | IH16: … | II16: … | IJ16: … | IK16: … | IL16: … | IM16: … | IN16: … | IO16: … | IP16: … | IQ16: … | IR16: … | IS16: … | IT16: … | IU16: … | IV16: … | IW16: … | IX16: … | IY16: … | IZ16: … | JA16: … | JB16: … | JC16: … | JD16: … | JE16: … | JF16: … | JG16: … | JH16: … | JI16: … | JJ16: … | JK16: … | JL16: … | JM16: … | JN16: … | JO16: … | JP16: … | JQ16: … | JR16: 135 | JS16: 28 | JT16: 307 | JU16: 223 | JV16: -27.36156352 | JW16: 33.8762215 | JX16: 6.26 | JY16: 0 | JZ16: 1 | KA16: 0 | KB16: 0 | KC16: 0 | KD16: 0
A17: 2610100009 | B17: 26 | D17: 101 | E17: 00 | F17: 009 | H17: 京都府 | I17: 北区 | J17: 北区 | K17: 上ノ段 | M17: 15 | N17: - | O17: - | P17: - | Q17: - | R17: - | S17: - | T17: 15 | U17: 2 | V17: 1 | W17: 6 | X17: 3 | Y17: 29 | Z17: 15 | AA17: 5 | AB17: 6 | AC17: 4 | AD17: - | AE17: - | AF17: - | AG17: - | AH17: - | AI17: 1057 | AJ17: 156 | AK17: 396 | AL17: 505 | AM17: - | AN17: - | AO17: - | AP17: - | AQ17: - | AR17: 11 | AS17: 577 | AT17: 12 | AU17: 479 | AV17: 1 | AW17: 1 | AX17: 4 | AY17: 57 | AZ17: 9 | BA17: - | BB17: 1 | BC17: x | BD17: 12 | BE17: 6 | BF17: - | BG17: - | BH17: - | BI17: - | BJ17: 387 | BK17: - | BL17: x | BM17: x | BN17: 276 | BO17: 155.48 | BP17: - | BQ17: - | BR17: - | BS17: - | BT17: - | BU17: - | BV17: - | BW17: - | BX17: x | BY17: x | BZ17: - | CA17: - | CB17: - | CC17: - | CD17: 11 | CE17: x | CF17: 4 | CG17: 11 | CH17: 8 | CI17: x | CJ17: 6 | CK17: 10 | CL17: 8 | CM17: 12.03 | CN17: - | CO17: - | CP17: 11 | CQ17: 38 | CR17: 8 | CS17: 16 | CT17: 1 | CU17: x | CV17: 9 | CW17: 27.1 | CX17: 5 | CY17: 18.1 | CZ17: 9 | DA17: 48.5 | DB17: 10 | DC17: 23.7 | DD17: 6 | DE17: 17.7 | DF17: 2 | DG17: x | DH17: - | DI17: - | DJ17: x | DK17: x | DL17: - | DM17: - | DN17: - | DO17: - | DP17: - | DQ17: - | DR17: - | DS17: - | DT17: - | DU17: - | DV17: - | DW17: - | DX17: x | DY17: x | DZ17: - | EA17: - | EB17: - | EC17: - | ED17: - | EE17: - | EF17: - | EG17: - | EH17: - | EI17: - | EJ17: x | EK17: x | EL17: 13 | EM17: 1 | EN17: 12 | EO17: - | EP17: - | EQ17: - | ER17: 23 | ES17: - | ET17: 4 | EU17: 4 | EV17: 10 | EW17: 5 | EX17: 15 | EY17: 5 | EZ17: 5 | FA17: 3 | FB17: 2 | FC17: - | FD17: - | FE17: 6725 | FF17: 175 | FG17: 1000 | FH17: 1550 | FI17: 4000 | FJ17: - | FK17: - | FL17: 15 | FM17: 1 | FN17: 1 | FO17: - | FP17: - | FQ17: - | FR17: - | FS17: - | FT17: 15 | FU17: 3 | FV17: 3 | FW17: - | FX17: - | FY17: - | FZ17: - | GA17: 3 | GB17: 2 | GC17: 13 | GD17: 2 | GE17: 842 | GF17: 45 | GG17: 15 | GH17: - | GI17: 1 | GJ17: 14 | GK17: 1057 | GL17: - | GM17: 46 | GN17: 1011 | GO17: 15 | GP17: 5 | GQ17: 5 | GR17: 5 | GS17: 5 | GT17: 5 | GU17: 27 | GV17: 3 | GW17: 2 | GX17: 1 | GY17: 2 | GZ17: 1 | HA17: - | HB17: 5 | HC17: 6 | HD17: 1 | HE17: 2 | HF17: 4 | HG17: - | HH17: - | HI17: 55.74 | HJ17: 10 | HK17: 1 | HL17: - | HM17: - | HN17: 1 | HO17: - | HP17: - | HQ17: 4 | HR17: 2 | HS17: - | HT17: 1 | HU17: 1 | HV17: - | HW17: - | HX17: 57.6 | HY17: 15 | HZ17: 13 | IA17: 4 | IB17: 4 | IC17: 2 | ID17: - | IE17: - | IF17: 10 | IG17: 1 | IH17: 1 | II17: 0 | IJ17: 1 | IK17: - | IL17: - | IM17: 1 | IN17: - | IO17: - | IP17: - | IQ17: - | IR17: 1 | IS17: 1 | IT17: 1 | IU17: 1 | IV17: 1 | IW17: - | IX17: - | IY17: - | IZ17: - | JA17: 1 | JB17: 1 | JC17: 1 | JD17: - | JE17: - | JF17: - | JG17: - | JH17: 1 | JI17: 1 | JJ17: 1 | JK17: 1 | JL17: 1 | JM17: 1 | JN17: 1 | JO17: 1 | JP17: 1 | JQ17: 1 | JR17: 1678 | JS17: 89 | JT17: 4017 | JU17: 3418 | JV17: -14.91162559 | JW17: 24.17226786 | JX17: 194.31 | JY17: 67.27 | JZ17: 1 | KA17: 0 | KB17: 0 | KC17: 0 | KD17: 0
A18: 2610100010 | B18: 26 | D18: 101 | E18: 00 | F18: 010 | H18: 京都府 | I18: 北区 | J18: 北区 | K18: 下ノ段 | M18: 12 | N18: - | O18: - | P18: - | Q18: - | R18: - | S18: - | T18: 12 | U18: 4 | V18: - | W18: - | X18: - | Y18: - | Z18: 12 | AA18: 3 | AB18: 7 | AC18: 2 | AD18: - | AE18: - | AF18: - | AG18: - | AH18: - | AI18: 824 | AJ18: 122 | AK18: 472 | AL18: 230 | AM18: - | AN18: - | AO18: - | AP18: - | AQ18: - | AR18: 11 | AS18: 503 | AT18: 9 | AU18: 318 | AV18: 1 | AW18: 3 | AX18: - | AY18: - | AZ18: 8 | BA18: - | BB18: 2 | BC18: x | BD18: 8 | BE18: 4 | BF18: 1 | BG18: - | BH18: - | BI18: - | BJ18: 244 | BK18: - | BL18: x | BM18: x | BN18: x | BO18: 3.71 | BP18: x | BQ18: - | BR18: - | BS18: - | BT18: - | BU18: - | BV18: - | BW18: - | BX18: x | BY18: x | BZ18: - | CA18: - | CB18: - | CC18: - | CD18: 6 | CE18: 37 | CF18: 3 | CG18: 9 | CH18: 4 | CI18: 12 | CJ18: 4 | CK18: 14 | CL18: 4 | CM18: 19 | CN18: 4 | CO18: 9 | CP18: 6 | CQ18: 33 | CR18: 4 | CS18: 12 | CT18: 2 | CU18: x | CV18: 5 | CW18: x | CX18: 2 | CY18: x | CZ18: 6 | DA18: x | DB18: 4 | DC18: x | DD18: 2 | DE18: x | DF18: - | DG18: - | DH18: - | DI18: - | DJ18: x | DK18: x | DL18: - | DM18: - | DN18: - | DO18: - | DP18: - | DQ18: - | DR18: - | DS18: - | DT18: - | DU18: - | DV18: - | DW18: - | DX18: x | DY18: x | DZ18: - | EA18: - | EB18: - | EC18: - | ED18: - | EE18: - | EF18: - | EG18: - | EH18: - | EI18: - | EJ18: x | EK18: x | EL18: 11 | EM18: 3 | EN18: 8 | EO18: - | EP18: - | EQ18: - | ER18: 18 | ES18: 1 | ET18: 5 | EU18: 2 | EV18: 2 | EW18: 8 | EX18: 12 | EY18: 5 | EZ18: 1 | FA18: 3 | FB18: 2 | FC18: 1 | FD18: - | FE18: 9550 | FF18: 150 | FG18: 200 | FH18: 1200 | FI18: 4000 | FJ18: 4000 | FK18: - | FL18: 12 | FM18: 1 | FN18: 1 | FO18: - | FP18: - | FQ18: - | FR18: - | FS18: - | FT18: 12 | FU18: 1 | FV18: 1 | FW18: - | FX18: - | FY18: - | FZ18: - | GA18: 1 | GB18: 1 | GC18: 11 | GD18: 1 | GE18: 554 | GF18: 5 | GG18: 12 | GH18: - | GI18: 1 | GJ18: 11 | GK18: 824 | GL18: - | GM18: 130 | GN18: 694 | GO18: 12 | GP18: 3 | GQ18: 3 | GR18: 6 | GS18: 4 | GT18: 3 | GU18: 22 | GV18: - | GW18: - | GX18: 2 | GY18: 1 | GZ18: 3 | HA18: 2 | HB18: 2 | HC18: 3 | HD18: 2 | HE18: 2 | HF18: 1 | HG18: 2 | HH18: 2 | HI18: 62.36 | HJ18: 10 | HK18: - | HL18: - | HM18: 1 | HN18: 1 | HO18: 1 | HP18: 1 | HQ18: - | HR18: 2 | HS18: 1 | HT18: 1 | HU18: - | HV18: 1 | HW18: 1 | HX18: 61.8 | HY18: 12 | HZ18: 11 | IA18: - | IB18: 2 | IC18: 1 | ID18: - | IE18: - | IF18: 3 | IG18: 1 | IH18: 1 | II18: 0 | IJ18: 1 | IK18: - | IL18: - | IM18: - | IN18: 1 | IO18: - | IP18: - | IQ18: 1 | IR18: 1 | IS18: 1 | IT18: 1 | IU18: 1 | IV18: - | IW18: - | IX18: - | IY18: - | IZ18: - | JA18: 1 | JB18: 1 | JC18: - | JD18: - | JE18: - | JF18: - | JG18: - | JH18: 1 | JI18: 0 | JJ18: 1 | JK18: 1 | JL18: 1 | JM18: 0 | JN18: 1 | JO18: 0 | JP18: 0 | JQ18: 0 | JR18: 446 | JS18: 35 | JT18: 1108 | JU18: 817 | JV18: -26.26353791 | JW18: 21.84115523 | JX18: 184.18 | JY18: 101.26 | JZ18: 1 | KA18: 0 | KB18: 0 | KC18: 0 | KD18: 0
A19: 2610100011 | B19: 26 | D19: 101 | E19: 00 | F19: 011 | H19: 京都府 | I19: 北区 | J19: 北区 | K19: 分レ | M19: - | N19: - | O19: - | P19: - | Q19: - | R19: - | S19: - | T19: - | U19: - | V19: - | W19: - | X19: - | Y19: - | Z19: - | AA19: - | AB19: - | AC19: - | AD19: - | AE19: - | AF19: - | AG19: - | AH19: - | AI19: - | AJ19: - | AK19: - | AL19: - | AM19: - | AN19: - | AO19: - | AP19: - | AQ19: - | AR19: - | AS19: - | AT19: - | AU19: - | AV19: - | AW19: - | AX19: - | AY19: - | AZ19: - | BA19: - | BB19: - | BC19: x | BD19: - | BE19: - | BF19: - | BG19: - | BH19: - | BI19: - | BJ19: - | BK19: - | BL19: - | BM19: x | BN19: - | BO19: - | BP19: - | BQ19: - | BR19: - | BS19: - | BT19: - | BU19: - | BV19: - | BW19: - | BX19: x | BY19: x | BZ19: - | CA19: - | CB19: - | CC19: - | CD19: - | CE19: - | CF19: - | CG19: - | CH19: - | CI19: - | CJ19: - | CK19: - | CL19: - | CM19: - | CN19: - | CO19: - | CP19: - | CQ19: - | CR19: - | CS19: - | CT19: - | CU19: - | CV19: - | CW19: - | CX19: - | CY19: - | CZ19: - | DA19: - | DB19: - | DC19: - | DD19: - | DE19: - | DF19: - | DG19: - | DH19: - | DI19: - | DJ19: x | DK19: x | DL19: - | DM19: - | DN19: - | DO19: - | DP19: - | DQ19: - | DR19: - | DS19: - | DT19: - | DU19: - | DV19: - | DW19: - | DX19: x | DY19: x | DZ19: - | EA19: - | EB19: - | EC19: - | ED19: - | EE19: - | EF19: - | EG19: - | EH19: - | EI19: - | EJ19: x | EK19: x | EL19: - | EM19: - | EN19: - | EO19: - | EP19: - | EQ19: - | ER19: - | ES19: - | ET19: - | EU19: - | EV19: - | EW19: - | EX19: - | EY19: - | EZ19: - | FA19: - | FB19: - | FC19: - | FD19: - | FE19: - | FF19: - | FG19: - | FH19: - | FI19: - | FJ19: - | FK19: - | FL19: - | FM19: - | FN19: - | FO19: - | FP19: - | FQ19: - | FR19: - | FS19: - | FT19: - | FU19: - | FV19: - | FW19: - | FX19: - | FY19: - | FZ19: - | GA19: - | GB19: - | GC19: - | GD19: - | GE19: - | GF19: - | GG19: - | GH19: - | GI19: - | GJ19: - | GK19: - | GL19: - | GM19: - | GN19: - | GO19: - | GP19: - | GQ19: - | GR19: - | GS19: - | GT19: - | GU19: - | GV19: - | GW19: - | GX19: - | GY19: - | GZ19: - | HA19: - | HB19: - | HC19: - | HD19: - | HE19: - | HF19: - | HG19: - | HH19: - | HI19: - | HJ19: - | HK19: - | HL19: - | HM19: - | HN19: - | HO19: - | HP19: - | HQ19: - | HR19: - | HS19: - | HT19: - | HU19: - | HV19: - | HW19: - | HX19: - | HY19: - | HZ19: - | IA19: - | IB19: - | IC19: - | ID19: - | IE19: - | IF19: - | IG19: 1 | IH19: 0 | II19: 1 | IJ19: - | IK19: - | IL19: - | IM19: - | IN19: - | IO19: - | IP19: 1 | IQ19: - | IR19: - | IS19: - | IT19: - | IU19: - | IV19: - | IW19: - | IX19: - | IY19: - | IZ19: - | JA19: - | JB19: - | JC19: - | JD19: - | JE19: - | JF19: - | JG19: - | JH19: 1 | JI19: 0 | JJ19: 1 | JK19: 0 | JL19: 1 | JM19: 0 | JN19: 1 | JO19: 0 | JP19: 1 | JQ19: 0 | JR19: 1165 | JS19: 79 | JT19: 2359 | JU19: 2003 | JV19: -15.09114031 | JW19: 28.52903773 | JX19: 25.38 | JY19: 0 | JZ19: 1 | KA19: 0 | KB19: 0 | KC19: 0 | KD19: 0
A20: 2610100012 | B20: 26 | D20: 101 | E20: 00 | F20: 012 | H20: 京都府 | I20: 北区 | J20: 北区 | K20: 大宮第一区 | M20: 3 | N20: - | O20: - | P20: - | Q20: - | R20: - | S20: - | T20: 3 | U20: - | V20: - | W20: - | X20: - | Y20: - | Z20: 3 | AA20: 2 | AB20: 1 | AC20: - | AD20: - | AE20: - | AF20: - | AG20: - | AH20: - | AI20: 138 | AJ20: 65 | AK20: 73 | AL20: - | AM20: - | AN20: - | AO20: - | AP20: - | AQ20: - | AR20: 2 | AS20: 93 | AT20: 2 | AU20: 45 | AV20: - | AW20: - | AX20: - | AY20: - | AZ20: 2 | BA20: - | BB20: - | BC20: x | BD20: 2 | BE20: 1 | BF20: - | BG20: - | BH20: - | BI20: - | BJ20: x | BK20: - | BL20: - | BM20: x | BN20: x | BO20: x | BP20: - | BQ20: - | BR20: - | BS20: - | BT20: - | BU20: - | BV20: - | BW20: - | BX20: x | BY20: x | BZ20: - | CA20: - | CB20: - | CC20: - | CD20: 2 | CE20: x | CF20: - | CG20: - | CH20: - | CI20: - | CJ20: - | CK20: - | CL20: - | CM20: - | CN20: - | CO20: - | CP20: 1 | CQ20: x | CR20: 1 | CS20: x | CT20: - | CU20: - | CV20: 1 | CW20: x | CX20: 1 | CY20: x | CZ20: 1 | DA20: x | DB20: 1 | DC20: x | DD20: 1 | DE20: x | DF20: - | DG20: - | DH20: - | DI20: - | DJ20: x | DK20: x | DL20: - | DM20: - | DN20: - | DO20: - | DP20: - | DQ20: - | DR20: - | DS20: - | DT20: - | DU20: - | DV20: - | DW20: - | DX20: x | DY20: x | DZ20: - | EA20: - | EB20: - | EC20: - | ED20: - | EE20: - | EF20: - | EG20: - | EH20: - | EI20: - | EJ20: x | EK20: x | EL20: 2 | EM20: 1 | EN20: 1 | EO20: - | EP20: - | EQ20: - | ER20: 2 | ES20: - | ET20: - | EU20: 1 | EV20: 1 | EW20: - | EX20: 3 | EY20: 3 | EZ20: - | FA20: - | FB20: - | FC20: - | FD20: - | FE20: 50 | FF20: 50 | FG20: - | FH20: - | FI20: - | FJ20: - | FK20: - | FL20: 3 | FM20: - | FN20: - | FO20: - | FP20: - | FQ20: - | FR20: - | FS20: - | FT20: 3 | FU20: - | FV20: - | FW20: - | FX20: - | FY20: - | FZ20: - | GA20: - | GB20: - | GC20: 3 | GD20: - | GE20: 125 | GF20: - | GG20: 3 | GH20: - | GI20: - | GJ20: 3 | GK20: 138 | GL20: - | GM20: - | GN20: 138 | GO20: 3 | GP20: - | GQ20: - | GR20: 1 | GS20: - | GT20: 2 | GU20: 3 | GV20: - | GW20: - | GX20: - | GY20: - | GZ20: - | HA20: - | HB20: - | HC20: - | HD20: - | HE20: 2 | HF20: 1 | HG20: - | HH20: - | HI20: 73.67 | HJ20: 1 | HK20: - | HL20: - | HM20: - | HN20: - | HO20: - | HP20: - | HQ20: - | HR20: - | HS20: - | HT20: 1 | HU20: - | HV20: - | HW20: - | HX20: 72 | HY20: 3 | HZ20: 3 | IA20: - | IB20: - | IC20: - | ID20: - | IE20: - | IF20: - | IG20: … | IH20: … | II20: … | IJ20: … | IK20: … | IL20: … | IM20: … | IN20: … | IO20: … | IP20: … | IQ20: … | IR20: … | IS20: … | IT20: … | IU20: … | IV20: … | IW20: … | IX20: … | IY20: … | IZ20: … | JA20: … | JB20: … | JC20: … | JD20: … | JE20: … | JF20: … | JG20: … | JH20: … | JI20: … | JJ20: … | JK20: … | JL20: … | JM20: … | JN20: … | JO20: … | JP20: … | JQ20: … | JR20: 3390 | JS20: 240 | JT20: 6520 | JU20: 4779 | JV20: -26.70245399 | JW20: 24.03374233 | JX20: 50.42 | JY20: 0 | JZ20: 1 | KA20: 0 | KB20: 0 | KC20: 0 | KD20: 0
A21: 2610100013 | B21: 26 | D21: 101 | E21: 00 | F21: 013 | H21: 京都府 | I21: 北区 | J21: 北区 | K21: 大宮第二区 | M21: 8 | N21: - | O21: - | P21: - | Q21: - | R21: - | S21: - | T21: 8 | U21: 1 | V21: - | W21: - | X21: 1 | Y21: 2 | Z21: 8 | AA21: 2 | AB21: 2 | AC21: 3 | AD21: - | AE21: 1 | AF21: - | AG21: - | AH21: - | AI21: 1427 | AJ21: 60 | AK21: 117 | AL21: 540 | AM21: - | AN21: 710 | AO21: - | AP21: - | AQ21: - | AR21: 8 | AS21: 414 | AT21: 8 | AU21: 1010 | AV21: 1 | AW21: 3 | AX21: 1 | AY21: 4 | AZ21: 4 | BA21: - | BB21: 1 | BC21: x | BD21: 4 | BE21: 4 | BF21: 3 | BG21: - | BH21: 1 | BI21: - | BJ21: 184 | BK21: - | BL21: x | BM21: x | BN21: 52 | BO21: 23.63 | BP21: 705 | BQ21: - | BR21: x | BS21: - | BT21: - | BU21: - | BV21: - | BW21: - | BX21: x | BY21: x | BZ21: - | CA21: - | CB21: - | CC21: - | CD21: 3 | CE21: 4 | CF21: - | CG21: - | CH21: 2 | CI21: x | CJ21: 1 | CK21: x | CL21: 2 | CM21: x | CN21: - | CO21: - | CP21: 3 | CQ21: 4 | CR21: 1 | CS21: x | CT21: 2 | CU21: x | CV21: 4 | CW21: x | CX21: 4 | CY21: 6.71 | CZ21: 4 | DA21: x | DB21: 4 | DC21: x | DD21: 4 | DE21: 8.12 | DF21: - | DG21: - | DH21: - | DI21: - | DJ21: x | DK21: x | DL21: - | DM21: - | DN21: - | DO21: - | DP21: - | DQ21: - | DR21: - | DS21: - | DT21: - | DU21: - | DV21: - | DW21: - | DX21: x | DY21: x | DZ21: - | EA21: - | EB21: - | EC21: - | ED21: - | EE21: - | EF21: - | EG21: - | EH21: - | EI21: - | EJ21: x | EK21: x | EL21: 8 | EM21: 2 | EN21: 3 | EO21: - | EP21: 3 | EQ21: - | ER21: 11 | ES21: 2 | ET21: 2 | EU21: 2 | EV21: 2 | EW21: 3 | EX21: 8 | EY21: 4 | EZ21: 3 | FA21: - | FB21: - | FC21: 1 | FD21: - | FE21: 4800 | FF21: 200 | FG21: 600 | FH21: - | FI21: - | FJ21: 4000 | FK21: - | FL21: 8 | FM21: - | FN21: - | FO21: - | FP21: - | FQ21: - | FR21: - | FS21: - | FT21: 8 | FU21: 2 | FV21: 1 | FW21: - | FX21: - | FY21: - | FZ21: - | GA21: 2 | GB21: 2 | GC21: 8 | GD21: 3 | GE21: 970 | GF21: 408 | GG21: 8 | GH21: - | GI21: 1 | GJ21: 7 | GK21: 1427 | GL21: - | GM21: 24 | GN21: 1403 | GO21: 8 | GP21: 2 | GQ21: 2 | GR21: 3 | GS21: 3 | GT21: 3 | GU21: 13 | GV21: - | GW21: 1 | GX21: - | GY21: - | GZ21: - | HA21: - | HB21: 1 | HC21: 2 | HD21: 3 | HE21: 2 | HF21: 2 | HG21: - | HH21: 2 | HI21: 68.15 | HJ21: 5 | HK21: - | HL21: - | HM21: - | HN21: - | HO21: - | HP21: - | HQ21: 1 | HR21: 1 | HS21: 1 | HT21: 1 | HU21: 1 | HV21: - | HW21: - | HX21: 67.2 | HY21: 8 | HZ21: 8 | IA21: - | IB21: 2 | IC21: - | ID21: - | IE21: - | IF21: 2 | IG21: 1 | IH21: 1 | II21: 0 | IJ21: 1 | IK21: 1 | IL21: - | IM21: - | IN21: - | IO21: - | IP21: - | IQ21: 1 | IR21: 1 | IS21: 1 | IT21: 1 | IU21: 1 | IV21: 1 | IW21: - | IX21: - | IY21: - | IZ21: - | JA21: 1 | JB21: 1 | JC21: - | JD21: - | JE21: - | JF21: - | JG21: - | JH21: 1 | JI21: 0 | JJ21: 1 | JK21: 0 | JL21: 1 | JM21: 0 | JN21: 1 | JO21: 0 | JP21: 1 | JQ21: 0 | JR21: 3722 | JS21: 205 | JT21: 8233 | JU21: 6434 | JV21: -21.85108709 | JW21: 26.00510142 | JX21: 187.16 | JY21: 97.56 | JZ21: 1 | KA21: 0 | KB21: 0 | KC21: 0 | KD21: 0
A22: 2610100014 | B22: 26 | D22: 101 | E22: 00 | F22: 014 | H22: 京都府 | I22: 北区 | J22: 北区 | K22: 西賀茂第一区 | M22: 5 | N22: - | O22: - | P22: - | Q22: - | R22: - | S22: - | T22: 5 | U22: 1 | V22: - | W22: - | X22: - | Y22: - | Z22: 5 | AA22: 5 | AB22: - | AC22: - | AD22: - | AE22: - | AF22: - | AG22: - | AH22: - | AI22: 198 | AJ22: 198 | AK22: - | AL22: - | AM22: - | AN22: - | AO22: - | AP22: - | AQ22: - | AR22: 3 | AS22: 85 | AT22: 4 | AU22: 113 | AV22: - | AW22: - | AX22: - | AY22: - | AZ22: 2 | BA22: - | BB22: 1 | BC22: x | BD22: 4 | BE22: 2 | BF22: - | BG22: - | BH22: - | BI22: - | BJ22: x | BK22: - | BL22: x | BM22: x | BN22: 280 | BO22: x | BP22: - | BQ22: - | BR22: - | BS22: - | BT22: - | BU22: - | BV22: - | BW22: - | BX22: x | BY22: x | BZ22: - | CA22: - | CB22: - | CC22: - | CD22: 3 | CE22: 5 | CF22: 1 | CG22: x | CH22: 3 | CI22: 5 | CJ22: 3 | CK22: 6 | CL22: 3 | CM22: 6 | CN22: 1 | CO22: x | CP22: 3 | CQ22: 6 | CR22: 3 | CS22: 3 | CT22: 2 | CU22: x | CV22: 2 | CW22: x | CX22: 2 | CY22: x | CZ22: 2 | DA22: x | DB22: 3 | DC22: x | DD22: 2 | DE22: x | DF22: - | DG22: - | DH22: - | DI22: - | DJ22: x | DK22: x | DL22: - | DM22: - | DN22: - | DO22: - | DP22: - | DQ22: - | DR22: - | DS22: - | DT22: - | DU22: - | DV22: - | DW22: - | DX22: x | DY22: x | DZ22: - | EA22: - | EB22: - | EC22: - | ED22: - | EE22: - | EF22: - | EG22: - | EH22: - | EI22: - | EJ22: x | EK22: x | EL22: 4 | EM22: 1 | EN22: 3 | EO22: - | EP22: - | EQ22: - | ER22: 8 | ES22: 1 | ET22: 1 | EU22: 1 | EV22: 3 | EW22: 2 | EX22: 5 | EY22: 2 | EZ22: 1 | FA22: 2 | FB22: - | FC22: - | FD22: - | FE22: 1725 | FF22: 25 | FG22: 200 | FH22: 1500 | FI22: - | FJ22: - | FK22: - | FL22: 5 | FM22: - | FN22: - | FO22: - | FP22: - | FQ22: - | FR22: - | FS22: - | FT22: 5 | FU22: 2 | FV22: 1 | FW22: 1 | FX22: - | FY22: - | FZ22: - | GA22: 2 | GB22: 2 | GC22: 5 | GD22: 2 | GE22: 335 | GF22: 45 | GG22: 5 | GH22: - | GI22: 1 | GJ22: 4 | GK22: 198 | GL22: - | GM22: 40 | GN22: 158 | GO22: 5 | GP22: - | GQ22: - | GR22: 3 | GS22: 3 | GT22: 2 | GU22: 10 | GV22: - | GW22: 3 | GX22: - | GY22: 2 | GZ22: - | HA22: - | HB22: 1 | HC22: 1 | HD22: - | HE22: 1 | HF22: - | HG22: 1 | HH22: 1 | HI22: 54.6 | HJ22: 4 | HK22: - | HL22: 1 | HM22: - | HN22: 1 | HO22: - | HP22: - | HQ22: - | HR22: - | HS22: - | HT22: 1 | HU22: - | HV22: 1 | HW22: - | HX22: 57.25 | HY22: 5 | HZ22: 4 | IA22: - | IB22: 2 | IC22: 1 | ID22: - | IE22: - | IF22: 3 | IG22: 1 | IH22: 1 | II22: 0 | IJ22: 1 | IK22: - | IL22: 1 | IM22: - | IN22: - | IO22: - | IP22: - | IQ22: 1 | IR22: 1 | IS22: - | IT22: - | IU22: 1 | IV22: - | IW22: - | IX22: - | IY22: - | IZ22: - | JA22: - | JB22: 1 | JC22: - | JD22: - | JE22: - | JF22: - | JG22: - | JH22: 1 | JI22: 0 | JJ22: 1 | JK22: 1 | JL22: 1 | JM22: 1 | JN22: 1 | JO22: 0 | JP22: 1 | JQ22: 1 | JR22: 2597 | JS22: 113 | JT22: 6178 | JU22: 5493 | JV22: -11.08773066 | JW22: 20.71867918 | JX22: 525.84 | JY22: 437.89 | JZ22: 1 | KA22: 0 | KB22: 0 | KC22: 0 | KD22: 0
A23: 2610100015 | B23: 26 | D23: 101 | E23: 00 | F23: 015 | H23: 京都府 | I23: 北区 | J23: 北区 | K23: 西賀茂第二区 | M23: 4 | N23: - | O23: - | P23: - | Q23: - | R23: - | S23: 1 | T23: 3 | U23: - | V23: 1 | W23: 3 | X23: 1 | Y23: 3 | Z23: 4 | AA23: 3 | AB23: 1 | AC23: - | AD23: - | AE23: - | AF23: - | AG23: - | AH23: - | AI23: 179 | AJ23: 95 | AK23: 84 | AL23: - | AM23: - | AN23: - | AO23: - | AP23: - | AQ23: - | AR23: 2 | AS23: 114 | AT23: 3 | AU23: 65 | AV23: - | AW23: - | AX23: 1 | AY23: 10 | AZ23: - | BA23: - | BB23: - | BC23: x | BD23: 3 | BE23: 1 | BF23: - | BG23: - | BH23: - | BI23: - | BJ23: - | BK23: - | BL23: - | BM23: x | BN23: 34 | BO23: x | BP23: - | BQ23: - | BR23: - | BS23: - | BT23: - | BU23: - | BV23: - | BW23: - | BX23: x | BY23: x | BZ23: - | CA23: - | CB23: - | CC23: - | CD23: 3 | CE23: 4 | CF23: - | CG23: - | CH23: 3 | CI23: 5 | CJ23: 2 | CK23: x | CL23: 2 | CM23: x | CN23: - | CO23: - | CP23: 3 | CQ23: 6 | CR23: 2 | CS23: x | CT23: 1 | CU23: x | CV23: 2 | CW23: x | CX23: 1 | CY23: x | CZ23: 2 | DA23: x | DB23: 2 | DC23: x | DD23: 1 | DE23: x | DF23: - | DG23: - | DH23: - | DI23: - | DJ23: x | DK23: x | DL23: - | DM23: - | DN23: - | DO23: - | DP23: - | DQ23: - | DR23: - | DS23: - | DT23: - | DU23: - | DV23: - | DW23: - | DX23: x | DY23: x | DZ23: - | EA23: - | EB23: - | EC23: - | ED23: - | EE23: - | EF23: - | EG23: - | EH23: - | EI23: - | EJ23: x | EK23: x | EL23: 4 | EM23: - | EN23: 4 | EO23: - | EP23: - | EQ23: - | ER23: 5 | ES23: - | ET23: - | EU23: 1 | EV23: 3 | EW23: 1 | EX23: 4 | EY23: 1 | EZ23: 1 | FA23: 2 | FB23: - | FC23: - | FD23: - | FE23: 1075 | FF23: 75 | FG23: 200 | FH23: 800 | FI23: - | FJ23: - | FK23: - | FL23: 4 | FM23: - | FN23: - | FO23: - | FP23: - | FQ23: - | FR23: - | FS23: - | FT23: 4 | FU23: 1 | FV23: 1 | FW23: - | FX23: - | FY23: - | FZ23: - | GA23: 1 | GB23: 1 | GC23: 3 | GD23: - | GE23: 44 | GF23: - | GG23: 4 | GH23: - | GI23: 1 | GJ23: 3 | GK23: 179 | GL23: - | GM23: 84 | GN23: 95 | GO23: 3 | GP23: - | GQ23: - | GR23: 2 | GS23: 2 | GT23: 1 | GU23: 5 | GV23: - | GW23: - | GX23: - | GY23: - | GZ23: - | HA23: - | HB23: - | HC23: 2 | HD23: 1 | HE23: 1 | HF23: 1 | HG23: - | HH23: - | HI23: 68 | HJ23: 3 | HK23: - | HL23: - | HM23: - | HN23: - | HO23: - | HP23: - | HQ23: - | HR23: 2 | HS23: - | HT23: 1 | HU23: - | HV23: - | HW23: - | HX23: 65.67 | HY23: 3 | HZ23: 3 | IA23: - | IB23: 2 | IC23: - | ID23: - | IE23: - | IF23: 2 | IG23: 1 | IH23: 1 | II23: 0 | IJ23: 1 | IK23: 1 | IL23: - | IM23: - | IN23: - | IO23: - | IP23: - | IQ23: - | IR23: 1 | IS23: - | IT23: - | IU23: - | IV23: - | IW23: - | IX23: - | IY23: - | IZ23: - | JA23: - | JB23: - | JC23: - | JD23: - | JE23: - | JF23: - | JG23: - | JH23: 1 | JI23: 0 | JJ23: 1 | JK23: 0 | JL23: 1 | JM23: 0 | JN23: 1 | JO23: 0 | JP23: 0 | JQ23: 0 | JR23: 1449 | JS23: 107 | JT23: 3270 | JU23: 2500 | JV23: -23.54740061 | JW23: 24.7706422 | JX23: 87.63 | JY23: 32.31 | JZ23: 1 | KA23: 0 | KB23: 0 | KC23: 0 | KD23: 0
A24: 2610100016 | B24: 26 | D24: 101 | E24: 00 | F24: 016 | H24: 京都府 | I24: 北区 | J24: 北区 | K24: 鷹ケ峰 | M24: 3 | N24: - | O24: - | P24: - | Q24: - | R24: - | S24: - | T24: 3 | U24: - | V24: - | W24: - | X24: - | Y24: - | Z24: 3 | AA24: - | AB24: 2 | AC24: 1 | AD24: - | AE24: - | AF24: - | AG24: - | AH24: - | AI24: 232 | AJ24: - | AK24: 120 | AL24: 112 | AM24: - | AN24: - | AO24: - | AP24: - | AQ24: - | AR24: - | AS24: - | AT24: 3 | AU24: 232 | AV24: - | AW24: - | AX24: 2 | AY24: 60 | AZ24: - | BA24: - | BB24: 1 | BC24: x | BD24: 3 | BE24: 2 | BF24: - | BG24: - | BH24: - | BI24: - | BJ24: - | BK24: - | BL24: x | BM24: x | BN24: 118 | BO24: x | BP24: - | BQ24: - | BR24: - | BS24: - | BT24: - | BU24: - | BV24: - | BW24: - | BX24: x | BY24: x | BZ24: - | CA24: - | CB24: - | CC24: - | CD24: 3 | CE24: x | CF24: - | CG24: - | CH24: 2 | CI24: x | CJ24: 2 | CK24: x | CL24: 2 | CM24: x | CN24: 1 | CO24: x | CP24: 3 | CQ24: 24 | CR24: 1 | CS24: x | CT24: - | CU24: - | CV24: 2 | CW24: x | CX24: 2 | CY24: x | CZ24: 2 | DA24: x | DB24: 2 | DC24: x | DD24: 2 | DE24: x | DF24: - | DG24: - | DH24: - | DI24: - | DJ24: x | DK24: x | DL24: - | DM24: - | DN24: - | DO24: - | DP24: - | DQ24: - | DR24: - | DS24: - | DT24: - | DU24: - | DV24: - | DW24: - | DX24: x | DY24: x | DZ24: - | EA24: - | EB24: - | EC24: - | ED24: - | EE24: - | EF24: - | EG24: - | EH24: - | EI24: - | EJ24: x | EK24: x | EL24: 3 | EM24: - | EN24: 3 | EO24: - | EP24: - | EQ24: - | ER24: 8 | ES24: - | ET24: 2 | EU24: 1 | EV24: 3 | EW24: 2 | EX24: 3 | EY24: 1 | EZ24: 1 | FA24: 1 | FB24: - | FC24: - | FD24: - | FE24: 975 | FF24: 25 | FG24: 200 | FH24: 750 | FI24: - | FJ24: - | FK24: - | FL24: 3 | FM24: - | FN24: - | FO24: - | FP24: - | FQ24: - | FR24: - | FS24: - | FT24: 3 | FU24: 1 | FV24: 1 | FW24: 1 | FX24: - | FY24: - | FZ24: - | GA24: 1 | GB24: 1 | GC24: 3 | GD24: 1 | GE24: 146 | GF24: 22 | GG24: 3 | GH24: - | GI24: - | GJ24: 3 | GK24: 232 | GL24: - | GM24: - | GN24: 232 | GO24: 3 | GP24: 2 | GQ24: 2 | GR24: - | GS24: - | GT24: 1 | GU24: 6 | GV24: - | GW24: - | GX24: - | GY24: 2 | GZ24: - | HA24: - | HB24: 2 | HC24: - | HD24: - | HE24: 2 | HF24: - | HG24: - | HH24: - | HI24: 56.5 | HJ24: 3 | HK24: - | HL24: - | HM24: - | HN24: 1 | HO24: - | HP24: - | HQ24: 1 | HR24: - | HS24: - | HT24: 1 | HU24: - | HV24: - | HW24: - | HX24: 55.33 | HY24: 3 | HZ24: 3 | IA24: - | IB24: 1 | IC24: - | ID24: - | IE24: - | IF24: 1 | IG24: 1 | IH24: 1 | II24: 0 | IJ24: 1 | IK24: - | IL24: 1 | IM24: - | IN24: - | IO24: - | IP24: - | IQ24: - | IR24: - | IS24: - | IT24: - | IU24: 1 | IV24: - | IW24: - | IX24: - | IY24: - | IZ24: - | JA24: - | JB24: 1 | JC24: - | JD24: - | JE24: - | JF24: - | JG24: - | JH24: 1 | JI24: 1 | JJ24: 1 | JK24: 1 | JL24: 1 | JM24: 1 | JN24: 1 | JO24: 0 | JP24: 0 | JQ24: 0 | JR24: 2224 | JS24: 111 | JT24: 4560 | JU24: 2811 | JV24: -38.35526316 | JW24: 29.89035088 | JX24: 266.1 | JY24: 219.27 | JZ24: 1 | KA24: 0 | KB24: 0 | KC24: 0 | KD24: 0
A25: 2610100017 | B25: 26 | D25: 101 | E25: 00 | F25: 017 | H25: 京都府 | I25: 北区 | J25: 北区 | K25: 氷室 | M25: 2 | N25: x | O25: x | P25: x | Q25: x | R25: x | S25: x | T25: x | U25: x | V25: x | W25: x | X25: x | Y25: x | Z25: 2 | AA25: x | AB25: x | AC25: x | AD25: x | AE25: x | AF25: x | AG25: x | AH25: x | AI25: x | AJ25: x | AK25: x | AL25: x | AM25: x | AN25: x | AO25: x | AP25: x | AQ25: x | AR25: x | AS25: x | AT25: x | AU25: x | AV25: x | AW25: x | AX25: x | AY25: x | AZ25: x | BA25: x | BB25: x | BC25: x | BD25: x | BE25: x | BF25: x | BG25: x | BH25: x | BI25: x | BJ25: x | BK25: x | BL25: x | BM25: x | BN25: x | BO25: x | BP25: x | BQ25: x | BR25: x | BS25: x | BT25: x | BU25: x | BV25: x | BW25: x | BX25: x | BY25: x | BZ25: x | CA25: x | CB25: x | CC25: x | CD25: x | CE25: x | CF25: x | CG25: x | CH25: x | CI25: x | CJ25: x | CK25: x | CL25: x | CM25: x | CN25: x | CO25: x | CP25: x | CQ25: x | CR25: x | CS25: x | CT25: x | CU25: x | CV25: x | CW25: x | CX25: x | CY25: x | CZ25: x | DA25: x | DB25: x | DC25: x | DD25: x | DE25: x | DF25: x | DG25: x | DH25: x | DI25: x | DJ25: x | DK25: x | DL25: x | DM25: x | DN25: x | DO25: x | DP25: x | DQ25: x | DR25: x | DS25: x | DT25: x | DU25: x | DV25: x | DW25: x | DX25: x | DY25: x | DZ25: x | EA25: x | EB25: x | EC25: x | ED25: x | EE25: x | EF25: x | EG25: x | EH25: x | EI25: x | EJ25: x | EK25: x | EL25: x | EM25: x | EN25: x | EO25: x | EP25: x | EQ25: x | ER25: x | ES25: x | ET25: x | EU25: x | EV25: x | EW25: x | EX25: 2 | EY25: x | EZ25: x | FA25: x | FB25: x | FC25: x | FD25: x | FE25: x | FF25: x | FG25: x | FH25: x | FI25: x | FJ25: x | FK25: x | FL25: 2 | FM25: x | FN25: x | FO25: x | FP25: x | FQ25: x | FR25: x | FS25: x | FT25: 2 | FU25: x | FV25: x | FW25: x | FX25: x | FY25: x | FZ25: x | GA25: x | GB25: x | GC25: x | GD25: x | GE25: x | GF25: x | GG25: 2 | GH25: x | GI25: x | GJ25: x | GK25: x | GL25: x | GM25: x | GN25: x | GO25: 2 | GP25: x | GQ25: x | GR25: x | GS25: x | GT25: x | GU25: x | GV25: x | GW25: x | GX25: x | GY25: x | GZ25: x | HA25: x | HB25: x | HC25: x | HD25: x | HE25: x | HF25: x | HG25: x | HH25: x | HI25: x | HJ25: x | HK25: x | HL25: x | HM25: x | HN25: x | HO25: x | HP25: x | HQ25: x | HR25: x | HS25: x | HT25: x | HU25: x | HV25: x | HW25: x | HX25: x | HY25: 2 | HZ25: x | IA25: x | IB25: x | IC25: x | ID25: x | IE25: x | IF25: x | IG25: 1 | IH25: 1 | II25: 0 | IJ25: 1 | IK25: - | IL25: - | IM25: 1 | IN25: - | IO25: - | IP25: - | IQ25: 1 | IR25: - | IS25: - | IT25: - | IU25: - | IV25: - | IW25: - | IX25: - | IY25: - | IZ25: - | JA25: - | JB25: - | JC25: - | JD25: - | JE25: - | JF25: - | JG25: - | JH25: 1 | JI25: 1 | JJ25: 1 | JK25: 1 | JL25: 1 | JM25: 1 | JN25: 1 | JO25: 1 | JP25: 1 | JQ25: 1 | JR25: 12 | JS25: 5 | JT25: 30 | JU25: 12 | JV25: -60 | JW25: 50 | JX25: 986.12 | JY25: 986.12 | JZ25: 1 | KA25: 0 | KB25: 0 | KC25: 0 | KD25: 0
A26: 2610100018 | B26: 26 | D26: 101 | E26: 00 | F26: 018 | H26: 京都府 | I26: 北区 | J26: 北区 | K26: ７（紫竹） | M26: 5 | N26: - | O26: - | P26: - | Q26: - | R26: - | S26: - | T26: 5 | U26: - | V26: - | W26: - | X26: 1 | Y26: 150 | Z26: 5 | AA26: 4 | AB26: 1 | AC26: - | AD26: - | AE26: - | AF26: - | AG26: - | AH26: - | AI26: 237 | AJ26: 151 | AK26: 86 | AL26: - | AM26: - | AN26: - | AO26: - | AP26: - | AQ26: - | AR26: 5 | AS26: 154 | AT26: 4 | AU26: 83 | AV26: - | AW26: - | AX26: 2 | AY26: 46 | AZ26: 3 | BA26: - | BB26: - | BC26: x | BD26: 4 | BE26: 1 | BF26: - | BG26: - | BH26: - | BI26: - | BJ26: 81 | BK26: - | BL26: - | BM26: x | BN26: 56 | BO26: x | BP26: - | BQ26: - | BR26: - | BS26: - | BT26: - | BU26: - | BV26: - | BW26: - | BX26: x | BY26: x | BZ26: - | CA26: - | CB26: - | CC26: - | CD26: 2 | CE26: x | CF26: - | CG26: - | CH26: 1 | CI26: x | CJ26: 1 | CK26: x | CL26: 1 | CM26: x | CN26: - | CO26: - | CP26: 4 | CQ26: 15 | CR26: 2 | CS26: x | CT26: 1 | CU26: x | CV26: 2 | CW26: x | CX26: - | CY26: - | CZ26: 2 | DA26: x | DB26: 2 | DC26: x | DD26: 1 | DE26: x | DF26: - | DG26: - | DH26: - | DI26: - | DJ26: x | DK26: x | DL26: - | DM26: - | DN26: - | DO26: - | DP26: - | DQ26: - | DR26: - | DS26: - | DT26: - | DU26: - | DV26: - | DW26: - | DX26: x | DY26: x | DZ26: - | EA26: - | EB26: - | EC26: - | ED26: - | EE26: - | EF26: - | EG26: - | EH26: - | EI26: - | EJ26: x | EK26: x | EL26: 5 | EM26: 1 | EN26: 3 | EO26: - | EP26: 1 | EQ26: - | ER26: 10 | ES26: 2 | ET26: 1 | EU26: 1 | EV26: 2 | EW26: 4 | EX26: 5 | EY26: 4 | EZ26: 1 | FA26: - | FB26: - | FC26: - | FD26: - | FE26: 400 | FF26: 200 | FG26: 200 | FH26: - | FI26: - | FJ26: - | FK26: - | FL26: 5 | FM26: 1 | FN26: - | FO26: - | FP26: - | FQ26: 1 | FR26: - | FS26: - | FT26: 5 | FU26: 2 | FV26: 1 | FW26: 1 | FX26: - | FY26: - | FZ26: - | GA26: 2 | GB26: - | GC26: 5 | GD26: - | GE26: 148 | GF26: - | GG26: 5 | GH26: - | GI26: - | GJ26: 5 | GK26: 237 | GL26: - | GM26: - | GN26: 237 | GO26: 5 | GP26: - | GQ26: - | GR26: 2 | GS26: 1 | GT26: 3 | GU26: 6 | GV26: - | GW26: - | GX26: - | GY26: - | GZ26: - | HA26: - | HB26: - | HC26: 1 | HD26: - | HE26: 2 | HF26: - | HG26: 1 | HH26: 2 | HI26: 77.83 | HJ26: 3 | HK26: - | HL26: - | HM26: - | HN26: - | HO26: - | HP26: - | HQ26: - | HR26: - | HS26: - | HT26: 1 | HU26: - | HV26: 1 | HW26: 1 | HX26: 81.67 | HY26: 5 | HZ26: 3 | IA26: - | IB26: - | IC26: 2 | ID26: 1 | IE26: - | IF26: 2 | IG26: … | IH26: … | II26: … | IJ26: … | IK26: … | IL26: … | IM26: … | IN26: … | IO26: … | IP26: … | IQ26: … | IR26: … | IS26: … | IT26: … | IU26: … | IV26: … | IW26: … | IX26: … | IY26: … | IZ26: … | JA26: … | JB26: … | JC26: … | JD26: … | JE26: … | JF26: … | JG26: … | JH26: … | JI26: … | JJ26: … | JK26: … | JL26: … | JM26: … | JN26: … | JO26: … | JP26: … | JQ26: … | JR26: 12126 | JS26: 1185 | JT26: 23824 | JU26: 23061 | JV26: -3.202652787 | JW26: 29.20584285 | JX26: 236.21 | JY26: 0 | JZ26: 1 | KA26: 0 | KB26: 0 | KC26: 0 | KD26: 0
A27: 2610100019 | B27: 26 | D27: 101 | E27: 00 | F27: 019 | H27: 京都府 | I27: 北区 | J27: 北区 | K27: ８（紫野） | M27: 3 | N27: - | O27: - | P27: - | Q27: - | R27: - | S27: - | T27: 3 | U27: - | V27: 1 | W27: 1 | X27: - | Y27: - | Z27: 3 | AA27: 3 | AB27: - | AC27: - | AD27: - | AE27: - | AF27: - | AG27: - | AH27: - | AI27: 102 | AJ27: 102 | AK27: - | AL27: - | AM27: - | AN27: - | AO27: - | AP27: - | AQ27: - | AR27: 3 | AS27: 86 | AT27: 1 | AU27: 16 | AV27: - | AW27: - | AX27: - | AY27: - | AZ27: 1 | BA27: - | BB27: - | BC27: x | BD27: 1 | BE27: 1 | BF27: - | BG27: - | BH27: - | BI27: - | BJ27: x | BK27: - | BL27: - | BM27: x | BN27: x | BO27: x | BP27: - | BQ27: - | BR27: - | BS27: - | BT27: - | BU27: - | BV27: - | BW27: - | BX27: x | BY27: x | BZ27: - | CA27: - | CB27: - | CC27: - | CD27: - | CE27: - | CF27: 1 | CG27: x | CH27: - | CI27: - | CJ27: - | CK27: - | CL27: - | CM27: - | CN27: - | CO27: - | CP27: 1 | CQ27: x | CR27: - | CS27: - | CT27: - | CU27: - | CV27: 1 | CW27: x | CX27: 1 | CY27: x | CZ27: 1 | DA27: x | DB27: 1 | DC27: x | DD27: - | DE27: - | DF27: - | DG27: - | DH27: - | DI27: - | DJ27: x | DK27: x | DL27: - | DM27: - | DN27: - | DO27: - | DP27: - | DQ27: - | DR27: - | DS27: - | DT27: - | DU27: - | DV27: - | DW27: - | DX27: x | DY27: x | DZ27: - | EA27: - | EB27: - | EC27: - | ED27: - | EE27: - | EF27: - | EG27: - | EH27: - | EI27: - | EJ27: x | EK27: x | EL27: 1 | EM27: - | EN27: 1 | EO27: - | EP27: - | EQ27: - | ER27: 1 | ES27: - | ET27: - | EU27: - | EV27: 1 | EW27: - | EX27: 3 | EY27: 3 | EZ27: - | FA27: - | FB27: - | FC27: - | FD27: - | FE27: 25 | FF27: 25 | FG27: - | FH27: - | FI27: - | FJ27: - | FK27: - | FL27: 3 | FM27: 1 | FN27: 1 | FO27: - | FP27: - | FQ27: - | FR27: - | FS27: - | FT27: 3 | FU27: - | FV27: - | FW27: - | FX27: - | FY27: - | FZ27: - | GA27: - | GB27: - | GC27: 1 | GD27: - | GE27: x | GF27: - | GG27: 3 | GH27: - | GI27: - | GJ27: 3 | GK27: 102 | GL27: - | GM27: - | GN27: 102 | GO27: 3 | GP27: - | GQ27: - | GR27: - | GS27: - | GT27: 3 | GU27: 1 | GV27: - | GW27: - | GX27: - | GY27: - | GZ27: - | HA27: - | HB27: - | HC27: - | HD27: - | HE27: - | HF27: 1 | HG27: - | HH27: - | HI27: 75 | HJ27: - | HK27: - | HL27: - | HM27: - | HN27: - | HO27: - | HP27: - | HQ27: - | HR27: - | HS27: - | HT27: - | HU27: - | HV27: - | HW27: - | HX27: - | HY27: 3 | HZ27: 3 | IA27: - | IB27: - | IC27: - | ID27: - | IE27: - | IF27: - | IG27: … | IH27: … | II27: … | IJ27: … | IK27: … | IL27: … | IM27: … | IN27: … | IO27: … | IP27: … | IQ27: … | IR27: … | IS27: … | IT27: … | IU27: … | IV27: … | IW27: … | IX27: … | IY27: … | IZ27: … | JA27: … | JB27: … | JC27: … | JD27: … | JE27: … | JF27: … | JG27: … | JH27: … | JI27: … | JJ27: … | JK27: … | JL27: … | JM27: … | JN27: … | JO27: … | JP27: … | JQ27: … | JR27: 8670 | JS27: 657 | JT27: 17145 | JU27: 13767 | JV27: -19.70253718 | JW27: 32.11431904 | JX27: 144.57 | JY27: 0 | JZ27: 1 | KA27: 0 | KB27: 0 | KC27: 0 | KD27: 0
A28: 2610100020 | B28: 26 | D28: 101 | E28: 00 | F28: 020 | H28: 京都府 | I28: 北区 | J28: 北区 | K28: ９（待鳳） | M28: 1 | N28: x | O28: x | P28: x | Q28: x | R28: x | S28: x | T28: x | U28: x | V28: x | W28: x | X28: x | Y28: x | Z28: 1 | AA28: x | AB28: x | AC28: x | AD28: x | AE28: x | AF28: x | AG28: x | AH28: x | AI28: x | AJ28: x | AK28: x | AL28: x | AM28: x | AN28: x | AO28: x | AP28: x | AQ28: x | AR28: x | AS28: x | AT28: x | AU28: x | AV28: x | AW28: x | AX28: x | AY28: x | AZ28: x | BA28: x | BB28: x | BC28: x | BD28: x | BE28: x | BF28: x | BG28: x | BH28: x | BI28: x | BJ28: x | BK28: x | BL28: x | BM28: x | BN28: x | BO28: x | BP28: x | BQ28: x | BR28: x | BS28: x | BT28: x | BU28: x | BV28: x | BW28: x | BX28: x | BY28: x | BZ28: x | CA28: x | CB28: x | CC28: x | CD28: x | CE28: x | CF28: x | CG28: x | CH28: x | CI28: x | CJ28: x | CK28: x | CL28: x | CM28: x | CN28: x | CO28: x | CP28: x | CQ28: x | CR28: x | CS28: x | CT28: x | CU28: x | CV28: x | CW28: x | CX28: x | CY28: x | CZ28: x | DA28: x | DB28: x | DC28: x | DD28: x | DE28: x | DF28: x | DG28: x | DH28: x | DI28: x | DJ28: x | DK28: x | DL28: x | DM28: x | DN28: x | DO28: x | DP28: x | DQ28: x | DR28: x | DS28: x | DT28: x | DU28: x | DV28: x | DW28: x | DX28: x | DY28: x | DZ28: x | EA28: x | EB28: x | EC28: x | ED28: x | EE28: x | EF28: x | EG28: x | EH28: x | EI28: x | EJ28: x | EK28: x | EL28: x | EM28: x | EN28: x | EO28: x | EP28: x | EQ28: x | ER28: x | ES28: x | ET28: x | EU28: x | EV28: x | EW28: x | EX28: 1 | EY28: x | EZ28: x | FA28: x | FB28: x | FC28: x | FD28: x | FE28: x | FF28: x | FG28: x | FH28: x | FI28: x | FJ28: x | FK28: x | FL28: 1 | FM28: x | FN28: x | FO28: x | FP28: x | FQ28: x | FR28: x | FS28: x | FT28: 1 | FU28: x | FV28: x | FW28: x | FX28: x | FY28: x | FZ28: x | GA28: x | GB28: x | GC28: x | GD28: x | GE28: x | GF28: x | GG28: 1 | GH28: x | GI28: x | GJ28: x | GK28: x | GL28: x | GM28: x | GN28: x | GO28: 1 | GP28: x | GQ28: x | GR28: x | GS28: x | GT28: x | GU28: x | GV28: x | GW28: x | GX28: x | GY28: x | GZ28: x | HA28: x | HB28: x | HC28: x | HD28: x | HE28: x | HF28: x | HG28: x | HH28: x | HI28: x | HJ28: x | HK28: x | HL28: x | HM28: x | HN28: x | HO28: x | HP28: x | HQ28: x | HR28: x | HS28: x | HT28: x | HU28: x | HV28: x | HW28: x | HX28: x | HY28: 1 | HZ28: x | IA28: x | IB28: x | IC28: x | ID28: x | IE28: x | IF28: x | IG28: … | IH28: … | II28: … | IJ28: … | IK28: … | IL28: … | IM28: … | IN28: … | IO28: … | IP28: … | IQ28: … | IR28: … | IS28: … | IT28: … | IU28: … | IV28: … | IW28: … | IX28: … | IY28: … | IZ28: … | JA28: … | JB28: … | JC28: … | JD28: … | JE28: … | JF28: … | JG28: … | JH28: … | JI28: … | JJ28: … | JK28: … | JL28: … | JM28: … | JN28: … | JO28: … | JP28: … | JQ28: … | JR28: 1450 | JS28: 102 | JT28: 3018 | JU28: 2220 | JV28: -26.44135189 | JW28: 31.57720345 | JX28: 25.94 | JY28: 0 | JZ28: 1 | KA28: 0 | KB28: 0 | KC28: 0 | KD28: 0
A29: 2610100021 | B29: 26 | D29: 101 | E29: 00 | F29: 021 | H29: 京都府 | I29: 北区 | J29: 北区 | K29: 原谷 | M29: 1 | N29: x | O29: x | P29: x | Q29: x | R29: x | S29: x | T29: x | U29: x | V29: x | W29: x | X29: x | Y29: x | Z29: 1 | AA29: x | AB29: x | AC29: x | AD29: x | AE29: x | AF29: x | AG29: x | AH29: x | AI29: x | AJ29: x | AK29: x | AL29: x | AM29: x | AN29: x | AO29: x | AP29: x | AQ29: x | AR29: x | AS29: x | AT29: x | AU29: x | AV29: x | AW29: x | AX29: x | AY29: x | AZ29: x | BA29: x | BB29: x | BC29: x | BD29: x | BE29: x | BF29: x | BG29: x | BH29: x | BI29: x | BJ29: x | BK29: x | BL29: x | BM29: x | BN29: x | BO29: x | BP29: x | BQ29: x | BR29: x | BS29: x | BT29: x | BU29: x | BV29: x | BW29: x | BX29: x | BY29: x | BZ29: x | CA29: x | CB29: x | CC29: x | CD29: x | CE29: x | CF29: x | CG29: x | CH29: x | CI29: x | CJ29: x | CK29: x | CL29: x | CM29: x | CN29: x | CO29: x | CP29: x | CQ29: x | CR29: x | CS29: x | CT29: x | CU29: x | CV29: x | CW29: x | CX29: x | CY29: x | CZ29: x | DA29: x | DB29: x | DC29: x | DD29: x | DE29: x | DF29: x | DG29: x | DH29: x | DI29: x | DJ29: x | DK29: x | DL29: x | DM29: x | DN29: x | DO29: x | DP29: x | DQ29: x | DR29: x | DS29: x | DT29: x | DU29: x | DV29: x | DW29: x | DX29: x | DY29: x | DZ29: x | EA29: x | EB29: x | EC29: x | ED29: x | EE29: x | EF29: x | EG29: x | EH29: x | EI29: x | EJ29: x | EK29: x | EL29: x | EM29: x | EN29: x | EO29: x | EP29: x | EQ29: x | ER29: x | ES29: x | ET29: x | EU29: x | EV29: x | EW29: x | EX29: 1 | EY29: x | EZ29: x | FA29: x | FB29: x | FC29: x | FD29: x | FE29: x | FF29: x | FG29: x | FH29: x | FI29: x | FJ29: x | FK29: x | FL29: 1 | FM29: x | FN29: x | FO29: x | FP29: x | FQ29: x | FR29: x | FS29: x | FT29: 1 | FU29: x | FV29: x | FW29: x | FX29: x | FY29: x | FZ29: x | GA29: x | GB29: x | GC29: x | GD29: x | GE29: x | GF29: x | GG29: 1 | GH29: x | GI29: x | GJ29: x | GK29: x | GL29: x | GM29: x | GN29: x | GO29: 1 | GP29: x | GQ29: x | GR29: x | GS29: x | GT29: x | GU29: x | GV29: x | GW29: x | GX29: x | GY29: x | GZ29: x | HA29: x | HB29: x | HC29: x | HD29: x | HE29: x | HF29: x | HG29: x | HH29: x | HI29: x | HJ29: x | HK29: x | HL29: x | HM29: x | HN29: x | HO29: x | HP29: x | HQ29: x | HR29: x | HS29: x | HT29: x | HU29: x | HV29: x | HW29: x | HX29: x | HY29: 1 | HZ29: x | IA29: x | IB29: x | IC29: x | ID29: x | IE29: x | IF29: x | IG29: 1 | IH29: 0 | II29: 1 | IJ29: 1 | IK29: - | IL29: - | IM29: - | IN29: 1 | IO29: - | IP29: - | IQ29: - | IR29: - | IS29: - | IT29: - | IU29: - | IV29: - | IW29: - | IX29: - | IY29: - | IZ29: - | JA29: - | JB29: - | JC29: - | JD29: - | JE29: - | JF29: - | JG29: - | JH29: 1 | JI29: 0 | JJ29: 1 | JK29: 0 | JL29: 1 | JM29: 0 | JN29: 1 | JO29: 0 | JP29: 1 | JQ29: 0 | JR29: 1666 | JS29: 173 | JT29: 4111 | JU29: 2598 | JV29: -36.8036974 | JW29: 29.82242763 | JX29: 108.8 | JY29: 92.01 | JZ29: 1 | KA29: 0 | KB29: 0 | KC29: 0 | KD29: 0
A30: 2610100022 | B30: 26 | D30: 101 | E30: 00 | F30: 022 | H30: 京都府 | I30: 北区 | J30: 北区 | K30: ２（小北山） | M30: 1 | N30: x | O30: x | P30: x | Q30: x | R30: x | S30: x | T30: x | U30: x | V30: x | W30: x | X30: x | Y30: x | Z30: 1 | AA30: x | AB30: x | AC30: x | AD30: x | AE30: x | AF30: x | AG30: x | AH30: x | AI30: x | AJ30: x | AK30: x | AL30: x | AM30: x | AN30: x | AO30: x | AP30: x | AQ30: x | AR30: x | AS30: x | AT30: x | AU30: x | AV30: x | AW30: x | AX30: x | AY30: x | AZ30: x | BA30: x | BB30: x | BC30: x | BD30: x | BE30: x | BF30: x | BG30: x | BH30: x | BI30: x | BJ30: x | BK30: x | BL30: x | BM30: x | BN30: x | BO30: x | BP30: x | BQ30: x | BR30: x | BS30: x | BT30: x | BU30: x | BV30: x | BW30: x | BX30: x | BY30: x | BZ30: x | CA30: x | CB30: x | CC30: x | CD30: x | CE30: x | CF30: x | CG30: x | CH30: x | CI30: x | CJ30: x | CK30: x | CL30: x | CM30: x | CN30: x | CO30: x | CP30: x | CQ30: x | CR30: x | CS30: x | CT30: x | CU30: x | CV30: x | CW30: x | CX30: x | CY30: x | CZ30: x | DA30: x | DB30: x | DC30: x | DD30: x | DE30: x | DF30: x | DG30: x | DH30: x | DI30: x | DJ30: x | DK30: x | DL30: x | DM30: x | DN30: x | DO30: x | DP30: x | DQ30: x | DR30: x | DS30: x | DT30: x | DU30: x | DV30: x | DW30: x | DX30: x | DY30: x | DZ30: x | EA30: x | EB30: x | EC30: x | ED30: x | EE30: x | EF30: x | EG30: x | EH30: x | EI30: x | EJ30: x | EK30: x | EL30: x | EM30: x | EN30: x | EO30: x | EP30: x | EQ30: x | ER30: x | ES30: x | ET30: x | EU30: x | EV30: x | EW30: x | EX30: 1 | EY30: x | EZ30: x | FA30: x | FB30: x | FC30: x | FD30: x | FE30: x | FF30: x | FG30: x | FH30: x | FI30: x | FJ30: x | FK30: x | FL30: 1 | FM30: x | FN30: x | FO30: x | FP30: x | FQ30: x | FR30: x | FS30: x | FT30: 1 | FU30: x | FV30: x | FW30: x | FX30: x | FY30: x | FZ30: x | GA30: x | GB30: x | GC30: x | GD30: x | GE30: x | GF30: x | GG30: 1 | GH30: x | GI30: x | GJ30: x | GK30: x | GL30: x | GM30: x | GN30: x | GO30: 1 | GP30: x | GQ30: x | GR30: x | GS30: x | GT30: x | GU30: x | GV30: x | GW30: x | GX30: x | GY30: x | GZ30: x | HA30: x | HB30: x | HC30: x | HD30: x | HE30: x | HF30: x | HG30: x | HH30: x | HI30: x | HJ30: x | HK30: x | HL30: x | HM30: x | HN30: x | HO30: x | HP30: x | HQ30: x | HR30: x | HS30: x | HT30: x | HU30: x | HV30: x | HW30: x | HX30: x | HY30: 1 | HZ30: x | IA30: x | IB30: x | IC30: x | ID30: x | IE30: x | IF30: x | IG30: 1 | IH30: 0 | II30: 1 | IJ30: 1 | IK30: 1 | IL30: - | IM30: - | IN30: - | IO30: - | IP30: - | IQ30: - | IR30: - | IS30: - | IT30: - | IU30: 1 | IV30: - | IW30: - | IX30: - | IY30: - | IZ30: - | JA30: - | JB30: 1 | JC30: - | JD30: - | JE30: - | JF30: - | JG30: - | JH30: 1 | JI30: 0 | JJ30: 0 | JK30: 0 | JL30: 0 | JM30: 0 | JN30: 0 | JO30: 0 | JP30: 0 | JQ30: 0 | JR30: 2294 | JS30: 211 | JT30: 4452 | JU30: 4173 | JV30: -6.266846361 | JW30: 28.66127583 | JX30: 79.62 | JY30: 18.76 | JZ30: 1 | KA30: 0 | KB30: 0 | KC30: 0 | KD30: 0
A31: 2610100023 | B31: 26 | D31: 101 | E31: 00 | F31: 023 | H31: 京都府 | I31: 北区 | J31: 北区 | K31: ３（大北山） | M31: 1 | N31: x | O31: x | P31: x | Q31: x | R31: x | S31: x | T31: x | U31: x | V31: x | W31: x | X31: x | Y31: x | Z31: 1 | AA31: x | AB31: x | AC31: x | AD31: x | AE31: x | AF31: x | AG31: x | AH31: x | AI31: x | AJ31: x | AK31: x | AL31: x | AM31: x | AN31: x | AO31: x | AP31: x | AQ31: x | AR31: x | AS31: x | AT31: x | AU31: x | AV31: x | AW31: x | AX31: x | AY31: x | AZ31: x | BA31: x | BB31: x | BC31: x | BD31: x | BE31: x | BF31: x | BG31: x | BH31: x | BI31: x | BJ31: x | BK31: x | BL31: x | BM31: x | BN31: x | BO31: x | BP31: x | BQ31: x | BR31: x | BS31: x | BT31: x | BU31: x | BV31: x | BW31: x | BX31: x | BY31: x | BZ31: x | CA31: x | CB31: x | CC31: x | CD31: x | CE31: x | CF31: x | CG31: x | CH31: x | CI31: x | CJ31: x | CK31: x | CL31: x | CM31: x | CN31: x | CO31: x | CP31: x | CQ31: x | CR31: x | CS31: x | CT31: x | CU31: x | CV31: x | CW31: x | CX31: x | CY31: x | CZ31: x | DA31: x | DB31: x | DC31: x | DD31: x | DE31: x | DF31: x | DG31: x | DH31: x | DI31: x | DJ31: x | DK31: x | DL31: x | DM31: x | DN31: x | DO31: x | DP31: x | DQ31: x | DR31: x | DS31: x | DT31: x | DU31: x | DV31: x | DW31: x | DX31: x | DY31: x | DZ31: x | EA31: x | EB31: x | EC31: x | ED31: x | EE31: x | EF31: x | EG31: x | EH31: x | EI31: x | EJ31: x | EK31: x | EL31: x | EM31: x | EN31: x | EO31: x | EP31: x | EQ31: x | ER31: x | ES31: x | ET31: x | EU31: x | EV31: x | EW31: x | EX31: 1 | EY31: x | EZ31: x | FA31: x | FB31: x | FC31: x | FD31: x | FE31: x | FF31: x | FG31: x | FH31: x | FI31: x | FJ31: x | FK31: x | FL31: 1 | FM31: x | FN31: x | FO31: x | FP31: x | FQ31: x | FR31: x | FS31: x | FT31: 1 | FU31: x | FV31: x | FW31: x | FX31: x | FY31: x | FZ31: x | GA31: x | GB31: x | GC31: x | GD31: x | GE31: x | GF31: x | GG31: 1 | GH31: x | GI31: x | GJ31: x | GK31: x | GL31: x | GM31: x | GN31: x | GO31: 1 | GP31: x | GQ31: x | GR31: x | GS31: x | GT31: x | GU31: x | GV31: x | GW31: x | GX31: x | GY31: x | GZ31: x | HA31: x | HB31: x | HC31: x | HD31: x | HE31: x | HF31: x | HG31: x | HH31: x | HI31: x | HJ31: x | HK31: x | HL31: x | HM31: x | HN31: x | HO31: x | HP31: x | HQ31: x | HR31: x | HS31: x | HT31: x | HU31: x | HV31: x | HW31: x | HX31: x | HY31: 1 | HZ31: x | IA31: x | IB31: x | IC31: x | ID31: x | IE31: x | IF31: x | IG31: 1 | IH31: 1 | II31: 0 | IJ31: 1 | IK31: 1 | IL31: - | IM31: - | IN31: - | IO31: - | IP31: - | IQ31: - | IR31: - | IS31: - | IT31: - | IU31: - | IV31: - | IW31: - | IX31: - | IY31: - | IZ31: - | JA31: - | JB31: - | JC31: - | JD31: - | JE31: - | JF31: - | JG31: - | JH31: 1 | JI31: 0 | JJ31: 1 | JK31: 0 | JL31: 1 | JM31: 0 | JN31: 1 | JO31: 0 | JP31: 0 | JQ31: 0 | JR31: 4257 | JS31: 250 | JT31: 8185 | JU31: 5646 | JV31: -31.02015883 | JW31: 27.17165547 | JX31: 233.85 | JY31: 139.45 | JZ31: 1 | KA31: 0 | KB31: 0 | KC31: 0 | KD31: 0
A32: 2610100024 | B32: 26 | D32: 101 | E32: 00 | F32: 024 | H32: 京都府 | I32: 北区 | J32: 北区 | K32: ４（等持院） | M32: - | N32: - | O32: - | P32: - | Q32: - | R32: - | S32: - | T32: - | U32: - | V32: - | W32: - | X32: - | Y32: - | Z32: - | AA32: - | AB32: - | AC32: - | AD32: - | AE32: - | AF32: - | AG32: - | AH32: - | AI32: - | AJ32: - | AK32: - | AL32: - | AM32: - | AN32: - | AO32: - | AP32: - | AQ32: - | AR32: - | AS32: - | AT32: - | AU32: - | AV32: - | AW32: - | AX32: - | AY32: - | AZ32: - | BA32: - | BB32: - | BC32: x | BD32: - | BE32: - | BF32: - | BG32: - | BH32: - | BI32: - | BJ32: - | BK32: - | BL32: - | BM32: x | BN32: - | BO32: - | BP32: - | BQ32: - | BR32: - | BS32: - | BT32: - | BU32: - | BV32: - | BW32: - | BX32: x | BY32: x | BZ32: - | CA32: - | CB32: - | CC32: - | CD32: - | CE32: - | CF32: - | CG32: - | CH32: - | CI32: - | CJ32: - | CK32: - | CL32: - | CM32: - | CN32: - | CO32: - | CP32: - | CQ32: - | CR32: - | CS32: - | CT32: - | CU32: - | CV32: - | CW32: - | CX32: - | CY32: - | CZ32: - | DA32: - | DB32: - | DC32: - | DD32: - | DE32: - | DF32: - | DG32: - | DH32: - | DI32: - | DJ32: x | DK32: x | DL32: - | DM32: - | DN32: - | DO32: - | DP32: - | DQ32: - | DR32: - | DS32: - | DT32: - | DU32: - | DV32: - | DW32: - | DX32: x | DY32: x | DZ32: - | EA32: - | EB32: - | EC32: - | ED32: - | EE32: - | EF32: - | EG32: - | EH32: - | EI32: - | EJ32: x | EK32: x | EL32: - | EM32: - | EN32: - | EO32: - | EP32: - | EQ32: - | ER32: - | ES32: - | ET32: - | EU32: - | EV32: - | EW32: - | EX32: - | EY32: - | EZ32: - | FA32: - | FB32: - | FC32: - | FD32: - | FE32: - | FF32: - | FG32: - | FH32: - | FI32: - | FJ32: - | FK32: - | FL32: - | FM32: - | FN32: - | FO32: - | FP32: - | FQ32: - | FR32: - | FS32: - | FT32: - | FU32: - | FV32: - | FW32: - | FX32: - | FY32: - | FZ32: - | GA32: - | GB32: - | GC32: - | GD32: - | GE32: - | GF32: - | GG32: - | GH32: - | GI32: - | GJ32: - | GK32: - | GL32: - | GM32: - | GN32: - | GO32: - | GP32: - | GQ32: - | GR32: - | GS32: - | GT32: - | GU32: - | GV32: - | GW32: - | GX32: - | GY32: - | GZ32: - | HA32: - | HB32: - | HC32: - | HD32: - | HE32: - | HF32: - | HG32: - | HH32: - | HI32: - | HJ32: - | HK32: - | HL32: - | HM32: - | HN32: - | HO32: - | HP32: - | HQ32: - | HR32: - | HS32: - | HT32: - | HU32: - | HV32: - | HW32: - | HX32: - | HY32: - | HZ32: - | IA32: - | IB32: - | IC32: - | ID32: - | IE32: - | IF32: - | IG32: … | IH32: … | II32: … | IJ32: … | IK32: … | IL32: … | IM32: … | IN32: … | IO32: … | IP32: … | IQ32: … | IR32: … | IS32: … | IT32: … | IU32: … | IV32: … | IW32: … | IX32: … | IY32: … | IZ32: … | JA32: … | JB32: … | JC32: … | JD32: … | JE32: … | JF32: … | JG32: … | JH32: … | JI32: … | JJ32: … | JK32: … | JL32: … | JM32: … | JN32: … | JO32: … | JP32: … | JQ32: … | JR32: 4312 | JS32: 306 | JT32: 7323 | JU32: 3287 | JV32: -55.11402431 | JW32: 27.93936911 | JX32: 77.6 | JY32: 0 | JZ32: 1 | KA32: 0 | KB32: 0 | KC32: 0 | KD32: 0
A33: 2610100025 | B33: 26 | D33: 101 | E33: 00 | F33: 025 | H33: 京都府 | I33: 北区 | J33: 北区 | K33: 小野 | M33: 2 | N33: x | O33: x | P33: x | Q33: x | R33: x | S33: x | T33: x | U33: x | V33: x | W33: x | X33: x | Y33: x | Z33: 2 | AA33: x | AB33: x | AC33: x | AD33: x | AE33: x | AF33: x | AG33: x | AH33: x | AI33: x | AJ33: x | AK33: x | AL33: x | AM33: x | AN33: x | AO33: x | AP33: x | AQ33: x | AR33: x | AS33: x | AT33: x | AU33: x | AV33: x | AW33: x | AX33: x | AY33: x | AZ33: x | BA33: x | BB33: x | BC33: x | BD33: x | BE33: x | BF33: x | BG33: x | BH33: x | BI33: x | BJ33: x | BK33: x | BL33: x | BM33: x | BN33: x | BO33: x | BP33: x | BQ33: x | BR33: x | BS33: x | BT33: x | BU33: x | BV33: x | BW33: x | BX33: x | BY33: x | BZ33: x | CA33: x | CB33: x | CC33: x | CD33: x | CE33: x | CF33: x | CG33: x | CH33: x | CI33: x | CJ33: x | CK33: x | CL33: x | CM33: x | CN33: x | CO33: x | CP33: x | CQ33: x | CR33: x | CS33: x | CT33: x | CU33: x | CV33: x | CW33: x | CX33: x | CY33: x | CZ33: x | DA33: x | DB33: x | DC33: x | DD33: x | DE33: x | DF33: x | DG33: x | DH33: x | DI33: x | DJ33: x | DK33: x | DL33: x | DM33: x | DN33: x | DO33: x | DP33: x | DQ33: x | DR33: x | DS33: x | DT33: x | DU33: x | DV33: x | DW33: x | DX33: x | DY33: x | DZ33: x | EA33: x | EB33: x | EC33: x | ED33: x | EE33: x | EF33: x | EG33: x | EH33: x | EI33: x | EJ33: x | EK33: x | EL33: x | EM33: x | EN33: x | EO33: x | EP33: x | EQ33: x | ER33: x | ES33: x | ET33: x | EU33: x | EV33: x | EW33: x | EX33: 2 | EY33: x | EZ33: x | FA33: x | FB33: x | FC33: x | FD33: x | FE33: x | FF33: x | FG33: x | FH33: x | FI33: x | FJ33: x | FK33: x | FL33: 2 | FM33: x | FN33: x | FO33: x | FP33: x | FQ33: x | FR33: x | FS33: x | FT33: 2 | FU33: x | FV33: x | FW33: x | FX33: x | FY33: x | FZ33: x | GA33: x | GB33: x | GC33: x | GD33: x | GE33: x | GF33: x | GG33: 2 | GH33: x | GI33: x | GJ33: x | GK33: x | GL33: x | GM33: x | GN33: x | GO33: 2 | GP33: x | GQ33: x | GR33: x | GS33: x | GT33: x | GU33: x | GV33: x | GW33: x | GX33: x | GY33: x | GZ33: x | HA33: x | HB33: x | HC33: x | HD33: x | HE33: x | HF33: x | HG33: x | HH33: x | HI33: x | HJ33: x | HK33: x | HL33: x | HM33: x | HN33: x | HO33: x | HP33: x | HQ33: x | HR33: x | HS33: x | HT33: x | HU33: x | HV33: x | HW33: x | HX33: x | HY33: 2 | HZ33: x | IA33: x | IB33: x | IC33: x | ID33: x | IE33: x | IF33: x | IG33: 1 | IH33: 0 | II33: 1 | IJ33: 1 | IK33: - | IL33: - | IM33: - | IN33: 1 | IO33: - | IP33: - | IQ33: - | IR33: 1 | IS33: 1 | IT33: 1 | IU33: 1 | IV33: - | IW33: 1 | IX33: - | IY33: - | IZ33: - | JA33: 1 | JB33: 1 | JC33: - | JD33: 1 | JE33: - | JF33: - | JG33: - | JH33: 1 | JI33: 1 | JJ33: 1 | JK33: 1 | JL33: 1 | JM33: 1 | JN33: 1 | JO33: 1 | JP33: 0 | JQ33: 0 | JR33: 55 | JS33: 10 | JT33: 104 | JU33: 15 | JV33: -85.57692308 | JW33: 68.26923077 | JX33: 825.81 | JY33: 801.69 | JZ33: 1 | KA33: 0 | KB33: 0 | KC33: 0 | KD33: 0
A34: 2610100026 | B34: 26 | D34: 101 | E34: 00 | F34: 026 | H34: 京都府 | I34: 北区 | J34: 北区 | K34: 中町 | M34: 1 | N34: x | O34: x | P34: x | Q34: x | R34: x | S34: x | T34: x | U34: x | V34: x | W34: x | X34: x | Y34: x | Z34: 1 | AA34: x | AB34: x | AC34: x | AD34: x | AE34: x | AF34: x | AG34: x | AH34: x | AI34: x | AJ34: x | AK34: x | AL34: x | AM34: x | AN34: x | AO34: x | AP34: x | AQ34: x | AR34: x | AS34: x | AT34: x | AU34: x | AV34: x | AW34: x | AX34: x | AY34: x | AZ34: x | BA34: x | BB34: x | BC34: x | BD34: x | BE34: x | BF34: x | BG34: x | BH34: x | BI34: x | BJ34: x | BK34: x | BL34: x | BM34: x | BN34: x | BO34: x | BP34: x | BQ34: x | BR34: x | BS34: x | BT34: x | BU34: x | BV34: x | BW34: x | BX34: x | BY34: x | BZ34: x | CA34: x | CB34: x | CC34: x | CD34: x | CE34: x | CF34: x | CG34: x | CH34: x | CI34: x | CJ34: x | CK34: x | CL34: x | CM34: x | CN34: x | CO34: x | CP34: x | CQ34: x | CR34: x | CS34: x | CT34: x | CU34: x | CV34: x | CW34: x | CX34: x | CY34: x | CZ34: x | DA34: x | DB34: x | DC34: x | DD34: x | DE34: x | DF34: x | DG34: x | DH34: x | DI34: x | DJ34: x | DK34: x | DL34: x | DM34: x | DN34: x | DO34: x | DP34: x | DQ34: x | DR34: x | DS34: x | DT34: x | DU34: x | DV34: x | DW34: x | DX34: x | DY34: x | DZ34: x | EA34: x | EB34: x | EC34: x | ED34: x | EE34: x | EF34: x | EG34: x | EH34: x | EI34: x | EJ34: x | EK34: x | EL34: x | EM34: x | EN34: x | EO34: x | EP34: x | EQ34: x | ER34: x | ES34: x | ET34: x | EU34: x | EV34: x | EW34: x | EX34: 1 | EY34: x | EZ34: x | FA34: x | FB34: x | FC34: x | FD34: x | FE34: x | FF34: x | FG34: x | FH34: x | FI34: x | FJ34: x | FK34: x | FL34: 1 | FM34: x | FN34: x | FO34: x | FP34: x | FQ34: x | FR34: x | FS34: x | FT34: 1 | FU34: x | FV34: x | FW34: x | FX34: x | FY34: x | FZ34: x | GA34: x | GB34: x | GC34: x | GD34: x | GE34: x | GF34: x | GG34: 1 | GH34: x | GI34: x | GJ34: x | GK34: x | GL34: x | GM34: x | GN34: x | GO34: 1 | GP34: x | GQ34: x | GR34: x | GS34: x | GT34: x | GU34: x | GV34: x | GW34: x | GX34: x | GY34: x | GZ34: x | HA34: x | HB34: x | HC34: x | HD34: x | HE34: x | HF34: x | HG34: x | HH34: x | HI34: x | HJ34: x | HK34: x | HL34: x | HM34: x | HN34: x | HO34: x | HP34: x | HQ34: x | HR34: x | HS34: x | HT34: x | HU34: x | HV34: x | HW34: x | HX34: x | HY34: 1 | HZ34: x | IA34: x | IB34: x | IC34: x | ID34: x | IE34: x | IF34: x | IG34: 1 | IH34: 1 | II34: 0 | IJ34: 1 | IK34: - | IL34: 1 | IM34: - | IN34: - | IO34: - | IP34: - | IQ34: 1 | IR34: 1 | IS34: 1 | IT34: 1 | IU34: 1 | IV34: - | IW34: 1 | IX34: - | IY34: - | IZ34: - | JA34: - | JB34: 1 | JC34: - | JD34: 1 | JE34: - | JF34: - | JG34: - | JH34: 1 | JI34: 0 | JJ34: 1 | JK34: 1 | JL34: 1 | JM34: 0 | JN34: 1 | JO34: 0 | JP34: 0 | JQ34: 0 | JR34: 13 | JS34: 3 | JT34: 23 | JU34: 4 | JV34: -82.60869565 | JW34: 65.2173913 | JX34: 334.17 | JY34: 304.47 | JZ34: 1 | KA34: 0 | KB34: 0 | KC34: 0 | KD34: 0
A35: 2610100027 | B35: 26 | D35: 101 | E35: 00 | F35: 027 | H35: 京都府 | I35: 北区 | J35: 北区 | K35: 西町 | M35: - | N35: - | O35: - | P35: - | Q35: - | R35: - | S35: - | T35: - | U35: - | V35: - | W35: - | X35: - | Y35: - | Z35: - | AA35: - | AB35: - | AC35: - | AD35: - | AE35: - | AF35: - | AG35: - | AH35: - | AI35: - | AJ35: - | AK35: - | AL35: - | AM35: - | AN35: - | AO35: - | AP35: - | AQ35: - | AR35: - | AS35: - | AT35: - | AU35: - | AV35: - | AW35: - | AX35: - | AY35: - | AZ35: - | BA35: - | BB35: - | BC35: x | BD35: - | BE35: - | BF35: - | BG35: - | BH35: - | BI35: - | BJ35: - | BK35: - | BL35: - | BM35: x | BN35: - | BO35: - | BP35: - | BQ35: - | BR35: - | BS35: - | BT35: - | BU35: - | BV35: - | BW35: - | BX35: x | BY35: x | BZ35: - | CA35: - | CB35: - | CC35: - | CD35: - | CE35: - | CF35: - | CG35: - | CH35: - | CI35: - | CJ35: - | CK35: - | CL35: - | CM35: - | CN35: - | CO35: - | CP35: - | CQ35: - | CR35: - | CS35: - | CT35: - | CU35: - | CV35: - | CW35: - | CX35: - | CY35: - | CZ35: - | DA35: - | DB35: - | DC35: - | DD35: - | DE35: - | DF35: - | DG35: - | DH35: - | DI35: - | DJ35: x | DK35: x | DL35: - | DM35: - | DN35: - | DO35: - | DP35: - | DQ35: - | DR35: - | DS35: - | DT35: - | DU35: - | DV35: - | DW35: - | DX35: x | DY35: x | DZ35: - | EA35: - | EB35: - | EC35: - | ED35: - | EE35: - | EF35: - | EG35: - | EH35: - | EI35: - | EJ35: x | EK35: x | EL35: - | EM35: - | EN35: - | EO35: - | EP35: - | EQ35: - | ER35: - | ES35: - | ET35: - | EU35: - | EV35: - | EW35: - | EX35: - | EY35: - | EZ35: - | FA35: - | FB35: - | FC35: - | FD35: - | FE35: - | FF35: - | FG35: - | FH35: - | FI35: - | FJ35: - | FK35: - | FL35: - | FM35: - | FN35: - | FO35: - | FP35: - | FQ35: - | FR35: - | FS35: - | FT35: - | FU35: - | FV35: - | FW35: - | FX35: - | FY35: - | FZ35: - | GA35: - | GB35: - | GC35: - | GD35: - | GE35: - | GF35: - | GG35: - | GH35: - | GI35: - | GJ35: - | GK35: - | GL35: - | GM35: - | GN35: - | GO35: - | GP35: - | GQ35: - | GR35: - | GS35: - | GT35: - | GU35: - | GV35: - | GW35: - | GX35: - | GY35: - | GZ35: - | HA35: - | HB35: - | HC35: - | HD35: - | HE35: - | HF35: - | HG35: - | HH35: - | HI35: - | HJ35: - | HK35: - | HL35: - | HM35: - | HN35: - | HO35: - | HP35: - | HQ35: - | HR35: - | HS35: - | HT35: - | HU35: - | HV35: - | HW35: - | HX35: - | HY35: - | HZ35: - | IA35: - | IB35: - | IC35: - | ID35: - | IE35: - | IF35: - | IG35: 1 | IH35: 1 | II35: 0 | IJ35: 1 | IK35: 1 | IL35: - | IM35: - | IN35: - | IO35: - | IP35: - | IQ35: - | IR35: - | IS35: 1 | IT35: - | IU35: - | IV35: - | IW35: - | IX35: - | IY35: - | IZ35: - | JA35: - | JB35: - | JC35: - | JD35: - | JE35: - | JF35: - | JG35: - | JH35: 1 | JI35: 0 | JJ35: 1 | JK35: 0 | JL35: 1 | JM35: 0 | JN35: 1 | JO35: 0 | JP35: 0 | JQ35: 0 | JR35: 8 | JS35: 2 | JT35: 14 | JU35: 1 | JV35: -92.85714286 | JW35: 71.42857143 | JX35: 293.05 | JY35: 279.44 | JZ35: 1 | KA35: 0 | KB35: 0 | KC35: 0 | KD35: 0
A36: 2610100028 | B36: 26 | D36: 101 | E36: 00 | F36: 028 | H36: 京都府 | I36: 北区 | J36: 北区 | K36: 東町 | M36: 3 | N36: - | O36: - | P36: - | Q36: - | R36: - | S36: - | T36: 3 | U36: - | V36: - | W36: - | X36: 1 | Y36: 30 | Z36: 3 | AA36: 1 | AB36: 2 | AC36: - | AD36: - | AE36: - | AF36: - | AG36: - | AH36: - | AI36: 175 | AJ36: 30 | AK36: 145 | AL36: - | AM36: - | AN36: - | AO36: - | AP36: - | AQ36: - | AR36: 2 | AS36: 95 | AT36: 2 | AU36: 70 | AV36: 1 | AW36: 10 | AX36: - | AY36: - | AZ36: 2 | BA36: - | BB36: - | BC36: x | BD36: - | BE36: - | BF36: - | BG36: - | BH36: - | BI36: - | BJ36: x | BK36: - | BL36: - | BM36: x | BN36: - | BO36: - | BP36: - | BQ36: - | BR36: - | BS36: - | BT36: - | BU36: - | BV36: - | BW36: - | BX36: x | BY36: x | BZ36: - | CA36: - | CB36: - | CC36: - | CD36: - | CE36: - | CF36: - | CG36: - | CH36: - | CI36: - | CJ36: - | CK36: - | CL36: - | CM36: - | CN36: - | CO36: - | CP36: - | CQ36: - | CR36: - | CS36: - | CT36: - | CU36: - | CV36: - | CW36: - | CX36: - | CY36: - | CZ36: - | DA36: - | DB36: - | DC36: - | DD36: - | DE36: - | DF36: - | DG36: - | DH36: - | DI36: - | DJ36: x | DK36: x | DL36: - | DM36: - | DN36: - | DO36: - | DP36: - | DQ36: - | DR36: - | DS36: - | DT36: - | DU36: - | DV36: - | DW36: - | DX36: x | DY36: x | DZ36: - | EA36: - | EB36: - | EC36: - | ED36: - | EE36: - | EF36: - | EG36: - | EH36: - | EI36: - | EJ36: x | EK36: x | EL36: 2 | EM36: 2 | EN36: - | EO36: - | EP36: - | EQ36: - | ER36: 2 | ES36: 1 | ET36: - | EU36: - | EV36: 1 | EW36: - | EX36: 3 | EY36: 2 | EZ36: 1 | FA36: - | FB36: - | FC36: - | FD36: - | FE36: 225 | FF36: 25 | FG36: 200 | FH36: - | FI36: - | FJ36: - | FK36: - | FL36: 3 | FM36: 1 | FN36: 1 | FO36: - | FP36: - | FQ36: - | FR36: - | FS36: - | FT36: 3 | FU36: - | FV36: - | FW36: - | FX36: - | FY36: - | FZ36: - | GA36: - | GB36: - | GC36: 2 | GD36: - | GE36: x | GF36: - | GG36: 3 | GH36: - | GI36: - | GJ36: 3 | GK36: 175 | GL36: - | GM36: - | GN36: 175 | GO36: 3 | GP36: - | GQ36: - | GR36: - | GS36: - | GT36: 3 | GU36: 1 | GV36: - | GW36: - | GX36: - | GY36: - | GZ36: - | HA36: - | HB36: - | HC36: - | HD36: - | HE36: - | HF36: - | HG36: - | HH36: 1 | HI36: 91 | HJ36: 1 | HK36: - | HL36: - | HM36: - | HN36: - | HO36: - | HP36: - | HQ36: - | HR36: - | HS36: - | HT36: - | HU36: - | HV36: - | HW36: 1 | HX36: 91 | HY36: 3 | HZ36: 3 | IA36: - | IB36: 1 | IC36: - | ID36: - | IE36: - | IF36: 1 | IG36: 1 | IH36: 1 | II36: 0 | IJ36: 1 | IK36: - | IL36: 1 | IM36: - | IN36: - | IO36: - | IP36: - | IQ36: - | IR36: - | IS36: 1 | IT36: - | IU36: 1 | IV36: - | IW36: - | IX36: - | IY36: - | IZ36: - | JA36: - | JB36: 1 | JC36: - | JD36: - | JE36: - | JF36: - | JG36: - | JH36: 1 | JI36: 0 | JJ36: 1 | JK36: 0 | JL36: 1 | JM36: 0 | JN36: 1 | JO36: 0 | JP36: 0 | JQ36: 0 | JR36: 24 | JS36: 5 | JT36: 46 | JU36: 14 | JV36: -69.56521739 | JW36: 58.69565217 | JX36: 608.17 | JY36: 587.63 | JZ36: 1 | KA36: 0 | KB36: 0 | KC36: 0 | KD36: 0
A37: 2610100029 | B37: 26 | D37: 101 | E37: 00 | F37: 029 | H37: 京都府 | I37: 北区 | J37: 北区 | K37: 中川 | M37: - | N37: - | O37: - | P37: - | Q37: - | R37: - | S37: - | T37: - | U37: - | V37: - | W37: - | X37: - | Y37: - | Z37: - | AA37: - | AB37: - | AC37: - | AD37: - | AE37: - | AF37: - | AG37: - | AH37: - | AI37: - | AJ37: - | AK37: - | AL37: - | AM37: - | AN37: - | AO37: - | AP37: - | AQ37: - | AR37: - | AS37: - | AT37: - | AU37: - | AV37: - | AW37: - | AX37: - | AY37: - | AZ37: - | BA37: - | BB37: - | BC37: x | BD37: - | BE37: - | BF37: - | BG37: - | BH37: - | BI37: - | BJ37: - | BK37: - | BL37: - | BM37: x | BN37: - | BO37: - | BP37: - | BQ37: - | BR37: - | BS37: - | BT37: - | BU37: - | BV37: - | BW37: - | BX37: x | BY37: x | BZ37: - | CA37: - | CB37: - | CC37: - | CD37: - | CE37: - | CF37: - | CG37: - | CH37: - | CI37: - | CJ37: - | CK37: - | CL37: - | CM37: - | CN37: - | CO37: - | CP37: - | CQ37: - | CR37: - | CS37: - | CT37: - | CU37: - | CV37: - | CW37: - | CX37: - | CY37: - | CZ37: - | DA37: - | DB37: - | DC37: - | DD37: - | DE37: - | DF37: - | DG37: - | DH37: - | DI37: - | DJ37: x | DK37: x | DL37: - | DM37: - | DN37: - | DO37: - | DP37: - | DQ37: - | DR37: - | DS37: - | DT37: - | DU37: - | DV37: - | DW37: - | DX37: x | DY37: x | DZ37: - | EA37: - | EB37: - | EC37: - | ED37: - | EE37: - | EF37: - | EG37: - | EH37: - | EI37: - | EJ37: x | EK37: x | EL37: - | EM37: - | EN37: - | EO37: - | EP37: - | EQ37: - | ER37: - | ES37: - | ET37: - | EU37: - | EV37: - | EW37: - | EX37: - | EY37: - | EZ37: - | FA37: - | FB37: - | FC37: - | FD37: - | FE37: - | FF37: - | FG37: - | FH37: - | FI37: - | FJ37: - | FK37: - | FL37: - | FM37: - | FN37: - | FO37: - | FP37: - | FQ37: - | FR37: - | FS37: - | FT37: - | FU37: - | FV37: - | FW37: - | FX37: - | FY37: - | FZ37: - | GA37: - | GB37: - | GC37: - | GD37: - | GE37: - | GF37: - | GG37: - | GH37: - | GI37: - | GJ37: - | GK37: - | GL37: - | GM37: - | GN37: - | GO37: - | GP37: - | GQ37: - | GR37: - | GS37: - | GT37: - | GU37: - | GV37: - | GW37: - | GX37: - | GY37: - | GZ37: - | HA37: - | HB37: - | HC37: - | HD37: - | HE37: - | HF37: - | HG37: - | HH37: - | HI37: - | HJ37: - | HK37: - | HL37: - | HM37: - | HN37: - | HO37: - | HP37: - | HQ37: - | HR37: - | HS37: - | HT37: - | HU37: - | HV37: - | HW37: - | HX37: - | HY37: - | HZ37: - | IA37: - | IB37: - | IC37: - | ID37: - | IE37: - | IF37: - | IG37: 1 | IH37: 1 | II37: 0 | IJ37: 1 | IK37: - | IL37: - | IM37: - | IN37: 1 | IO37: - | IP37: - | IQ37: - | IR37: - | IS37: 1 | IT37: 1 | IU37: 1 | IV37: 1 | IW37: - | IX37: - | IY37: - | IZ37: - | JA37: 1 | JB37: 1 | JC37: 1 | JD37: - | JE37: - | JF37: - | JG37: - | JH37: 1 | JI37: 0 | JJ37: 0 | JK37: 0 | JL37: 1 | JM37: 0 | JN37: 1 | JO37: 1 | JP37: 0 | JQ37: 0 | JR37: 110 | JS37: 20 | JT37: 212 | JU37: 52 | JV37: -75.47169811 | JW37: 66.03773585 | JX37: 1121.16 | JY37: 1102.1 | JZ37: 1 | KA37: 0 | KB37: 0 | KC37: 0 | KD37: 0
A38: 2610100030 | B38: 26 | D38: 101 | E38: 00 | F38: 030 | H38: 京都府 | I38: 北区 | J38: 北区 | K38: 眞弓 | M38: - | N38: - | O38: - | P38: - | Q38: - | R38: - | S38: - | T38: - | U38: - | V38: - | W38: - | X38: - | Y38: - | Z38: - | AA38: - | AB38: - | AC38: - | AD38: - | AE38: - | AF38: - | AG38: - | AH38: - | AI38: - | AJ38: - | AK38: - | AL38: - | AM38: - | AN38: - | AO38: - | AP38: - | AQ38: - | AR38: - | AS38: - | AT38: - | AU38: - | AV38: - | AW38: - | AX38: - | AY38: - | AZ38: - | BA38: - | BB38: - | BC38: x | BD38: - | BE38: - | BF38: - | BG38: - | BH38: - | BI38: - | BJ38: - | BK38: - | BL38: - | BM38: x | BN38: - | BO38: - | BP38: - | BQ38: - | BR38: - | BS38: - | BT38: - | BU38: - | BV38: - | BW38: - | BX38: x | BY38: x | BZ38: - | CA38: - | CB38: - | CC38: - | CD38: - | CE38: - | CF38: - | CG38: - | CH38: - | CI38: - | CJ38: - | CK38: - | CL38: - | CM38: - | CN38: - | CO38: - | CP38: - | CQ38: - | CR38: - | CS38: - | CT38: - | CU38: - | CV38: - | CW38: - | CX38: - | CY38: - | CZ38: - | DA38: - | DB38: - | DC38: - | DD38: - | DE38: - | DF38: - | DG38: - | DH38: - | DI38: - | DJ38: x | DK38: x | DL38: - | DM38: - | DN38: - | DO38: - | DP38: - | DQ38: - | DR38: - | DS38: - | DT38: - | DU38: - | DV38: - | DW38: - | DX38: x | DY38: x | DZ38: - | EA38: - | EB38: - | EC38: - | ED38: - | EE38: - | EF38: - | EG38: - | EH38: - | EI38: - | EJ38: x | EK38: x | EL38: - | EM38: - | EN38: - | EO38: - | EP38: - | EQ38: - | ER38: - | ES38: - | ET38: - | EU38: - | EV38: - | EW38: - | EX38: - | EY38: - | EZ38: - | FA38: - | FB38: - | FC38: - | FD38: - | FE38: - | FF38: - | FG38: - | FH38: - | FI38: - | FJ38: - | FK38: - | FL38: - | FM38: - | FN38: - | FO38: - | FP38: - | FQ38: - | FR38: - | FS38: - | FT38: - | FU38: - | FV38: - | FW38: - | FX38: - | FY38: - | FZ38: - | GA38: - | GB38: - | GC38: - | GD38: - | GE38: - | GF38: - | GG38: - | GH38: - | GI38: - | GJ38: - | GK38: - | GL38: - | GM38: - | GN38: - | GO38: - | GP38: - | GQ38: - | GR38: - | GS38: - | GT38: - | GU38: - | GV38: - | GW38: - | GX38: - | GY38: - | GZ38: - | HA38: - | HB38: - | HC38: - | HD38: - | HE38: - | HF38: - | HG38: - | HH38: - | HI38: - | HJ38: - | HK38: - | HL38: - | HM38: - | HN38: - | HO38: - | HP38: - | HQ38: - | HR38: - | HS38: - | HT38: - | HU38: - | HV38: - | HW38: - | HX38: - | HY38: - | HZ38: - | IA38: - | IB38: - | IC38: - | ID38: - | IE38: - | IF38: - | IG38: 1 | IH38: 1 | II38: 0 | IJ38: 1 | IK38: - | IL38: - | IM38: - | IN38: 1 | IO38: - | IP38: - | IQ38: - | IR38: - | IS38: 1 | IT38: 1 | IU38: 1 | IV38: - | IW38: - | IX38: - | IY38: - | IZ38: 1 | JA38: 1 | JB38: - | JC38: - | JD38: - | JE38: - | JF38: - | JG38: - | JH38: 1 | JI38: 0 | JJ38: 1 | JK38: 0 | JL38: 1 | JM38: 0 | JN38: 1 | JO38: 0 | JP38: 0 | JQ38: 0 | JR38: 13 | JS38: 4 | JT38: 25 | JU38: 5 | JV38: -80 | JW38: 60 | JX38: 386.38 | JY38: 373.98 | JZ38: 1 | KA38: 0 | KB38: 0 | KC38: 0 | KD38: 0
A39: 2610100031 | B39: 26 | D39: 101 | E39: 00 | F39: 031 | H39: 京都府 | I39: 北区 | J39: 北区 | K39: 雲ケ畑 | M39: - | N39: - | O39: - | P39: - | Q39: - | R39: - | S39: - | T39: - | U39: - | V39: - | W39: - | X39: - | Y39: - | Z39: - | AA39: - | AB39: - | AC39: - | AD39: - | AE39: - | AF39: - | AG39: - | AH39: - | AI39: - | AJ39: - | AK39: - | AL39: - | AM39: - | AN39: - | AO39: - | AP39: - | AQ39: - | AR39: - | AS39: - | AT39: - | AU39: - | AV39: - | AW39: - | AX39: - | AY39: - | AZ39: - | BA39: - | BB39: - | BC39: x | BD39: - | BE39: - | BF39: - | BG39: - | BH39: - | BI39: - | BJ39: - | BK39: - | BL39: - | BM39: x | BN39: - | BO39: - | BP39: - | BQ39: - | BR39: - | BS39: - | BT39: - | BU39: - | BV39: - | BW39: - | BX39: x | BY39: x | BZ39: - | CA39: - | CB39: - | CC39: - | CD39: - | CE39: - | CF39: - | CG39: - | CH39: - | CI39: - | CJ39: - | CK39: - | CL39: - | CM39: - | CN39: - | CO39: - | CP39: - | CQ39: - | CR39: - | CS39: - | CT39: - | CU39: - | CV39: - | CW39: - | CX39: - | CY39: - | CZ39: - | DA39: - | DB39: - | DC39: - | DD39: - | DE39: - | DF39: - | DG39: - | DH39: - | DI39: - | DJ39: x | DK39: x | DL39: - | DM39: - | DN39: - | DO39: - | DP39: - | DQ39: - | DR39: - | DS39: - | DT39: - | DU39: - | DV39: - | DW39: - | DX39: x | DY39: x | DZ39: - | EA39: - | EB39: - | EC39: - | ED39: - | EE39: - | EF39: - | EG39: - | EH39: - | EI39: - | EJ39: x | EK39: x | EL39: - | EM39: - | EN39: - | EO39: - | EP39: - | EQ39: - | ER39: - | ES39: - | ET39: - | EU39: - | EV39: - | EW39: - | EX39: - | EY39: - | EZ39: - | FA39: - | FB39: - | FC39: - | FD39: - | FE39: - | FF39: - | FG39: - | FH39: - | FI39: - | FJ39: - | FK39: - | FL39: - | FM39: - | FN39: - | FO39: - | FP39: - | FQ39: - | FR39: - | FS39: - | FT39: - | FU39: - | FV39: - | FW39: - | FX39: - | FY39: - | FZ39: - | GA39: - | GB39: - | GC39: - | GD39: - | GE39: - | GF39: - | GG39: - | GH39: - | GI39: - | GJ39: - | GK39: - | GL39: - | GM39: - | GN39: - | GO39: - | GP39: - | GQ39: - | GR39: - | GS39: - | GT39: - | GU39: - | GV39: - | GW39: - | GX39: - | GY39: - | GZ39: - | HA39: - | HB39: - | HC39: - | HD39: - | HE39: - | HF39: - | HG39: - | HH39: - | HI39: - | HJ39: - | HK39: - | HL39: - | HM39: - | HN39: - | HO39: - | HP39: - | HQ39: - | HR39: - | HS39: - | HT39: - | HU39: - | HV39: - | HW39: - | HX39: - | HY39: - | HZ39: - | IA39: - | IB39: - | IC39: - | ID39: - | IE39: - | IF39: - | IG39: 1 | IH39: 0 | II39: 1 | IJ39: 1 | IK39: - | IL39: - | IM39: - | IN39: - | IO39: 1 | IP39: - | IQ39: - | IR39: - | IS39: 1 | IT39: 1 | IU39: 1 | IV39: 1 | IW39: - | IX39: - | IY39: - | IZ39: - | JA39: 1 | JB39: 1 | JC39: 1 | JD39: - | JE39: - | JF39: - | JG39: - | JH39: 1 | JI39: 0 | JJ39: 1 | JK39: 0 | JL39: 1 | JM39: 0 | JN39: 1 | JO39: 1 | JP39: 0 | JQ39: 0 | JR39: 58 | JS39: 12 | JT39: 128 | JU39: 36 | JV39: -71.875 | JW39: 55.46875 | JX39: 2222.34 | JY39: 2220.55 | JZ39: 1 | KA39: 0 | KB39: 0 | KC39: 0 | KD39: 0
A40: 2610200000 | B40: 26 | D40: 102 | E40: 00 | F40: 000 | H40: 京都府 | I40: 上京区 | M40: 2 | N40: x | O40: x | P40: x | Q40: x | R40: x | S40: x | T40: x | U40: x | V40: x | W40: x | X40: x | Y40: x | Z40: 2 | AA40: x | AB40: x | AC40: x | AD40: x | AE40: x | AF40: x | AG40: x | AH40: x | AI40: x | AJ40: x | AK40: x | AL40: x | AM40: x | AN40: x | AO40: x | AP40: x | AQ40: x | AR40: x | AS40: x | AT40: x | AU40: x | AV40: x | AW40: x | AX40: x | AY40: x | AZ40: x | BA40: x | BB40: x | BC40: x | BD40: x | BE40: x | BF40: x | BG40: x | BH40: x | BI40: x | BJ40: x | BK40: x | BL40: x | BM40: x | BN40: x | BO40: x | BP40: x | BQ40: x | BR40: x | BS40: x | BT40: x | BU40: x | BV40: x | BW40: x | BX40: x | BY40: x | BZ40: x | CA40: x | CB40: x | CC40: x | CD40: x | CE40: x | CF40: x | CG40: x | CH40: x | CI40: x | CJ40: x | CK40: x | CL40: x | CM40: x | CN40: x | CO40: x | CP40: x | CQ40: x | CR40: x | CS40: x | CT40: x | CU40: x | CV40: x | CW40: x | CX40: x | CY40: x | CZ40: x | DA40: x | DB40: x | DC40: x | DD40: x | DE40: x | DF40: x | DG40: x | DH40: x | DI40: x | DJ40: x | DK40: x | DL40: x | DM40: x | DN40: x | DO40: x | DP40: x | DQ40: x | DR40: x | DS40: x | DT40: x | DU40: x | DV40: x | DW40: x | DX40: x | DY40: x | DZ40: x | EA40: x | EB40: x | EC40: x | ED40: x | EE40: x | EF40: x | EG40: x | EH40: x | EI40: x | EJ40: x | EK40: x | EL40: x | EM40: x | EN40: x | EO40: x | EP40: x | EQ40: x | ER40: x | ES40: x | ET40: x | EU40: x | EV40: x | EW40: x | EX40: 2 | EY40: x | EZ40: x | FA40: x | FB40: x | FC40: x | FD40: x | FE40: x | FF40: x | FG40: x | FH40: x | FI40: x | FJ40: x | FK40: x | FL40: 2 | FM40: x | FN40: x | FO40: x | FP40: x | FQ40: x | FR40: x | FS40: x | FT40: 2 | FU40: x | FV40: x | FW40: x | FX40: x | FY40: x | FZ40: x | GA40: x | GB40: x | GC40: x | GD40: x | GE40: x | GF40: x | GG40: 2 | GH40: x | GI40: x | GJ40: x | GK40: x | GL40: x | GM40: x | GN40: x | GO40: 2 | GP40: x | GQ40: x | GR40: x | GS40: x | GT40: x | GU40: x | GV40: x | GW40: x | GX40: x | GY40: x | GZ40: x | HA40: x | HB40: x | HC40: x | HD40: x | HE40: x | HF40: x | HG40: x | HH40: x | HI40: x | HJ40: x | HK40: x | HL40: x | HM40: x | HN40: x | HO40: x | HP40: x | HQ40: x | HR40: x | HS40: x | HT40: x | HU40: x | HV40: x | HW40: x | HX40: x | HY40: 2 | HZ40: x | IA40: x | IB40: x | IC40: x | ID40: x | IE40: x | IF40: x | IG40: … | IH40: … | II40: … | IJ40: … | IK40: … | IL40: … | IM40: … | IN40: … | IO40: … | IP40: … | IQ40: … | IR40: … | IS40: … | IT40: … | IU40: … | IV40: … | IW40: … | IX40: … | IY40: … | IZ40: … | JA40: … | JB40: … | JC40: … | JD40: … | JE40: … | JF40: … | JG40: … | JH40: … | JI40: … | JJ40: … | JK40: … | JL40: … | JM40: … | JN40: … | JO40: … | JP40: … | JQ40: … | JR40: 47960 | JS40: 3644 | JT40: 83832 | JU40: 74955 | JV40: -10.58903521 | JW40: 26.35509113 | JX40: 702.87 | JY40: 0 | JZ40: 1 | KA40: 0 | KB40: 0 | KC40: 0 | KD40: 0
A41: 2610200001 | B41: 26 | D41: 102 | E41: 00 | F41: 001 | H41: 京都府 | I41: 上京区 | J41: 上京区 | K41: 上京１ | M41: 2 | N41: x | O41: x | P41: x | Q41: x | R41: x | S41: x | T41: x | U41: x | V41: x | W41: x | X41: x | Y41: x | Z41: 2 | AA41: x | AB41: x | AC41: x | AD41: x | AE41: x | AF41: x | AG41: x | AH41: x | AI41: x | AJ41: x | AK41: x | AL41: x | AM41: x | AN41: x | AO41: x | AP41: x | AQ41: x | AR41: x | AS41: x | AT41: x | AU41: x | AV41: x | AW41: x | AX41: x | AY41: x | AZ41: x | BA41: x | BB41: x | BC41: x | BD41: x | BE41: x | BF41: x | BG41: x | BH41: x | BI41: x | BJ41: x | BK41: x | BL41: x | BM41: x | BN41: x | BO41: x | BP41: x | BQ41: x | BR41: x | BS41: x | BT41: x | BU41: x | BV41: x | BW41: x | BX41: x | BY41: x | BZ41: x | CA41: x | CB41: x | CC41: x | CD41: x | CE41: x | CF41: x | CG41: x | CH41: x | CI41: x | CJ41: x | CK41: x | CL41: x | CM41: x | CN41: x | CO41: x | CP41: x | CQ41: x | CR41: x | CS41: x | CT41: x | CU41: x | CV41: x | CW41: x | CX41: x | CY41: x | CZ41: x | DA41: x | DB41: x | DC41: x | DD41: x | DE41: x | DF41: x | DG41: x | DH41: x | DI41: x | DJ41: x | DK41: x | DL41: x | DM41: x | DN41: x | DO41: x | DP41: x | DQ41: x | DR41: x | DS41: x | DT41: x | DU41: x | DV41: x | DW41: x | DX41: x | DY41: x | DZ41: x | EA41: x | EB41: x | EC41: x | ED41: x | EE41: x | EF41: x | EG41: x | EH41: x | EI41: x | EJ41: x | EK41: x | EL41: x | EM41: x | EN41: x | EO41: x | EP41: x | EQ41: x | ER41: x | ES41: x | ET41: x | EU41: x | EV41: x | EW41: x | EX41: 2 | EY41: x | EZ41: x | FA41: x | FB41: x | FC41: x | FD41: x | FE41: x | FF41: x | FG41: x | FH41: x | FI41: x | FJ41: x | FK41: x | FL41: 2 | FM41: x | FN41: x | FO41: x | FP41: x | FQ41: x | FR41: x | FS41: x | FT41: 2 | FU41: x | FV41: x | FW41: x | FX41: x | FY41: x | FZ41: x | GA41: x | GB41: x | GC41: x | GD41: x | GE41: x | GF41: x | GG41: 2 | GH41: x | GI41: x | GJ41: x | GK41: x | GL41: x | GM41: x | GN41: x | GO41: 2 | GP41: x | GQ41: x | GR41: x | GS41: x | GT41: x | GU41: x | GV41: x | GW41: x | GX41: x | GY41: x | GZ41: x | HA41: x | HB41: x | HC41: x | HD41: x | HE41: x | HF41: x | HG41: x | HH41: x | HI41: x | HJ41: x | HK41: x | HL41: x | HM41: x | HN41: x | HO41: x | HP41: x | HQ41: x | HR41: x | HS41: x | HT41: x | HU41: x | HV41: x | HW41: x | HX41: x | HY41: 2 | HZ41: x | IA41: x | IB41: x | IC41: x | ID41: x | IE41: x | IF41: x | IG41: … | IH41: … | II41: … | IJ41: … | IK41: … | IL41: … | IM41: … | IN41: … | IO41: … | IP41: … | IQ41: … | IR41: … | IS41: … | IT41: … | IU41: … | IV41: … | IW41: … | IX41: … | IY41: … | IZ41: … | JA41: … | JB41: … | JC41: … | JD41: … | JE41: … | JF41: … | JG41: … | JH41: … | JI41: … | JJ41: … | JK41: … | JL41: … | JM41: … | JN41: … | JO41: … | JP41: … | JQ41: … | JR41: 19537 | JS41: 1424 | JT41: 33393 | JU41: 27552 | JV41: -17.49168988 | JW41: 27.61656635 | JX41: 273.79 | JY41: 0 | JZ41: 1 | KA41: 0 | KB41: 0 | KC41: 0 | KD41: 0
A42: 2610200002 | B42: 26 | D42: 102 | E42: 00 | F42: 002 | H42: 京都府 | I42: 上京区 | J42: 上京区 | K42: 上京２ | M42: - | N42: - | O42: - | P42: - | Q42: - | R42: - | S42: - | T42: - | U42: - | V42: - | W42: - | X42: - | Y42: - | Z42: - | AA42: - | AB42: - | AC42: - | AD42: - | AE42: - | AF42: - | AG42: - | AH42: - | AI42: - | AJ42: - | AK42: - | AL42: - | AM42: - | AN42: - | AO42: - | AP42: - | AQ42: - | AR42: - | AS42: - | AT42: - | AU42: - | AV42: - | AW42: - | AX42: - | AY42: - | AZ42: - | BA42: - | BB42: - | BC42: x | BD42: - | BE42: - | BF42: - | BG42: - | BH42: - | BI42: - | BJ42: - | BK42: - | BL42: - | BM42: x | BN42: - | BO42: - | BP42: - | BQ42: - | BR42: - | BS42: - | BT42: - | BU42: - | BV42: - | BW42: - | BX42: x | BY42: x | BZ42: - | CA42: - | CB42: - | CC42: - | CD42: - | CE42: - | CF42: - | CG42: - | CH42: - | CI42: - | CJ42: - | CK42: - | CL42: - | CM42: - | CN42: - | CO42: - | CP42: - | CQ42: - | CR42: - | CS42: - | CT42: - | CU42: - | CV42: - | CW42: - | CX42: - | CY42: - | CZ42: - | DA42: - | DB42: - | DC42: - | DD42: - | DE42: - | DF42: - | DG42: - | DH42: - | DI42: - | DJ42: x | DK42: x | DL42: - | DM42: - | DN42: - | DO42: - | DP42: - | DQ42: - | DR42: - | DS42: - | DT42: - | DU42: - | DV42: - | DW42: - | DX42: x | DY42: x | DZ42: - | EA42: - | EB42: - | EC42: - | ED42: - | EE42: - | EF42: - | EG42: - | EH42: - | EI42: - | EJ42: x | EK42: x | EL42: - | EM42: - | EN42: - | EO42: - | EP42: - | EQ42: - | ER42: - | ES42: - | ET42: - | EU42: - | EV42: - | EW42: - | EX42: - | EY42: - | EZ42: - | FA42: - | FB42: - | FC42: - | FD42: - | FE42: - | FF42: - | FG42: - | FH42: - | FI42: - | FJ42: - | FK42: - | FL42: - | FM42: - | FN42: - | FO42: - | FP42: - | FQ42: - | FR42: - | FS42: - | FT42: - | FU42: - | FV42: - | FW42: - | FX42: - | FY42: - | FZ42: - | GA42: - | GB42: - | GC42: - | GD42: - | GE42: - | GF42: - | GG42: - | GH42: - | GI42: - | GJ42: - | GK42: - | GL42: - | GM42: - | GN42: - | GO42: - | GP42: - | GQ42: - | GR42: - | GS42: - | GT42: - | GU42: - | GV42: - | GW42: - | GX42: - | GY42: - | GZ42: - | HA42: - | HB42: - | HC42: - | HD42: - | HE42: - | HF42: - | HG42: - | HH42: - | HI42: - | HJ42: - | HK42: - | HL42: - | HM42: - | HN42: - | HO42: - | HP42: - | HQ42: - | HR42: - | HS42: - | HT42: - | HU42: - | HV42: - | HW42: - | HX42: - | HY42: - | HZ42: - | IA42: - | IB42: - | IC42: - | ID42: - | IE42: - | IF42: - | IG42: … | IH42: … | II42: … | IJ42: … | IK42: … | IL42: … | IM42: … | IN42: … | IO42: … | IP42: … | IQ42: … | IR42: … | IS42: … | IT42: … | IU42: … | IV42: … | IW42: … | IX42: … | IY42: … | IZ42: … | JA42: … | JB42: … | JC42: … | JD42: … | JE42: … | JF42: … | JG42: … | JH42: … | JI42: … | JJ42: … | JK42: … | JL42: … | JM42: … | JN42: … | JO42: … | JP42: … | JQ42: … | JR42: 28423 | JS42: 2220 | JT42: 50439 | JU42: 47403 | JV42: -6.019151847 | JW42: 25.51993497 | JX42: 429.08 | JY42: 0 | JZ42: 1 | KA42: 0 | KB42: 0 | KC42: 0 | KD42: 0
A43: 2610300000 | B43: 26 | D43: 103 | E43: 00 | F43: 000 | H43: 京都府 | I43: 左京区 | M43: 112 | N43: 1 | O43: 3 | P43: - | Q43: - | R43: - | S43: 1 | T43: 107 | U43: 6 | V43: 5 | W43: 11 | X43: 14 | Y43: 131 | Z43: 112 | AA43: 56 | AB43: 44 | AC43: 12 | AD43: - | AE43: - | AF43: - | AG43: - | AH43: - | AI43: 6899 | AJ43: 2073 | AK43: 2830 | AL43: 1996 | AM43: - | AN43: - | AO43: - | AP43: - | AQ43: - | AR43: 96 | AS43: 4690 | AT43: 69 | AU43: 2082 | AV43: 7 | AW43: 127 | AX43: 39 | AY43: 2537 | AZ43: 58 | BA43: - | BB43: 4 | BC43: x | BD43: 41 | BE43: 8 | BF43: 2 | BG43: 1 | BH43: 3 | BI43: - | BJ43: 5951 | BK43: - | BL43: x | BM43: x | BN43: 1555 | BO43: 53 | BP43: x | BQ43: x | BR43: 80 | BS43: - | BT43: - | BU43: - | BV43: - | BW43: - | BX43: x | BY43: x | BZ43: 2 | CA43: x | CB43: - | CC43: - | CD43: 24 | CE43: x | CF43: 17 | CG43: x | CH43: 17 | CI43: x | CJ43: 8 | CK43: x | CL43: 20 | CM43: 73.7 | CN43: 11 | CO43: x | CP43: 23 | CQ43: x | CR43: 20 | CS43: x | CT43: 7 | CU43: 20 | CV43: 21 | CW43: 45 | CX43: 6 | CY43: 10 | CZ43: 17 | DA43: 55.6 | DB43: 19 | DC43: 49.6 | DD43: 7 | DE43: 19.6 | DF43: 2 | DG43: x | DH43: - | DI43: - | DJ43: x | DK43: x | DL43: - | DM43: - | DN43: - | DO43: - | DP43: - | DQ43: - | DR43: - | DS43: - | DT43: - | DU43: - | DV43: - | DW43: - | DX43: x | DY43: x | DZ43: - | EA43: - | EB43: 1 | EC43: x | ED43: - | EE43: - | EF43: - | EG43: - | EH43: - | EI43: - | EJ43: x | EK43: x | EL43: 68 | EM43: 33 | EN43: 30 | EO43: 1 | EP43: 3 | EQ43: 1 | ER43: 103 | ES43: 9 | ET43: 1 | EU43: 15 | EV43: 52 | EW43: 26 | EX43: 112 | EY43: 88 | EZ43: 13 | FA43: 9 | FB43: 2 | FC43: - | FD43: - | FE43: 13800 | FF43: 1500 | FG43: 2600 | FH43: 5700 | FI43: 4000 | FJ43: - | FK43: - | FL43: 112 | FM43: 9 | FN43: 8 | FO43: - | FP43: - | FQ43: 1 | FR43: - | FS43: - | FT43: 112 | FU43: 23 | FV43: 18 | FW43: 9 | FX43: 1 | FY43: 1 | FZ43: - | GA43: 23 | GB43: 11 | GC43: 79 | GD43: 17 | GE43: 8046 | GF43: 894 | GG43: 112 | GH43: 1 | GI43: 33 | GJ43: 78 | GK43: 6899 | GL43: 110 | GM43: 1886 | GN43: 4903 | GO43: 107 | GP43: 8 | GQ43: 8 | GR43: 15 | GS43: 10 | GT43: 84 | GU43: 116 | GV43: 2 | GW43: 2 | GX43: 2 | GY43: 2 | GZ43: 6 | HA43: 4 | HB43: 1 | HC43: 5 | HD43: 13 | HE43: 20 | HF43: 20 | HG43: 23 | HH43: 16 | HI43: 71.73 | HJ43: 37 | HK43: - | HL43: - | HM43: 1 | HN43: - | HO43: 2 | HP43: - | HQ43: 1 | HR43: 2 | HS43: 3 | HT43: 8 | HU43: 8 | HV43: 8 | HW43: 4 | HX43: 73.68 | HY43: 107 | HZ43: 103 | IA43: 8 | IB43: 19 | IC43: 4 | ID43: - | IE43: - | IF43: 31 | IG43: 43 | IH43: 17 | II43: 26 | IJ43: 37 | IK43: 7 | IL43: 12 | IM43: 9 | IN43: 8 | IO43: 1 | IP43: 6 | IQ43: 15 | IR43: 26 | IS43: 18 | IT43: 34 | IU43: 36 | IV43: 25 | IW43: 13 | IX43: 7 | IY43: 5 | IZ43: 2 | JA43: 33 | JB43: 36 | JC43: 24 | JD43: 12 | JE43: 7 | JF43: 4 | JG43: 2 | JH43: 43 | JI43: 16 | JJ43: 42 | JK43: 29 | JL43: 43 | JM43: 26 | JN43: 40 | JO43: 20 | JP43: 9 | JQ43: 6 | JR43: 85624 | JS43: 6081 | JT43: 166039 | JU43: 143486 | JV43: -13.5829534 | JW43: 26.94306759 | JX43: 24676.77 | JY43: 21765.88 | JZ43: 1 | KA43: 2 | KB43: 15.1 | KC43: 33.33 | KD43: 1
A44: 2610301000 | B44: 26 | D44: 103 | E44: 01 | F44: 000 | H44: 京都府 | I44: 左京区 | J44: 左京区 | M44: 108 | N44: - | O44: 3 | P44: - | Q44: - | R44: - | S44: 1 | T44: 104 | U44: 5 | V44: 5 | W44: 11 | X44: 13 | Y44: 124 | Z44: 108 | AA44: 53 | AB44: 44 | AC44: 11 | AD44: - | AE44: - | AF44: - | AG44: - | AH44: - | AI44: 6606 | AJ44: 1980 | AK44: 2830 | AL44: 1796 | AM44: - | AN44: - | AO44: - | AP44: - | AQ44: - | AR44: 95 | AS44: 4657 | AT44: 66 | AU44: 1862 | AV44: 6 | AW44: 87 | AX44: 38 | AY44: 2337 | AZ44: 58 | BA44: - | BB44: 4 | BC44: x | BD44: 40 | BE44: 8 | BF44: 2 | BG44: 1 | BH44: 2 | BI44: - | BJ44: 5951 | BK44: - | BL44: x | BM44: x | BN44: x | BO44: 53 | BP44: x | BQ44: x | BR44: x | BS44: - | BT44: - | BU44: - | BV44: - | BW44: - | BX44: x | BY44: x | BZ44: 2 | CA44: x | CB44: - | CC44: - | CD44: 24 | CE44: x | CF44: 17 | CG44: x | CH44: 17 | CI44: x | CJ44: 8 | CK44: x | CL44: 20 | CM44: 73.7 | CN44: 11 | CO44: x | CP44: 23 | CQ44: x | CR44: 20 | CS44: x | CT44: 7 | CU44: 20 | CV44: 21 | CW44: 45 | CX44: 6 | CY44: 10 | CZ44: 17 | DA44: 55.6 | DB44: 19 | DC44: 49.6 | DD44: 7 | DE44: 19.6 | DF44: 1 | DG44: x | DH44: - | DI44: - | DJ44: x | DK44: x | DL44: - | DM44: - | DN44: - | DO44: - | DP44: - | DQ44: - | DR44: - | DS44: - | DT44: - | DU44: - | DV44: - | DW44: - | DX44: x | DY44: x | DZ44: - | EA44: - | EB44: 1 | EC44: x | ED44: - | EE44: - | EF44: - | EG44: - | EH44: - | EI44: - | EJ44: x | EK44: x | EL44: 66 | EM44: 33 | EN44: 29 | EO44: 1 | EP44: 2 | EQ44: 1 | ER44: 100 | ES44: 9 | ET44: 1 | EU44: 15 | EV44: 50 | EW44: 25 | EX44: 108 | EY44: 85 | EZ44: 12 | FA44: 9 | FB44: 2 | FC44: - | FD44: - | FE44: 13575 | FF44: 1475 | FG44: 2400 | FH44: 5700 | FI44: 4000 | FJ44: - | FK44: - | FL44: 108 | FM44: 9 | FN44: 8 | FO44: - | FP44: - | FQ44: 1 | FR44: - | FS44: - | FT44: 108 | FU44: 22 | FV44: 18 | FW44: 8 | FX44: 1 | FY44: 1 | FZ44: - | GA44: 22 | GB44: 11 | GC44: 77 | GD44: 15 | GE44: x | GF44: 724 | GG44: 108 | GH44: 1 | GI44: 33 | GJ44: 74 | GK44: 6606 | GL44: 110 | GM44: 1886 | GN44: 4610 | GO44: 104 | GP44: 8 | GQ44: 8 | GR44: 15 | GS44: 10 | GT44: 81 | GU44: 112 | GV44: 2 | GW44: 2 | GX44: 2 | GY44: 2 | GZ44: 6 | HA44: 4 | HB44: 1 | HC44: 5 | HD44: 12 | HE44: 20 | HF44: 20 | HG44: 23 | HH44: 13 | HI44: 71.28 | HJ44: 35 | HK44: - | HL44: - | HM44: 1 | HN44: - | HO44: 2 | HP44: - | HQ44: 1 | HR44: 2 | HS44: 3 | HT44: 8 | HU44: 8 | HV44: 8 | HW44: 2 | HX44: 72.66 | HY44: 104 | HZ44: 101 | IA44: 8 | IB44: 18 | IC44: 3 | ID44: - | IE44: - | IF44: 29 | IG44: 42 | IH44: 16 | II44: 26 | IJ44: 36 | IK44: 7 | IL44: 12 | IM44: 8 | IN44: 8 | IO44: 1 | IP44: 6 | IQ44: 14 | IR44: 26 | IS44: 18 | IT44: 33 | IU44: 35 | IV44: 24 | IW44: 12 | IX44: 7 | IY44: 4 | IZ44: 2 | JA44: 32 | JB44: 35 | JC44: 23 | JD44: 11 | JE44: 7 | JF44: 3 | JG44: 2 | JH44: 42 | JI44: 15 | JJ44: 41 | JK44: 28 | JL44: 42 | JM44: 25 | JN44: 39 | JO44: 19 | JP44: 9 | JQ44: 6 | JR44: 85585 | JS44: 6074 | JT44: 165927 | JU44: 143077 | JV44: -13.77111621 | JW44: 26.94196846 | JX44: 22068.21 | JY44: 19195.63 | JZ44: 1 | KA44: 2 | KB44: 15.1 | KC44: 33.33 | KD44: 1
A45: 2610301001 | B45: 26 | D45: 103 | E45: 01 | F45: 001 | H45: 京都府 | I45: 左京区 | J45: 左京区 | K45: 田中 | M45: - | N45: - | O45: - | P45: - | Q45: - | R45: - | S45: - | T45: - | U45: - | V45: - | W45: - | X45: - | Y45: - | Z45: - | AA45: - | AB45: - | AC45: - | AD45: - | AE45: - | AF45: - | AG45: - | AH45: - | AI45: - | AJ45: - | AK45: - | AL45: - | AM45: - | AN45: - | AO45: - | AP45: - | AQ45: - | AR45: - | AS45: - | AT45: - | AU45: - | AV45: - | AW45: - | AX45: - | AY45: - | AZ45: - | BA45: - | BB45: - | BC45: x | BD45: - | BE45: - | BF45: - | BG45: - | BH45: - | BI45: - | BJ45: - | BK45: - | BL45: - | BM45: x | BN45: - | BO45: - | BP45: - | BQ45: - | BR45: - | BS45: - | BT45: - | BU45: - | BV45: - | BW45: - | BX45: x | BY45: x | BZ45: - | CA45: - | CB45: - | CC45: - | CD45: - | CE45: - | CF45: - | CG45: - | CH45: - | CI45: - | CJ45: - | CK45: - | CL45: - | CM45: - | CN45: - | CO45: - | CP45: - | CQ45: - | CR45: - | CS45: - | CT45: - | CU45: - | CV45: - | CW45: - | CX45: - | CY45: - | CZ45: - | DA45: - | DB45: - | DC45: - | DD45: - | DE45: - | DF45: - | DG45: - | DH45: - | DI45: - | DJ45: x | DK45: x | DL45: - | DM45: - | DN45: - | DO45: - | DP45: - | DQ45: - | DR45: - | DS45: - | DT45: - | DU45: - | DV45: - | DW45: - | DX45: x | DY45: x | DZ45: - | EA45: - | EB45: - | EC45: - | ED45: - | EE45: - | EF45: - | EG45: - | EH45: - | EI45: - | EJ45: x | EK45: x | EL45: - | EM45: - | EN45: - | EO45: - | EP45: - | EQ45: - | ER45: - | ES45: - | ET45: - | EU45: - | EV45: - | EW45: - | EX45: - | EY45: - | EZ45: - | FA45: - | FB45: - | FC45: - | FD45: - | FE45: - | FF45: - | FG45: - | FH45: - | FI45: - | FJ45: - | FK45: - | FL45: - | FM45: - | FN45: - | FO45: - | FP45: - | FQ45: - | FR45: - | FS45: - | FT45: - | FU45: - | FV45: - | FW45: - | FX45: - | FY45: - | FZ45: - | GA45: - | GB45: - | GC45: - | GD45: - | GE45: - | GF45: - | GG45: - | GH45: - | GI45: - | GJ45: - | GK45: - | GL45: - | GM45: - | GN45: - | GO45: - | GP45: - | GQ45: - | GR45: - | GS45: - | GT45: - | GU45: - | GV45: - | GW45: - | GX45: - | GY45: - | GZ45: - | HA45: - | HB45: - | HC45: - | HD45: - | HE45: - | HF45: - | HG45: - | HH45: - | HI45: - | HJ45: - | HK45: - | HL45: - | HM45: - | HN45: - | HO45: - | HP45: - | HQ45: - | HR45: - | HS45: - | HT45: - | HU45: - | HV45: - | HW45: - | HX45: - | HY45: - | HZ45: - | IA45: - | IB45: - | IC45: - | ID45: - | IE45: - | IF45: - | IG45: … | IH45: … | II45: … | IJ45: … | IK45: … | IL45: … | IM45: … | IN45: … | IO45: … | IP45: … | IQ45: … | IR45: … | IS45: … | IT45: … | IU45: … | IV45: … | IW45: … | IX45: … | IY45: … | IZ45: … | JA45: … | JB45: … | JC45: … | JD45: … | JE45: … | JF45: … | JG45: … | JH45: … | JI45: … | JJ45: … | JK45: … | JL45: … | JM45: … | JN45: … | JO45: … | JP45: … | JQ45: … | JR45: 9261 | JS45: 546 | JT45: 13958 | JU45: 9167 | JV45: -34.32440178 | JW45: 20.82676601 | JX45: 97.41 | JY45: 0 | JZ45: 1 | KA45: 0 | KB45: 0 | KC45: 0 | KD45: 0
A46: 2610301002 | B46: 26 | D46: 103 | E46: 01 | F46: 002 | H46: 京都府 | I46: 左京区 | J46: 左京区 | K46: 高野 | M46: - | N46: - | O46: - | P46: - | Q46: - | R46: - | S46: - | T46: - | U46: - | V46: - | W46: - | X46: - | Y46: - | Z46: - | AA46: - | AB46: - | AC46: - | AD46: - | AE46: - | AF46: - | AG46: - | AH46: - | AI46: - | AJ46: - | AK46: - | AL46: - | AM46: - | AN46: - | AO46: - | AP46: - | AQ46: - | AR46: - | AS46: - | AT46: - | AU46: - | AV46: - | AW46: - | AX46: - | AY46: - | AZ46: - | BA46: - | BB46: - | BC46: x | BD46: - | BE46: - | BF46: - | BG46: - | BH46: - | BI46: - | BJ46: - | BK46: - | BL46: - | BM46: x | BN46: - | BO46: - | BP46: - | BQ46: - | BR46: - | BS46: - | BT46: - | BU46: - | BV46: - | BW46: - | BX46: x | BY46: x | BZ46: - | CA46: - | CB46: - | CC46: - | CD46: - | CE46: - | CF46: - | CG46: - | CH46: - | CI46: - | CJ46: - | CK46: - | CL46: - | CM46: - | CN46: - | CO46: - | CP46: - | CQ46: - | CR46: - | CS46: - | CT46: - | CU46: - | CV46: - | CW46: - | CX46: - | CY46: - | CZ46: - | DA46: - | DB46: - | DC46: - | DD46: - | DE46: - | DF46: - | DG46: - | DH46: - | DI46: - | DJ46: x | DK46: x | DL46: - | DM46: - | DN46: - | DO46: - | DP46: - | DQ46: - | DR46: - | DS46: - | DT46: - | DU46: - | DV46: - | DW46: - | DX46: x | DY46: x | DZ46: - | EA46: - | EB46: - | EC46: - | ED46: - | EE46: - | EF46: - | EG46: - | EH46: - | EI46: - | EJ46: x | EK46: x | EL46: - | EM46: - | EN46: - | EO46: - | EP46: - | EQ46: - | ER46: - | ES46: - | ET46: - | EU46: - | EV46: - | EW46: - | EX46: - | EY46: - | EZ46: - | FA46: - | FB46: - | FC46: - | FD46: - | FE46: - | FF46: - | FG46: - | FH46: - | FI46: - | FJ46: - | FK46: - | FL46: - | FM46: - | FN46: - | FO46: - | FP46: - | FQ46: - | FR46: - | FS46: - | FT46: - | FU46: - | FV46: - | FW46: - | FX46: - | FY46: - | FZ46: - | GA46: - | GB46: - | GC46: - | GD46: - | GE46: - | GF46: - | GG46: - | GH46: - | GI46: - | GJ46: - | GK46: - | GL46: - | GM46: - | GN46: - | GO46: - | GP46: - | GQ46: - | GR46: - | GS46: - | GT46: - | GU46: - | GV46: - | GW46: - | GX46: - | GY46: - | GZ46: - | HA46: - | HB46: - | HC46: - | HD46: - | HE46: - | HF46: - | HG46: - | HH46: - | HI46: - | HJ46: - | HK46: - | HL46: - | HM46: - | HN46: - | HO46: - | HP46: - | HQ46: - | HR46: - | HS46: - | HT46: - | HU46: - | HV46: - | HW46: - | HX46: - | HY46: - | HZ46: - | IA46: - | IB46: - | IC46: - | ID46: - | IE46: - | IF46: - | IG46: … | IH46: … | II46: … | IJ46: … | IK46: … | IL46: … | IM46: … | IN46: … | IO46: … | IP46: … | IQ46: … | IR46: … | IS46: … | IT46: … | IU46: … | IV46: … | IW46: … | IX46: … | IY46: … | IZ46: … | JA46: … | JB46: … | JC46: … | JD46: … | JE46: … | JF46: … | JG46: … | JH46: … | JI46: … | JJ46: … | JK46: … | JL46: … | JM46: … | JN46: … | JO46: … | JP46: … | JQ46: … | JR46: 4877 | JS46: 337 | JT46: 8632 | JU46: 7378 | JV46: -14.52734013 | JW46: 29.6455051 | JX46: 58.51 | JY46: 0 | JZ46: 1 | KA46: 0 | KB46: 0 | KC46: 0 | KD46: 0
A47: 2610301003 | B47: 26 | D47: 103 | E47: 01 | F47: 003 | H47: 京都府 | I47: 左京区 | J47: 左京区 | K47: 浄土寺 | M47: - | N47: - | O47: - | P47: - | Q47: - | R47: - | S47: - | T47: - | U47: - | V47: - | W47: - | X47: - | Y47: - | Z47: - | AA47: - | AB47: - | AC47: - | AD47: - | AE47: - | AF47: - | AG47: - | AH47: - | AI47: - | AJ47: - | AK47: - | AL47: - | AM47: - | AN47: - | AO47: - | AP47: - | AQ47: - | AR47: - | AS47: - | AT47: - | AU47: - | AV47: - | AW47: - | AX47: - | AY47: - | AZ47: - | BA47: - | BB47: - | BC47: x | BD47: - | BE47: - | BF47: - | BG47: - | BH47: - | BI47: - | BJ47: - | BK47: - | BL47: - | BM47: x | BN47: - | BO47: - | BP47: - | BQ47: - | BR47: - | BS47: - | BT47: - | BU47: - | BV47: - | BW47: - | BX47: x | BY47: x | BZ47: - | CA47: - | CB47: - | CC47: - | CD47: - | CE47: - | CF47: - | CG47: - | CH47: - | CI47: - | CJ47: - | CK47: - | CL47: - | CM47: - | CN47: - | CO47: - | CP47: - | CQ47: - | CR47: - | CS47: - | CT47: - | CU47: - | CV47: - | CW47: - | CX47: - | CY47: - | CZ47: - | DA47: - | DB47: - | DC47: - | DD47: - | DE47: - | DF47: - | DG47: - | DH47: - | DI47: - | DJ47: x | DK47: x | DL47: - | DM47: - | DN47: - | DO47: - | DP47: - | DQ47: - | DR47: - | DS47: - | DT47: - | DU47: - | DV47: - | DW47: - | DX47: x | DY47: x | DZ47: - | EA47: - | EB47: - | EC47: - | ED47: - | EE47: - | EF47: - | EG47: - | EH47: - | EI47: - | EJ47: x | EK47: x | EL47: - | EM47: - | EN47: - | EO47: - | EP47: - | EQ47: - | ER47: - | ES47: - | ET47: - | EU47: - | EV47: - | EW47: - | EX47: - | EY47: - | EZ47: - | FA47: - | FB47: - | FC47: - | FD47: - | FE47: - | FF47: - | FG47: - | FH47: - | FI47: - | FJ47: - | FK47: - | FL47: - | FM47: - | FN47: - | FO47: - | FP47: - | FQ47: - | FR47: - | FS47: - | FT47: - | FU47: - | FV47: - | FW47: - | FX47: - | FY47: - | FZ47: - | GA47: - | GB47: - | GC47: - | GD47: - | GE47: - | GF47: - | GG47: - | GH47: - | GI47: - | GJ47: - | GK47: - | GL47: - | GM47: - | GN47: - | GO47: - | GP47: - | GQ47: - | GR47: - | GS47: - | GT47: - | GU47: - | GV47: - | GW47: - | GX47: - | GY47: - | GZ47: - | HA47: - | HB47: - | HC47: - | HD47: - | HE47: - | HF47: - | HG47: - | HH47: - | HI47: - | HJ47: - | HK47: - | HL47: - | HM47: - | HN47: - | HO47: - | HP47: - | HQ47: - | HR47: - | HS47: - | HT47: - | HU47: - | HV47: - | HW47: - | HX47: - | HY47: - | HZ47: - | IA47: - | IB47: - | IC47: - | ID47: - | IE47: - | IF47: - | IG47: 1 | IH47: 0 | II47: 1 | IJ47: 1 | IK47: 1 | IL47: - | IM47: - | IN47: - | IO47: - | IP47: - | IQ47: - | IR47: - | IS47: 1 | IT47: 1 | IU47: 1 | IV47: 1 | IW47: 1 | IX47: 1 | IY47: - | IZ47: - | JA47: 1 | JB47: 1 | JC47: 1 | JD47: 1 | JE47: 1 | JF47: - | JG47: - | JH47: 1 | JI47: 0 | JJ47: 1 | JK47: 0 | JL47: 1 | JM47: 1 | JN47: 1 | JO47: 0 | JP47: 1 | JQ47: 0 | JR47: 18582 | JS47: 1559 | JT47: 33125 | JU47: 27532 | JV47: -16.8845283 | JW47: 27.78264151 | JX47: 931.94 | JY47: 451.87 | JZ47: 1 | KA47: 0 | KB47: 0 | KC47: 0 | KD47: 0
A48: 2610301004 | B48: 26 | D48: 103 | E48: 01 | F48: 004 | H48: 京都府 | I48: 左京区 | J48: 左京区 | K48: 北白川 | M48: - | N48: - | O48: - | P48: - | Q48: - | R48: - | S48: - | T48: - | U48: - | V48: - | W48: - | X48: - | Y48: - | Z48: - | AA48: - | AB48: - | AC48: - | AD48: - | AE48: - | AF48: - | AG48: - | AH48: - | AI48: - | AJ48: - | AK48: - | AL48: - | AM48: - | AN48: - | AO48: - | AP48: - | AQ48: - | AR48: - | AS48: - | AT48: - | AU48: - | AV48: - | AW48: - | AX48: - | AY48: - | AZ48: - | BA48: - | BB48: - | BC48: x | BD48: - | BE48: - | BF48: - | BG48: - | BH48: - | BI48: - | BJ48: - | BK48: - | BL48: - | BM48: x | BN48: - | BO48: - | BP48: - | BQ48: - | BR48: - | BS48: - | BT48: - | BU48: - | BV48: - | BW48: - | BX48: x | BY48: x | BZ48: - | CA48: - | CB48: - | CC48: - | CD48: - | CE48: - | CF48: - | CG48: - | CH48: - | CI48: - | CJ48: - | CK48: - | CL48: - | CM48: - | CN48: - | CO48: - | CP48: - | CQ48: - | CR48: - | CS48: - | CT48: - | CU48: - | CV48: - | CW48: - | CX48: - | CY48: - | CZ48: - | DA48: - | DB48: - | DC48: - | DD48: - | DE48: - | DF48: - | DG48: - | DH48: - | DI48: - | DJ48: x | DK48: x | DL48: - | DM48: - | DN48: - | DO48: - | DP48: - | DQ48: - | DR48: - | DS48: - | DT48: - | DU48: - | DV48: - | DW48: - | DX48: x | DY48: x | DZ48: - | EA48: - | EB48: - | EC48: - | ED48: - | EE48: - | EF48: - | EG48: - | EH48: - | EI48: - | EJ48: x | EK48: x | EL48: - | EM48: - | EN48: - | EO48: - | EP48: - | EQ48: - | ER48: - | ES48: - | ET48: - | EU48: - | EV48: - | EW48: - | EX48: - | EY48: - | EZ48: - | FA48: - | FB48: - | FC48: - | FD48: - | FE48: - | FF48: - | FG48: - | FH48: - | FI48: - | FJ48: - | FK48: - | FL48: - | FM48: - | FN48: - | FO48: - | FP48: - | FQ48: - | FR48: - | FS48: - | FT48: - | FU48: - | FV48: - | FW48: - | FX48: - | FY48: - | FZ48: - | GA48: - | GB48: - | GC48: - | GD48: - | GE48: - | GF48: - | GG48: - | GH48: - | GI48: - | GJ48: - | GK48: - | GL48: - | GM48: - | GN48: - | GO48: - | GP48: - | GQ48: - | GR48: - | GS48: - | GT48: - | GU48: - | GV48: - | GW48: - | GX48: - | GY48: - | GZ48: - | HA48: - | HB48: - | HC48: - | HD48: - | HE48: - | HF48: - | HG48: - | HH48: - | HI48: - | HJ48: - | HK48: - | HL48: - | HM48: - | HN48: - | HO48: - | HP48: - | HQ48: - | HR48: - | HS48: - | HT48: - | HU48: - | HV48: - | HW48: - | HX48: - | HY48: - | HZ48: - | IA48: - | IB48: - | IC48: - | ID48: - | IE48: - | IF48: - | IG48: 1 | IH48: 0 | II48: 1 | IJ48: 1 | IK48: - | IL48: - | IM48: 1 | IN48: - | IO48: - | IP48: - | IQ48: - | IR48: - | IS48: - | IT48: - | IU48: - | IV48: - | IW48: - | IX48: - | IY48: - | IZ48: - | JA48: - | JB48: - | JC48: - | JD48: - | JE48: - | JF48: - | JG48: - | JH48: 1 | JI48: 0 | JJ48: 1 | JK48: 0 | JL48: 1 | JM48: 0 | JN48: 1 | JO48: 0 | JP48: 0 | JQ48: 0 | JR48: 6072 | JS48: 386 | JT48: 10328 | JU48: 7496 | JV48: -27.42060418 | JW48: 25.49380325 | JX48: 572.72 | JY48: 416.04 | JZ48: 1 | KA48: 0 | KB48: 0 | KC48: 0 | KD48: 0
